{"text_format":"1","workbook":"xlsx","n_sheets":18,"sheets":["Caratula Resumen","A Y  II D3","A Y II D4","B)","II B) Y 1","II D) 2","II C y 1_","II D) 4","II D) 4 A","II D) 6","II D) 7 1","II D) 7 2 ","II D) 7 3","E)","G)","F) 1","F) 2","Listas"],"not_rendered":{"charts":0,"images":16,"macros":1,"external_links":0,"defined_names":17,"comments":16,"pivot_tables":0},"unopened":[],"bounds":{"document_bytes":16777216,"sheet_cells":100000,"rows_first":2000,"rows_last":500,"rows_between":2000,"halvings":0,"cell_chars":16384,"cell_head_chars":4096},"cells_cut":0,"cells_raw":0,"read":"whole","date_system":"1900"}

{"sheet":"Caratula Resumen","index":0,"n_rows":73,"n_cols":18,"rows_kept":73,"cut":false,"hidden":false,"merged":[[36,3,36,6],[10,3,10,18],[11,3,11,18],[12,3,12,18],[34,3,34,6],[35,3,35,6],[46,3,46,6],[47,3,47,6],[48,3,48,6],[37,3,37,6],[38,3,38,6],[39,3,39,6],[40,3,40,6],[41,3,41,6],[42,3,42,6],[69,2,69,5],[71,2,71,5],[72,2,72,5],[73,2,73,5],[20,3,20,14],[21,3,21,14],[22,3,22,14],[49,3,49,6],[62,2,62,5],[63,2,63,5],[65,2,65,5],[66,2,66,5],[68,2,68,5],[43,3,43,6],[44,3,44,6],[45,3,45,6]]}
[]
[]
[]
[]
[]
[]
[]
[]
[]
[]
[]
[null,null,null,"FORMATOS ENTREGADOS PARA DAR CUMPLIMIENTO AL ARTICULO 73 DE \"LA LEY GENERAL DE CONTABILIDAD GUBERNAMENTAL\""]
[]
[]
[]
[]
[]
[]
[]
[]
[null,null,"Entidad Federativa :"," GUANAJUATO "]
[null,null,"Fondo :","Fondo de Aportaciones para la Educación Tecnológica y de Adultos/Colegio Nacional de Educación Profesional Técnica (FAETA/CONALEP)"]
[null,null,"Periodo :","2do. Trimestre"]
[]
[]
[]
[]
[]
[]
[]
[]
[null,null,null,null,null,null,null,"TOTAL REGISTROS ",null,"Num. de Paginas",null,"TOTAL PERSONAS",null,"TOTAL PLAZAS",null,"Total Pto. Federal",null,"Total Ppto. Otras Fuentes"]
[]
[]
[null,1,"A Y II D3","Personal Comisionado",null,null,null,46,null,2,null,46,null,46,null,2969611.57,null,0]
[null,2,"A Y II D4","Personal con Licencia",null,null,null,{"$f":"'A Y II D4'!C46","v":29},null,1,null,29,null,29,null,{"$f":"'A Y II D4'!P46","v":219651.8},null,0]
[null,3,"B)   ","Registro Federal de Contribuyentes de Trabajadores con Pagos Retroactivos con un Periodo Mayor a 45 días",null,null,null,0,null,1,null,0,null,0,null,"N/A",null,"N/A"]
[null,4,"II B) Y 1","Plaza / Función",null,null,null,795,null,16,null,795,null,"N/A",null,"N/A",null,"N/A"]
[null,5,"II C y 1_","Personal Federalizado por Registro Federal de Contribuyentes",null,null,null,795,null,18,null,795,null,795,null,{"$f":"'II C y 1_'!U811","v":28583643.840000004},null,0]
[null,6,"II D) 2","Movimientos de Plazas",null,null,null,0,null,1,null,0,0,0,null,"N/A",null,"N/A"]
[null,7,"II D) 4","Trabajadores Jubilados en el Periodo",null,null,null,1,null,1,null,1,6,1,null,"N/A",null,"N/A"]
[null,8,"II D) 4 A","Trabajadores que Tramitaron Licencia Prejubilatoria en el Periodo",null,null,null,4,null,1,null,4,null,4,null,{"$f":"'II D) 4 A'!P21","v":233382.43},null,0]
[null,9,"II D) 6","Trabajadores Contratados por Honorarios en el Periodo",null,null,null,0,null,1,null,0,null,"N/A",null,"N/A",null,"N/A"]
[null,10,"II D) 7 1 ","Analítico de Categorías / Plazas Autorizadas con su Tabulador",null,null,null,30,null,1,null,"N/A",null,"N/A",null,"N/A",null,"N/A"]
[null,11,"II D) 7 2 ","Catálogo de Categorías y Tabuladores",null,null,null,30,null,1,null,"N/A",null,"N/A",null,"N/A",null,"N/A"]
[null,12,"II D) 7 3 ","Catálogo de Percepciones y Deducciones",null,null,null,68,null,2,null,"N/A",null,"N/A",null,"N/A",null,"N/A"]
[null,13,"E)","Trabajadores que Cobran con RFC / CURP con Formato Incorrecto",null,null,null,0,null,1,null,0,null,"N/A",null,"N/A",null,"N/A"]
[null,14,"F) 1","Trabajadores con Doble Asignación Salarial en Municipios no Colindantes Geográficamente",null,null,null,0,null,1,null,0,null,"N/A",null,"N/A",null,"N/A"]
[null,15,"F) 2","Trabajadores Ocupando Plazas que Superan el Número de Horas de Compatibilidad Autorizadas",null,null,null,0,null,1,null,0,null,0,null,"N/A",null,"N/A"]
[null,16,"G)","Trabajadores Cuyo Salario Básico Supere los Ingresos Promedio de un Docente en la Categoría más Alta del Tabulador Salarial Correspondiente a Cada Entidad",null,null,null,0,null,1,null,0,null,"N/A",null,"N/A",null,"N/A"]
[]
[]
[]
[]
[]
[]
[]
[]
[]
[]
[]
[]
[null,null,"C.P. KARLA ANGELINA SANDOVAL DE ANDA"]
[null,null,"Nombre del  Responsable"]
[]
[null,null,"ENCARGADA DE DESPACHO DE LA DIRECCION DE ADMINISTRACION"]
[null,null,"Cargo"]
[]
[]
[null,null,"Firma"]
[]
[null,null,"2016-07-13"]
[null,null,"Fecha"]

{"sheet":"A Y  II D3","index":1,"n_rows":68,"n_cols":25,"rows_kept":68,"cut":false,"hidden":false,"merged":[[64,12,64,14],[12,24,13,24],[12,13,12,14],[12,15,13,15],[12,16,13,16],[12,17,13,17],[12,18,12,19],[12,20,13,20],[62,13,62,14],[12,21,13,21],[12,22,13,22],[12,23,13,23],[9,1,9,7],[12,6,12,12],[12,1,13,1],[12,2,13,2],[12,3,13,3],[12,4,13,4],[12,5,13,5]]}
[]
[]
[]
[]
[]
[]
[]
[]
[null,"Formato: Personal Comisionado"]
[null,{"$f":"IF('Caratula Resumen'!D22=\"Elige el Periodo…\",\"\",'Caratula Resumen'!D22)","v":"Fondo de Aportaciones para la Educación Tecnológica y de Adultos/Colegio Nacional de Educación Profesional Técnica (FAETA/CONALEP)"},null,null,null,null,null,null,null,null,null,null,null,null,null,null,null,null,null,null,null,null,null,"2do. Trimestre de 2016"]
[]
[]
[null,"Entidad Federativa","R.F.C.","CURP","Nombre","Clave integrada","Clave Presupuestal",null,null,null,null,null,null,"Fecha Comisión",null,"Percepciones pagadas en el Periodo de Comisión con Presupuesto Federal*","Percepciones pagadas en el Periodo de Comisión con Presupuesto de otra fuente*","Clave CT Origen","CT Destino dentro del sector",null,"Lugar de la comisión fuera del sector educativo","Tipo de Comisión","Función Específica","Objeto de la comision","No. Oficio"]
[null,null,null,null,null,null,"Partida Presupuestal","Código de Pago","Clave de Unidad","Clave de Sub Unidad","Clave de Categoría","Horas Semana Mes ","Número de Plaza","Inicio","Conclusión",null,null,null,"Clave","Turno"]
[]
[null,"Entidad Federativa","R.F.C.","CURP","Nombre","Clave integrada","Partida Presupuestal","Código de Pago","Clave de Unidad","Clave de Sub Unidad","Clave de Categoría","Horas Semana Mes ","Número de Plaza","Fecha Comisión\nInicio","Fecha Comisión\nConclusión","Percepciones pagadas en el Periodo de Comisión con Presupuesto Federal*","Percepciones pagadas en el Periodo de Comisión con Presupuesto de otra fuente*","Clave CT Origen","Clave","Turno","Lugar de la comisión fuera del sector educativo","Tipo de Comisión","Función Específica","Objeto de la comision","No. Oficio"]
[null,"GUANAJUATO","CAPE530526869","CAPE530526MGTRRL07  ","M ELENA CARDIEL PEREZ","1130100302030CF3320400.09174",1130,1003,"02","03","0CF33204","00.0",9174,20080801,20161231,74299,0,"11DPT0007K","11APT0001T",100,"-------------------------------------------------------------","C","COLABORAR CON LOS PROYECTOS RELACIONADOS AL AREA DE ADMINISTRACIÓN Y FINANZAS","COLABORAR CON LOS PROYECTOS RELACIONADOS AL AREA DE ADMINISTRACIÓN Y FINANZAS",7302008]
[null,"GUANAJUATO","SACA791207U75","SACA791207MGTLSL02  ","MARIA ALEJANDRA SALAZAR CASTAÑEDA","11301003230CF0210500.012840",1130,1003,2,3,"0CF02105 ","00.0",12840,20160216,20161231,78517.2,0,"11DPT0007K","11APT0001T","100","-------------------------------------------------------------","C","COORDINADOR DE SERVICIOS ESCOLARES","COORDINA LOS PROCESOS ESCOLARES Y EXTRACURRICULARES DE ALUMNOS.","609/2016"]
[null,"GUANAJUATO","RAAE850827HM7","RAAE850827MGTMNL05  ","ELVIA RAMÍREZ ANDRADE","113010032300S0120100.09183",1130,1003,2,3,"00S01201","00.0",9183,20120901,20161231,28936.21,0,"11DPT0007K","11DPT0014U",100,"-------------------------------------------------------------","C","APOYO EN SERVICIOS ESCOLARES","APOYAR EN LOS PROCESOS RELACIONADOS AL CONTROL ESCOLAR ","1545/2012"]
[null,"GUANAJUATO","GOML710913T66","GOML710913MGNXC08","LUCIA GONZALEZ MUÑOZ","1130100303020CF3320600.018851",1130,1003,"03","02","0CF33206","00.0",18851,20160302,20161231,44889.23000000001,0,"11DPT0013V","11APT0001T",100,"-------------------------------------------------------------","C","COLABORAR CON LOS PROYECTOS RELACIONADOS AL AREA DE ADMINISTRACIÓN Y FINANZAS","COLABORAR CON LOS PROYECTOS RELACIONADOS AL AREA DE ADMINISTRACIÓN Y FINANZAS","761/2016"]
[null,"GUANAJUATO","PAGA670111I35","PAGA670111HNTLRR03  ","PALOMARES GARCIA ARMANDO","11301003320CF3320600.018851",1130,1003,3,2,"0CF33206","00.0",18851,"20130301",20160429,33140.5,0,"11DPT0013V","11APT0001T",100,"-------------------------------------------------------------","C","COLABORAR CON LOS PROYECTOS RELACIONADOS AL AREA DE ADMINISTRACIÓN Y FINANZAS","COLABORAR CON LOS PROYECTOS RELACIONADOS AL AREA DE ADMINISTRACIÓN Y FINANZAS","549/2013"]
[null,"GUANAJUATO","ROMR861218274","ROMR861218HGTDGC00","RICARDO RODRÍGUEZ MAGDALENO","1130100303020CF3320600.018849",1130,1003,"03","02","0CF33206","00.0",18849,"20141117",20161231,76325.25,0,"11DPT0013V","11APT0001T",100,"-------------------------------------------------------------","C","COLABORAR CON LOS PROYECTOS RELACIONADOS CON EL ÁREA DE FORMACIÓN TÉCNICA DE LA DIRECCIÓN GRAL.","COLABORAR CON LOS PROYECTOS RELACIONADOS CON EL ÁREA DE FORMACIÓN TÉCNICA DE LA DIRECCIÓN GRAL.","1618/2014"]
[null,"GUANAJUATO","AAMD810413AX8","AAMD810413MGTNRN03","DIANA LORENA ANAYA MARTINEZ","1130100307050CF0420100.011092",1130,1003,"07","05","0CF04201","00.0",11092,20080901,20161231,36652.770000000004,0,"11APT0001T","11DPT0003O",100,"-------------------------------------------------------------","C","ATENCION A CLIENTES AL LABORATORIO","CAMBIO DE LABORATORIO","01092008"]
[null,"GUANAJUATO","EIPA861113S53","EIPA861113HGTSRB08","JOSE ABRAHAM ESPINOZA PORRAS","1130100307050CF3420200.05581",1130,1003,"07","05","0CF34202","00.0",5581,20080601,20161231,31105.760000000002,0,"11APT0001T","11APT0001T",100,"-------------------------------------------------------------","C","AREA DE ACADEMICOS","APOYO AL AREA POR FALTA DE PERSONAL","01062008"]
[null,"GUANAJUATO","GONM790924B46","GONM790924HGTNVG00","MIGUEL ANGEL GONZALEZ NAVARRO","1130100307050CF3320400.02578",1130,1003,"07","05","0CF33204","00.0",2578,20080417,20161231,62937.880000000005,0,"11APT0001T","11DPT0003O",100,"-------------------------------------------------------------","C","RESPONSABLE DE LABORATORIO","CAMBIO DE LABORATORIO",17042008]
[null,"GUANAJUATO","GUJE870107661","GUJE870107MGTTUL01","ELIZABETH VERONICA GUTIERREZ JUAREZ","1130100307050CF3320400.02546",1130,1003,"07","05","0CF33204","00.0",2546,20090601,20161231,57109.5,0,"11APT0001T","11APT0001T",100,"-------------------------------------------------------------","C","AREA DE PLANEACION","APOYO AL AREA POR FALTA DE PERSONAL","01062009"]
[null,"GUANAJUATO","RAMA640606AQ0","RAMA640606HGTNXL06","ALBERTO RANGEL MUÑOZ","1130100307050ED0120100.02619",1130,1003,"07","05","0ED01201","00.0",2619,20080417,20161231,37672.160000000003,0,"11APT0001T","11DPT0003O",100,"-------------------------------------------------------------","C","APOYO LAB. DE PRUEBAS FISICAS","CAMBIO DE LABORATORIO",17042008]
[null,"GUANAJUATO","MANR8209073S1","MANT820907HGTCGT04","RITO MACIAS NEGRETE","1130100307050CF0160100.011035",1130,1003,"07","05","0CF01601","00.0",11035,20090901,20161231,90553.079999999987,0,"11APT0001T","11APT0001T",100,"-------------------------------------------------------------","C","APOYO AL AREA DE PLANEACION","APOYO AL AREA POR FALTA DE PERSONAL","01092010"]
[null,"GUANAJUATO","PESE6410262J8","PESE641026HTSRNR02","ERNESTO PEREZ SANCHEZ","1130100307050CF0160100.011098",1130,1003,"07","05","0CF01601","00.0",11098,20061001,20161231,90553.079999999987,0,"11APT0001T","11APT0001T",100,"-------------------------------------------------------------","C","APOYO AL AREA DE PLANEACION","APOYO AL AREA POR FALTA DE PERSONAL",822013]
[null,"GUANAJUATO","VARG660927MXA","VARG660927MDFLSL01","GLORIA  GUADALUPE VALENZUELA RIOS","11301003070500CF160100.013322",1130,1003,"07","05","00CF1601","00.0",13322,20130201,20161231,90553.079999999987,0,"11APT0001T","11APT0001T",100,"-------------------------------------------------------------","C","EN EL AREA DE PROMOCION Y VINCULACION","APOYO AL AREA POR FALTA DE PERSONAL","1565/2013"]
[null,"GUANAJUATO","MABM8602122N2","MABM860212MGTRRL21","MELISSA MARISELA MARTINEZ BARRIOS","11301003070500S0120100.02647",1130,1003,"07","05","00S01201","00.0","2647",20141001,20161231,28025.699999999997,0,"11APT0001T","11APT0001T",120,"-------------------------------------------------------------","C","APOYO EN EL AREA DE JURIDICO","APOYO AL AREA POR FALTA DE PERSONAL","1618/2014"]
[null,"GUANAJUATO","MAZR720405LB8","MAZR720405HMNRTC01","RICARDO MARTINEZ ZETINA","1130100301630CF3320400.07693",1130,1003,"01","63","0CF33204","00.0",7693,20140216,20161231,54654.720000000001,0,"11DPT0006L","11DPT0008J",120,"-------------------------------------------------------------","C","AREA DE FORMACION TECNICA","APOYO AL AREA POR FALTA DE PERSONAL",20140216]
[null,"GUANAJUATO","AALR590709UH6","AALR590709MGTNPC06","MARIA ROCIO ANAYA LOPEZ","1130100302330CF3320600.014312",1130,1003,"02","33","0CF33206","00.0",14312,20140201,20160430,40419.589999999997,0,"11DPT0008J","11DPT0006L",100,"-------------------------------------------------------------","C","JEFE DE PROYECTO","RESPONSABLE DE FORMACIÓN TÉCNICA",20140201]
[null,"GUANAJUATO","RASJ781020U88","RASJ781020MGTZSS02","JOSEFINA RAZO SOSA                      ","113010032330CF3320600.014312",1130,1003,2,33,"0CF33206","00.0",14312,20160516,20151231,34209.600000000006,0,"11DPT0008J","11DPT0006L",100,"-------------------------------------------------------------","C","JEFE DE PROYECTO","RESPONSABLE DE FORMACIÓN TÉCNICA","0803/2016"]
[null,"GUANAJUATO","CARR771026IP3","CARR771026MDFRMS09","ROSANA CARRILLO RAMIREZ","11301003072CF0210500.014597",1130,1003,0,72,"CF02105",0,14597,20160516,20170416,39258.600000000006,0,"11DPT0005M","11DPT0011X",100,"-------------------------------------------------------------","C","COORDINADOR EJECUTIVO",null,"0804/2016"]
[null,"GUANAJUATO","MOFD741006FM4","MOFD741006HGTSLV05","DAVID MOSQUEDA FLORES","113010030029CF1820300.011914",1130,1003,"00","29","CF18203","00.0",11914,20150916,20161231,35601.930000000008,0,"11DPT0002P","11DPT0014U",120,"_________________________________________","C","SUPERVISOR DE MANTENIMIENTO","ACTIVIDADES RELATIVAS AL NOMBRAMIENTO ","1409/2015"]
[null,"GUANAJUATO","PAPA810618AR6","PAPA810618HGTLLB03","ABRAHAM PALACIOS PALACIOS","113010030030CF1820200.011099",1130,1003,"00","30","CF18202","00.0",11099,20150101,20161231,32188.739999999998,0,"11DPT0003O","11DPT0003O",100,"_________________________________________","C","DESARROLLAR ACTIVIDADES EN DIRECCIÓN GENERAL","DESARROLLAR ACTIVIDADES EN DIRECCIÓN GENERAL","883/2015"]
[null,"GUANAJUATO","GATG451128UX1","GATG451128HDFYRS05","GUSTAVO GAYTAN TORRES","1130100300290CF3320600.033206",1130,1003,"00","29","0CF33206","00.0","33206",20120716,20161231,76325.25,0,"11DPT0002P","11DPT0008J",120,"-------------------------------------------------------------","C","COORDINADOR EJECUTIVO","CUBRIR LA COORDINACION EJECUTIVA DEL PLANTEL CORTAZAR",16262012]
[null,"GUANAJUATO","CAGX680903LH5","CXGA680903HGTHNL08","CHAO GONZALEZ ALBERTO","113010030290CF0210300.012628",1130,1003,0,29,"0CF02103","00.0",12628,20151017,20161231,92369.4,0,"11DPT0002P","11DPT0009I","100","-------------------------------------------------------------","C","DIRECTOR DE PLANTEL","DIRECTOR DEL PLANTEL"]
[null,"GUANAJUATO","GAAE770204JK3","GAAE770204MDFYLL06","ELIA GAYTAN ALCARAZ","11301003330CF0210400.018883             ",1130,1003,3,3,"0CF02104","00.0",18883,20130201,20161231,90482.46,0,"11DPT0014U","11DPT0012W",120,"-------------------------------------------------------------","C","DIRECTOR DE PLANTEL","DIRECTOR DEL PLANTEL"]
[null,"GUANAJUATO","GOPR8103287J3",null,"RUBEN GOMEZ PORTILLA","113010030300CF0210300.012664",1130,1003,0,30,"0CF02103",0,12664,20160301,20161231,92369.4,0,"11DPT0003O","11DPT0010Y",120,"-------------------------------------------------------------","C","DIRECTOR DE PLANTEL","DIRECTOR DEL PLANTEL"]
[null,"GUANAJUATO","TOCB650526UK9","TOCB650526MGTRBR04","BERTHA TORRES COVARRUBIAS","113010030720CF0210300.012617",1130,1003,0,72,"0CF02103",0,12617,20140201,20161231,92369.4,0,"11DPT0005M","11DPT0015T",100,"-------------------------------------------------------------","C","DIRECTOR DE PLANTEL","DIRECTOR DEL PLANTEL"]
[null,"GUANAJUATO","MORM731010QZ9","MORM731010MVZLZR03","MIRSA MOLGORA RAZO","113010031280CF0210400.012767",1130,1003,1,28,"0CF02104",0,12767,20140301,20161231,90482.46,0,"11DPT0004N","11DPT0005M",123,"-------------------------------------------------------------","C","DIRECTOR DE PLANTEL","DIRECTOR DEL PLANTEL"]
[null,"GUANAJUATO","JALS470121DUA","JALS470121HMNMPR04","SERGIO JAIMES LOPEZ","113010031630CF0210300.012618",1130,1003,1,63,"0CF02103",0,12618,20140701,20161231,92369.4,0,"11DPT0006L","11DPT0004N",120,"-------------------------------------------------------------","C","DIRECTOR DE PLANTEL","DIRECTOR DEL PLANTEL"]
[null,"GUANAJUATO","ZUGJ521022BB6","ZUGJ521022HGTXRV02","JAVIER ZUÑIGA GARCIA","113010031740CF0210300.012663",1130,1003,1,74,"0CF02103",0,12663,19920216,20161231,92369.4,0,"11DPT0009I","11DPT0014U",100,"-------------------------------------------------------------","C","DIRECTOR DE PLANTEL","DIRECTOR DEL PLANTEL"]
[null,"GUANAJUATO","GUPD810705I4A","GUPD810705HQTRDM04","DOMINGO DANIEL GUERRERO PADILLA","1130100324CF0210400.012744",1130,1003,2,4,"CF02104",0,12744,20130116,20161231,90482.46,0,"11DPT0010Y","11DPT0006L",100,"-------------------------------------------------------------","C","DIRECTOR DE PLANTEL","DIRECTOR DEL PLANTEL"]
[null,"GUANAJUATO","RORA760321A25","RORA760321HGTDDL07  ","ALEXANDER DANIEL RODRIGUEZ RODRIGUEZ    ","1130100332CF0210400.018848",1130,1003,3,2,"CF02104",0,18848,20151201,20161231,90482.46,0,"11DPT0013V","11DPT0003O",120,"-------------------------------------------------------------","C","DIRECTOR DE PLANTEL","DIRECTOR DEL PLANTEL"]
[null,"GUANAJUATO","GAGY700725MG2","GAGY700725MGTRNS04","YESENIA GRANADOS GONZALEZ               ","1130100342CF0210200.012518",1130,1003,4,2,"CF02102",0,12518,19949601,20161231,92519.75999999998,0,"11DPT0012W","11DPT0002P",120,"-------------------------------------------------------------","C","DIRECTOR DE PLANTEL","DIRECTOR DEL PLANTEL"]
[null,"GUANAJUATO","RABR820601BH9","RABR820601HGTMND08","RAMIREZ BUENO RODOLFO OSVALDO ","1130100302040CF3320600.013543","1130","1003","02","04","0CF33206","00.0",13543,20150204,20161231,76325.25,0,"11DPT0010Y","11APT0001T",100,"-------------------------------------------------------------","C","JEFE DE PROYECTO DE NOMINA ","ACTIVIDADES RELATIVAS AL NOMBRAMIENTO ","520/2015"]
[null,"GUANAJUATO","MAVR700118TS6","MAVR700118HGTRRB08","RUBEN MARTINEZ VARELA ","1130100302040CF3320600.013251","1130","1003","02","04","0CF33206","00.0",13251,20131001,20161231,107257.71,0,"11DPT0010Y","11APT0001T",100,"-------------------------------------------------------------","C","JEFE DE PROYECTO DE SERVICIOS ESCOLARES ","ACTIVIDADES RELATIVAS AL NOMBRAMIENTO ","0042/2016"]
[null,"GUANAJUATO","AETA880105TQ0","AETA880105HGTCNN01","ANTONIO ACEVEDO TINAJERO","1130100300300CF3320600.013322",1130,1003,"00","30","0CF33206","00.0",13322,20130301,20161231,78964.41,0,"11DPT0003O","11DPT0010Y",100,"-------------------------------------------------------------","C","DESARROLLAR ACTIVIDADES EN EL PLANTEL SILAO","DESARROLLAR ACTIVIDADES EN EL PLANTEL SILAO",5512013]
[null,"GUANAJUATO","GAGV930611G79",null,"VICTOR HUGO GARCIA GOMEZ                ","113010035130S0120100.02502",1130,1003,5,13,"0S01201",0,2502,20160316,20161231,21389.579999999998,0,"11APT0001T","11DPT0003O",120,"-------------------------------------------------------------","C","ASISTENTE DE SERVICIOS BASICOS","APOYO SERVICIOS ADMINISTRATIVOS","0645/2016"]
[null,"GUANAJUATO","NIRA700123GK9","NIRA700123MGTTVN01","ANA LAURA NIETO RIVERA","1130100300300CF3320600.014316",1130,1003,"00","30","0CF33206","00.0",14316,20090816,20161231,105658.64000000001,0,"11DPT0003O","11FPT0001O",100,"-------------------------------------------------------------","C","MEJORAMIENTO DE LOS PROCESOS EN LA DIRECCION DE COMPETITIVIDAD","MEJORAMIENTO DE LOS PROCESOS EN LA DIRECCION DE COMPETITIVIDAD",16082009]
[null,"GUANAJUATO","ROGF800428M80","ROGF800428HGTDZD06","FIDEL RODRIGUEZ GUZMAN                  ","11301003230CF3320400.09201",1130,1003,2,3,"0CF33204","00.0",9201,20160418,20161231,37005.599999999999,0,"11DPT0007K","11APT0001T",100,"-------------------------------------------------------------","C","SUBJEFE TECNICO ESPECIALISTA","APOYO PARA CERTIFICACIONES","642/2016"]
[null,"GUANAJUATO","SECG740707K72","SECG740707MZSGML05","GUILLERMINA SEGURA CAMPOS","1130100333CF3320600.018864",1130,1003,3,3,"CF33206","00.0",18864,20160121,20181015,68419.199999999997,0,"11DPT0012W","11APT0001T",100,"-------------------------------------------------------------","C","OCUPACION PUESTO VACANTE ","OCUPACION PUESTO DE JEFE PROYECTO EN CAST LEON","138/2016"]
[null,"GUANAJUATO","GOLR590503HDA","GOLR590503HGTNDB04  ","ROBERTO GONZALEZ LEDESMA","11301003249CF3320600.014319",1130,1003,2,49,"CF33206",0,14319,20160416,20170415,13086.2,0,"11DPT0011X","11DPT0005M",123,"-------------------------------------------------------------","C","JEFE DE PROYECTO","APOYO AL AREA DE FORMACION TECNICA","532/2016"]
[null,"GUANAJUATO","MAJG650413GMA","MAJG650413HGTLRS08","GUSTAVO MALAGON JUÁREZ","1130100302490CF3320600.013689",1130,1003,"02",49,"0CF33206","00.0",13689,20120816,20161231,102764.37000000001,0,"11DPT0011X","11DPT0006L",100,"-------------------------------------------------------------","C","MEJORAR LOS PROCESOS ","MEJORAMIENTO DE LOS PROCESOS DEL PLANTEL AL QUE FUE COMISIONADO ","1388/2012"]
[null,"GUANAJUATO","OOCM7903122F9","OOCM790312MGTRRR03","MARCELA OROZCO CORNEJO","1130100303030CF3320400.018865",1130,1003,"03","03","0CF33204","00.0",18865,20130116,20161231,64864.780000000006,0,"11DPT0014U","11DPT0003O",120,"-------------------------------------------------------------","C","OCUPACION PUESTO VACANTE ","OCUPACION PUESTO DE SUBJEFE TECNICO ESPECIALISTA DEL PLANTEL LEON 1","657/2013"]
[null,"GUANAJUATO","PELI680925LM6","PELI680925MGTDPV03","IVONNE YOLANDA PEDROZA LOPEZ            ","113010030000CF3320600.010303",1130,1003,"00","00","CF33206","00.0",10303,20140829,20161231,107156.41999999998,0,"11APT0001T","11DPT0013V",120,"-------------------------------------------------------------","C","JEFE DE PROYECTO DE FORMACION TÉCNICA","POR FALTA DE PERSONAL REALIZA LABORES RELACIONADAS CON EL DEPARTAMENTO DE FORMACIÓN TÉCNICA","1206/2014"]
[null,"GUANAJUATO","MOGM581228P96","MOGM581228MGTRNR09","MORENO GONZALEZ MARTHA DEL CARMEN","11301003000000A0180100.018843",1130,1003,"00","00","00A01801","00.0",18843,20080801,20161231,42886.439999999995,0,"11APT0001T","11DPT0007K",100,"-------------------------------------------------------------","C","ADMINISTRATIVO TECNICO ESPECIALISTA","COLABORAR EN LAS ACTIVIDADES RELACIONADAS CON EL DEPARTAMENTO DE RECURSOS HUMANOS DEL PLANTEL",7292008]
[null,"GUANAJUATO","OISI790511DD8","OISI790511HHGLNS14","ISAMEL OLIVO SANCHEZ","1130100307050S0120100.02653",1130,1003,"07","05","0S01201","00.0",2653,20160316,20161231,21389.579999999998,0,"11APT0001T","11DPT0003O","120","-------------------------------------------------------------","C",null,null,"644/2016"]
[null,"GUANAJUATO","AECL710621SE4","AECL710621HGTRRS02","JOSE LUIS ARELLANO CRUZ","11301003000000A0320200.010301",1130,1003,"00","00","00A03202","00.0",10301,20141117,20150331,32217.96,0,"11APT0001T","11DPT0010Y",100,"-------------------------------------------------------------","C","APOYO AL AREA DE CAPACITACION","APOYO AL AREA POR FALTA DE PERSONAL","976/2014"]
[null,"Total Personas : ",46,null,null,null,null,null,null,null,"Total Plazas : ",null,46,"Total Pto. Federal",null,{"$f":"SUBTOTAL(109,Tabla1[Percepciones pagadas en el Periodo de Comisión con Presupuesto Federal*])","v":2969611.57}]
[]
[null,null,null,null,null,null,null,null,null,null,null,null,"Total Ppto. Otras Fuentes",null,null,null,{"$f":"SUM(Q17:Q64)","v":0}]
[]
[null,"*Total de Percepciones reportadas por la Entidad Federativa como pagadas al trabajador durante la comisión."]
[null,"Fuente : Información proporcionada por las Entidades Federativas."]

{"sheet":"A Y II D4","index":2,"n_rows":51,"n_cols":21,"rows_kept":51,"cut":false,"hidden":false,"merged":[[9,1,9,6],[45,13,45,14],[12,16,13,16],[12,17,13,17],[12,20,13,20],[12,1,13,1],[12,3,13,3],[12,4,13,4],[12,5,13,5],[12,6,12,12],[12,13,12,14],[12,2,13,2],[12,18,12,19],[12,15,13,15]]}
[]
[]
[]
[]
[]
[]
[]
[]
[null,"Formato: Personal con Licencia"]
[null,{"$f":"IF('Caratula Resumen'!D22=\"Elige el Periodo…\",\"\",'Caratula Resumen'!D22)","v":"Fondo de Aportaciones para la Educación Tecnológica y de Adultos/Colegio Nacional de Educación Profesional Técnica (FAETA/CONALEP)"},null,null,null,null,null,null,null,null,null,null,null,null,null,null,null,null,null,null,"2do. Trimestre de 2016"]
[]
[]
[null,"Entidad Federativa","R.F.C.","CURP","NOMBRE","Clave integrada","Clave Presupuestal",null,null,null,null,null,null,"Periodo Licencia",null,"Percepciones pagadas en el Periodo de la Licencia con Presupuesto Federal*","Percepciones pagadas en el Periodo de la Licencia con Presupuesto de otra fuente*","Clave CT Origen","Licencia",null,"Descripción de la Licencia"]
[null,null,null,null,null,null,"Partida Presupuestal","Código de Pago","Clave de Unidad","Clave de Sub Unidad","Clave de Categoría","Horas Semana Mes ","Número de Plaza","Inicio","Conclusión",null,null,null,"Clave","Tipo"]
[]
[null,"Entidad Federativa","R.F.C.","CURP","NOMBRE","Clave integrada","Partida Presupuestal","Código de Pago","Clave de Unidad","Clave de Sub Unidad","Clave de Categoría","Horas Semana Mes ","Número de Plaza","Periodo Licencia\nInicio","Periodo Licencia\nConclusión","Percepciones pagadas en el Periodo de la Licencia con Presupuesto Federal*","Percepciones pagadas en el Periodo de la Licencia con Presupuesto de otra fuente*","Clave CT Origen","Licencia\nClave","Licencia\nTipo","Descripción de la Licencia"]
[null,"GUANAJUATO","GAUR8010189E2","GAUR801018MGTRRS03 ","MARIA DEL ROSARIO  GRANADOS URIBE","1130100300028PC21280034",1130,1003,"00","028","PC","21",280034,20160201,20160731,0,0,"11DPT0001Q",16,"Sin Goce","SIN GOCE DE SUELDO O SU REFRENDO"]
[null,"GUANAJUATO","HEFJ700120711","HEFG700120HGTRSD12","J. GUADALUPE HERNANDEZ FISCAL","113010010233PC20.0233024",1130,1001,"02",33,"PC","20.0",233024,20150701,20161231,24674.400000000001,0,"11DPT0008J",12,"Goce","COMISION SINDICAL O SU REFRENDO"]
[null,"GUANAJUATO","SAGM870320FEO","SAGM870320MGTNNR07","MIRIAM LETICIA SANCHEZ GONZALEZ ","1130100300028TA10280079",1130,1003,"00","028","TA","10",280079,20160201,20160731,"",0,"11DPT0001Q",16,"Sin Goce","SIN GOCE DE SUELDO O SU REFRENDO"]
[null,"GUANAJUATO","MEHE811224IH7","MEHE811224HGTNRM08   ","EMMANUEL MENDOZA HERNANDEZ","1130100300028PA30.0280184",1130,1003,"00","028","PA",30,280184,20160201,20160731,"",0,"11DPT0001Q",16,"Sin Goce","SIN GOCE DE SUELDO O SU REFRENDO"]
[null,"GUANAJUATO","ROCJ841011870","ROCJ841011MDFDSS04","MARIA DE JESUS RODRIGUEZ CASTRO","1130100300028PA30.0280187",1130,1003,"00","028","PA",30,280187,20160201,20160731,"",0,"11DPT0001Q",16,"Sin Goce","SIN GOCE DE SUELDO O SU REFRENDO"]
[null,"GUANAJUATO","PAGJ820614HB3 ","PAGJ820614MGTLRN07 ","JUANA ADRIANA PALOALTO GARCIA","113010030000PB00.0280034",1130,1003,"00","00","PB",0,280034,20160405,20160703,23467.5,0,"11DPT0001Q",25,"Goce","POR GRAVIDEZ O SU REFRENDO"]
[null,"GUANAJUATO","MACM811125B26","MACM811125MGTSRR00","MARLENE SELENE MASCOTTE CRUZ ","113010030000PB00.0280115",1130,1003,"00","00","PB",0,280115,20160503,20160801,14635.8,0,"11DPT0001Q",25,"Goce","POR GRAVIDEZ O SU REFRENDO"]
[null,"GUANAJUATO","ROFL880718AL5","ROFL880718MGTDLR00","LAURA VIRIDIANA RODRIGUEZ FLORES","11301003023PA27.02030168",1130,1003,"02",3,"PA",27,2030168,20160401,20160630,0,0,"11DPT0007K",16,"Sin Goce","SIN GOCE DE SUELDO O SU REFRENDO"]
[null,"GUANAJUATO","IAMJ7009132Z3","IAMJ700913HGTBLS01","JOSE DE JESUS IBARRA MELENDEZ","11301003023PC16.02030130",1130,1003,"02",3,"PC",16,2030130,20160401,20160630,0,0,"11DPT0007K",16,"Sin Goce","SIN GOCE DE SUELDO O SU REFRENDO"]
[null,"GUANAJUATO","BARO871201333","BARO871201HGTRDM07","OMAR ALBERTO BARAJAS RODRIGUEZ","11301003023PA15.020300011",1130,1003,"02",3,"PA",15,20300011,20160401,20160630,0,0,"11DPT0007K",16,"Sin Goce","SIN GOCE DE SUELDO O SU REFRENDO"]
[null,"GUANAJUATO","HELU501011H62","HEXL501011HGTRXZ04","JOSE DE LA LUZ HERNANDEZ","11301003023S0120100.078964",1130,1003,"02",3,"S01201",0,78964,20160602,20160630,11405.98,0,"11DPT0007K",14,"Goce","INCAPACIDAD MEDIA MAYOR A UNA QUINCENA Y SU REFRENDO"]
[null,"GUANAJUATO","AULJ800815441","AULJ800815HGTGPS08","JOSE AGUILAR LOPEZ","113010010163PA10.01630001",1130,1001,"01","63","PA","10.0",1630001,20160201,20160731,0,0,"11DPT0006L",16,"Sin Goce","SIN GOCE DE SUELDO O SU REFRENDO"]
[null,"GUANAJUATO","VAAE770920SD7","VAAE770920MOCZGR13","ERICA MARIZA VAZQUEZ AGUILERA","113010010163PC05.01630051",1130,1001,"01",63,"PC","05.0",1630051,20160201,20160731,0,0,"11DPT0006L",16,"Sin Goce","SIN GOCE DE SUELDO O SU REFRENDO"]
[null,"GUANAJUATO","CADJ720202F14","CADJ720202HMNHRN03","JUAN CHAVEZ DURAN","113010010163PC10.01630010",1130,1001,"01",63,"PC","10.0",1630010,20160201,20160731,0,0,"11DPT0006L",16,"Sin Goce","SIN GOCE DE SUELDO O SU REFRENDO"]
[null,"GUANAJUATO","GUSS851005CT6","GUSS851005MGTLNN08","GUILLEN SANCHEZ SANDRA","1130110010163PA20.01630080",11301,1001,"01",63,"PA","20.0",1630080,20160603,20160831,6854,0,"11DPT0006L",16,"Goce","LICENCIA GON GOCE"]
[null,"GUANAJUATO","LOHE8811064TA","LOHE881106MJCPRD00","LOPEZ HERNANDEZ EDITH","1130110010163TA12.01630067",11301,1001,"01",63,"TA","12.0",1630067,20160501,20160729,6533.63,0,"11DPT0006L",16,"Goce","LICENCIA GON GOCE"]
[null,"GUANAJUATO","AAMR650620AB4","AAMR650620HGTLGB03","ROBERTO ALVARADO MAGAÑA","113010030249CF192000.010606",1130,1003,"02",49,"CF19201",0,10606,20131016,20190930,39045.509999999995,0,"11DPT0011X",12,"Goce","COMISION SINDICAL O SU REFRENDO"]
[null,"GUANAJUATO","SAJB8210296D0","SAJB821029HGTNMR03","BERNARDO SANCHEZ JIMENEZ ","113010030249PC20.05112490050",1130,1003,"02",49,"PC",20,5112490050,20160201,20160731,0,0,"11DPT0011X",16,"Sin Goce","SIN GOCE DE SUELDO O SU REFRENDO"]
[null,"GUANAJUATO","GAFM620222JY6","GAFM620222HGTRLN01","JOSE MANUEL GARCIA FLORES","113010030249PC20.05112490020",1130,1003,"02",49,"PC",20,5112490020,20160201,20160731,0,0,"11DPT0011X",16,"Sin Goce","SIN GOCE DE SUELDO O SU REFRENDO"]
[null,"GUANAJUATO","SAOF7912075J9","SAOF791207HGTLRR02","FRANCISCO JAVIER SALGADO ORTIZ","113010030249PC10.05112490048",1130,1003,"02",49,"PC",10,5112490048,20160201,20160731,0,0,"11DPT0011X",16,"Sin Goce","SIN GOCE DE SUELDO O SU REFRENDO"]
[null,"GUANAJUATO","MUAO8512081H3","MUAO851208HGTXCS06","OSCAR MUÑOZ ACEVEDO","113010030249PB18.05112490035",1130,1003,"02",49,"PB",18,5112490035,20160201,20160731,0,0,"11DPT0011X",16,"Sin Goce","SIN GOCE DE SUELDO O SU REFRENDO"]
[null,"GUANAJUATO","AOGE690325D41","AOGE690325HGTBZM07","EMILIO ABONCE GUZMAN","113010030249PB15.05112490002",1130,1003,"02",49,"PB",15,5112490002,20160301,20160731,0,0,"11DPT0011X",16,"Sin Goce","SIN GOCE DE SUELDO O SU REFRENDO"]
[null,"GUANAJUATO"," EAMA860511UL8","EAMA860511MMNSRN08","ANA LUCIA ESCALANTE MARIN","113010030249PB25.05112490017",1130,1003,"02",49,"PB",25,5112490017,20160301,20160613,14443.150000000001,0,"11DPT0011X",25,"Goce","POR GRAVIDEZ O SU REFRENDO"]
[null,"GUANAJUATO","HECL500618L95","HECL500618HGTRRS04","JOSE LUIS HERNANDEZ CORTES ","1130100124CF21202000.0133935",1130,1001,2,4,"CF21202",0,133935,20160401,20160630,0,0,"11DPT0010Y",27,"Sin Goce","LICENCIA GON GOCE"]
[null,"GUANAJUATO","PEBG910930PM0","PEBG910930MQTRCD08","GUADALUPE PEREZ BECERRA","1130100342TA105112700027",1130,1003,4,2,"TA","10",5112700027,20160405,20160703,8378.82,0,"11DPT0012W",25,"Goce","POR GRAVIDEZ O SU REFRENDO"]
[null,"GUANAJUATO","SAVD8403307M7","SAVD840330MCLLGL06","DULCE IRENE SALINAS VEGA","1130100342TA125112700012",1130,1003,4,2,"TA","12",5112700012,20160523,20160703,4112.3999999999996,0,"11DPT0012W",14,"Goce","INCAPACIDAD MEDICA O SU REFRENDO"]
[null,"GUANAJUATO","YEGL891123ML2","YEGL891123MGTPRR08","LAURA VERONICA YEPEZ GARCIA","113010030163S012010000S01201",1130,1003,"01",63,"S01201","0000","S01201",20160224,20160523,19949.61,0,"11DPT0006L",25,"Goce","POR GRAVIDEZ O SU REFRENDO"]
[null,"GUANAJUATO","ROGJ631018GD6","ROGJ631018HGTMRN04","JUAN JOSÉ ROMERO GARCÍA","113010030030CF1920100.02620",1130,1003,"00",30,"CF19201","00.0",2620,20140701,20161231,41010.5,0,"11DPT00030",12,"Goce","COMISION SINDICAL O SU REFRENDO"]
[null,"GUANAJUATO","PABG6901266Q2","PABG690126HGTZNR06","GERARDO PAZ BONILLA","113010037428PB15.05111740026",1130,1003,74,28,"PB","15.0",5111740026,20160201,20160731,5140.5,0,"11DPT0009I",10,"Goce","ASUNTOS PARTICULARES O SU REFRENDO"]
[null,"Total Personas : ",29,null,null,null,null,null,null,null,"Total Plazas : ",null,29,"Total Pto. Federal",null,{"$f":"SUBTOTAL(109,Tabla3[Percepciones pagadas en el Periodo de la Licencia con Presupuesto Federal*])","v":219651.8}]
[]
[null,null,null,null,null,null,null,null,null,null,null,null,null,"Total Ppto. Otras Fuentes",null,null,{"$f":"SUM(Q17:Q47)","v":0}]
[]
[null,"*Total de Percepciones reportadas por la Entidad Federativa como pagadas al trabajador durante la Licencia."]
[null,"Fuente : Información proporcionada por las Entidades Federativas."]

{"sheet":"B)","index":3,"n_rows":28,"n_cols":19,"rows_kept":28,"cut":false,"hidden":false,"merged":[[12,18,13,18],[12,12,13,12],[12,13,13,13],[12,14,13,14],[12,15,12,16],[12,17,13,17],[9,1,9,10],[12,1,13,1],[12,2,13,2],[12,3,13,3],[12,4,13,4],[12,5,12,11]]}
[]
[]
[]
[]
[]
[]
[]
[]
[null,"Formato: Registro Federal de Contribuyentes de Trabajadores con Pagos Retroactivos con un Periodo Mayor a 45 días"]
[null,{"$f":"IF('Caratula Resumen'!D22=\"Elige el Periodo…\",\"\",'Caratula Resumen'!D22)","v":"Fondo de Aportaciones para la Educación Tecnológica y de Adultos/Colegio Nacional de Educación Profesional Técnica (FAETA/CONALEP)"},null,null,null,null,null,null,null,null,null,null,null,null,null,null,null,{"$f":"IF('Caratula Resumen'!D23=\"Elige el Periodo…\",\"\",'Caratula Resumen'!D23)","v":"2do. Trimestre"}]
[]
[]
[null,"Entidad Federativa","RFC","CURP","Nombre","Clave Presupuestal",null,null,null,null,null,null,"Clave de Centro de Trabajo","Fecha de emisión de pago","Motivo del Pago Retroactivo","Periodo pagado",null,"Días transcurridos para el pago","Percepciones pagadas en el periodo reportado *"]
[null,null,null,null,null,"Partida Presupuestal","Código de Pago","Clave de Unidad","Clave de Sub Unidad","Clave de Categoría","Horas Semana Mes ","Número de Plaza",null,null,null,"Desde","Hasta"]
[]
[null,"Entidad Federativa","RFC","CURP","Nombre","Partida Presupuestal","Código de Pago","Clave de Unidad","Clave de Sub Unidad","Clave de Categoría","Horas semana mes","Número de plaza","Clave de Centro de Trabajo","Fecha de emisión de pago","Motivo del Pago Retroactivo","Periodo pagado\nDesde","Periodo pagado\nHasta","Días transcurridos para el pago","Percepciones pagadas en el periodo reportado *"]
[]
[]
[]
[]
[]
[]
[null,"Total Personas : ",null,null,null,null,null,null,null,null,"Total Plazas : ",null,null,null,null,"Total Percepciones Pagadas:"]
[]
[]
[]
[null,"*Total de Percepciones reportadas por la Entidad Federativa como pagadas en el periodo "]
[null,"Fuente : Información proporcionada por las Entidades Federativas"]

{"sheet":"II B) Y 1","index":4,"n_rows":815,"n_cols":25,"rows_kept":815,"cut":false,"hidden":false,"merged":[[12,4,14,4],[12,3,14,3],[12,2,14,2],[9,1,9,9],[812,21,812,23],[12,1,14,1],[12,5,14,5],[12,24,14,24],[13,6,13,8],[13,9,13,11],[13,12,13,14],[13,15,13,17],[13,18,13,20],[12,6,12,20],[12,21,14,21],[12,22,14,22],[12,23,14,23]]}
[]
[]
[]
[]
[]
[]
[]
[]
[null,"Formato: Plaza / Función"]
[null,{"$f":"IF('Caratula Resumen'!D22=\"Elige el Periodo…\",\"\",'Caratula Resumen'!D22)","v":"Fondo de Aportaciones para la Educación Tecnológica y de Adultos/Colegio Nacional de Educación Profesional Técnica (FAETA/CONALEP)"},null,null,null,null,null,null,null,null,null,null,null,null,null,null,null,null,null,null,null,null,null,"2do. Trimestre de 2016"]
[]
[]
[null,"Entidad Federativa","RFC","CURP","Nombre","Centros de Trabajo","Plazas por tipo de función",null,null,null,null,null,null,null,null,null,null,null,null,null,null,"Total plazas Jornada","Total \nHSM","Total de Honorarios","Total de recursos presupuestales ejercidos en servicios personales en el periodo\n(2)"]
[null,null,null,null,null,null,"Apoyo a la labor educativa",null,null,"Administrativo y de servicio",null,null,"Docente y Apoyo Técnico Pedagógico",null,null,"Directivos y Supervisión",null,null,"Mandos medios y superiores"]
[null,null,null,null,null,null,"Jornada","HSM","Honorarios","Jornada","HSM","Honorarios","Jornada","HSM","Honorarios","Jornada","HSM","Honorarios","Jornada","HSM","Honorarios"]
[]
[null,"Entidad Federativa","RFC","CURP","Nombre","Centros de Trabajo","Jornada","HSM","Honorarios","Jornada2","HSM3","Honorarios4","Jornada5","HSM6","Honorarios7","Jornada8","HSM9","Honorarios10","Jornada11","HSM12","Honorarios13","Total plazas Jornada","Total \nHSM","Total de Honorarios","Total de recursos presupuestales ejercidos en servicios personales en el periodo\n(2)"]
[null,"GUANAJUATO","AAMD810413AX8","AAMD810413MGTNRN03  ","DIANA LORENA ANAYA MARTINEZ             ","11APT0001T",null,null,null,"X",null,null,null,null,null,null,null,null,null,null,null,1,null,null,36652.770000000004]
[null,"GUANAJUATO","AECL710621SE4","AECL710621HGTRRS02  ","JOSE LUIS ARELLANO CRUZ                 ","11APT0001T",null,null,null,"X",null,null,null,null,null,null,null,null,null,null,null,1,null,null,32217.96]
[null,"GUANAJUATO","AIMK880805R10","AIMK880805MGTRXR05  ","KARLA GABRIELA ARIAS MUÐOZ              ","11APT0001T",null,null,null,"X",null,null,null,null,null,null,null,null,null,null,null,1,null,null,72797.86]
[null,"GUANAJUATO","AOGI790809G38","AOGI790809MGTLRM04  ","IMELDA SUSANA ALONSO GARCIA             ","11APT0001T",null,null,null,"X",null,null,null,null,null,null,null,null,null,null,null,1,null,null,67935.180000000008]
[null,"GUANAJUATO","CAJU780116N75","CAXJ780116HGTMXN05  ","JUAN JOSE CAMACHO                       ","11APT0001T",null,null,null,"X",null,null,null,null,null,null,null,null,null,null,null,1,null,null,77505.25]
[null,"GUANAJUATO","CALA7006204L0","CALA700620MGTMPL09  ","ALEJANDRA CAMACHO LOPEZ                 ","11APT0001T",null,null,null,"X",null,null,null,null,null,null,null,null,null,null,null,1,null,null,61654.400000000001]
[null,"GUANAJUATO","CESA870418K76","CESA870418MGTRMN08  ","ANA GABRIELA CERVERA SAMANO             ","11APT0001T",null,null,null,"X",null,null,null,null,null,null,null,null,null,null,null,1,null,null,33834.199999999997]
[null,"GUANAJUATO","CUMG550523TM9","CUMG550523MDFRRL06","GLORIA ARACELI CRUZ MARTIN DEL CAMPO    ","11APT0001T",null,null,null,null,null,null,null,null,null,null,null,null,"X",null,null,1,null,null,113531.28000000001]
[null,"GUANAJUATO","DIXA510311","DIXA510311HGTSXL09","ALBERTO DE LA LU DIOSDADO               ","11APT0001T",null,null,null,null,null,null,null,null,null,null,null,null,"X",null,null,1,null,null,241023.6]
[null,"GUANAJUATO","EAVG760111SA9","EAVG760111MGTSLD04  ","MA.GUADALUPE ESPARZA VALENCIA           ","11APT0001T",null,null,null,"X",null,null,null,null,null,null,null,null,null,null,null,1,null,null,60253.600000000006]
[null,"GUANAJUATO","EIPA861113S53","EIPA861113HGTSRB08  ","JOSE ABRAHAM ESPINOZA PORRAS            ","11APT0001T",null,null,null,"X",null,null,null,null,null,null,null,null,null,null,null,1,null,null,31105.759999999998]
[null,"GUANAJUATO","GAGV930611G79","GAGV930611HGTRMC04","VICTOR HUGO GARCIA GOMEZ                ","11APT0001T",null,null,null,"X",null,null,null,null,null,null,null,null,null,null,null,1,null,null,21389.579999999998]
[null,"GUANAJUATO","GAPS690711","GAPS690711MGTRRR00","SARA GISELA GARCIA PEREZ                ","11APT0001T",null,null,null,null,null,null,null,null,null,null,null,null,"X",null,null,1,null,null,78517.2]
[null,"GUANAJUATO","GOAV860422EK6","GOAV860422HGTNLC02  ","VICTOR ISRAEL GONZALEZ ALCANTAR         ","11APT0001T",null,null,null,"X",null,null,null,null,null,null,null,null,null,null,null,1,null,null,55568.87000000001]
[null,"GUANAJUATO","GOLA7812182KA","GOLA781218MQTMPN05  ","ANA GLORIA GOMEZ LOPEZ                  ","11APT0001T",null,null,null,"X",null,null,null,null,null,null,null,null,null,null,null,1,null,null,64814.98000000001]
[null,"GUANAJUATO","GONM790924B46","GONM790924HGTNVG00  ","MIGUEL ANGEL GONZALEZ NAVARRO           ","11APT0001T",null,null,null,"X",null,null,null,null,null,null,null,null,null,null,null,1,null,null,62937.880000000012]
[null,"GUANAJUATO","GUJE870107661","GUJE870107MGTTRL01  ","ELIZABETH VERONI GUTIERREZ JUAREZ       ","11APT0001T",null,null,null,"X",null,null,null,null,null,null,null,null,null,null,null,1,null,null,57109.500000000007]
[null,"GUANAJUATO","HEOS630818TG4","HEOS630818MDFRRN00  ","SONIA GUADALUPE HERNANDEZ OROZCO        ","11APT0001T",null,null,null,"X",null,null,null,null,null,null,null,null,null,null,null,1,null,null,99146.54]
[null,"GUANAJUATO","HEPL670716M36","HEPL670716HGTRRS02  ","JOSE LUIS HERNANDEZ PEREZ               ","11APT0001T",null,null,null,null,null,null,null,null,null,null,null,null,"X",null,null,1,null,null,90553.079999999987]
[null,"GUANAJUATO","LERD770827UM0","LERD770827HGTNDM00  ","JOSE DOMINGO DE LEON RODRIGUEZ          ","11APT0001T",null,null,null,null,null,null,null,null,null,null,null,null,"X",null,null,1,null,null,90553.079999999987]
[null,"GUANAJUATO","LUCH751109","LUCH751109HGTVNG03","HUGO ENRIQUE LUEVANO CONTRERAS          ","11APT0001T",null,null,null,null,null,null,null,null,null,null,null,null,"X",null,null,1,null,null,78517.2]
[null,"GUANAJUATO","MABM8602122N2","MABM860212MGTRRL21  ","MELISSA MARISELA MARTINEZ BARRIOS       ","11APT0001T",null,null,null,"X",null,null,null,null,null,null,null,null,null,null,null,1,null,null,28025.7]
[null,"GUANAJUATO","MANR8209073S1","MANR820907HGTCGT04  ","RITO MACIAS NEGRETE                     ","11APT0001T",null,null,null,null,null,null,null,null,null,null,null,null,"X",null,null,1,null,null,90553.079999999987]
[null,"GUANAJUATO","MAOJ7405168FA","MAOJ740516MGTRCN05  ","JUANA MARTINEZ OCHOA                    ","11APT0001T",null,null,null,"X",null,null,null,null,null,null,null,null,null,null,null,1,null,null,90159.86]
[null,"GUANAJUATO","MESL860213877","MESL860213MGTNNR09","LOURDES PAULINA MENDOZA SANCHEZ         ","11APT0001T",null,null,null,"X",null,null,null,null,null,null,null,null,null,null,null,1,null,null,42462.280000000006]
[null,"GUANAJUATO","MOGM581228P96","MOGM581228MGTRNR09  ","MARTHA DEL CARME MORENO GONZALEZ        ","11APT0001T",null,null,null,"X",null,null,null,null,null,null,null,null,null,null,null,1,null,null,42886.439999999995]
[null,"GUANAJUATO","OERL7305255H3","OERL730525HGTJDS00","LUIS ALBERTO OJEDA RODRIGUEZ            ","11APT0001T",null,null,null,null,null,null,null,null,null,null,null,null,"X",null,null,1,null,null,114455.7]
[null,"GUANAJUATO","OING5906128T6","OING590612HGTRCS02  ","GUSTAVO ORTIZ NICASIO                   ","11APT0001T",null,null,null,"X",null,null,null,null,null,null,null,null,null,null,null,1,null,null,43270.240000000005]
[null,"GUANAJUATO","OISI790511DD8","OISI790511HHGLNS14","ISMAEL OLIVO SANCHEZ                    ","11APT0001T",null,null,null,"X",null,null,null,null,null,null,null,null,null,null,null,1,null,null,21389.579999999998]
[null,"GUANAJUATO","PEGL590326TB4","PEGL590326MGTRMZ05  ","LUZ ELENA PERALES GOMEZ                 ","11APT0001T",null,null,null,"X",null,null,null,null,null,null,null,null,null,null,null,1,null,null,37881.22]
[null,"GUANAJUATO","PELI680925LM6","PELI680925MGTDPV03  ","IVONNE YOLANDA PEDROZA LOPEZ            ","11APT0001T",null,null,null,"X",null,null,null,null,null,null,null,null,null,null,null,1,null,null,107156.42000000001]
[null,"GUANAJUATO","PESE6410262W2","PESE641026HTSRNR02  ","ERNESTO PEREZ SANCHEZ                   ","11APT0001T",null,null,null,null,null,null,null,null,null,null,null,null,"X",null,null,1,null,null,90553.079999999987]
[null,"GUANAJUATO","PUAJ821120LU8","PUAJ821120MJCGLN05  ","JUANA PUGA ALDANA                       ","11APT0001T",null,null,null,"X",null,null,null,null,null,null,null,null,null,null,null,1,null,null,31132.800000000003]
[null,"GUANAJUATO","QUZJ6303282J5","QUZJ630328HSRLNN05  ","JUAN QUILES ZUNO                        ","11APT0001T",null,null,null,"X",null,null,null,null,null,null,null,null,null,null,null,1,null,null,38982.93]
[null,"GUANAJUATO","RAEL8409015U2","RAEL840901MGTMSR07  ","LAURA PATRICIA RAMOS ESTRADA            ","11APT0001T",null,null,null,"X",null,null,null,null,null,null,null,null,null,null,null,1,null,null,87062.60000000002]
[null,"GUANAJUATO","RALU580110A37","RAXL580110HGTMXS01  ","LUIS FERNANDO RAMOS                     ","11APT0001T",null,null,null,null,null,null,null,null,null,null,null,null,"X",null,null,1,null,null,78517.2]
[null,"GUANAJUATO","RAMA640606AQ0","RAMA640606HGTNXL06  ","ALBERTO RANGEL MUÐOZ                    ","11APT0001T",null,null,null,"X",null,null,null,null,null,null,null,null,null,null,null,1,null,null,37672.159999999996]
[null,"GUANAJUATO","RAMD6103291R4","RAMD610329HGTMNV10  ","DAVID RAMIREZ MONJARAZ                  ","11APT0001T",null,null,null,"X",null,null,null,null,null,null,null,null,null,null,null,1,null,null,45534.239999999998]
[null,"GUANAJUATO","RESA730203","RESA730203MGTYNN04","ANA CELIA REYNOSO SANCHEZ               ","11APT0001T",null,null,null,null,null,null,null,null,null,null,null,null,"X",null,null,1,null,null,113531.28000000001]
[null,"GUANAJUATO","SAAK880407FL7","SAAK880407MJCNNR03  ","KARLA ANGELINA SANDOVAL DE ANDA         ","11APT0001T",null,null,null,null,null,null,null,null,null,null,null,null,"X",null,null,1,null,null,78517.2]
[null,"GUANAJUATO","SAHE741012DCA","SAHE741012MGTNRS04  ","MA. ESTHER SANCHEZ HERNANDEZ            ","11APT0001T",null,null,null,null,null,null,null,null,null,null,null,null,"X",null,null,1,null,null,90553.079999999987]
[null,"GUANAJUATO","SAML830406CC2","SAML830406HDFNNS01  ","LUIS ENRIQUE SANCHEZ MENDOZA            ","11APT0001T",null,null,null,"X",null,null,null,null,null,null,null,null,null,null,null,1,null,null,49948.340000000004]
[null,"GUANAJUATO","SAMN650727TS7","SAMN650727MGTNJT03  ","MA. NATALIA SANCHEZ MOJICA              ","11APT0001T",null,null,null,"X",null,null,null,null,null,null,null,null,null,null,null,1,null,null,31208.799999999996]
[null,"GUANAJUATO","VACR780505180","VACR780505MGTRHS07","MARIA DEL ROSARI VARGAS CHAVEZ          ","11APT0001T",null,null,null,null,null,null,null,null,null,null,null,null,"X",null,null,1,null,null,90553.079999999987]
[null,"GUANAJUATO","VAGS770812TH3","VAGS770812HGTLRM07","SAMUEL VALLEJO GUERRERO                 ","11APT0001T",null,null,null,"X",null,null,null,null,null,null,null,null,null,null,null,1,null,null,49407.98]
[null,"GUANAJUATO","VARG660927MXA","VARG660927MDFLSL01  ","GLORIA GUADALUPE VALENZUELA RIOS        ","11APT0001T",null,null,null,null,null,null,null,null,null,null,null,null,"X",null,null,1,null,null,90553.079999999987]
[null,"GUANAJUATO","ZAAF7902055E9","ZAAF790205HGTMLR09  ","FERNANDO ZAMARRIPA ALDAPE               ","11APT0001T",null,null,null,"X",null,null,null,null,null,null,null,null,null,null,null,1,null,null,85702.650000000009]
[null,"GUANAJUATO","ZAHE711130S69","ZAHE711130MDFMRR03  ","ERIKA DE LOS ANGE ZAMORA HERNANDEZ      ","11APT0001T",null,null,null,"X",null,null,null,null,null,null,null,null,null,null,null,1,null,null,101514.38]
[null,"GUANAJUATO","ZALE620903MK9","ZALE620903HGTVND01  ","EDUARDO ZAVALA LEON                     ","11APT0001T",null,null,null,"X",null,null,null,null,null,null,null,null,null,null,null,1,null,null,62937.880000000012]
[null,"GUANAJUATO","ZERY820116NN8","ZERY820116MGTNCD08  ","YADIRA BERENICE ZENDEJAS ROCHA          ","11APT0001T",null,null,null,"X",null,null,null,null,null,null,null,null,null,null,null,1,null,null,47955.519999999997]
[null,"GUANAJUATO","AATE760606N24","AATE760606MGTLNV03  ","EVA ALMANZA TINOCO                      ","11DPT0001Q",null,null,null,"X",null,null,null,null,null,null,null,null,null,null,null,1,null,null,38033.599999999999]
[null,"GUANAJUATO","AUDM660425P52","AUDM660425MGTGRR18  ","MIRIAM AGUILAR DURON                    ","11DPT0001Q",null,null,null,"X",null,null,null,null,null,null,null,null,null,null,null,1,null,null,109562.27]
[null,"GUANAJUATO","BACM8402274W0","BACM840227HGTRNG03  ","MIGUEL ANGEL BARRON CONEJO              ","11DPT0001Q",null,null,null,"X",null,null,null,null,null,null,null,null,null,null,null,1,null,null,76325.25]
[null,"GUANAJUATO","BAUR7105213K8","BAUR710521MDFRRT02  ","RITA BARCENAS URBINA                    ","11DPT0001Q",null,null,null,"X",null,null,null,null,null,null,null,null,null,null,null,1,null,null,38756.47]
[null,"GUANAJUATO","BEEJ790327230","BEEJ790327HGTLSN06  ","JUAN GUSTAVO BELMAN ESPINOSA            ","11DPT0001Q",null,null,null,"X",null,null,null,null,null,null,null,null,null,null,null,1,null,null,30750.579999999994]
[null,"GUANAJUATO","CAGT7903078F3","CAGT790307HGTMRM01  ","TOMAS ESTEBAN CAMACHO GARCIA            ","11DPT0001Q",null,null,null,"X",null,null,null,null,null,null,null,null,null,null,null,1,null,null,27357.35]
[null,"GUANAJUATO","CARM520206UK0","CARM520206HGTBCR09  ","MARIO CABRERA RICO                      ","11DPT0001Q",null,null,null,null,null,null,null,null,null,null,null,null,"X",null,null,1,null,null,92369.4]
[null,"GUANAJUATO","CEFS680324L40","CEFS680324HJCRLL06  ","SAUL CERPA FLORES                       ","11DPT0001Q",null,null,null,"X",null,null,null,null,null,null,null,null,null,null,null,1,null,null,32381.52]
[null,"GUANAJUATO","EICA780130NQ1","EICA780130MGTSRN03  ","ANA MARIA ESPINOZA CERVANTES            ","11DPT0001Q",null,null,null,"X",null,null,null,null,null,null,null,null,null,null,null,1,null,null,39428.06]
[null,"GUANAJUATO","FABC530210FR5","FABC530210MDFRRR00  ","MARIA DEL CARMEN FRANCO BOURET          ","11DPT0001Q",null,null,null,"X",null,null,null,null,null,null,null,null,null,null,null,1,null,null,40795.97]
[null,"GUANAJUATO","GAAR6310249B2","GAAR631024HGTLRF01  ","RAFAEL GALLEGOS ARELLANO                ","11DPT0001Q",null,null,null,"X",null,null,null,null,null,null,null,null,null,null,null,1,null,null,39619.319999999992]
[null,"GUANAJUATO","GALE770303QD2","GALE770303HGTRSD04  ","EDUARDO GARCIA LESSO                    ","11DPT0001Q",null,null,null,"X",null,null,null,null,null,null,null,null,null,null,null,1,null,null,52294.720000000008]
[null,"GUANAJUATO","GAMM680220L32","GAMM680220MGTLRR01  ","MARTHA NORMA GALLEGOS MARISCAL          ","11DPT0001Q",null,null,null,"X",null,null,null,null,null,null,null,null,null,null,null,1,null,null,47668.97]
[null,"GUANAJUATO","GAOH8102061G0","GAOH810206HDFLLM04  ","HUMBERTO ISRAEL GALVAN OLVERA           ","11DPT0001Q",null,null,null,"X",null,null,null,null,null,null,null,null,null,null,null,1,null,null,29026.739999999998]
[null,"GUANAJUATO","GIAJ670517N7A","GIAJ670517HGTRLN07  ","JUAN MANUEL GRIMALDO ALFARO             ","11DPT0001Q",null,null,null,"X",null,null,null,null,null,null,null,null,null,null,null,1,null,null,42454.55]
[null,"GUANAJUATO","GOGK890902JT3","GOGK890902MGTNLR04  ","KARLA RAFAELA GONZALEZ GALLARDO         ","11DPT0001Q",null,null,null,"X",null,null,null,null,null,null,null,null,null,null,null,1,null,null,53470.25]
[null,"GUANAJUATO","GOMG8812289D6","GOMG881228HQTMLB01  ","GABRIEL GOMEZ MOLINERO                  ","11DPT0001Q",null,null,null,"X",null,null,null,null,null,null,null,null,null,null,null,1,null,null,52177.400000000009]
[null,"GUANAJUATO","HEMM6706104M9","HEMM670610MGTRNR09  ","MA. MERCEDES HERRERA MANCERA            ","11DPT0001Q",null,null,null,"X",null,null,null,null,null,null,null,null,null,null,null,1,null,null,110151.98000000001]
[null,"GUANAJUATO","JAMJ591122Q73","JAMJ591122HGTRNV07  ","JAVIER JARALEÐO MANCERA                 ","11DPT0001Q",null,null,null,"X",null,null,null,null,null,null,null,null,null,null,null,1,null,null,38608.6]
[null,"GUANAJUATO","JOOM700802BM5","JOOM700802HGTYRG06  ","MIGUEL ANGEL JOYA ORTIZ                 ","11DPT0001Q",null,null,null,"X",null,null,null,null,null,null,null,null,null,null,null,1,null,null,102015.48]
[null,"GUANAJUATO","LIRA890608KM8","LIRA890608MGTZZL06  ","ALMA ROSARIO LIZARRAGA RUIZ             ","11DPT0001Q",null,null,null,"X",null,null,null,null,null,null,null,null,null,null,null,1,null,null,30090.089999999997]
[null,"GUANAJUATO","LOLA870110SJ9","LOLA870110MGTPPL02  ","ALMA ALEJANDRA LOPEZ LOPEZ              ","11DPT0001Q",null,null,null,"X",null,null,null,null,null,null,null,null,null,null,null,1,null,null,56271.850000000006]
[null,"GUANAJUATO","MAGB8208194P2","MAGB820819MGTLRL08  ","BLANCA ELIA MALDONADO GARCIA            ","11DPT0001Q",null,null,null,"X",null,null,null,null,null,null,null,null,null,null,null,1,null,null,56095.839999999989]
[null,"GUANAJUATO","MAGC661126AJ5","MAGC661126MGTLNR18  ","MA.CARMEN MALDONADO GONZALEZ            ","11DPT0001Q",null,null,null,"X",null,null,null,null,null,null,null,null,null,null,null,1,null,null,100228.25]
[null,"GUANAJUATO","MELN680719F21","MELN680719MGTLDR00  ","NORMA LETICIA MELGOZA LEDESMA           ","11DPT0001Q",null,null,null,"X",null,null,null,null,null,null,null,null,null,null,null,1,null,null,39918.409999999996]
[null,"GUANAJUATO","MEMM740704297","MEMM740704MDFDRR03  ","MIRNA MEDINA MARIN                      ","11DPT0001Q",null,null,null,"X",null,null,null,null,null,null,null,null,null,null,null,1,null,null,36752.17]
[null,"GUANAJUATO","MIAO8312189C2","MIAO831218HDFLPM04  ","OMAR MILLAN APUD                        ","11DPT0001Q",null,null,null,"X",null,null,null,null,null,null,null,null,null,null,null,1,null,null,52177.4]
[null,"GUANAJUATO","MOHA6909151AA","MOHA690915MGTRRN03  ","ANDREA MORALES HERNANDEZ                ","11DPT0001Q",null,null,null,"X",null,null,null,null,null,null,null,null,null,null,null,1,null,null,38287.01]
[null,"GUANAJUATO","MUSF920131CIA","MUSF920131MGTXCR06  ","MARIA FERNANDA MUÐOZ SAUCILLO           ","11DPT0001Q",null,null,null,"X",null,null,null,null,null,null,null,null,null,null,null,1,null,null,28539.21]
[null,"GUANAJUATO","NIHE721201VC3","NIHE721201HGTTRS04  ","EUSEBIO MIGUEL A NIETO HERNANDEZ        ","11DPT0001Q",null,null,null,"X",null,null,null,null,null,null,null,null,null,null,null,1,null,null,29928.010000000002]
[null,"GUANAJUATO","NUBS660923RQA","NUBS660923MGTXRL07  ","MA.SILVIA NUÐEZ BARRERA                 ","11DPT0001Q",null,null,null,"X",null,null,null,null,null,null,null,null,null,null,null,1,null,null,46864.15]
[null,"GUANAJUATO","OAMC600520F43","OAMC600520HSLLLR01  ","CARLOS JAVIER OLAVEZ MELESIO            ","11DPT0001Q",null,null,null,"X",null,null,null,null,null,null,null,null,null,null,null,1,null,null,42341.27]
[null,"GUANAJUATO","PACS8101228Y0","PACS810122MGTLRR02  ","SARA PALOMINO CARREÐO                   ","11DPT0001Q",null,null,null,"X",null,null,null,null,null,null,null,null,null,null,null,1,null,null,27716.760000000002]
[null,"GUANAJUATO","PIOP550618BT2","PIOP550618HGTCLB08  ","PABLO PICHARDO OLVERA                   ","11DPT0001Q",null,null,null,"X",null,null,null,null,null,null,null,null,null,null,null,1,null,null,41999.92]
[null,"GUANAJUATO","QUGE620101NK4","QUGE620101HGTNRF01  ","EFRAIN QUINTANA GARCIA                  ","11DPT0001Q",null,null,null,"X",null,null,null,null,null,null,null,null,null,null,null,1,null,null,32690.800000000003]
[null,"GUANAJUATO","RAAG5908278S6","RAAG590827HMNNBL08  ","GUILLERMO RANGEL ABURTO                 ","11DPT0001Q",null,null,null,"X",null,null,null,null,null,null,null,null,null,null,null,1,null,null,47079.22]
[null,"GUANAJUATO","RERE8505068T2","RERE850506HMNYMD04  ","EDUARDO REYES RAMIREZ                   ","11DPT0001Q",null,null,null,"X",null,null,null,null,null,null,null,null,null,null,null,1,null,null,27653.269999999997]
[null,"GUANAJUATO","RIAA790529868","RIAA790529MMNSGN11  ","ANA KATHERINE RIOS AGUILAR              ","11DPT0001Q",null,null,null,null,null,null,null,null,null,null,null,null,"X",null,null,1,null,null,78517.2]
[null,"GUANAJUATO","ROBY7612249Q3","ROBY761224MMCDCN00  ","YUNUEN RODRIGUEZ BECERRA                ","11DPT0001Q",null,null,null,"X",null,null,null,null,null,null,null,null,null,null,null,1,null,null,35651.449999999997]
[null,"GUANAJUATO","ROEJ700824751","ROEJ700824HVZMSL05  ","JULIO CESAR ROMERO ESCOBAR              ","11DPT0001Q",null,null,null,"X",null,null,null,null,null,null,null,null,null,null,null,1,null,null,27196.499999999996]
[null,"GUANAJUATO","ROHR681221N53","ROHR681221MGTJRB00  ","RUBISELA ROJAS HUARACHA                 ","11DPT0001Q",null,null,null,"X",null,null,null,null,null,null,null,null,null,null,null,1,null,null,73470.5]
[null,"GUANAJUATO","ROMR681004UF2","ROMR681004HGTDRM02  ","RAMIRO RODRIGUEZ MARTINEZ               ","11DPT0001Q",null,null,null,"X",null,null,null,null,null,null,null,null,null,null,null,1,null,null,44366.13]
[null,"GUANAJUATO","ROPR4911033YA","ROPR491103HGTDTF04  ","RAFAEL RODRIGUEZ PATINO                 ","11DPT0001Q",null,null,null,"X",null,null,null,null,null,null,null,null,null,null,null,1,null,null,33293.78]
[null,"GUANAJUATO","RURO710818A13","RURO710818MGTZFL04  ","OLGA AMALIA RUIZ RUFINO                 ","11DPT0001Q",null,null,null,"X",null,null,null,null,null,null,null,null,null,null,null,1,null,null,50228.950000000004]
[null,"GUANAJUATO","SAGM730131V93","SAGM730131MDFNRR07  ","MARCELA SANCHEZ GARCIA                  ","11DPT0001Q",null,null,null,"X",null,null,null,null,null,null,null,null,null,null,null,1,null,null,84989.97]
[null,"GUANAJUATO","SARR700714SU4","SARR700714MGTCMS06  ","MARIA DEL ROSARI SAUCILLO RAMIREZ       ","11DPT0001Q",null,null,null,"X",null,null,null,null,null,null,null,null,null,null,null,1,null,null,59258.76]
[null,"GUANAJUATO","TEHM7408294G1","TEHM740829HGTLRR02  ","MARCO ANTONIO TELLEZ HERRERA            ","11DPT0001Q",null,null,null,"X",null,null,null,null,null,null,null,null,null,null,null,1,null,null,28325.27]
[null,"GUANAJUATO","TIRA931025MA1","TIRA931025MGTRMN09","ANA CECILIA TIERRABLANCA ROMERO         ","11DPT0001Q",null,null,null,"X",null,null,null,null,null,null,null,null,null,null,null,1,null,null,14058.7]
[null,"GUANAJUATO","TOCF910415931","TOCF910415MGTRRT00  ","FATIMA DEL ROSAR TORRES CERVANTES       ","11DPT0001Q",null,null,null,"X",null,null,null,null,null,null,null,null,null,null,null,1,null,null,33656.21]
[null,"GUANAJUATO","TOSS530312KL6","TOSS530312HDFRMM05  ","SAMUEL TORRES SUMOZA                    ","11DPT0001Q",null,null,null,"X",null,null,null,null,null,null,null,null,null,null,null,1,null,null,30423.060000000005]
[null,"GUANAJUATO","VAAM631105TU4","VAAM631105HGTLYR06  ","MARTIN VALENTE AYALA                    ","11DPT0001Q",null,null,null,"X",null,null,null,null,null,null,null,null,null,null,null,1,null,null,42328.04]
[null,"GUANAJUATO","VEGR631014AK5","VEGR631014HGTLRB01  ","RUBEN VELAZQUEZ GARCIA                  ","11DPT0001Q",null,null,null,"X",null,null,null,null,null,null,null,null,null,null,null,1,null,null,36715.600000000006]
[null,"GUANAJUATO","VEMM86100222D","VEMM861022MGTRNR00  ","MIRIAM SOLEDAD VERA MENDIETA            ","11DPT0001Q",null,null,null,"X",null,null,null,null,null,null,null,null,null,null,null,1,null,null,31212.82]
[null,"GUANAJUATO","ZALC5604237Q2","ZALC560423HGTVPR01  ","CARLOS ZAVALA LOPEZ                     ","11DPT0001Q",null,null,null,"X",null,null,null,null,null,null,null,null,null,null,null,1,null,null,38123.799999999996]
[null,"GUANAJUATO","AARM7802157H4","AARM780215MGTLDY03  ","MYRIAM DEL ROSAR ALVARADO RODRIGUEZ     ","11DPT0002P",null,null,null,"X",null,null,null,null,null,null,null,null,null,null,null,1,null,null,26944.15]
[null,"GUANAJUATO","BERC880813NK7","BERC880813MGTLMN05  ","CINDIA ELIZABETH BELTRAN RAMOS          ","11DPT0002P",null,null,null,"X",null,null,null,null,null,null,null,null,null,null,null,1,null,null,43482.87]
[null,"GUANAJUATO","CAGX680903LH5","CXGA680903HGTHNL08  ","ALBERTO CHAO GONZALEZ                   ","11DPT0002P",null,null,null,null,null,null,null,null,null,null,null,null,"X",null,null,1,null,null,92369.4]
[null,"GUANAJUATO","CAPR810416EKA","CAPR810416HGTLRB07  ","ROBERTO CALDERON PEREZ                  ","11DPT0002P",null,null,null,"X",null,null,null,null,null,null,null,null,null,null,null,1,null,null,60316.759999999995]
[null,"GUANAJUATO","CASI750121969","CASI750121HGTSNS13  ","ISAAC CASTRO SANTILLANES                ","11DPT0002P",null,null,null,"X",null,null,null,null,null,null,null,null,null,null,null,1,null,null,40063.53]
[null,"GUANAJUATO","CAVT730609CSA","CAVT730609MGTRRR12  ","MA. TERESA CARPIO VARGAS                ","11DPT0002P",null,null,null,"X",null,null,null,null,null,null,null,null,null,null,null,1,null,null,35519.099999999991]
[null,"GUANAJUATO","CIEE710907TK8","CIEE710907HDFSSD04  ","EDUARDO ALEJANDR CISNEROS ESPINOSA      ","11DPT0002P",null,null,null,"X",null,null,null,null,null,null,null,null,null,null,null,1,null,null,27322.15]
[null,"GUANAJUATO","COCA760915JU4","COCA760915HGTRLL02  ","ALEJANDRO CORIA CALDERON                ","11DPT0002P",null,null,null,"X",null,null,null,null,null,null,null,null,null,null,null,1,null,null,30801.060000000005]
[null,"GUANAJUATO","CUHC5501119F9","CUHC550111HGTLNS08  ","CESAR CUELLAR HINOJOSA                  ","11DPT0002P",null,null,null,"X",null,null,null,null,null,null,null,null,null,null,null,1,null,null,41360.6]
[null,"GUANAJUATO","CUVY830805JA3","CUVY830805MGTSRH00  ","YAHAIRA ALICIA E CUESTAS VARGAS         ","11DPT0002P",null,null,null,"X",null,null,null,null,null,null,null,null,null,null,null,1,null,null,26342.190000000002]
[null,"GUANAJUATO","DEHM860518J96","DEHM860518HMCLRG02  ","MIGUEL ANGEL DELGADO HERNANDEZ          ","11DPT0002P",null,null,null,"X",null,null,null,null,null,null,null,null,null,null,null,1,null,null,32094.760000000002]
[null,"GUANAJUATO","DEJA790116B16","DEJA790116HMCLMN00  ","JOSE ANTONIO DELGADO JIMENEZ            ","11DPT0002P",null,null,null,"X",null,null,null,null,null,null,null,null,null,null,null,1,null,null,94855.8]
[null,"GUANAJUATO","DONA780620F80","DONA780620HGTMTL04  ","ALEJANDRO DOMINGUEZ NIETO               ","11DPT0002P",null,null,null,"X",null,null,null,null,null,null,null,null,null,null,null,1,null,null,28313.15]
[null,"GUANAJUATO","EIPM591011QG5","EIPM591011MGTSRR09  ","MARTHA ALICIA ESPINOSA PEREZ            ","11DPT0002P",null,null,null,"X",null,null,null,null,null,null,null,null,null,null,null,1,null,null,96500.180000000008]
[null,"GUANAJUATO","GAHJ561230M55","GAHJ561230HGTRRN04  ","JUAN GRANADOS HERNANDEZ                 ","11DPT0002P",null,null,null,"X",null,null,null,null,null,null,null,null,null,null,null,1,null,null,93907.950000000012]
[null,"GUANAJUATO","GATG451128UX1","GATG451128HDFYRS05  ","GUSTAVO GAYTAN TORRES                   ","11DPT0002P",null,null,null,"X",null,null,null,null,null,null,null,null,null,null,null,1,null,null,76325.25]
[null,"GUANAJUATO","GOGF910421775","GOGF910421MGTNLR03  ","MARIA FERNANDA GONZALEZ GALLARDO        ","11DPT0002P",null,null,null,"X",null,null,null,null,null,null,null,null,null,null,null,1,null,null,22939.58]
[null,"GUANAJUATO","GUAA600320L51","GUAA600320MGTTLL03  ","ALEJANDRA GUTIERREZ ALVAREZ             ","11DPT0002P",null,null,null,"X",null,null,null,null,null,null,null,null,null,null,null,1,null,null,39749.199999999997]
[null,"GUANAJUATO","GULM790929U80","GULM790929HGTRGG04  ","MIGUEL ANGEL GUERRERO LAGUNA            ","11DPT0002P",null,null,null,"X",null,null,null,null,null,null,null,null,null,null,null,1,null,null,34692.06]
[null,"GUANAJUATO","HEGC870427C96","HEGC870427HCSRNR00  ","CRISTOBAL DE JES HERNANDEZ GONZALEZ     ","11DPT0002P",null,null,null,"X",null,null,null,null,null,null,null,null,null,null,null,1,null,null,21888.65]
[null,"GUANAJUATO","JUHF791105831","JUHF791105HDFRLR06  ","FERNANDO JUAREZ HELGUERA                ","11DPT0002P",null,null,null,"X",null,null,null,null,null,null,null,null,null,null,null,1,null,null,29682.15]
[null,"GUANAJUATO","LAMA800707D83","LAMA800707HGTRRL05  ","JOSE ALEJANDRO LARA MERCADO             ","11DPT0002P",null,null,null,"X",null,null,null,null,null,null,null,null,null,null,null,1,null,null,31384.800000000003]
[null,"GUANAJUATO","LOBM750809KY1","LOBM750809HGTPRG01  ","MIGUEL LOPEZ BARRAGAN                   ","11DPT0002P",null,null,null,"X",null,null,null,null,null,null,null,null,null,null,null,1,null,null,30777.959999999995]
[null,"GUANAJUATO","MABH800524BY7","MABH800524HMNRRG02  ","HUGO MARTINEZ BARRERA                   ","11DPT0002P",null,null,null,"X",null,null,null,null,null,null,null,null,null,null,null,1,null,null,76325.25]
[null,"GUANAJUATO","MACP790228577","MACP790228MGTRSL06  ","MARIA DEL PILAR MARTINEZ CASTRO         ","11DPT0002P",null,null,null,"X",null,null,null,null,null,null,null,null,null,null,null,1,null,null,28593.98]
[null,"GUANAJUATO","MADJ760413GFA","MADJ760413HGTTZQ01  ","JOAQUIN MATA DIAZ                       ","11DPT0002P",null,null,null,"X",null,null,null,null,null,null,null,null,null,null,null,1,null,null,38615.449999999997]
[null,"GUANAJUATO","MADM900319GN9","MADM900319HGTTZN05  ","JOSE MANUEL MATA DIAZ                   ","11DPT0002P",null,null,null,"X",null,null,null,null,null,null,null,null,null,null,null,1,null,null,27322.15]
[null,"GUANAJUATO","MEAE910606I30","MEAE910606HGTJGD01  ","EDGAR EMMANUEL MEJIA AGUILA             ","11DPT0002P",null,null,null,"X",null,null,null,null,null,null,null,null,null,null,null,1,null,null,27322.15]
[null,"GUANAJUATO","MEVJ760816A58","MEVJ760816HGTJLL19  ","JULIO ENRIQUE MEJIA VILLANUEVA          ","11DPT0002P",null,null,null,"X",null,null,null,null,null,null,null,null,null,null,null,1,null,null,101266.58999999998]
[null,"GUANAJUATO","MOFD741006FM4","MOFD741006HGTSLV05  ","DAVID MOSQUEDA FLORES                   ","11DPT0002P",null,null,null,"X",null,null,null,null,null,null,null,null,null,null,null,1,null,null,35601.930000000008]
[null,"GUANAJUATO","MOFY680125UV7","MOFY680125MGTSLL00  ","YOLANDA MOSQUEDA FLORES                 ","11DPT0002P",null,null,null,"X",null,null,null,null,null,null,null,null,null,null,null,1,null,null,43386.13]
[null,"GUANAJUATO","PALM711130LV9","PALM711130HGTRGG02  ","MIGUEL ANGEL PARAMO LAGUNA              ","11DPT0002P",null,null,null,"X",null,null,null,null,null,null,null,null,null,null,null,1,null,null,36525.32]
[null,"GUANAJUATO","RAHL900721A16","RAHL900721MGTNRL09  ","LILIANA BERENICE RANGEL HERNANDEZ       ","11DPT0002P",null,null,null,"X",null,null,null,null,null,null,null,null,null,null,null,1,null,null,21389.579999999998]
[null,"GUANAJUATO","ROBA710226BG0","RXBA710226MGTBRL07  ","ALMA ROBLES BRAVO                       ","11DPT0002P",null,null,null,"X",null,null,null,null,null,null,null,null,null,null,null,1,null,null,37342.089999999997]
[null,"GUANAJUATO","ROBB6412029G0","ROBB641202MGTBRL04  ","BLANCA ESTELA ROBLES BRAVO              ","11DPT0002P",null,null,null,"X",null,null,null,null,null,null,null,null,null,null,null,1,null,null,45330.03]
[null,"GUANAJUATO","RODY660703MQ8","RODY660703MGTXLL07  ","YOLANDA ROA DELGADO                     ","11DPT0002P",null,null,null,"X",null,null,null,null,null,null,null,null,null,null,null,1,null,null,74115.98]
[null,"GUANAJUATO","ROSA621019UW4","ROSA621019HGTDNG01  ","AGAPITO RODRIGUEZ SANCHEZ               ","11DPT0002P",null,null,null,"X",null,null,null,null,null,null,null,null,null,null,null,1,null,null,40163.31]
[null,"GUANAJUATO","SACM851223UV7","SACM851223MDFNSN01  ","MONSERRAT SANCHEZ CISNEROS              ","11DPT0002P",null,null,null,"X",null,null,null,null,null,null,null,null,null,null,null,1,null,null,29672.190000000002]
[null,"GUANAJUATO","SAGS78112652A","SAGS781126HGTLTS16  ","SASHA EMMANUEL SALINAS GUTIERREZ        ","11DPT0002P",null,null,null,"X",null,null,null,null,null,null,null,null,null,null,null,1,null,null,28451.89]
[null,"GUANAJUATO","SAHI670121KQ3","SAHI670121MGTNRN07  ","MA. INES SANDOVAL HERNANDEZ             ","11DPT0002P",null,null,null,"X",null,null,null,null,null,null,null,null,null,null,null,1,null,null,40515.49]
[null,"GUANAJUATO","SAHL6309234X5","SAHL630923HGTNRS00  ","LUIS MIGUEL SANCHEZ HERNANDEZ           ","11DPT0002P",null,null,null,"X",null,null,null,null,null,null,null,null,null,null,null,1,null,null,78376.800000000003]
[null,"GUANAJUATO","SALM811102IP0","SALG811102MGTNGD00  ","MA. GUADALUPE SANCHEZ LAGUNA            ","11DPT0002P",null,null,null,"X",null,null,null,null,null,null,null,null,null,null,null,1,null,null,52294.720000000008]
[null,"GUANAJUATO","SARA881017KA5","SARA881017HGTNXL07  ","ALBERTO ALEXANDR SANTILLAN REA          ","11DPT0002P",null,null,null,"X",null,null,null,null,null,null,null,null,null,null,null,1,null,null,28451.89]
[null,"GUANAJUATO","SASJ650121CF2","SAST650121HGTNMR00  ","J. TRINIDAD SANCHEZ SAMANO              ","11DPT0002P",null,null,null,"X",null,null,null,null,null,null,null,null,null,null,null,1,null,null,64331.63]
[null,"GUANAJUATO","SAVJ890118LK2","SAVJ890118HGTNZS05  ","JOSE DE JESUS SANCHEZ VAZQUEZ           ","11DPT0002P",null,null,null,"X",null,null,null,null,null,null,null,null,null,null,null,1,null,null,31384.800000000003]
[null,"GUANAJUATO","VAEA7904041V2","VAEA790404HGTLLL05  ","ALEJANDRO VALADEZ ELIAS                 ","11DPT0002P",null,null,null,"X",null,null,null,null,null,null,null,null,null,null,null,1,null,null,28648.739999999998]
[null,"GUANAJUATO","VEGJ461124SB6","VEGJ461124HGTLLD01  ","J. GUADALUPE VELAZQUEZ GALLARDO         ","11DPT0002P",null,null,null,"X",null,null,null,null,null,null,null,null,null,null,null,1,null,null,42353.57]
[null,"GUANAJUATO","AEGJ5311191A4","AEGJ531119HGTSRR09  ","JORGE ASCENCIO GARCIA                   ","11DPT0003O",null,null,null,"X",null,null,null,null,null,null,null,null,null,null,null,1,null,null,37484.400000000001]
[null,"GUANAJUATO","AETA880105TQ0","AETA880105HGTCNN01  ","ANTONIO ACEVEDO TINAJERO                ","11DPT0003O",null,null,null,"X",null,null,null,null,null,null,null,null,null,null,null,1,null,null,78964.41]
[null,"GUANAJUATO","AOVP751006KA9","AOVP751006MGTLLL04  ","MA. DEL PILAR ALMONACI VALADEZ          ","11DPT0003O",null,null,null,"X",null,null,null,null,null,null,null,null,null,null,null,1,null,null,74379.100000000006]
[null,"GUANAJUATO","BUSG720302VE9","BUSG720302MGTLND02  ","MA. GUADALUPE BULLONS SANTIAGO          ","11DPT0003O",null,null,null,"X",null,null,null,null,null,null,null,null,null,null,null,1,null,null,35421.040000000001]
[null,"GUANAJUATO","CACF600221UD2","CACF600221HSPMSR07  ","FORTUNATO CAMACHO CASTILLO              ","11DPT0003O",null,null,null,"X",null,null,null,null,null,null,null,null,null,null,null,1,null,null,29375.510000000002]
[null,"GUANAJUATO","CAGM670126RV9","CAGM670126MGTHNR09  ","MARTHA DELIA CHAVEZ GONZALEZ            ","11DPT0003O",null,null,null,"X",null,null,null,null,null,null,null,null,null,null,null,1,null,null,96802.22]
[null,"GUANAJUATO","CALA611023U79","CALA611023MZSRZD15  ","ADRIANA CARDENAS LOZA                   ","11DPT0003O",null,null,null,"X",null,null,null,null,null,null,null,null,null,null,null,1,null,null,93907.950000000012]
[null,"GUANAJUATO","DAFT8701278E1","DAFT870127MZSVLN04  ","TANIA LIZETH DAVILA FLORES              ","11DPT0003O",null,null,null,"X",null,null,null,null,null,null,null,null,null,null,null,1,null,null,30334.95]
[null,"GUANAJUATO","FAAF540219KI2","FAAF540219MGTRGX06  ","MARIA FE FRAUSTO AGUILAR                ","11DPT0003O",null,null,null,"X",null,null,null,null,null,null,null,null,null,null,null,1,null,null,43924.689999999995]
[null,"GUANAJUATO","FOSA610902SG9","FOSA610902MGTLNL09  ","ALEJANDRA PATRICI FLORES SANDOVAL       ","11DPT0003O",null,null,null,"X",null,null,null,null,null,null,null,null,null,null,null,1,null,null,70671.5]
[null,"GUANAJUATO","GALJ930324KX8","GALJ930324HGTRPN06  ","JUAN CARLOS GARCIA LOPEZ                ","11DPT0003O",null,null,null,"X",null,null,null,null,null,null,null,null,null,null,null,1,null,null,28648.739999999998]
[null,"GUANAJUATO","GARJ690126G3A","GARJ690126HQTRVN01  ","JOSE JUAN GARCIA RIVERA                 ","11DPT0003O",null,null,null,"X",null,null,null,null,null,null,null,null,null,null,null,1,null,null,28041.96]
[null,"GUANAJUATO","GOML690426EW2","GOML690426MGTNDZ08  ","LUZ ESTELA GONZALEZ MEDINA              ","11DPT0003O",null,null,null,"X",null,null,null,null,null,null,null,null,null,null,null,1,null,null,71319.100000000006]
[null,"GUANAJUATO","GOPP5010306G6","GOPP501030HGTNRD05","PEDRO GONZALEZ PORTILLO                 ","11DPT0003O",null,null,null,"X",null,null,null,null,null,null,null,null,null,null,null,1,null,null,33486.03]
[null,"GUANAJUATO","GOPR8103287J3","GOPR810328HDFMRB09","RUBEN GOMEZ PORTILLA                    ","11DPT0003O",null,null,null,null,null,null,null,null,null,null,null,null,"X",null,null,1,null,null,92369.4]
[null,"GUANAJUATO","GUFV820306TSA","GUFV820306HGRZLC04  ","VICTOR MANUEL GUZMAN FLORES             ","11DPT0003O",null,null,null,"X",null,null,null,null,null,null,null,null,null,null,null,1,null,null,83358.330000000016]
[null,"GUANAJUATO","HECH720907NC1","HECH720907MDFRNL01  ","HILDA HERNANDEZ CANCHOLA                ","11DPT0003O",null,null,null,"X",null,null,null,null,null,null,null,null,null,null,null,1,null,null,29854.909999999996]
[null,"GUANAJUATO","HECL6401228X2","HECL640122MDFRLT03  ","LETICIA HERNANDEZ CALVILLO              ","11DPT0003O",null,null,null,"X",null,null,null,null,null,null,null,null,null,null,null,1,null,null,45966.61]
[null,"GUANAJUATO","HEFM781229PE6","HEFM781229MGTRRL06  ","MARIA MILAGROS HERNANDEZ FRAUSTO        ","11DPT0003O",null,null,null,"X",null,null,null,null,null,null,null,null,null,null,null,1,null,null,28648.739999999998]
[null,"GUANAJUATO","HEHA900701UB1","HEHA900701MGTRRN03  ","ANA LETICIA HERNANDEZ HERRERA           ","11DPT0003O",null,null,null,"X",null,null,null,null,null,null,null,null,null,null,null,1,null,null,29828.739999999998]
[null,"GUANAJUATO","JIOL8008248F7","JIOL800824MGTMRZ11  ","LIZETH ARIADNA JIMENEZ ORTEGA           ","11DPT0003O",null,null,null,"X",null,null,null,null,null,null,null,null,null,null,null,1,null,null,66335.44]
[null,"GUANAJUATO","LOCR480518KR8","LOCR480518HDFPRG01  ","ROGELIO LOPEZ CERVANTES                 ","11DPT0003O",null,null,null,"X",null,null,null,null,null,null,null,null,null,null,null,1,null,null,46563.149999999994]
[null,"GUANAJUATO","MALR690904B5A","MALR690904MGTRPS03  ","ROSA EUGENIA MARTINEZ LOPEZ             ","11DPT0003O",null,null,null,"X",null,null,null,null,null,null,null,null,null,null,null,1,null,null,40027.999999999993]
[null,"GUANAJUATO","MAMJ620217DW9","MAMJ620217HGTRNN03  ","JUAN ANTONIO MARTINEZ MONCIBAIS         ","11DPT0003O",null,null,null,"X",null,null,null,null,null,null,null,null,null,null,null,1,null,null,77213.200000000012]
[null,"GUANAJUATO","NAME6411037H1","NAME641103MDFVDV03  ","EVA NAVARRO MADRIGAL                    ","11DPT0003O",null,null,null,"X",null,null,null,null,null,null,null,null,null,null,null,1,null,null,33385.33]
[null,"GUANAJUATO","NIRA700123GK9","NIRA700123MGTTVN01  ","ANA LAURA NIETO RIVERA                  ","11DPT0003O",null,null,null,"X",null,null,null,null,null,null,null,null,null,null,null,1,null,null,105658.64000000001]
[null,"GUANAJUATO","OIOM621117BE8","OIOM621117HGTLLN02  ","MANUEL MARTIN OLIVA OLIVA               ","11DPT0003O",null,null,null,"X",null,null,null,null,null,null,null,null,null,null,null,1,null,null,49301.149999999994]
[null,"GUANAJUATO","PAPA810618AR6","PAPA810618HGTLLB03  ","ABRAHAM PALACIOS PALACIOS               ","11DPT0003O",null,null,null,"X",null,null,null,null,null,null,null,null,null,null,null,1,null,null,32188.739999999998]
[null,"GUANAJUATO","RARE590716V64","RARE590716MJCMMV05  ","EVELIA DEL CARMEN RAMIREZ RAMIREZ       ","11DPT0003O",null,null,null,"X",null,null,null,null,null,null,null,null,null,null,null,1,null,null,48173.749999999993]
[null,"GUANAJUATO","RARR701207IA9","RARR701207MDFMMT08  ","RITA RAMIREZ RAMIREZ                    ","11DPT0003O",null,null,null,"X",null,null,null,null,null,null,null,null,null,null,null,1,null,null,38904.089999999997]
[null,"GUANAJUATO","ROFL910916ES9","ROFL910916MGTBNR05","LORENA ROBLEDO FONSECA                  ","11DPT0003O",null,null,null,"X",null,null,null,null,null,null,null,null,null,null,null,1,null,null,17422.62]
[null,"GUANAJUATO","ROGJ631018GD6","ROGJ631018HGTMRN04  ","JUAN JOSE ROMERO GARCIA                 ","11DPT0003O",null,null,null,"X",null,null,null,null,null,null,null,null,null,null,null,1,null,null,41010.499999999993]
[null,"GUANAJUATO","RORJ800328CB1","RORJ800328HGTDMN01  ","JUAN PABLO RODRIGUEZ RAMIREZ            ","11DPT0003O",null,null,null,"X",null,null,null,null,null,null,null,null,null,null,null,1,null,null,31725.159999999996]
[null,"GUANAJUATO","ROVS5612313Z0","ROVS561231HGTBNL05  ","J. SILVESTRE ROBLEDO VENEGAS            ","11DPT0003O",null,null,null,"X",null,null,null,null,null,null,null,null,null,null,null,1,null,null,42862.22]
[null,"GUANAJUATO","SAAL680317PF6","SAAL680317MGTLRR00  ","LAURA PATRICIA SALDAÐA ARELLANO         ","11DPT0003O",null,null,null,"X",null,null,null,null,null,null,null,null,null,null,null,1,null,null,42684.92]
[null,"GUANAJUATO","TAPM7310026U1","TAPM731002HDFRSG06  ","MIGUEL ANGEL TAURINO PASTEN             ","11DPT0003O",null,null,null,"X",null,null,null,null,null,null,null,null,null,null,null,1,null,null,33254.639999999992]
[null,"GUANAJUATO","AACG691218L13","AACG691218MMNLSR08  ","GRACIELA ALVAREZ CASTRO                 ","11DPT0004N",null,null,null,"X",null,null,null,null,null,null,null,null,null,null,null,1,null,null,41117.770000000004]
[null,"GUANAJUATO","AUPM640422KR2","AUPM640422HGTGLR03  ","MARTIN AGUIRRE PALMERIN                 ","11DPT0004N",null,null,null,"X",null,null,null,null,null,null,null,null,null,null,null,1,null,null,36747.729999999996]
[null,"GUANAJUATO","DIJL7203079A3","DIJL720307MGTGCR01  ","MA. DE LOURDES DIEGO JACOBO             ","11DPT0004N",null,null,null,"X",null,null,null,null,null,null,null,null,null,null,null,1,null,null,40711.459999999992]
[null,"GUANAJUATO","DUAJ8704098Q4","DUAJ870409HGTRGR00  ","JORGE LUIS DURAN AGUILERA               ","11DPT0004N",null,null,null,"X",null,null,null,null,null,null,null,null,null,null,null,1,null,null,27322.15]
[null,"GUANAJUATO","GACR6704153I2","GACR670415MGTRRT06  ","MARIA RITA GARCIA CERRATO               ","11DPT0004N",null,null,null,"X",null,null,null,null,null,null,null,null,null,null,null,1,null,null,41930.079999999994]
[null,"GUANAJUATO","GARS670416A54","GARS670416MGTRYL05  ","SILVIA GARCIA REYES                     ","11DPT0004N",null,null,null,"X",null,null,null,null,null,null,null,null,null,null,null,1,null,null,79507.5]
[null,"GUANAJUATO","GAZE690718GX3","GAZE690718MGTRVL07  ","ELIZABETH GARCIA ZAVALA                 ","11DPT0004N",null,null,null,"X",null,null,null,null,null,null,null,null,null,null,null,1,null,null,42012.24]
[null,"GUANAJUATO","GOGE730923ME8","GOGE730923MMNNNL00  ","ELIZABETH GONZALEZ GONZALEZ             ","11DPT0004N",null,null,null,"X",null,null,null,null,null,null,null,null,null,null,null,1,null,null,38727.949999999997]
[null,"GUANAJUATO","LOGM731124S65","LOGM731124MMNPZN04  ","MONICA IVETT LOPEZ GUZMAN               ","11DPT0004N",null,null,null,"X",null,null,null,null,null,null,null,null,null,null,null,1,null,null,87424.760000000024]
[null,"GUANAJUATO","LOGY890331RG1","LOGY890331MGTPZN04  ","YANNET LOPEZ GUZMAN                     ","11DPT0004N",null,null,null,"X",null,null,null,null,null,null,null,null,null,null,null,1,null,null,31376.049999999996]
[null,"GUANAJUATO","LURR5303156L3","LURR530315HGTNMY04  ","RAYMUNDO LUNA RAMIREZ                   ","11DPT0004N",null,null,null,"X",null,null,null,null,null,null,null,null,null,null,null,1,null,null,97424.43]
[null,"GUANAJUATO","MEGR631011V43","MEGR631011MGTNRS04  ","ROSA MENDEZ GARCIA                      ","11DPT0004N",null,null,null,"X",null,null,null,null,null,null,null,null,null,null,null,1,null,null,37075.71]
[null,"GUANAJUATO","MORM731010QZ9","MORM731010MVZLZR03  ","MIRSA MARICELA MOLGORA RAZO             ","11DPT0004N",null,null,null,null,null,null,null,null,null,null,null,null,"X",null,null,1,null,null,90482.46]
[null,"GUANAJUATO","OEVL650213T59","OEVL650213MGTRLR01  ","LAURA INES ORTEGA VALADEZ               ","11DPT0004N",null,null,null,"X",null,null,null,null,null,null,null,null,null,null,null,1,null,null,116830.55]
[null,"GUANAJUATO","PAGR7307144R1","PAGR730714MGTNMF00  ","MARIA DEL REFUGIO PANTOJA GOMEZ         ","11DPT0004N",null,null,null,"X",null,null,null,null,null,null,null,null,null,null,null,1,null,null,41757.03]
[null,"GUANAJUATO","SAGN550328R1A","SAGN550328HGTNMC00  ","NICOLAS SANTOYO GOMEZ                   ","11DPT0004N",null,null,null,"X",null,null,null,null,null,null,null,null,null,null,null,1,null,null,40280.46]
[null,"GUANAJUATO","SAHO620602LB0","SAHO620602HSRLRS06  ","OSMAN SALAZAR HERNANDEZ                 ","11DPT0004N",null,null,null,"X",null,null,null,null,null,null,null,null,null,null,null,1,null,null,27322.15]
[null,"GUANAJUATO","SOPA800206QN0","SOPA800206HMCRRB02  ","ABNER ISAI SORIA PEREZ                  ","11DPT0004N",null,null,null,"X",null,null,null,null,null,null,null,null,null,null,null,1,null,null,56856.100000000006]
[null,"GUANAJUATO","TAAS6205308FA","TAAS620530MJCPLR01  ","SARA TAPIA ALCANTARA                    ","11DPT0004N",null,null,null,"X",null,null,null,null,null,null,null,null,null,null,null,1,null,null,39899.840000000004]
[null,"GUANAJUATO","VASO730804UX2","VASO730804HGTRTC00  ","OCTAVIO VARGAS SOTO                     ","11DPT0004N",null,null,null,"X",null,null,null,null,null,null,null,null,null,null,null,1,null,null,92735.73]
[null,"GUANAJUATO","BAQL620315PN5","BAQL620315HGTRRS00  ","LUIS MANUEL BRAVO QUIROZ                ","11DPT0005M",null,null,null,"X",null,null,null,null,null,null,null,null,null,null,null,1,null,null,104131.90999999999]
[null,"GUANAJUATO","BASS600608U7A","BASS600608MGTRRL08  ","MARIA SOLEDAD ROS BRAVO SERRANO         ","11DPT0005M",null,null,null,"X",null,null,null,null,null,null,null,null,null,null,null,1,null,null,42450.97]
[null,"GUANAJUATO","CAGR660928KD7","CAGR660928MGTSNB07  ","RUBICELIA CASTRO GONZALEZ               ","11DPT0005M",null,null,null,"X",null,null,null,null,null,null,null,null,null,null,null,1,null,null,79090.3]
[null,"GUANAJUATO","CAML640420FH8","CAML640420HDFSRS06  ","JOSE LUIS CASILLAS MIRANDA              ","11DPT0005M",null,null,null,"X",null,null,null,null,null,null,null,null,null,null,null,1,null,null,39045.56]
[null,"GUANAJUATO","CANS730714K3A","CANS730714MGTSTR04  ","SARA CASTILLO NIETO                     ","11DPT0005M",null,null,null,"X",null,null,null,null,null,null,null,null,null,null,null,1,null,null,40415.629999999997]
[null,"GUANAJUATO","CARR771026IP3","CARR771026MGTRMS08","ROSANA CARRILLO RAMIREZ                 ","11DPT0005M",null,null,null,null,null,null,null,null,null,null,null,null,"X",null,null,1,null,null,39258.600000000006]
[null,"GUANAJUATO","COAD7908184B7","COAD790818MGTVRN00  ","DENY COVARRUBIAS ARREGUIN               ","11DPT0005M",null,null,null,"X",null,null,null,null,null,null,null,null,null,null,null,1,null,null,28126.21]
[null,"GUANAJUATO","FIGP640907QP7","FIGP640907HGTGRD01  ","PEDRO FIGUEROA GARCIA                   ","11DPT0005M",null,null,null,"X",null,null,null,null,null,null,null,null,null,null,null,1,null,null,41108.6]
[null,"GUANAJUATO","FIRG871015PB5","FIRG871015MGTGMB07  ","GABRIELA FIGUEROA RAMIREZ               ","11DPT0005M",null,null,null,"X",null,null,null,null,null,null,null,null,null,null,null,1,null,null,28936.21]
[null,"GUANAJUATO","GOAA770911HT1","GOAA770911MGTMLN09  ","ANA ROSA GOMEZ ALBA                     ","11DPT0005M",null,null,null,"X",null,null,null,null,null,null,null,null,null,null,null,1,null,null,54171.820000000007]
[null,"GUANAJUATO","GOLR590503HDA","GOLR590503HGTNDB04  ","ROBERTO GONZALEZ LEDESMA                ","11DPT0005M",null,null,null,"X",null,null,null,null,null,null,null,null,null,null,null,1,null,null,13086.2]
[null,"GUANAJUATO","GULH680121BP6","GULH680121HDFTPR01  ","HORACIO GUTIERREZ LOPEZ                 ","11DPT0005M",null,null,null,"X",null,null,null,null,null,null,null,null,null,null,null,1,null,null,29252.1]
[null,"GUANAJUATO","HECS621213HZ5","HECS621213HGTRLR02  ","SERGIO HERNANDEZ CALDERON               ","11DPT0005M",null,null,null,"X",null,null,null,null,null,null,null,null,null,null,null,1,null,null,48923.149999999994]
[null,"GUANAJUATO","JUMH681213NW0","JUMH681213HGTRGL00  ","JOSE HILARIO JUAREZ MAGAÐA              ","11DPT0005M",null,null,null,"X",null,null,null,null,null,null,null,null,null,null,null,1,null,null,103451.76000000001]
[null,"GUANAJUATO","LELE610112FLA","LELE610112MGTMRL09  ","ELSA GUADALUPE LEMUS LIRA               ","11DPT0005M",null,null,null,"X",null,null,null,null,null,null,null,null,null,null,null,1,null,null,92373.95]
[null,"GUANAJUATO","MEGG6410124T0","MEGG641012MGTDRL06  ","GLORIA MEDINA GARCIA                    ","11DPT0005M",null,null,null,"X",null,null,null,null,null,null,null,null,null,null,null,1,null,null,37737.269999999997]
[null,"GUANAJUATO","MEMM670521N64","MEMM670521MDFDJR03  ","MARTHA PATRICIA MEDEL MEJIA             ","11DPT0005M",null,null,null,"X",null,null,null,null,null,null,null,null,null,null,null,1,null,null,47624.509999999995]
[null,"GUANAJUATO","MORM6501066X7","MORM650106HGTRSL00  ","MELCHOR BENITO MORENO ROSALES           ","11DPT0005M",null,null,null,"X",null,null,null,null,null,null,null,null,null,null,null,1,null,null,102764.37000000001]
[null,"GUANAJUATO","MORM8011214B7","MORM801121HDFRMN03  ","MANUEL EFRAIN MORENO ROMERO             ","11DPT0005M",null,null,null,"X",null,null,null,null,null,null,null,null,null,null,null,1,null,null,27322.15]
[null,"GUANAJUATO","NIMA711025LJ1","NIMA711025MGTTRL07  ","ALICIA NIETO MARTINEZ                   ","11DPT0005M",null,null,null,"X",null,null,null,null,null,null,null,null,null,null,null,1,null,null,39094.21]
[null,"GUANAJUATO","NIMT691014GT1","NIMT691014MGTTRR05  ","TERESITA NIETO MARTINEZ                 ","11DPT0005M",null,null,null,"X",null,null,null,null,null,null,null,null,null,null,null,1,null,null,28126.21]
[null,"GUANAJUATO","OUGM7012272G3","OUGM701227MGTRRN03  ","MONICA ORDUNA GARCIA                    ","11DPT0005M",null,null,null,"X",null,null,null,null,null,null,null,null,null,null,null,1,null,null,29524.95]
[null,"GUANAJUATO","PACM840215MT1","PACM840215MGTLRR00  ","MAURA ANGELICA PALOMINO CARREÐO         ","11DPT0005M",null,null,null,"X",null,null,null,null,null,null,null,null,null,null,null,1,null,null,26227.599999999999]
[null,"GUANAJUATO","PAGM5802105H5","PAGM580210HNTLRT06  ","MATIAS PALOMARES GARCIA                 ","11DPT0005M",null,null,null,"X",null,null,null,null,null,null,null,null,null,null,null,1,null,null,30177.720000000005]
[null,"GUANAJUATO","PIAR680730PSA","PIAR680730MGTRGG01  ","MARIA REGINA PRIETO AGUILAR             ","11DPT0005M",null,null,null,"X",null,null,null,null,null,null,null,null,null,null,null,1,null,null,77421.8]
[null,"GUANAJUATO","RAFA620326696","RAFA620326HGTMNN00  ","JOSE ANTONIO RAMIREZ FUENTES            ","11DPT0005M",null,null,null,"X",null,null,null,null,null,null,null,null,null,null,null,1,null,null,110003.63999999998]
[null,"GUANAJUATO","RORF650224FV1","RORF650224HDFDDR03  ","FERNANDO RODRIGUEZ RODRIGUEZ            ","11DPT0005M",null,null,null,"X",null,null,null,null,null,null,null,null,null,null,null,1,null,null,30777.959999999995]
[null,"GUANAJUATO","SABM631225F45","SABM631225HGTVRR06  ","MARTIN SALVADOR SAAVEDRA BRAVO          ","11DPT0005M",null,null,null,"X",null,null,null,null,null,null,null,null,null,null,null,1,null,null,28900.739999999998]
[null,"GUANAJUATO","SATR640529JN3","SATR640529HGTLRB08  ","RUBEN SALAZAR TORRES                    ","11DPT0005M",null,null,null,"X",null,null,null,null,null,null,null,null,null,null,null,1,null,null,47883.7]
[null,"GUANAJUATO","SIFB790507EM8","SIFB790507HGTRRR00  ","BRAULIO ISAAC SIERRA FERREYRA           ","11DPT0005M",null,null,null,"X",null,null,null,null,null,null,null,null,null,null,null,1,null,null,76325.25]
[null,"GUANAJUATO","TOCB650526UK9","TOCB650526MGTRBR04  ","BERTHA TORRES COVARRUBIAS               ","11DPT0005M",null,null,null,null,null,null,null,null,null,null,null,null,"X",null,null,1,null,null,92369.4]
[null,"GUANAJUATO","VACY6607278R7","VACY660727MGTRSL08  ","YOLANDA VARGAS CASTILLO                 ","11DPT0005M",null,null,null,"X",null,null,null,null,null,null,null,null,null,null,null,1,null,null,79090.3]
[null,"GUANAJUATO","VAGC6606185V3","VAGC660618MGTRRN09  ","CANDELARIA VARGAS GARCIA                ","11DPT0005M",null,null,null,"X",null,null,null,null,null,null,null,null,null,null,null,1,null,null,28126.21]
[null,"GUANAJUATO","VALN7508285U9","VALN750828MGTZMR00  ","NORMA ADRIANA VAZQUEZ LOMELI            ","11DPT0005M",null,null,null,"X",null,null,null,null,null,null,null,null,null,null,null,1,null,null,41174.81]
[null,"GUANAJUATO","AALS670904235","AALS670904MGTNPL09  ","SILVIA ANAYA LOPEZ                      ","11DPT0006L",null,null,null,"X",null,null,null,null,null,null,null,null,null,null,null,1,null,null,70347.7]
[null,"GUANAJUATO","AARL760126331","AARL760126HGTLMN14  ","LEONARDO ISRAEL ALVAREZ ROMO            ","11DPT0006L",null,null,null,"X",null,null,null,null,null,null,null,null,null,null,null,1,null,null,35244.82]
[null,"GUANAJUATO","AERG571209NWA","AERG571209HGTRML09  ","GILBERTO ARREOLA ROMERO                 ","11DPT0006L",null,null,null,"X",null,null,null,null,null,null,null,null,null,null,null,1,null,null,33616.86]
[null,"GUANAJUATO","CIGP680809983","CIGP680809HGTDRB07  ","PABLO MARTIN CID GARCIA                 ","11DPT0006L",null,null,null,"X",null,null,null,null,null,null,null,null,null,null,null,1,null,null,97424.43]
[null,"GUANAJUATO","COMP630327QN2","COMP630327HGTNRB00  ","PABLO GERARDO CONTRERAS MARTINEZ        ","11DPT0006L",null,null,null,"X",null,null,null,null,null,null,null,null,null,null,null,1,null,null,110253.26999999997]
[null,"GUANAJUATO","EAMG8704104G8","EAMG870410MGTSRR00  ","GRECIA ROXANNA ESPARZA MARES            ","11DPT0006L",null,null,null,"X",null,null,null,null,null,null,null,null,null,null,null,1,null,null,29836.75]
[null,"GUANAJUATO","EIMJ880812BK0","EIMJ880812MGTLRH07  ","JHOANA IVON ELIZALDE MARTINEZ           ","11DPT0006L",null,null,null,"X",null,null,null,null,null,null,null,null,null,null,null,1,null,null,27528]
[null,"GUANAJUATO","GUFO930509HR3","GUFO930509MGTVRL06  ","OLIVIA GUEVARA FARFAN                   ","11DPT0006L",null,null,null,"X",null,null,null,null,null,null,null,null,null,null,null,1,null,null,27322.15]
[null,"GUANAJUATO","HEGN8708165Y4","HEGN870816MGTRRY05  ","NAYELI HERREJON GUERRERO                ","11DPT0006L",null,null,null,"X",null,null,null,null,null,null,null,null,null,null,null,1,null,null,28005.4]
[null,"GUANAJUATO","JALS470121DUA","JALS470121HMNMPR04  ","SERGIO JAIMES LOPEZ                     ","11DPT0006L",null,null,null,null,null,null,null,null,null,null,null,null,"X",null,null,1,null,null,92369.4]
[null,"GUANAJUATO","JUPA730712HA3","JUPA730712MGTRRN04  ","ANA LAURA JUAREZ PEREZ                  ","11DPT0006L",null,null,null,"X",null,null,null,null,null,null,null,null,null,null,null,1,null,null,42511.380000000005]
[null,"GUANAJUATO","LOAP6711257L7","LOAP671125HGTPGB09  ","JOSE PABLO LOPEZ AGUIRRE                ","11DPT0006L",null,null,null,"X",null,null,null,null,null,null,null,null,null,null,null,1,null,null,33203.500000000007]
[null,"GUANAJUATO","MAFJ5906036T8","MAFJ590603HGTRRN00  ","JUAN MANUEL MARTINEZ FRIAS              ","11DPT0006L",null,null,null,"X",null,null,null,null,null,null,null,null,null,null,null,1,null,null,40897.279999999999]
[null,"GUANAJUATO","MAZR720405LB8","MAZR720405HMNRTC01  ","RICARDO MARTINEZ ZETINA                 ","11DPT0006L",null,null,null,"X",null,null,null,null,null,null,null,null,null,null,null,1,null,null,54654.720000000008]
[null,"GUANAJUATO","MOSJ790615LD6","MOSJ790615HGTLNN00  ","JUAN MOLINA SANCHEZ                     ","11DPT0006L",null,null,null,"X",null,null,null,null,null,null,null,null,null,null,null,1,null,null,31601.239999999998]
[null,"GUANAJUATO","MOSP780508DF7","MOSP780508HGTLND02  ","PEDRO MOLINA SANCHEZ                    ","11DPT0006L",null,null,null,"X",null,null,null,null,null,null,null,null,null,null,null,1,null,null,37420.839999999997]
[null,"GUANAJUATO","NAVS621206356","NAVS621206MGTVLN00  ","SANDRA JUANA NAVA VELAZQUEZ             ","11DPT0006L",null,null,null,"X",null,null,null,null,null,null,null,null,null,null,null,1,null,null,72290.5]
[null,"GUANAJUATO","PAHM630123LJ6","PAHM630123HGTNRN05  ","MANUEL PANTOJA HERRERA                  ","11DPT0006L",null,null,null,"X",null,null,null,null,null,null,null,null,null,null,null,1,null,null,110253.26999999997]
[null,"GUANAJUATO","QUDW870430HH4","QUDW870430MGTNMN07  ","WENDY YAZMIN QUINTANA DOMINGUEZ         ","11DPT0006L",null,null,null,"X",null,null,null,null,null,null,null,null,null,null,null,1,null,null,37052.25]
[null,"GUANAJUATO","SAMG651113CLA","SAMG651113MGTVDD08  ","MARIA GUADALUPE SAAVEDRA MEDRANO        ","11DPT0006L",null,null,null,"X",null,null,null,null,null,null,null,null,null,null,null,1,null,null,39135.730000000003]
[null,"GUANAJUATO","SIRO600318LE2","SIRO600318HGTRDC04  ","JOSE OCTAVIO SIERRA RODRIGUEZ           ","11DPT0006L",null,null,null,"X",null,null,null,null,null,null,null,null,null,null,null,1,null,null,69442]
[null,"GUANAJUATO","TOMP701231IUA","TOMP701231MGTRJT08  ","PATRICIA TORRES MEJIA                   ","11DPT0006L",null,null,null,"X",null,null,null,null,null,null,null,null,null,null,null,1,null,null,39900.450000000004]
[null,"GUANAJUATO","YEGL891123ML2","YEGL891123MGTPRR08  ","LAURA VERONICA YEPEZ GARCIA             ","11DPT0006L",null,null,null,"X",null,null,null,null,null,null,null,null,null,null,null,1,null,null,27916.92]
[null,"GUANAJUATO","AOLJ820429DY4","AOLJ820429HGTCPL06  ","JOEL ADOLFO ACOSTA LOPEZ                ","11DPT0007K",null,null,null,"X",null,null,null,null,null,null,null,null,null,null,null,1,null,null,26944.15]
[null,"GUANAJUATO","BAPA711019KLA","BAPA711019MGTRRN03  ","ANA LOURDES BARAJAS PEREZ               ","11DPT0007K",null,null,null,"X",null,null,null,null,null,null,null,null,null,null,null,1,null,null,70709.040000000008]
[null,"GUANAJUATO","CACL650308V86","CACL650308MGTMLZ03  ","MA. DE LA LUZ CAMARILLO COLLAZO         ","11DPT0007K",null,null,null,"X",null,null,null,null,null,null,null,null,null,null,null,1,null,null,111649.76000000001]
[null,"GUANAJUATO","CADG5812029W6","CADG581202MGTHLR09  ","GRACIELA CHAVEZ DELGADO                 ","11DPT0007K",null,null,null,"X",null,null,null,null,null,null,null,null,null,null,null,1,null,null,44989.75]
[null,"GUANAJUATO","CAPE530526869","CAPE530526MGTRRL07  "," M.ELENA CARDIEL PEREZ                  ","11DPT0007K",null,null,null,"X",null,null,null,null,null,null,null,null,null,null,null,1,null,null,74299]
[null,"GUANAJUATO","CAUF560705QGA","CAUF560705HGTHRL05  ","FILOMENO CHAGOYA URRUTIA                ","11DPT0007K",null,null,null,"X",null,null,null,null,null,null,null,null,null,null,null,1,null,null,36331.629999999997]
[null,"GUANAJUATO","CEVB731120C46","CEVB731120HGTDRR00  ","BERNARDO CEDILLO VERA                   ","11DPT0007K",null,null,null,"X",null,null,null,null,null,null,null,null,null,null,null,1,null,null,18662.28]
[null,"GUANAJUATO","GARJ840526678","GARJ840526HGTRMV04  ","JAVIER ARTURO GARCIA ROMERO             ","11DPT0007K",null,null,null,"X",null,null,null,null,null,null,null,null,null,null,null,1,null,null,32989.420000000006]
[null,"GUANAJUATO","GARL720427FX0","GARL720427MGTRMZ12  ","LUZ MA GARCIA ROMERO                    ","11DPT0007K",null,null,null,"X",null,null,null,null,null,null,null,null,null,null,null,1,null,null,40443.299999999996]
[null,"GUANAJUATO","GOGL6009014D1","GOGL600901MGTNLN08  ","LINA ENGRACIA GONZALEZ GALLARDO         ","11DPT0007K",null,null,null,"X",null,null,null,null,null,null,null,null,null,null,null,1,null,null,45293.37]
[null,"GUANAJUATO","GUGE730901EC4","GUGE730901MGTTNS07  ","ESPERANZA GUTIERREZ GONZALEZ            ","11DPT0007K",null,null,null,"X",null,null,null,null,null,null,null,null,null,null,null,1,null,null,41991.28]
[null,"GUANAJUATO","GUGM650603GP3","GUGM650603MJCTZR08  ","MA. MARTINA GUTIERREZ GUZMAN            ","11DPT0007K",null,null,null,"X",null,null,null,null,null,null,null,null,null,null,null,1,null,null,114746.67000000001]
[null,"GUANAJUATO","HEBL680226MH6","HEBL680226HDFRNS05  ","LUIS FELIPE HERRERA BUENDIA             ","11DPT0007K",null,null,null,"X",null,null,null,null,null,null,null,null,null,null,null,1,null,null,35427.14]
[null,"GUANAJUATO","HELU501011H62","HEXL501011HGTRXZ04  ","DE LA LUZ HERNANDEZ JOSE                ","11DPT0007K",null,null,null,"X",null,null,null,null,null,null,null,null,null,null,null,1,null,null,34393.82]
[null,"GUANAJUATO","IAVC761114FE1","IAVC761114MNTBLL00  ","CLAUDIA ELIZABET IBARRA VILLANUEVA      ","11DPT0007K",null,null,null,"X",null,null,null,null,null,null,null,null,null,null,null,1,null,null,95630]
[null,"GUANAJUATO","JAMC821119QK9","JAMC821119MGTMSL07  ","CLAUDIA MARCELA JAIME MOSQUEDA          ","11DPT0007K",null,null,null,"X",null,null,null,null,null,null,null,null,null,null,null,1,null,null,31129.500000000007]
[null,"GUANAJUATO","LOMA701120ND4","LOXM701120HGTPXR04  ","MARTIN EDUARDO LOPEZ                    ","11DPT0007K",null,null,null,"X",null,null,null,null,null,null,null,null,null,null,null,1,null,null,95470.83]
[null,"GUANAJUATO","MAGF780719PC1","MAGF780719MGTRNT03  ","FATIMA MARTINEZ GONZALEZ                ","11DPT0007K",null,null,null,"X",null,null,null,null,null,null,null,null,null,null,null,1,null,null,27748.21]
[null,"GUANAJUATO","MORA580316U78","MORA580316HGTJML06  ","ALEJANDRO MOJICA RAMIREZ                ","11DPT0007K",null,null,null,"X",null,null,null,null,null,null,null,null,null,null,null,1,null,null,43267.590000000004]
[null,"GUANAJUATO","MUPT600105IQ9","MUPT600105MGTRRR07  ","MA TRINIDAD MURILLO PEREZ               ","11DPT0007K",null,null,null,"X",null,null,null,null,null,null,null,null,null,null,null,1,null,null,35698.239999999991]
[null,"GUANAJUATO","NIRG591215T84","NIRG591215MGTTVR06  ","GEORGINA DE LOURD NIETO RIVERA          ","11DPT0007K",null,null,null,null,null,null,null,null,null,null,null,null,"X",null,null,1,null,null,92369.4]
[null,"GUANAJUATO","OILH810313JS5","OILH810313HGTVGC18","HECTOR GERARDO OVIEDO LUGO              ","11DPT0007K",null,null,null,"X",null,null,null,null,null,null,null,null,null,null,null,1,null,null,17422.62]
[null,"GUANAJUATO","OILP6802156K9","OILP680215MDFVGL09  ","MARIA DEL PILAR OVIEDO LUGO             ","11DPT0007K",null,null,null,"X",null,null,null,null,null,null,null,null,null,null,null,1,null,null,37762.899999999994]
[null,"GUANAJUATO","PAZR620620HP0","PAZR620620MGTCPQ07  ","RAQUEL PACHECO ZAPIEN                   ","11DPT0007K",null,null,null,"X",null,null,null,null,null,null,null,null,null,null,null,1,null,null,78034.430000000008]
[null,"GUANAJUATO","POMR6708302N1","POMR670830MGTRNS05  ","ROSA MARIA PORRAS MANRIQUE              ","11DPT0007K",null,null,null,"X",null,null,null,null,null,null,null,null,null,null,null,1,null,null,74233.3]
[null,"GUANAJUATO","RAAE850827HM7","RAAE850827MGTMNL05  ","ELVIA RAMIREZ ANDRADE                   ","11DPT0007K",null,null,null,"X",null,null,null,null,null,null,null,null,null,null,null,1,null,null,9980.43]
[null,"GUANAJUATO","RAHJ6410105C3","RAHJ641010MGTMRS04  ","MA. DE JESUS RAMIREZ HORTA              ","11DPT0007K",null,null,null,"X",null,null,null,null,null,null,null,null,null,null,null,1,null,null,108654.19999999998]
[null,"GUANAJUATO","RARP630605NP2","RARP630605HJCMMD06  ","PEDRO RAMIREZ RAMIREZ                   ","11DPT0007K",null,null,null,"X",null,null,null,null,null,null,null,null,null,null,null,1,null,null,36577.5]
[null,"GUANAJUATO","RIOS5803272M4","RIOS580327MZSVLC03  ","MA. DEL SOCORRO RIVERA OLVERA           ","11DPT0007K",null,null,null,"X",null,null,null,null,null,null,null,null,null,null,null,1,null,null,71260.44]
[null,"GUANAJUATO","ROGF800428M80","ROGF800428HGTDZD06","FIDEL RODRIGUEZ GUZMAN                  ","11DPT0007K",null,null,null,"X",null,null,null,null,null,null,null,null,null,null,null,1,null,null,37005.600000000006]
[null,"GUANAJUATO","ROGJ720412CD2","ROGJ720412HGTCNL01  ","JULIO BERNARDO ROCHA GONZALEZ           ","11DPT0007K",null,null,null,"X",null,null,null,null,null,null,null,null,null,null,null,1,null,null,41586.699999999997]
[null,"GUANAJUATO","ROGL591003DS4","ROGL591003MGTMNN05  ","MA.LINA TERESA ROMERO GONZALEZ          ","11DPT0007K",null,null,null,"X",null,null,null,null,null,null,null,null,null,null,null,1,null,null,35051.440000000002]
[null,"GUANAJUATO","ROMI501119KW9","ROMI501119HGTCZS14  ","J. ISABEL ROCHA MEZA                    ","11DPT0007K",null,null,null,"X",null,null,null,null,null,null,null,null,null,null,null,1,null,null,34985.83]
[null,"GUANAJUATO","SACA791207U75","SACA791207MGTLSL02  ","MARIA ALEJANDRA SALAZAR CASTANEDA       ","11DPT0007K",null,null,null,null,null,null,null,null,null,null,null,null,"X",null,null,1,null,null,78517.2]
[null,"GUANAJUATO","SAGG7304218VA","SAGG730421MGTNLL02  ","GLORIA SANCHEZ GALVAN                   ","11DPT0007K",null,null,null,"X",null,null,null,null,null,null,null,null,null,null,null,1,null,null,39159.43]
[null,"GUANAJUATO","SETV690706LG3","SETV690706MDFRRR05  ","VERONICA SERRANO TORRES                 ","11DPT0007K",null,null,null,"X",null,null,null,null,null,null,null,null,null,null,null,1,null,null,68419.199999999997]
[null,"GUANAJUATO","AALR590709UH6","AALR590709MGTNPC06  ","MARIA ROCIO ANAYA LOPEZ                 ","11DPT0008J",null,null,null,"X",null,null,null,null,null,null,null,null,null,null,null,1,null,null,40419.589999999997]
[null,"GUANAJUATO","AEAC630530Q21","AEAC630530MGTLLN08  ","MA. CONCEPCION ALEJOS ALONSO            ","11DPT0008J",null,null,null,"X",null,null,null,null,null,null,null,null,null,null,null,1,null,null,73261.900000000009]
[null,"GUANAJUATO","BAJR800429CA7","BAJR800429MGTLRC00  ","ROCIO BALDERAS JUAREZ                   ","11DPT0008J",null,null,null,"X",null,null,null,null,null,null,null,null,null,null,null,1,null,null,45465.75]
[null,"GUANAJUATO","BARJ8305267S1","BARJ830526HGTRYN02  ","JUAN ANGEL BRAVO REYES                  ","11DPT0008J",null,null,null,"X",null,null,null,null,null,null,null,null,null,null,null,1,null,null,76144.36]
[null,"GUANAJUATO","CAAO740517PC6","CAAO740517HGTMRC05  ","OCTAVIANO CAMPOS ARRIAGA                ","11DPT0008J",null,null,null,"X",null,null,null,null,null,null,null,null,null,null,null,1,null,null,72092.55]
[null,"GUANAJUATO","COVA700831PW6","COVA700831MGRNRM03  ","AMADA CONDE VERA                        ","11DPT0008J",null,null,null,"X",null,null,null,null,null,null,null,null,null,null,null,1,null,null,42539.14]
[null,"GUANAJUATO","COVF720114623","COVF720114HGTNRR02  ","FRANCISCO JAVIER CONDE VERA             ","11DPT0008J",null,null,null,"X",null,null,null,null,null,null,null,null,null,null,null,1,null,null,27322.15]
[null,"GUANAJUATO","EICT8203073V8","EICT820307HGTSRM05  ","TOMAS ROGELIO ESPINOZA CERVANTES        ","11DPT0008J",null,null,null,"X",null,null,null,null,null,null,null,null,null,null,null,1,null,null,32231.1]
[null,"GUANAJUATO","FOJU6701074Z1","FOXJ670107HGTLXN09  ","JUAN ANTONIO FLORES                     ","11DPT0008J",null,null,null,"X",null,null,null,null,null,null,null,null,null,null,null,1,null,null,67499.259999999995]
[null,"GUANAJUATO","GAFV6609298F9","GAFV660929MGTRRR06  ","VERONICA ROCIO GRANADOS FRIAS           ","11DPT0008J",null,null,null,"X",null,null,null,null,null,null,null,null,null,null,null,1,null,null,41440.28]
[null,"GUANAJUATO","GOCH8410237R3","GOCH841023HGTNBC04  ","HECTOR HUGO GONZALEZ CABRERA            ","11DPT0008J",null,null,null,"X",null,null,null,null,null,null,null,null,null,null,null,1,null,null,26944.15]
[null,"GUANAJUATO","GUTR690427DSA","GUTR690427MDFPRC02  ","ROCIO GUAPO TORRECILLAS                 ","11DPT0008J",null,null,null,"X",null,null,null,null,null,null,null,null,null,null,null,1,null,null,41443.969999999994]
[null,"GUANAJUATO","JACF700609GI1","JACF700609HGTRML07  ","FELIPE JARAMILLO CAMPOS                 ","11DPT0008J",null,null,null,"X",null,null,null,null,null,null,null,null,null,null,null,1,null,null,29930.190000000006]
[null,"GUANAJUATO","LAVA8108019Q9","LAVA810801MGTGRN09  ","MARIA DE LOS ANG LAGUNA VARGAS          ","11DPT0008J",null,null,null,"X",null,null,null,null,null,null,null,null,null,null,null,1,null,null,98784.37999999999]
[null,"GUANAJUATO","LAVD841123J58","LAVD841123HGTGRN02  ","DANIEL LAGUNA VARGAS                    ","11DPT0008J",null,null,null,"X",null,null,null,null,null,null,null,null,null,null,null,1,null,null,27322.15]
[null,"GUANAJUATO","MELJ7904219Z8","MELJ790421HGTLDN03  ","JUAN MAURICIO MELGOZA LEDESMA           ","11DPT0008J",null,null,null,"X",null,null,null,null,null,null,null,null,null,null,null,1,null,null,32705.74]
[null,"GUANAJUATO","MOFD480314HT2","MOFD480314HGTRLL00  ","JOSE DOLORES MORALES FLORES             ","11DPT0008J",null,null,null,"X",null,null,null,null,null,null,null,null,null,null,null,1,null,null,38106.51]
[null,"GUANAJUATO","NUCS580811UI9","NUCS580811MGTXRS04  ","SUSANA NUÐEZ CERRITOS                   ","11DPT0008J",null,null,null,"X",null,null,null,null,null,null,null,null,null,null,null,1,null,null,41102.22]
[null,"GUANAJUATO","OETL661122IZ6","OETL661122MGTRRZ06  ","LUZ CECILIA ORTEGA TORRES               ","11DPT0008J",null,null,null,"X",null,null,null,null,null,null,null,null,null,null,null,1,null,null,40085.670000000006]
[null,"GUANAJUATO","PACM941015U40","PACM941015MGTLRR06  ","MARIANA PALOMINO CARRE±O                ","11DPT0008J",null,null,null,"X",null,null,null,null,null,null,null,null,null,null,null,1,null,null,27378.32]
[null,"GUANAJUATO","PAJJ830708SK1","PAJJ830708HQTTMR06  ","JORGE ADALBERTO PATINO JIMENEZ          ","11DPT0008J",null,null,null,"X",null,null,null,null,null,null,null,null,null,null,null,1,null,null,32578.379999999997]
[null,"GUANAJUATO","RABF730512PD1","RABF730512HGTMLD04  ","JOSE FIDEL RAMIREZ BELMAN               ","11DPT0008J",null,null,null,"X",null,null,null,null,null,null,null,null,null,null,null,1,null,null,26172.400000000001]
[null,"GUANAJUATO","RACA8011159T0","RACA801115MGTMRD05  ","ADELA RAMIREZ CERRITOS                  ","11DPT0008J",null,null,null,"X",null,null,null,null,null,null,null,null,null,null,null,1,null,null,32741.91]
[null,"GUANAJUATO","RAFG691106392","RAFG691106HGTMRR04  ","GERARDO RAMIREZ FERNANDEZ               ","11DPT0008J",null,null,null,null,null,null,null,null,null,null,null,null,"X",null,null,1,null,null,90482.46]
[null,"GUANAJUATO","RASE540830U28","RASE540830HGTYLL02  ","ELEAZAR RAYAS SILVA                     ","11DPT0008J",null,null,null,"X",null,null,null,null,null,null,null,null,null,null,null,1,null,null,44643.39]
[null,"GUANAJUATO","RASJ781020U88","RASJ781020MGTZSS02","JOSEFINA RAZO SOSA                      ","11DPT0008J",null,null,null,"X",null,null,null,null,null,null,null,null,null,null,null,1,null,null,34209.600000000006]
[null,"GUANAJUATO","ROCS8704055G4","ROCS870405MMCDSL06  ","MARIA DEL SOL RODRIGUEZ CASTRO          ","11DPT0008J",null,null,null,"X",null,null,null,null,null,null,null,null,null,null,null,1,null,null,54981.820000000007]
[null,"GUANAJUATO","ROGJ7905253Y5","ROGJ790525HPLJDN05  ","JOSE JUAN ROJAS GODOY                   ","11DPT0008J",null,null,null,"X",null,null,null,null,null,null,null,null,null,null,null,1,null,null,95080.11]
[null,"GUANAJUATO","ROHH851230UU9","ROHH851230HGTJRR04  ","HERNAN ROJAS HERNANDEZ                  ","11DPT0008J",null,null,null,"X",null,null,null,null,null,null,null,null,null,null,null,1,null,null,27097.010000000002]
[null,"GUANAJUATO","ROVA500401GUA","ROVA500401HGTJLR05  ","ARTURO ROJAS VALENCIA                   ","11DPT0008J",null,null,null,"X",null,null,null,null,null,null,null,null,null,null,null,1,null,null,37106.400000000001]
[null,"GUANAJUATO","ROZA560516SE3","ROZA560516HGTJPB08  ","ABEL ROJAS ZAPATERO                     ","11DPT0008J",null,null,null,"X",null,null,null,null,null,null,null,null,null,null,null,1,null,null,46563.149999999994]
[null,"GUANAJUATO","SABA620417HF9","SABA620417HVZNTN05  ","ANICETO SANTIAGO BAUTISTA               ","11DPT0008J",null,null,null,"X",null,null,null,null,null,null,null,null,null,null,null,1,null,null,110253.26999999997]
[null,"GUANAJUATO","SALS651213I40","SALS651213MGTNNN03  ","SANJUANA SANCHEZ LUNA                   ","11DPT0008J",null,null,null,"X",null,null,null,null,null,null,null,null,null,null,null,1,null,null,44819.61]
[null,"GUANAJUATO","VIVM841025NR4","VIVM841025MGTLRL07  ","MELINA VILLARREAL VARGAS                ","11DPT0008J",null,null,null,"X",null,null,null,null,null,null,null,null,null,null,null,1,null,null,75873.01999999999]
[null,"GUANAJUATO","AABC720527RL6","AABC720527HGTLRR03  ","CARLOS ALVARADO BARRIOS                 ","11DPT0009I",null,null,null,"X",null,null,null,null,null,null,null,null,null,null,null,1,null,null,34671.240000000005]
[null,"GUANAJUATO","CELM960313G89","CELM960313MGTRPY09  ","MAYRA FRANCISCA CERVANTES LOPEZ         ","11DPT0009I",null,null,null,"X",null,null,null,null,null,null,null,null,null,null,null,1,null,null,28333.07]
[null,"GUANAJUATO","COCM710215JF9","COCM710215HMNBMR04  ","MARIO COBIAN CAMACHO                    ","11DPT0009I",null,null,null,"X",null,null,null,null,null,null,null,null,null,null,null,1,null,null,98604.43]
[null,"GUANAJUATO","EICA641219IS3","EICA641219MGTLRL01  ","ALTAGRACIA ELIZARRARAS CERVANTES        ","11DPT0009I",null,null,null,"X",null,null,null,null,null,null,null,null,null,null,null,1,null,null,45330.03]
[null,"GUANAJUATO","EIMJ620524ID9","EIMJ620524HGTLRS02  ","JOSE ELIAS MORENO                       ","11DPT0009I",null,null,null,"X",null,null,null,null,null,null,null,null,null,null,null,1,null,null,113997.75000000001]
[null,"GUANAJUATO","EITG6112096F3","EITG611209MDFSBD05  ","MARIA GUADALUPE ESPINOSA TABLEROS       ","11DPT0009I",null,null,null,"X",null,null,null,null,null,null,null,null,null,null,null,1,null,null,71319.100000000006]
[null,"GUANAJUATO","EIVC851005GF2","EIVC851005HGTLRR07  ","CARLOS ELIZARRARAS VARGAS               ","11DPT0009I",null,null,null,"X",null,null,null,null,null,null,null,null,null,null,null,1,null,null,26944.15]
[null,"GUANAJUATO","GARG5704245R5","GARG570424HGTRZB08  ","GABRIEL GARCIA RAZO                     ","11DPT0009I",null,null,null,"X",null,null,null,null,null,null,null,null,null,null,null,1,null,null,40205.040000000001]
[null,"GUANAJUATO","GUZA720514FG4","GUZA720514MDFTVL06  ","ALEJANDRA GUTIERREZ ZAVALA              ","11DPT0009I",null,null,null,"X",null,null,null,null,null,null,null,null,null,null,null,1,null,null,41791.54]
[null,"GUANAJUATO","LILB720207HV3","LILB720207MGTNML02  ","BLANCA ESTELA LINARES LOMELI            ","11DPT0009I",null,null,null,"X",null,null,null,null,null,null,null,null,null,null,null,1,null,null,44366.13]
[null,"GUANAJUATO","LOLA590613UN8","LOLA590613HGTPPN00  ","ANTONIO LOPEZ LOPEZ                     ","11DPT0009I",null,null,null,"X",null,null,null,null,null,null,null,null,null,null,null,1,null,null,113248.83000000002]
[null,"GUANAJUATO","MARM6405079G7","MARM640507HGTGVR02  ","MARTIN MAGAÐA RIVERA                    ","11DPT0009I",null,null,null,"X",null,null,null,null,null,null,null,null,null,null,null,1,null,null,96252.27]
[null,"GUANAJUATO","MATF6010095M3","MATF601009HGTGFR00  ","FRANCISCO MAGAÐA TAFOYA                 ","11DPT0009I",null,null,null,"X",null,null,null,null,null,null,null,null,null,null,null,1,null,null,42975.439999999995]
[null,"GUANAJUATO","MATM660127FH7","MATM660127MGTGFN01  ","MONICA MAGAÐA TAFOYA                    ","11DPT0009I",null,null,null,"X",null,null,null,null,null,null,null,null,null,null,null,1,null,null,22276.560000000005]
[null,"GUANAJUATO","MAZC650708TU1","MAZC650708MGTQRR01  ","MARIA CARMEN MAQUEDA ZARATE             ","11DPT0009I",null,null,null,"X",null,null,null,null,null,null,null,null,null,null,null,1,null,null,37765.19]
[null,"GUANAJUATO","MAZC781203DS0","MAZC781203HGTQRR06  ","CARLOS MAQUEDA ZARATE                   ","11DPT0009I",null,null,null,"X",null,null,null,null,null,null,null,null,null,null,null,1,null,null,26719.010000000002]
[null,"GUANAJUATO","MEGM680209QU7","MEGM680209MGTDZR08  ","MARTHA SUSANA MEDEL GUZMAN              ","11DPT0009I",null,null,null,"X",null,null,null,null,null,null,null,null,null,null,null,1,null,null,27523.07]
[null,"GUANAJUATO","MERA680725T53","MERA680725MGTJML04  ","ALMA DELIA MEJIA RAMOS                  ","11DPT0009I",null,null,null,"X",null,null,null,null,null,null,null,null,null,null,null,1,null,null,40645.51]
[null,"GUANAJUATO","RELR6206286CA","RELR620628HGTYPG09  ","ROGELIO REYES LOPEZ                     ","11DPT0009I",null,null,null,"X",null,null,null,null,null,null,null,null,null,null,null,1,null,null,47490.39]
[null,"GUANAJUATO","ROPJ630922717","ROPJ630922MGTDRS08  ","JOSEFINA RODRIGUEZ PEREZ                ","11DPT0009I",null,null,null,"X",null,null,null,null,null,null,null,null,null,null,null,1,null,null,39488.819999999992]
[null,"GUANAJUATO","SAAA790117M77","SAAA790117HGTNRL19  ","JOSE ALFREDO SANCHEZ ARREDONDO          ","11DPT0009I",null,null,null,"X",null,null,null,null,null,null,null,null,null,null,null,1,null,null,84530.49000000002]
[null,"GUANAJUATO","SARO9410041H4","SARO941004HGNXL07   ","OLDAIR FERNANDO SANTILLAN REA           ","11DPT0009I",null,null,null,"X",null,null,null,null,null,null,null,null,null,null,null,1,null,null,26944.15]
[null,"GUANAJUATO","SOMJ580901N40","SOMJ580901HMNLRS02  ","JESUS SOLIS MARIN                       ","11DPT0009I",null,null,null,"X",null,null,null,null,null,null,null,null,null,null,null,1,null,null,40205.040000000001]
[null,"GUANAJUATO","VACM560124H46","VACM560124HGTZRR03  ","MAURILIO VAZQUEZ CERVANTES              ","11DPT0009I",null,null,null,"X",null,null,null,null,null,null,null,null,null,null,null,1,null,null,40053.75]
[null,"GUANAJUATO","ZUGJ521022BB6","ZUGJ521022HGTXRV02  ","JAVIER ZUÐIGA GARCIA                    ","11DPT0009I",null,null,null,null,null,null,null,null,null,null,null,null,"X",null,null,1,null,null,92369.4]
[null,"GUANAJUATO","BAUM780104T8A","BAUM780104MGTRRC01  ","MICAELA BARCENAS URBINA                 ","11DPT0010Y",null,null,null,"X",null,null,null,null,null,null,null,null,null,null,null,1,null,null,29218.53]
[null,"GUANAJUATO","CORJ890525619","CORJ890525HGTRMR07  ","JORGE ARMANDO CORONA RAMIREZ            ","11DPT0010Y",null,null,null,"X",null,null,null,null,null,null,null,null,null,null,null,1,null,null,30453.09]
[null,"GUANAJUATO","CUTR610723JC8","CUTR610723MGTLTS06  ","ROSA MARIA CUELLAR TETUAN               ","11DPT0010Y",null,null,null,"X",null,null,null,null,null,null,null,null,null,null,null,1,null,null,93721.500000000015]
[null,"GUANAJUATO","CUVL741004T6A","CUVL741004MGTRRR08  ","LAURA CRUZ VARGAS                       ","11DPT0010Y",null,null,null,"X",null,null,null,null,null,null,null,null,null,null,null,1,null,null,93496.660000000018]
[null,"GUANAJUATO","DUFC8505038R7","DUFC850503MGTRLR04  ","MARIA CRUZ DURAN FLORES                 ","11DPT0010Y",null,null,null,"X",null,null,null,null,null,null,null,null,null,null,null,1,null,null,35977.869999999995]
[null,"GUANAJUATO","EISB881118DD0","EISB881118MGTSPT05  ","BETSAIDA MAGDALE ESPINOZA SEPULVEDA     ","11DPT0010Y",null,null,null,"X",null,null,null,null,null,null,null,null,null,null,null,1,null,null,28396.07]
[null,"GUANAJUATO","FOCJ7406233X9","FOCJ740623MGTLLS01  ","JOSEFINA FLORES CALVA                   ","11DPT0010Y",null,null,null,"X",null,null,null,null,null,null,null,null,null,null,null,1,null,null,47223.329999999994]
[null,"GUANAJUATO","GOGD870617R99","GOGD870617HNLMRN00  ","JOSE DANIEL GOMEZ GARZA                 ","11DPT0010Y",null,null,null,"X",null,null,null,null,null,null,null,null,null,null,null,1,null,null,75514.86]
[null,"GUANAJUATO","GUMB860612B77","GUMB860612MGTTRL01  ","BLANCA EDITH GUTIERREZ MORENO           ","11DPT0010Y",null,null,null,"X",null,null,null,null,null,null,null,null,null,null,null,1,null,null,54852.979999999996]
[null,"GUANAJUATO","GUPD810705I4A","GUPD810705HQTRDM04  ","DOMINGO DANIEL GUERRERO PADILLA         ","11DPT0010Y",null,null,null,null,null,null,null,null,null,null,null,null,"X",null,null,1,null,null,90482.46]
[null,"GUANAJUATO","HECL500618L95","HECL500618HGTRRS04  ","JOSE LUIS HERNANDEZ CORTES              ","11DPT0010Y",null,null,null,"X",null,null,null,null,null,null,null,null,null,null,null,1,null,null,38684.630000000005]
[null,"GUANAJUATO","HEHA830216PP3","HEHA830216MGTRRL04  ","ALMA DELIA HERNANDEZ HERNANDEZ          ","11DPT0010Y",null,null,null,"X",null,null,null,null,null,null,null,null,null,null,null,1,null,null,27748.21]
[null,"GUANAJUATO","HELB7109192T6","HELB710919MGTRNT04  ","BEATRIZ HERNANDEZ LONA                  ","11DPT0010Y",null,null,null,"X",null,null,null,null,null,null,null,null,null,null,null,1,null,null,55523.069999999992]
[null,"GUANAJUATO","HEVL6006012YA","HEVL600601HGTRLZ00  ","J LUZ HERNANDEZ VELAZQUEZ               ","11DPT0010Y",null,null,null,"X",null,null,null,null,null,null,null,null,null,null,null,1,null,null,36061.159999999989]
[null,"GUANAJUATO","HIMK800908LB0","HIMK800908HGTNNR04  ","KRISTIAN LUIS HINOJOSA MONROY           ","11DPT0010Y",null,null,null,"X",null,null,null,null,null,null,null,null,null,null,null,1,null,null,31322.289999999997]
[null,"GUANAJUATO","IAGY780906K26","IAGY780906MGTBMD00  ","YADIRA ADRIANA IBARRA GOMEZ             ","11DPT0010Y",null,null,null,"X",null,null,null,null,null,null,null,null,null,null,null,1,null,null,15434.25]
[null,"GUANAJUATO","LOZE620109TAO","LOZE620109MGTPMV07  ","MA.EVERILDA LOPEZ ZAMORA                ","11DPT0010Y",null,null,null,"X",null,null,null,null,null,null,null,null,null,null,null,1,null,null,37921.490000000005]
[null,"GUANAJUATO","MADB860405V48","MADB860405MGTLZL02  ","MARIA BLANCA MALAGON DIAZ               ","11DPT0010Y",null,null,null,"X",null,null,null,null,null,null,null,null,null,null,null,1,null,null,43083.710000000006]
[null,"GUANAJUATO","MAVR700118TS6","MAVR700118HGTRRB08  ","RUBEN MARTINEZ VARELA                   ","11DPT0010Y",null,null,null,"X",null,null,null,null,null,null,null,null,null,null,null,1,null,null,107257.71]
[null,"GUANAJUATO","OAGS860412RP6","OAGS860412MGTRTR05  ","SARA DEL ROSARIO ORRANTI GUTIERREZ      ","11DPT0010Y",null,null,null,"X",null,null,null,null,null,null,null,null,null,null,null,1,null,null,29836.749999999996]
[null,"GUANAJUATO","PELL790204HW5","PELL790204MNTRRC05  ","LUCIA PEREZ LARA                        ","11DPT0010Y",null,null,null,"X",null,null,null,null,null,null,null,null,null,null,null,1,null,null,30855.499999999993]
[null,"GUANAJUATO","RABR820601BH9","RABR820601HGTMND08  ","RODOLFO OSVALDO RAMIREZ BUENO           ","11DPT0010Y",null,null,null,"X",null,null,null,null,null,null,null,null,null,null,null,1,null,null,76325.25]
[null,"GUANAJUATO","RAGJ8207054L2","RAGJ820705HGTNMN05  ","JUAN ANTONIO RANGEL GOMEZ               ","11DPT0010Y",null,null,null,"X",null,null,null,null,null,null,null,null,null,null,null,1,null,null,34646.119999999995]
[null,"GUANAJUATO","RARR710422AB6","RARR710422HGTMDM09  ","RAMON RAMIREZ RODRIGUEZ                 ","11DPT0010Y",null,null,null,"X",null,null,null,null,null,null,null,null,null,null,null,1,null,null,77920.42]
[null,"GUANAJUATO","ROTF640526L74","ROTF640526HGTDVL07  ","FELIPE RODRIGUEZ TOVAR                  ","11DPT0010Y",null,null,null,"X",null,null,null,null,null,null,null,null,null,null,null,1,null,null,32621.71]
[null,"GUANAJUATO","ROVL470314635","ROVL470314HGTXGS09  ","LUIS RUBEN ROA VEGA                     ","11DPT0010Y",null,null,null,"X",null,null,null,null,null,null,null,null,null,null,null,1,null,null,34312.300000000003]
[null,"GUANAJUATO","SAOC521104BAA","SAOC521104HGTNLR02  ","CARLOS SANCHEZ OLIVA                    ","11DPT0010Y",null,null,null,"X",null,null,null,null,null,null,null,null,null,null,null,1,null,null,41941.699999999997]
[null,"GUANAJUATO","TOOC610522FW3","TOOC610522MGTRRL02  ","CELIA TORRES ORIGEL                     ","11DPT0010Y",null,null,null,"X",null,null,null,null,null,null,null,null,null,null,null,1,null,null,54845.3]
[null,"GUANAJUATO","VEMR6104101A1","VEMR610410HGTLRM02  ","JOSE RAMON VELEZ MORENO                 ","11DPT0010Y",null,null,null,"X",null,null,null,null,null,null,null,null,null,null,null,1,null,null,21013.53]
[null,"GUANAJUATO","AABC680116196","AABC680116MMCBNL09  ","CLAUDIA CECILIA D ABDALA BUENDIA        ","11DPT0011X",null,null,null,"X",null,null,null,null,null,null,null,null,null,null,null,1,null,null,38718.31]
[null,"GUANAJUATO","AAMR650620AB4","AAMR650620HGTLGB03  ","ROBERTO ALVARADO MAGAÐA                 ","11DPT0011X",null,null,null,"X",null,null,null,null,null,null,null,null,null,null,null,1,null,null,39045.56]
[null,"GUANAJUATO","AAMR671130JR0","AAMR671130HGTLGB00  ","RUBEN ALVARADO MAGANA                   ","11DPT0011X",null,null,null,"X",null,null,null,null,null,null,null,null,null,null,null,1,null,null,30035.85]
[null,"GUANAJUATO","AECJ7908035L8","AECJ790803HGTLRS03  ","JOSE JESUS ALEJO CARRENO                ","11DPT0011X",null,null,null,"X",null,null,null,null,null,null,null,null,null,null,null,1,null,null,31229.89]
[null,"GUANAJUATO","AECM720103NB9","AECM720103MGTLRR09  ","MARCELA ALEJO CARREÐO                   ","11DPT0011X",null,null,null,"X",null,null,null,null,null,null,null,null,null,null,null,1,null,null,108654.19999999998]
[null,"GUANAJUATO","AOFA670123A81","AOFA670123MGTBLD06  ","ADRIANA DEL CARM ABONCE FLORES          ","11DPT0011X",null,null,null,"X",null,null,null,null,null,null,null,null,null,null,null,1,null,null,86162.150000000023]
[null,"GUANAJUATO","BAGJ5004309G9","BAGJ500430HGTRRR03  ","JORGE BARRERA GARCIA                    ","11DPT0011X",null,null,null,"X",null,null,null,null,null,null,null,null,null,null,null,1,null,null,38343.83]
[null,"GUANAJUATO","BAGS470901EG4","BAGS470901MGTRRL03  ","SILVIA BARRERA GARCIA                   ","11DPT0011X",null,null,null,"X",null,null,null,null,null,null,null,null,null,null,null,1,null,null,39720.93]
[null,"GUANAJUATO","CAGN900104IL6","CAGN900104MGTSNN06","NANCY YARETH CASILLAS GONZALEZ          ","11DPT0011X",null,null,null,"X",null,null,null,null,null,null,null,null,null,null,null,1,null,null,16578.349999999999]
[null,"GUANAJUATO","CALA880830IGA","CALA880830MGTLPD08  ","ADRIANA CALDERON LOPEZ                  ","11DPT0011X",null,null,null,"X",null,null,null,null,null,null,null,null,null,null,null,1,null,null,35909.350000000006]
[null,"GUANAJUATO","EAFM570902GM4","EAFM570902HGTSLS06  ","MOISES ESTRADA FLORES                   ","11DPT0011X",null,null,null,"X",null,null,null,null,null,null,null,null,null,null,null,1,null,null,37927.729999999996]
[null,"GUANAJUATO","GAJJ660505P94","GAJJ660505HGTRMN06  ","JUAN GARCIA JIMENEZ                     ","11DPT0011X",null,null,null,"X",null,null,null,null,null,null,null,null,null,null,null,1,null,null,39209.300000000003]
[null,"GUANAJUATO","GOLR590503HDA","GOLR590503HGTNDB04  ","ROBERTO GONZALEZ LEDESMA                ","11DPT0011X",null,null,null,"X",null,null,null,null,null,null,null,null,null,null,null,1,null,null,91660.650000000009]
[null,"GUANAJUATO","GOSA4507257Y0","GOXS450725HGTNXN07  ","SANTIAGO GONZALEZ                       ","11DPT0011X",null,null,null,"X",null,null,null,null,null,null,null,null,null,null,null,1,null,null,37757.5]
[null,"GUANAJUATO","JILD710426DB9","JILD710426HGTMPR06  ","DARIO DAMIAN JIMENEZ LOPEZ              ","11DPT0011X",null,null,null,null,null,null,null,null,null,null,null,null,"X",null,null,1,null,null,92369.4]
[null,"GUANAJUATO","LOCV8505084R9","LOCV850508MGTPRR07  ","VERONICA LOPEZ CARDOSO                  ","11DPT0011X",null,null,null,"X",null,null,null,null,null,null,null,null,null,null,null,1,null,null,31980.130000000005]
[null,"GUANAJUATO","MAJG650413GMA","MAJG650413HGTLRS08  ","GUSTAVO MALAGON JUAREZ                  ","11DPT0011X",null,null,null,"X",null,null,null,null,null,null,null,null,null,null,null,1,null,null,102764.37000000001]
[null,"GUANAJUATO","MAMM8504029T1","MAMM850402MGTLLS09  ","MASSIEL MALDONADO MALDONADO             ","11DPT0011X",null,null,null,"X",null,null,null,null,null,null,null,null,null,null,null,1,null,null,34168.81]
[null,"GUANAJUATO","MOMA590424218","MOMA590424HGTNLN04  ","JOSE ANTONIO MONCADA MALDONADO          ","11DPT0011X",null,null,null,"X",null,null,null,null,null,null,null,null,null,null,null,1,null,null,39864.259999999995]
[null,"GUANAJUATO","NAZA870510IS9","NAZA870510HGTVVN07","JOSE ANTONIO NAVARRETE ZAVALA           ","11DPT0011X",null,null,null,"X",null,null,null,null,null,null,null,null,null,null,null,1,null,null,21389.579999999998]
[null,"GUANAJUATO","RACB5510265G3","RACB551026HGTMSN05  ","BENITO RAMIREZ CASTILLO                 ","11DPT0011X",null,null,null,"X",null,null,null,null,null,null,null,null,null,null,null,1,null,null,41055.460000000006]
[null,"GUANAJUATO","RIGA780625KX0","RIGA780625HGTVMG07  ","JOSE AUGUSTO RIVERA GOMEZ               ","11DPT0011X",null,null,null,"X",null,null,null,null,null,null,null,null,null,null,null,1,null,null,34820.020000000004]
[null,"GUANAJUATO","ROGA640613DQ5","ROGA640613MDFJTN05  ","ANTONIA ESTELA ROJAS GUTIERREZ          ","11DPT0011X",null,null,null,"X",null,null,null,null,null,null,null,null,null,null,null,1,null,null,96802.22]
[null,"GUANAJUATO","ROPR8607125H9","ROPR860712MGTDNS08  ","ROSA AIDE RODRIGUEZ PANIAGUA            ","11DPT0011X",null,null,null,"X",null,null,null,null,null,null,null,null,null,null,null,1,null,null,79865.25]
[null,"GUANAJUATO","SARF810815QJ5","SARF810815MDFNCB12  ","MARIA FABIOLA SANCHEZ RICO              ","11DPT0011X",null,null,null,"X",null,null,null,null,null,null,null,null,null,null,null,1,null,null,30890.049999999996]
[null,"GUANAJUATO","SEES881205VA7","SEES881205MGTRSR08  ","SARA SERRANO ESTRADA                    ","11DPT0011X",null,null,null,"X",null,null,null,null,null,null,null,null,null,null,null,1,null,null,36461.61]
[null,"GUANAJUATO","BAHC790225T34","BAHC790225HGTSRS06  ","CESAR ISRRAEL BASALDUA HERNANDEZ        ","11DPT0012W",null,null,null,"X",null,null,null,null,null,null,null,null,null,null,null,1,null,null,17422.62]
[null,"GUANAJUATO","COMI671203D76","COMI671203MGTNLR18  ","MA. IRAIS CONTRERAS MALDONADO           ","11DPT0012W",null,null,null,null,null,null,null,null,null,null,null,null,"X",null,null,1,null,null,78517.2]
[null,"GUANAJUATO","EUVA760924363","EUVA760924HGTSLN02  ","ANTONIO ESQUEDA VILLALON                ","11DPT0012W",null,null,null,"X",null,null,null,null,null,null,null,null,null,null,null,1,null,null,64458.34]
[null,"GUANAJUATO","FOGH740517223","FOGH740517HGTLTC07  ","HECTOR FLORES GUTIERREZ                 ","11DPT0012W",null,null,null,"X",null,null,null,null,null,null,null,null,null,null,null,1,null,null,40258.65]
[null,"GUANAJUATO","GAGY700725MG2","GAGY700725MGTRNS04  ","YESENIA GRANADOS GONZALEZ               ","11DPT0012W",null,null,null,null,null,null,null,null,null,null,null,null,"X",null,null,1,null,null,92519.75999999998]
[null,"GUANAJUATO","GOGI750427GM1","GOGI750427HMCMYS02  ","ISRAEL GOMEZ GAYTAN                     ","11DPT0012W",null,null,null,"X",null,null,null,null,null,null,null,null,null,null,null,1,null,null,99792.26999999999]
[null,"GUANAJUATO","HEGC870427C96","HEGC870427HCSRNR00  ","CRISTOBAL DE JES HERNANDEZ GONZALEZ     ","11DPT0012W",null,null,null,"X",null,null,null,null,null,null,null,null,null,null,null,1,null,null,5244.5]
[null,"GUANAJUATO","LOSG55020446A","LOSG550204HGTPTL09  ","GUILLERMO LOPEZ SOTO                    ","11DPT0012W",null,null,null,"X",null,null,null,null,null,null,null,null,null,null,null,1,null,null,38554.339999999997]
[null,"GUANAJUATO","MUHA861028V94","MUHA861028HGTXRD02  ","JOSE ADAN MUÐOZ HERNANDEZ               ","11DPT0012W",null,null,null,"X",null,null,null,null,null,null,null,null,null,null,null,1,null,null,26944.15]
[null,"GUANAJUATO","OELW670610C88","OELW670610HGTLDN06  ","WENCESLAO OLVERA LEDESMA                ","11DPT0012W",null,null,null,"X",null,null,null,null,null,null,null,null,null,null,null,1,null,null,39470.61]
[null,"GUANAJUATO","OERM770419UD7","OERM770419HGTLSG03  ","MIGUEL ANGEL OLVERA RESENDIZ            ","11DPT0012W",null,null,null,"X",null,null,null,null,null,null,null,null,null,null,null,1,null,null,34312.300000000003]
[null,"GUANAJUATO","PECE671111QE4","PECE671111HDFRSL09  ","ELOY MARTIN PEREZ CASTILLO              ","11DPT0012W",null,null,null,"X",null,null,null,null,null,null,null,null,null,null,null,1,null,null,99768.810000000012]
[null,"GUANAJUATO","POGA790726B24","POGA790726MGTNZL05  ","ALMA DELIA PONCE GUZMAN                 ","11DPT0012W",null,null,null,"X",null,null,null,null,null,null,null,null,null,null,null,1,null,null,40782.03]
[null,"GUANAJUATO","RAGT730306AI0","RAGT730306HGTNRR07  ","JOSE TRINIDAD RANGEL GUERRERO           ","11DPT0012W",null,null,null,"X",null,null,null,null,null,null,null,null,null,null,null,1,null,null,42209.31]
[null,"GUANAJUATO","ROVR751027UW3","ROVR751027MGTBRS09  ","MARIA DEL ROSARI ROBLES VARGAS          ","11DPT0012W",null,null,null,"X",null,null,null,null,null,null,null,null,null,null,null,1,null,null,30407.629999999997]
[null,"GUANAJUATO","SAHA7408317B1","SAHA740831MDFNRR01  ","AURELIA SANDOVAL HERNANDEZ              ","11DPT0012W",null,null,null,"X",null,null,null,null,null,null,null,null,null,null,null,1,null,null,30512.049999999996]
[null,"GUANAJUATO","SOPL831024T56","SOPL831024MGTTRR09  ","LAURA ANGELICA SOTO PEREZ               ","11DPT0012W",null,null,null,"X",null,null,null,null,null,null,null,null,null,null,null,1,null,null,69088.73000000001]
[null,"GUANAJUATO","SUFR660516C81","SUFR660516MDFRLQ08  ","RAQUEL SUAREZ FALCON                    ","11DPT0012W",null,null,null,"X",null,null,null,null,null,null,null,null,null,null,null,1,null,null,63775.510000000009]
[null,"GUANAJUATO","VAMF590309CY5","VAMF590309HGTLNR07  ","FERNANDO VALDES MONTES                  ","11DPT0012W",null,null,null,"X",null,null,null,null,null,null,null,null,null,null,null,1,null,null,92735.73]
[null,"GUANAJUATO","VASS860602N16","VASS860602MQTLNN00","SANDRA YANET VALTIERRA SANCHEZ          ","11DPT0012W",null,null,null,"X",null,null,null,null,null,null,null,null,null,null,null,1,null,null,76325.25]
[null,"GUANAJUATO","VIRS630902SUA","VIRS630902HMNLYL09  ","SALVADOR VILLANUEVA REYNOSO             ","11DPT0012W",null,null,null,"X",null,null,null,null,null,null,null,null,null,null,null,1,null,null,89389.23]
[null,"GUANAJUATO","ZABS740117LZ8","ZABS740117MGRMLS00  ","SUSY ROCIO ZAMUDIO BALVUENA             ","11DPT0012W",null,null,null,"X",null,null,null,null,null,null,null,null,null,null,null,1,null,null,68850.77]
[null,"GUANAJUATO","ZABS850402N68","ZABS850402HGTMLR06  ","SERGIO LUIS ZAMUDIO BELTRAN             ","11DPT0012W",null,null,null,"X",null,null,null,null,null,null,null,null,null,null,null,1,null,null,34845.339999999997]
[null,"GUANAJUATO","BAMJ651013MA3","BAMJ651013HGTRRN08  ","JUAN PEDRO BARBOSA MORALES              ","11DPT0013V",null,null,null,"X",null,null,null,null,null,null,null,null,null,null,null,1,null,null,76325.25]
[null,"GUANAJUATO","CAML820820U36","CAML820820HGTNNS09  ","LUIS MIGUEL CANO MENDOZA                ","11DPT0013V",null,null,null,"X",null,null,null,null,null,null,null,null,null,null,null,1,null,null,62988.679999999993]
[null,"GUANAJUATO","EACA751029DJ3","EACA751029MGTSRN06  ","MA DE LOS ANGELE ESPARZA CORONA         ","11DPT0013V",null,null,null,"X",null,null,null,null,null,null,null,null,null,null,null,1,null,null,28126.21]
[null,"GUANAJUATO","GASM690929112","GASM690929HDFRLR02  ","MARIO MIGUEL GARCIA SALINAS             ","11DPT0013V",null,null,null,"X",null,null,null,null,null,null,null,null,null,null,null,1,null,null,61576.099999999991]
[null,"GUANAJUATO","GOML710913T66","GOML710913MGTNXC08","LUCIA GONZALEZ MU±OZ                    ","11DPT0013V",null,null,null,"X",null,null,null,null,null,null,null,null,null,null,null,1,null,null,44889.229999999996]
[null,"GUANAJUATO","GUGA7312084M6","GUGA731208HGTTZL01  ","ALFREDO GUTIERREZ GUZMAN                ","11DPT0013V",null,null,null,"X",null,null,null,null,null,null,null,null,null,null,null,1,null,null,33646.959999999992]
[null,"GUANAJUATO","GURG711212BH3","GURG711212MGTRXD01  ","MA GUADALUPE GUARDADO REA               ","11DPT0013V",null,null,null,"X",null,null,null,null,null,null,null,null,null,null,null,1,null,null,32637.729999999996]
[null,"GUANAJUATO","HELJ790519GT9","HELJ790519HGTRPN03  ","JUAN MANUEL HERNANDEZ LOPEZ             ","11DPT0013V",null,null,null,"X",null,null,null,null,null,null,null,null,null,null,null,1,null,null,39900.450000000004]
[null,"GUANAJUATO","HEMG620422565","HEMG620422MGTRRR08  ","GRACIELA HERNANDEZ MARTINEZ             ","11DPT0013V",null,null,null,"X",null,null,null,null,null,null,null,null,null,null,null,1,null,null,40203.290000000008]
[null,"GUANAJUATO","MAHM7308144V2","MAHM730814MGTRRR07  ","MARCELA DEL PILA MARTINEZ HERNANDEZ     ","11DPT0013V",null,null,null,"X",null,null,null,null,null,null,null,null,null,null,null,1,null,null,79219.51999999999]
[null,"GUANAJUATO","MEES880125B67","MEES880125MGTZSN02  ","SANDRA MARGARITA MEZA ESTRADA           ","11DPT0013V",null,null,null,"X",null,null,null,null,null,null,null,null,null,null,null,1,null,null,29275.989999999998]
[null,"GUANAJUATO","MOLJ6908066K2","MOLJ690806HGTNRN01  ","JUAN ANTONIO MONTALVO LIRA              ","11DPT0013V",null,null,null,"X",null,null,null,null,null,null,null,null,null,null,null,1,null,null,56856.100000000006]
[null,"GUANAJUATO","PAGA670111I35","PAGA670111HNTLRR03  ","ARMANDO PALOMARES GARCIA                ","11DPT0013V",null,null,null,"X",null,null,null,null,null,null,null,null,null,null,null,1,null,null,33140.5]
[null,"GUANAJUATO","RELS650704P63","RELS650704MGTXZL00  ","MA. SOLEDAD REA LOZANO                  ","11DPT0013V",null,null,null,"X",null,null,null,null,null,null,null,null,null,null,null,1,null,null,49715.96]
[null,"GUANAJUATO","ROMR861218274","ROMR861218HGTDGC00  ","RICARDO RODRIGUEZ MAGDALENO             ","11DPT0013V",null,null,null,"X",null,null,null,null,null,null,null,null,null,null,null,1,null,null,76325.25]
[null,"GUANAJUATO","RORA760321A25","RORA760321HGTDDL07  ","ALEXANDER DANIEL RODRIGUEZ RODRIGUEZ    ","11DPT0013V",null,null,null,null,null,null,null,null,null,null,null,null,"X",null,null,1,null,null,90482.46]
[null,"GUANAJUATO","RORC850223K78","RORC850223HGTDMR02  ","CARLOS ALBERTO RODRIGUEZ RAMIREZ        ","11DPT0013V",null,null,null,"X",null,null,null,null,null,null,null,null,null,null,null,1,null,null,36553.050000000003]
[null,"GUANAJUATO","ROSJ840320PL5","ROSJ840320MMCMGL06  ","JULIA OYUKI ROMERO SEGURA               ","11DPT0013V",null,null,null,"X",null,null,null,null,null,null,null,null,null,null,null,1,null,null,40588.769999999997]
[null,"GUANAJUATO","RUER840817TJ2","RUER840817HGTZSN07  ","RENE RUIZ ESPINOZA                      ","11DPT0013V",null,null,null,"X",null,null,null,null,null,null,null,null,null,null,null,1,null,null,38780.169999999991]
[null,"GUANAJUATO","ZERV770303SS4","ZERV770303MGTNCN07  ","MARIA  VANESSA ZENDEJAS ROCHA           ","11DPT0013V",null,null,null,"X",null,null,null,null,null,null,null,null,null,null,null,1,null,null,43696.439999999995]
[null,"GUANAJUATO","AALA880119VB9","AALA880119MGTLPL06  ","ALESSA ALVARADO LOPEZ                   ","11DPT0014U",null,null,null,"X",null,null,null,null,null,null,null,null,null,null,null,1,null,null,37600.169999999991]
[null,"GUANAJUATO","CEVB731120C46","CEVB731120HGTDRR00  ","BERNARDO CEDILLO VERA                   ","11DPT0014U",null,null,null,"X",null,null,null,null,null,null,null,null,null,null,null,1,null,null,13386.929999999998]
[null,"GUANAJUATO","GAAE770204JK3","GAAE770204MDFYLL06  ","ELIA GAYTAN ALCARAZ                     ","11DPT0014U",null,null,null,null,null,null,null,null,null,null,null,null,"X",null,null,1,null,null,90482.46]
[null,"GUANAJUATO","GABI850102NDA","GABI850102MGTRRS03  ","MARIA ISABEL GARCIA BARRIENTOS          ","11DPT0014U",null,null,null,"X",null,null,null,null,null,null,null,null,null,null,null,1,null,null,79939.069999999992]
[null,"GUANAJUATO","HEPU760412GG8","HEPU760412HPLRRZ03  ","UZIEL HERNANDEZ PEREZ                   ","11DPT0014U",null,null,null,"X",null,null,null,null,null,null,null,null,null,null,null,1,null,null,30704.489999999998]
[null,"GUANAJUATO","JUSD780922L87","JUSD780922MQTRRL03  ","DULCE MARIA JUAREZ SORIA                ","11DPT0014U",null,null,null,"X",null,null,null,null,null,null,null,null,null,null,null,1,null,null,41140.169999999991]
[null,"GUANAJUATO","MEME901101QT3","MEME901101MGTNRL08  ","MARIA ELENA MENDOZA MARTINEZ            ","11DPT0014U",null,null,null,"X",null,null,null,null,null,null,null,null,null,null,null,1,null,null,34885.899999999994]
[null,"GUANAJUATO","MERG840929RZ5","MERG840929MGTNDB06","GABRIELA MENDEZ RODRIGUEZ               ","11DPT0014U",null,null,null,"X",null,null,null,null,null,null,null,null,null,null,null,1,null,null,17422.62]
[null,"GUANAJUATO","MIHG8606185P2","MIHG860618MDFRRB06  ","GABRIELA MIRAMONTES HERNANDEZ           ","11DPT0014U",null,null,null,"X",null,null,null,null,null,null,null,null,null,null,null,1,null,null,28994.300000000003]
[null,"GUANAJUATO","MOJC851117J2A","MOJC851117MGTRST08  ","CITLALLI TONANCI MORA JASSO             ","11DPT0014U",null,null,null,"X",null,null,null,null,null,null,null,null,null,null,null,1,null,null,86161.760000000009]
[null,"GUANAJUATO","NAQI780206S92","NAQI780206HDFVXV07  ","IVAN AGUSTIN NAVARRETE QUIÐONES         ","11DPT0014U",null,null,null,"X",null,null,null,null,null,null,null,null,null,null,null,1,null,null,32997.24]
[null,"GUANAJUATO","OOCM7903122F9","OOCM790312MGTRRR03  ","MARCELA OROZCO CORNEJO                  ","11DPT0014U",null,null,null,"X",null,null,null,null,null,null,null,null,null,null,null,1,null,null,64864.780000000013]
[null,"GUANAJUATO","RAAE850827HM7","RAAE850827MGTMNL05  ","ELVIA RAMIREZ ANDRADE                   ","11DPT0014U",null,null,null,"X",null,null,null,null,null,null,null,null,null,null,null,1,null,null,18955.78]
[null,"GUANAJUATO","RAAI811229BW5","RAAI811229MMCMNS05  ","MARIA ISABEL RAMIREZ ANDRADE            ","11DPT0014U",null,null,null,"X",null,null,null,null,null,null,null,null,null,null,null,1,null,null,36663.290000000008]
[null,"GUANAJUATO","RESO730809AI4","RESO730809MGTYNF03  ","OFELIA REYES SANDOVAL                   ","11DPT0014U",null,null,null,"X",null,null,null,null,null,null,null,null,null,null,null,1,null,null,37546.110000000008]
[null,"GUANAJUATO","RIHR880331D30","RIHR880331HGTSRC09  ","RICARDO RIOS HERNANDEZ                  ","11DPT0014U",null,null,null,"X",null,null,null,null,null,null,null,null,null,null,null,1,null,null,52928.240000000005]
[null,"GUANAJUATO","SECG740707K72","SECG740707MZSGML05","GUILLERMINA SEGURA CAMPOS               ","11DPT0014U",null,null,null,"X",null,null,null,null,null,null,null,null,null,null,null,1,null,null,68419.199999999997]
[null,"GUANAJUATO","SIRI830722KG2","SIRI830722HGTXCG04  ","IGNACIO MANUEL SIXTOS RICO              ","11DPT0014U",null,null,null,"X",null,null,null,null,null,null,null,null,null,null,null,1,null,null,56271.850000000013]
[null,"GUANAJUATO","SOMC8307243E3","SOMC830724HGTTNH06  ","CHRISTIAN SOTO MENDOZA                  ","11DPT0014U",null,null,null,"X",null,null,null,null,null,null,null,null,null,null,null,1,null,null,77468.500000000015]
[null,"GUANAJUATO","TORM8008155Q9","TORM800815HGTRVR02  ","MARIO TORRES RIVERA                     ","11DPT0014U",null,null,null,"X",null,null,null,null,null,null,null,null,null,null,null,1,null,null,30892.44]
[null,"GUANAJUATO","AAVB660401UL2","AAVB660401MDFLVL01","BLANCA IVETTE ALVAREZ DEL CASTILLO VENTRE","11DPT0001Q",null,null,null,null,null,null,null,"X",null,null,null,null,null,null,null,1,null,null,8891]
[null,"GUANAJUATO","AOOC650822A32","AOOC650822MGTRJR02","MA CRISTINA ARROYO OJEDA","11DPT0001Q",null,null,null,null,null,null,null,"X",null,null,null,null,null,null,null,1,null,null,10976.789999999999]
[null,"GUANAJUATO","AOOS720925113","AOOS720925MGTBRN08","SANDRA ABOYTES OROZCO","11DPT0001Q",null,null,null,null,null,null,null,"X",null,null,null,null,null,null,null,1,null,null,16176.300000000001]
[null,"GUANAJUATO","BESJ810412R10","BESJ810412HGTLNS06","JESUS EDUARDO BELMAN SANTILLAN","11DPT0001Q",null,null,null,null,null,null,null,"X",null,null,null,null,null,null,null,1,null,null,13865.400000000001]
[null,"GUANAJUATO","BOSC820326R12","BOSC820326HGTLRR09","CARLOS MARTIN BOLAﾑOS SERVIN","11DPT0001Q",null,null,null,null,null,null,null,"X",null,null,null,null,null,null,null,1,null,null,14635.72]
[null,"GUANAJUATO","CAAL690628AM6","CAAL690628MGTRLT08","MARIA LETICIA CARDENAS ALMANZA","11DPT0001Q",null,null,null,null,null,null,null,"X",null,null,null,null,null,null,null,1,null,null,6932.7]
[null,"GUANAJUATO","CAPJ680119DJ7","CAPJ680119HGTZTN01","J. ANDRES CAZARES PATIﾑO","11DPT0001Q",null,null,null,null,null,null,null,"X",null,null,null,null,null,null,null,1,null,null,5777.26]
[null,"GUANAJUATO","CARL560630141","CARL560630HGTSVS09","JOSE LUIS CASTRO RIVAS","11DPT0001Q",null,null,null,null,null,null,null,"X",null,null,null,null,null,null,null,1,null,null,16176.32]
[null,"GUANAJUATO","CAVA820322S74","CAVA820322HDFHRB06","ABRAHAM CHAVEZ VARELA","11DPT0001Q",null,null,null,null,null,null,null,"X",null,null,null,null,null,null,null,1,null,null,3658.93]
[null,"GUANAJUATO","CEGE7106304G8","CEGE710630MGTBML09","MA ELIZABETH CEBALLOS GOMEZ","11DPT0001Q",null,null,null,null,null,null,null,"X",null,null,null,null,null,null,null,1,null,null,12132.24]
[null,"GUANAJUATO","CIGM510313HX4","CIGM510313HVZSRG08","MIGUEL ANGEL CISNEROS GARCIA","11DPT0001Q",null,null,null,null,null,null,null,"X",null,null,null,null,null,null,null,1,null,null,11554.5]
[null,"GUANAJUATO","COMM610831NKA","COMM610831HDFRRG06","MIGUEL CORTES MORALES","11DPT0001Q",null,null,null,null,null,null,null,"X",null,null,null,null,null,null,null,1,null,null,10399.049999999999]
[null,"GUANAJUATO","COVE740314GR2","COVE740314HGTRZN07","ENRIQUE CORTEZ VAZQUEZ","11DPT0001Q",null,null,null,null,null,null,null,"X",null,null,null,null,null,null,null,1,null,null,9403.880000000001]
[null,"GUANAJUATO","DEPT800907TBA","DEPT800907MGTRDR04","MARIA TERESA DERRAMADERO PADILLA","11DPT0001Q",null,null,null,null,null,null,null,"X",null,null,null,null,null,null,null,1,null,null,14074.38]
[null,"GUANAJUATO","EASG800616J20","EASG800616HGTSSR09","GERARDO ESTRADA SESENTO","11DPT0001Q",null,null,null,null,null,null,null,"X",null,null,null,null,null,null,null,1,null,null,22227.5]
[null,"GUANAJUATO","EICS7010205K2","EICS701020MMNNRR06","SERAFINA ENRIQUEZ CORDOVA","11DPT0001Q",null,null,null,null,null,null,null,"X",null,null,null,null,null,null,null,1,null,null,22227.5]
[null,"GUANAJUATO","FEHE800724TQ5","FEHE800724HGTRRD06","EDUARDO FERNANDEZ HERNANDEZ","11DPT0001Q",null,null,null,null,null,null,null,"X",null,null,null,null,null,null,null,1,null,null,3636.52]
[null,"GUANAJUATO","GAFF820410AV4","GAFF820410HGTRRR01","FERNANDO GARCIA FRIAS","11DPT0001Q",null,null,null,null,null,null,null,"X",null,null,null,null,null,null,null,1,null,null,4112.3999999999996]
[null,"GUANAJUATO","GAMC720506I97","GAMC720506MGTRRN08","CONSTANZA GARCIA  MARTINEZ","11DPT0001Q",null,null,null,null,null,null,null,"X",null,null,null,null,null,null,null,1,null,null,8446.4599999999991]
[null,"GUANAJUATO","GODA691116ALA","GODA691116HDFMZL07","ALEJANDRO GOMEZ DIAZ","11DPT0001Q",null,null,null,null,null,null,null,"X",null,null,null,null,null,null,null,1,null,null,25702.5]
[null,"GUANAJUATO","GOPE721215MA1","GOPE721215HGTNSD00","EDISON OSWALDO GONZALEZ PESCADOR","11DPT0001Q",null,null,null,null,null,null,null,"X",null,null,null,null,null,null,null,1,null,null,2888.63]
[null,"GUANAJUATO","GUCA621009A88","GUCA621009MGTTHR00","ARACELI GUTIERREZ CHACON","11DPT0001Q",null,null,null,null,null,null,null,"X",null,null,null,null,null,null,null,1,null,null,5777.26]
[null,"GUANAJUATO","GUCM630109EJ1","GUCM630109MGTTSR00","MARIA MARTINA MARGARITA GUTIERREZ CASTRO","11DPT0001Q",null,null,null,null,null,null,null,"X",null,null,null,null,null,null,null,1,null,null,14003.34]
[null,"GUANAJUATO","GULA760327G74","GULA760327MCSLPN05","ANA CELIA GUILLEN LOPEZ","11DPT0001Q",null,null,null,null,null,null,null,"X",null,null,null,null,null,null,null,1,null,null,13865.400000000001]
[null,"GUANAJUATO","HEPM8111294E4","HEPM811129HGTRRG03","MIGUEL ANGEL HERNANDEZ PEREZ","11DPT0001Q",null,null,null,null,null,null,null,"X",null,null,null,null,null,null,null,1,null,null,10399.049999999999]
[null,"GUANAJUATO","JIEC831030A73","JIEC831030MGTMSR07","MARIA CRISTHIAN JIMENEZ ESQUEDA","11DPT0001Q",null,null,null,null,null,null,null,"X",null,null,null,null,null,null,null,1,null,null,20562]
[null,"GUANAJUATO","JISS660630UT8","JISS660630HGTMNR01","SERGIO JIMENEZ SANCHEZ","11DPT0001Q",null,null,null,null,null,null,null,"X",null,null,null,null,null,null,null,1,null,null,9252.9]
[null,"GUANAJUATO","LAML7310086Z6","LAML731008MGTRNR00","LAURA LARA MANCERA","11DPT0001Q",null,null,null,null,null,null,null,"X",null,null,null,null,null,null,null,1,null,null,35564]
[null,"GUANAJUATO","LOBA7910123P2","LOBA791012HJCPRL00","ALEJANDRO LOPEZ BRIONES","11DPT0001Q",null,null,null,null,null,null,null,"X",null,null,null,null,null,null,null,1,null,null,11554.52]
[null,"GUANAJUATO","LOGJ711211E25","LOGJ711211HGTMVN07","JUAN LOMAS GUEVARA","11DPT0001Q",null,null,null,null,null,null,null,"X",null,null,null,null,null,null,null,1,null,null,8473.2999999999993]
[null,"GUANAJUATO","MACM811125AAA","MACM811125MGTSRR00","MARLENE SELENE MASCOTTE CRUZ","11DPT0001Q",null,null,null,null,null,null,null,"X",null,null,null,null,null,null,null,1,null,null,10976.789999999999]
[null,"GUANAJUATO","MAMA711017CPA","MAMA711017HGTRNR02","ARTURO MARTINEZ MONCADA","11DPT0001Q",null,null,null,null,null,null,null,"X",null,null,null,null,null,null,null,1,null,null,39285.359999999993]
[null,"GUANAJUATO","MAMA770820UT0","MAMA770820MGTRRN06","ANA LILIA MARTINEZ MARTINEZ","11DPT0001Q",null,null,null,null,null,null,null,"X",null,null,null,null,null,null,null,1,null,null,17782]
[null,"GUANAJUATO","MARR660925MG9","MARR660925MGTRDC04","ROCIO MARTINEZ RODRIGUEZ","11DPT0001Q",null,null,null,null,null,null,null,"X",null,null,null,null,null,null,null,1,null,null,9821.34]
[null,"GUANAJUATO","MASJ651012DZ4","MASJ651012HVZRNN09","JUAN CARLOS MARTINEZ SANTOS","11DPT0001Q",null,null,null,null,null,null,null,"X",null,null,null,null,null,null,null,1,null,null,26575.379999999997]
[null,"GUANAJUATO","MOHD5903208E0","MOHD590320HMCCRL05","JOSE DOLORES GUADALUPE MOCTEZUMA HERNANDEZ","11DPT0001Q",null,null,null,null,null,null,null,"X",null,null,null,null,null,null,null,1,null,null,7703]
[null,"GUANAJUATO","MOPL8106219G5","MOPL810621MGTRLD07","LIDIA MORENO PALOALTO","11DPT0001Q",null,null,null,null,null,null,null,"X",null,null,null,null,null,null,null,1,null,null,11554.52]
[null,"GUANAJUATO","RAGL820420UF7","RAGL820420MGTMMR03","LOURDES MIRELLA RAMOS GOMEZ","11DPT0001Q",null,null,null,null,null,null,null,"X",null,null,null,null,null,null,null,1,null,null,26575.379999999997]
[null,"GUANAJUATO","RAGM860115N6A","RAGM860115HGTMRR00","MAURO RAMIREZ GARCIA","11DPT0001Q",null,null,null,null,null,null,null,"X",null,null,null,null,null,null,null,1,null,null,26730.6]
[null,"GUANAJUATO","RALG600418P69","RALG600418MGTMPD09","MARIA GUADALUPE RAMOS LOPEZ","11DPT0001Q",null,null,null,null,null,null,null,"X",null,null,null,null,null,null,null,1,null,null,53346]
[null,"GUANAJUATO","AAGC731126M29","AAGC731126HDFLNN07","CONRRADO ARTURO ALVAREZ GONZALEZ","11DPT0002P",null,null,null,null,null,null,null,"X",null,null,null,null,null,null,null,1,null,null,8104.7]
[null,"GUANAJUATO","AUCL821209DC6","AUCL821209MVZRRT05","LETICIA CAROLINA ARGUELLES CRUZ","11DPT0002P",null,null,null,null,null,null,null,"X",null,null,null,null,null,null,null,1,null,null,5554.2]
[null,"GUANAJUATO","AUGJ550312251","AUJG550312HGTGTR07","JORGE AGUILERA GUTIERREZ","11DPT0002P",null,null,null,null,null,null,null,"X",null,null,null,null,null,null,null,1,null,null,14635.72]
[null,"GUANAJUATO","CAEL721019IZ9","CAEL721019MGTSLL08","LILIA ISELA CASTILLO ELIZARRARAZ","11DPT0002P",null,null,null,null,null,null,null,"X",null,null,null,null,null,null,null,1,null,null,8088.16]
[null,"GUANAJUATO","CAHJ750812FB7","CAHJ750812HGTHRR09","JORGE ALEJANDRO CHAGOYA HERNANDEZ","11DPT0002P",null,null,null,null,null,null,null,"X",null,null,null,null,null,null,null,1,null,null,4572.7700000000004]
[null,"GUANAJUATO","CAMH790325MK6","CAMH790325HGTSSC09","HECTOR CASTRO MOSQUEDA","11DPT0002P",null,null,null,null,null,null,null,"X",null,null,null,null,null,null,null,1,null,null,8088.16]
[null,"GUANAJUATO","CECE690308KZ9","CECE690308HGTRRL05","ELIAS CERVANTES CRUZ","11DPT0002P",null,null,null,null,null,null,null,"X",null,null,null,null,null,null,null,1,null,null,4606.7700000000004]
[null,"GUANAJUATO","CILG730402N95","CILG730402MGTSPL08","BLANCA ESTELA GUILLERMINA CISNEROS LOPEZ","11DPT0002P",null,null,null,null,null,null,null,"X",null,null,null,null,null,null,null,1,null,null,24264.480000000003]
[null,"GUANAJUATO","COAA820127CJ8","COAA820127MGTRYN00","ANA ERICKA CORRALES AYALA","11DPT0002P",null,null,null,null,null,null,null,"X",null,null,null,null,null,null,null,1,null,null,7002.3600000000006]
[null,"GUANAJUATO","COCF790524RG5","COCJ790524HGTNRR07","FRANCISCO JAVIER CONTRERAS CERVANTES","11DPT0002P",null,null,null,null,null,null,null,"X",null,null,null,null,null,null,null,1,null,null,16670.650000000001]
[null,"GUANAJUATO","COCJ790301RG5","COCJ790301HGTRRN06","JOSE JUAN CORRALES CORONA","11DPT0002P",null,null,null,null,null,null,null,"X",null,null,null,null,null,null,null,1,null,null,3081.2]
[null,"GUANAJUATO","COMJ7702043T7","COMJ770204HGTRRL02","JOEL DE JESUS CORONA MORENO","11DPT0002P",null,null,null,null,null,null,null,"X",null,null,null,null,null,null,null,1,null,null,4112.3999999999996]
[null,"GUANAJUATO","COMS721010P5A","COMS721010MGTRSL09","SILVIA CORDOBA  MOSQUEDA","11DPT0002P",null,null,null,null,null,null,null,"X",null,null,null,null,null,null,null,1,null,null,20004.8]
[null,"GUANAJUATO","DARE870421E95","DARE870421MGTMDD0","EDUARDINA ESAIG DAMIAN  RODRIGUEZ","11DPT0002P",null,null,null,null,null,null,null,"X",null,null,null,null,null,null,null,1,null,null,4621.8]
[null,"GUANAJUATO","DEBY851217D4A","DEBJ851217MGTLLS09","JUSELY GUADALUPE DELGADO BELTRAN","11DPT0002P",null,null,null,null,null,null,null,"X",null,null,null,null,null,null,null,1,null,null,20027.8]
[null,"GUANAJUATO","DICI670401TA1","DICI670401MGTZMR00","IRENE DIAZ CAMPOS","11DPT0002P",null,null,null,null,null,null,null,"X",null,null,null,null,null,null,null,1,null,null,13336.5]
[null,"GUANAJUATO","DIJT521003PE9","DIJT521003MVZZCR03","MARIA TERESITA DIAZ JACOME","11DPT0002P",null,null,null,null,null,null,null,"X",null,null,null,null,null,null,null,1,null,null,22227.5]
[null,"GUANAJUATO","EIVG610404DLA","EIVG610404HDFLLR08","JORGE ALBERTO ELIZARRARAS VILLALPANDO","11DPT0002P",null,null,null,null,null,null,null,"X",null,null,null,null,null,null,null,1,null,null,52546]
[null,"GUANAJUATO","EIVJ6412112B7","EIVJ641211HGTLLN00","JUAN CARLOS ELIZARRARAZ VILLALPANDO","11DPT0002P",null,null,null,null,null,null,null,"X",null,null,null,null,null,null,null,1,null,null,3778.68]
[null,"GUANAJUATO","EUGC810902JNA","EUGC810902HGTSZS09","CESAR JAVIER ESQUIVEL GUZMAN","11DPT0002P",null,null,null,null,null,null,null,"X",null,null,null,null,null,null,null,1,null,null,5777.26]
[null,"GUANAJUATO","EUQJ600614JNA","EUQJ600614HDFSRN05","JUAN MIGUEL ESQUIVEL QUIROZ","11DPT0002P",null,null,null,null,null,null,null,"X",null,null,null,null,null,null,null,1,null,null,3081.2]
[null,"GUANAJUATO","GAEA800524AAA","GAEA800524HGTRLL00","J. ALFREDO GRANADOS ELIZARRARAS","11DPT0002P",null,null,null,null,null,null,null,"X",null,null,null,null,null,null,null,1,null,null,4000.9500000000003]
[null,"GUANAJUATO","GAMM750120RB8","GANN750120MGTRSR08","MARTHA ELBA GARCIA MOSQUEDA","11DPT0002P",null,null,null,null,null,null,null,"X",null,null,null,null,null,null,null,1,null,null,11554.5]
[null,"GUANAJUATO","GAVJ660521UR1","GAVJ660521HGTRGN08","JUAN CARLOS GARCIA VEGA","11DPT0002P",null,null,null,null,null,null,null,"X",null,null,null,null,null,null,null,1,null,null,2476.44]
[null,"GUANAJUATO","GORC820608RCA","GORC820608MGTLRT07","MA CONCEPCION GONZALEZ RAMIREZ","11DPT0002P",null,null,null,null,null,null,null,"X",null,null,null,null,null,null,null,1,null,null,2667.3]
[null,"GUANAJUATO","GUVG640807PZ4","GUVG640807MDFZRB04","GABRIELA GUIZAR VARGAS","11DPT0002P",null,null,null,null,null,null,null,"X",null,null,null,null,null,null,null,1,null,null,8299.18]
[null,"GUANAJUATO","HERA4412086H0","HERA441208HGTRSL07","ALFREDO HERRERA ROSALES","11DPT0002P",null,null,null,null,null,null,null,"X",null,null,null,null,null,null,null,1,null,null,3348.5800000000004]
[null,"GUANAJUATO","HERA5904202S0","HERA590420HGTRSN04","JOSE ANTONIO HERRERA  ROSALES","11DPT0002P",null,null,null,null,null,null,null,"X",null,null,null,null,null,null,null,1,null,null,4024.92]
[null,"GUANAJUATO","HERD520203ADO","HERD520203MSLRSB04","DEBORA HERN RUSSEL","11DPT0002P",null,null,null,null,null,null,null,"X",null,null,null,null,null,null,null,1,null,null,10241]
[null,"GUANAJUATO","HERR700403DUO","HERR700403HGTRMC07","RICARDO MARTIN HERNANDEZ RAMIREZ","11DPT0002P",null,null,null,null,null,null,null,"X",null,null,null,null,null,null,null,1,null,null,8024.5300000000007]
[null,"GUANAJUATO","JOSJ820529NC7","JOSJ820529HNTYNN07","JONATHAN JOYA DE LA SANCHA","11DPT0002P",null,null,null,null,null,null,null,"X",null,null,null,null,null,null,null,1,null,null,11113.76]
[null,"GUANAJUATO","LOCJ790515Q78","LOCJ790515HGTPHN00","JUAN ANDRES LOPEZ CHAVEZ ","11DPT0002P",null,null,null,null,null,null,null,"X",null,null,null,null,null,null,null,1,null,null,66826.499999999985]
[null,"GUANAJUATO","LURA851031520","LURA851031HGTNML05","JOSE ALFONSO LUNA RAMIREZ","11DPT0002P",null,null,null,null,null,null,null,"X",null,null,null,null,null,null,null,1,null,null,3997]
[null,"GUANAJUATO","MASS590809U18","MASS590809HGTRTL08","SALVADOR MARTINEZ SOTO","11DPT0002P",null,null,null,null,null,null,null,"X",null,null,null,null,null,null,null,1,null,null,4409.13]
[null,"GUANAJUATO","MATM690314EG4","MATM690314MGTRRT12","MATILDE MARTINEZ TORRES","11DPT0002P",null,null,null,null,null,null,null,"X",null,null,null,null,null,null,null,1,null,null,12669.689999999999]
[null,"GUANAJUATO","MOHT651003EA6","MOHT651003MGTRRR13","MA TERESA MORENO HERNANDEZ","11DPT0002P",null,null,null,null,null,null,null,"X",null,null,null,null,null,null,null,1,null,null,2299.67]
[null,"GUANAJUATO","OASF640805DW4","OASF640805HGTCTR00","FRANCISCO JAVIER OCAMPO SOTO","11DPT0002P",null,null,null,null,null,null,null,"X",null,null,null,null,null,null,null,1,null,null,4601.24]
[null,"GUANAJUATO","OIZG5306099RR","OIZG530609HGTRFL01","GUILLERMO ORTIZ ZAFRA","11DPT0002P",null,null,null,null,null,null,null,"X",null,null,null,null,null,null,null,1,null,null,90238.399999999994]
[null,"GUANAJUATO","RISM640319LE9","RISM640319HGTCRR02","JOSE MARTIN RICO SERRITEﾑO","11DPT0002P",null,null,null,null,null,null,null,"X",null,null,null,null,null,null,null,1,null,null,5452.07]
[null,"GUANAJUATO","SAGM820626E90","SAGR820626MGTNNS28","MA DEL ROSARIO SANCHEZ GONZALEZ","11DPT0002P",null,null,null,null,null,null,null,"X",null,null,null,null,null,null,null,1,null,null,10976.789999999999]
[null,"GUANAJUATO","SOAO850607U46","SOAO850607HGGTGM04","OMAR DAVID SOTO AGUIRRE","11DPT0002P",null,null,null,null,null,null,null,"X",null,null,null,null,null,null,null,1,null,null,7999.4800000000005]
[null,"GUANAJUATO","VAGN761014IF8","VAGN761014MGTLVD09","NADIA VALLEJO GUEVARA","11DPT0002P",null,null,null,null,null,null,null,"X",null,null,null,null,null,null,null,1,null,null,6511.3]
[null,"GUANAJUATO","AABR750608IB4","AABR750608MGTYRS01","ROSA MARGARITA AYALA BARRERA","11DPT0003O",null,null,null,null,null,null,null,"X",null,null,null,null,null,null,null,1,null,null,16670.650000000001]
[null,"GUANAJUATO","AEGD640414KLA","AAPJ880904HGTRTN01","JUAN MIGUEL ARANDA PATLAN","11DPT0003O",null,null,null,null,null,null,null,"X",null,null,null,null,null,null,null,1,null,null,17135]
[null,"GUANAJUATO","AORS650107KK2","AORS650107MGTRML00","MA SOLEDAD ARROYO RAMIREZ","11DPT0003O",null,null,null,null,null,null,null,"X",null,null,null,null,null,null,null,1,null,null,6932.7]
[null,"GUANAJUATO","CAVM6302079D4","CAVM630207MDFLLR04","MARIANA FEDERICA CALDERON VILLALOBOS","11DPT0003O",null,null,null,null,null,null,null,"X",null,null,null,null,null,null,null,1,null,null,13336.52]
[null,"GUANAJUATO","CURP6903018I5","CURP690301MGTRYT08","PATRICIA DE LA CRUZ REYES","11DPT0003O",null,null,null,null,null,null,null,"X",null,null,null,null,null,null,null,1,null,null,8005.6]
[null,"GUANAJUATO","EURA860418KB7","EURA860418HGTSDL09","ALBERTO ESQUIVEL RODRIGUEZ","11DPT0003O",null,null,null,null,null,null,null,"X",null,null,null,null,null,null,null,1,null,null,2888.63]
[null,"GUANAJUATO","FABV830514ES9","FABV830514HGTRLC04","VICTOR ESTEBAN FRAUSTO BOLIO","11DPT0003O",null,null,null,null,null,null,null,"X",null,null,null,null,null,null,null,1,null,null,6932.7]
[null,"GUANAJUATO","GAGE660725EF1","GAGE660725MGTYNG09","MA. EUGENIA GAYTAN GONZALEZ","11DPT0003O",null,null,null,null,null,null,null,"X",null,null,null,null,null,null,null,1,null,null,20004.780000000002]
[null,"GUANAJUATO","GALR880422QE7","GALR880422HGTRPG08","ROGELIO GARCIA LOPEZ","11DPT0003O",null,null,null,null,null,null,null,"X",null,null,null,null,null,null,null,1,null,null,3866.1000000000004]
[null,"GUANAJUATO","GIPE8705187T7","GIPE870718MGTRDR06","ERIKA ELIZABETH GRIMALDO PADILLA","11DPT0003O",null,null,null,null,null,null,null,"X",null,null,null,null,null,null,null,1,null,null,12851.25]
[null,"GUANAJUATO","GONS740424640","GONS740424MGTNXS08","SUSANA MAGNOLIA GONZALEZ NU?Z","11DPT0003O",null,null,null,null,null,null,null,"X",null,null,null,null,null,null,null,1,null,null,20027.8]
[null,"GUANAJUATO","IUMM800617VC2","IUMM800617MGTSRY06","MYRNA DENISSE ISUSQUIZA MARTﾍNEZ","11DPT0003O",null,null,null,null,null,null,null,"X",null,null,null,null,null,null,null,1,null,null,7050.1100000000006]
[null,"GUANAJUATO","LAGG811206L76","LAGG811206MGTRND04","MARIA GUADALUPE LARA GONZALEZ","11DPT0003O",null,null,null,null,null,null,null,"X",null,null,null,null,null,null,null,1,null,null,10399.049999999999]
[null,"GUANAJUATO","LOGG700109MF1","LOGG700109MGTPRD02","MA. GUADALUPE LOPEZ GARCIA","11DPT0003O",null,null,null,null,null,null,null,"X",null,null,null,null,null,null,null,1,null,null,17331.75]
[null,"GUANAJUATO","LOSM721211630","LOSM721211MGTPRR02","MARCELA LOPEZ SORIA","11DPT0003O",null,null,null,null,null,null,null,"X",null,null,null,null,null,null,null,1,null,null,2334.1800000000003]
[null,"GUANAJUATO","MESF820630A32","MESF820630HGTNLR02","FRANCISCO JAVIER MENDOZA SOLORZANO","11DPT0003O",null,null,null,null,null,null,null,"X",null,null,null,null,null,null,null,1,null,null,13101.4]
[null,"GUANAJUATO","MUCE6604088C8","MUCE660408HGTXRL04","ELIAS MUﾑOZ CORTES","11DPT0003O",null,null,null,null,null,null,null,"X",null,null,null,null,null,null,null,1,null,null,7065.67]
[null,"GUANAJUATO","MUCM5811195T2","MUCM580119HGTXMR09","JOSE MARIO MUﾑOZ CAMPUSANO","11DPT0003O",null,null,null,null,null,null,null,"X",null,null,null,null,null,null,null,1,null,null,4818.55]
[null,"GUANAJUATO","MUMJ581102LE9","MUMJ581102HGTXRM09","JAIME MUﾑOZ MARTINEZ","11DPT0003O",null,null,null,null,null,null,null,"X",null,null,null,null,null,null,null,1,null,null,22227.5]
[null,"GUANAJUATO","NAJE70071623A","NAJE700716HGTVMN08","ENRIQUE NAVARRETE JIMENEZ","11DPT0003O",null,null,null,null,null,null,null,"X",null,null,null,null,null,null,null,1,null,null,19705.25]
[null,"GUANAJUATO","PAHF740428HK9","PAHF740428HGTDRR00","FRANCISCO JAVIER PADILLA HERNﾁNDEZ","11DPT0003O",null,null,null,null,null,null,null,"X",null,null,null,null,null,null,null,1,null,null,10399.049999999999]
[null,"GUANAJUATO","PARH580204E82","PARH580204HDFDYC09","HECTOR PADILLA REYES","11DPT0003O",null,null,null,null,null,null,null,"X",null,null,null,null,null,null,null,1,null,null,10026.85]
[null,"GUANAJUATO","PEJE510902DF6","PEJE510902HOCRRS08","ESTEBAN PEREZ JUAREZ","11DPT0003O",null,null,null,null,null,null,null,"X",null,null,null,null,null,null,null,1,null,null,22227.5]
[null,"GUANAJUATO","RAGB840311M36","RAGB840311MGTMTR07","MARIA BERENICE RAMIREZ GUTIERRES","11DPT0003O",null,null,null,null,null,null,null,"X",null,null,null,null,null,null,null,1,null,null,17820.400000000001]
[null,"GUANAJUATO","ROCU811126UY1","ROCU811126HGTMNR08","URIEL ROMO CONTRERAS","11DPT0003O",null,null,null,null,null,null,null,"X",null,null,null,null,null,null,null,1,null,null,4667.78]
[null,"GUANAJUATO","RORM440730KM9","RORM440730HGTDYR01","MARGARITO RODRIGUEZ REYES","11DPT0003O",null,null,null,null,null,null,null,"X",null,null,null,null,null,null,null,1,null,null,12132.24]
[null,"GUANAJUATO","SAGJ781103MJ3","SAGJ781103HGTLRR06","JORGE ARMANDO SALAS GUARDADO","11DPT0003O",null,null,null,null,null,null,null,"X",null,null,null,null,null,null,null,1,null,null,10399.049999999999]
[null,"GUANAJUATO","SAHL880928KE7","SAHL880928HGTNRS02","LUIS DAVID SANCHEZ HERNANDEZ","11DPT0003O",null,null,null,null,null,null,null,"X",null,null,null,null,null,null,null,1,null,null,3427]
[null,"GUANAJUATO","VAPL6101037B8","VAPL610103HGTZRL05","SALVADOR EUGENIO VAZQUEZ PRECIADO","11DPT0003O",null,null,null,null,null,null,null,"X",null,null,null,null,null,null,null,1,null,null,10911.67]
[null,"GUANAJUATO","VASR930322QX5","VASR930322HGTLGL04","RAUL VALDIVIA SEGOVIANO","11DPT0003O",null,null,null,null,null,null,null,"X",null,null,null,null,null,null,null,1,null,null,6999.79]
[null,"GUANAJUATO","VAWS480907T05","VAWS480907MDFRSY01","SILVIA VARGAS WASHINGTON","11DPT0003O",null,null,null,null,null,null,null,"X",null,null,null,null,null,null,null,1,null,null,4669.2700000000004]
[null,"GUANAJUATO","VEMJ891002000","VEMJ891002HGTLﾑN02","JUAN MANUEL VELAZQUEZ MUﾑOZ","11DPT0003O",null,null,null,null,null,null,null,"X",null,null,null,null,null,null,null,1,null,null,2645.48]
[null,"GUANAJUATO","VESE620331G87","VESE620331HGTRLF03","EFREN VERA SALGADO","11DPT0003O",null,null,null,null,null,null,null,"X",null,null,null,null,null,null,null,1,null,null,7510.4400000000005]
[null,"GUANAJUATO","FOBD780903IT3","FOBD780903HGTNDV05","DAVID FONSECA BEDOLLA","11DPT0004N",null,null,null,null,null,null,null,"X",null,null,null,null,null,null,null,1,null,null,10909.56]
[null,"GUANAJUATO","GAVJ851126FM4","GAVJ851126HGTRYV07","JAVIER GARCIA VIEYRA","11DPT0004N",null,null,null,null,null,null,null,"X",null,null,null,null,null,null,null,1,null,null,9243.5999999999985]
[null,"GUANAJUATO","HEDA800812DP2","HEDA800812HGTTZD09","ADRIAN HERNANDEZ DIAZ","11DPT0004N",null,null,null,null,null,null,null,"X",null,null,null,null,null,null,null,1,null,null,10976.789999999999]
[null,"GUANAJUATO","LOBL610801UA2","LOBL610801HGTPDS05","LUIS LOPEZ BEDOLLA","11DPT0004N",null,null,null,null,null,null,null,"X",null,null,null,null,null,null,null,1,null,null,12029.07]
[null,"GUANAJUATO","LOLB790114RE0","HERN811104MMNRJB02","NUBIA VANNESA HERNANDEZ ROJAS","11DPT0004N",null,null,null,null,null,null,null,"X",null,null,null,null,null,null,null,1,null,null,5481.2100000000009]
[null,"GUANAJUATO",null,"LOLB790114MGTPPR08","BERENICE LOPEZ LOPEZ","11DPT0004N",null,null,null,null,null,null,null,"X",null,null,null,null,null,null,null,1,null,null,2271.4500000000003]
[null,"GUANAJUATO","LOOE660716UY7","LOOE660716HGTPJD01","EDUARDO LOPEZ OJEDA","11DPT0004N",null,null,null,null,null,null,null,"X",null,null,null,null,null,null,null,1,null,null,1659.8799999999999]
[null,"GUANAJUATO","MAHS851214LA6","MAHS851214MGTRRN01","SANDRA MARTINEZ HERNANDEZ","11DPT0004N",null,null,null,null,null,null,null,"X",null,null,null,null,null,null,null,1,null,null,5481.2100000000009]
[null,"GUANAJUATO","PEAA590708RJ5","PEAA590708HDFRLD08","JOSE ADRIAN ARTURO PEREZ ALVAREZ","11DPT0004N",null,null,null,null,null,null,null,"X",null,null,null,null,null,null,null,1,null,null,9243.5999999999985]
[null,"GUANAJUATO","PEEJ780324IC1","PEEJ780324HMNRSN01","JUAN FERNANDO PEREZ ESPINO","11DPT0004N",null,null,null,null,null,null,null,"X",null,null,null,null,null,null,null,1,null,null,8446.4599999999991]
[null,"GUANAJUATO","RUDJ780213NV6","RUDJ780213HGTZZN04","JUAN CARLOS RUIZ DIAZ","11DPT0004N",null,null,null,null,null,null,null,"X",null,null,null,null,null,null,null,1,null,null,13095.12]
[null,"GUANAJUATO","SADF620323P95","SADF620323HDGNVD00","FIDEL SANCHEZ DAVILA","11DPT0004N",null,null,null,null,null,null,null,"X",null,null,null,null,null,null,null,1,null,null,9417.26]
[null,"GUANAJUATO","SAVE451129SN8","SAVE451129HGTLRL03","ELIGIO SALGADO VARGAS","11DPT0004N",null,null,null,null,null,null,null,"X",null,null,null,null,null,null,null,1,null,null,9375.5]
[null,"GUANAJUATO","SOGE770916E73","SOGE770916MDFLNL08","MARIA ELENA SOLIS GONZALEZ","11DPT0004N",null,null,null,null,null,null,null,"X",null,null,null,null,null,null,null,1,null,null,20004.780000000002]
[null,"GUANAJUATO","TITC671201BBA","TITC671201HMNNNR07","CRESCENCIANO TINOCO TINOCO","11DPT0004N",null,null,null,null,null,null,null,"X",null,null,null,null,null,null,null,1,null,null,17782]
[null,"GUANAJUATO","VIRD850905EA2","VIRD850905MGTLDY04","DEYSI VILLANUEVA RODRIGUEZ","11DPT0004N",null,null,null,null,null,null,null,"X",null,null,null,null,null,null,null,1,null,null,17331.780000000002]
[null,"GUANAJUATO","ZAHR840210PN9","ZAHR840210HGTVRD05","RODOLFO ANTONIO ZAVALA HERNANDEZ","11DPT0004N",null,null,null,null,null,null,null,"X",null,null,null,null,null,null,null,1,null,null,7037.1900000000005]
[null,"GUANAJUATO","ZAPJ830703848","ZAPJ830703HGTMRN07","JUAN MARCIAL ZAMUDIO PEREZ","11DPT0004N",null,null,null,null,null,null,null,"X",null,null,null,null,null,null,null,1,null,null,12029.07]
[null,"GUANAJUATO","AICF790308Q83","AICF790308HGTMLR01","FERNANDO AMBRIZ COLIN","11DPT0005M",null,null,null,null,null,null,null,"X",null,null,null,null,null,null,null,1,null,null,13336.52]
[null,"GUANAJUATO","AOMR770309JR5","AOMR770309MGTCRS03","ROSAURA ACOSTA MORENO","11DPT0005M",null,null,null,null,null,null,null,"X",null,null,null,null,null,null,null,1,null,null,8665.89]
[null,"GUANAJUATO","AULG650807MX2","AULG650807MCLGPD08","MARIA GUADALUPE AGUILAR LOPEZ","11DPT0005M",null,null,null,null,null,null,null,"X",null,null,null,null,null,null,null,1,null,null,4621.8]
[null,"GUANAJUATO","BACL660127PY3","BACL660127HGTRNS02","JOSE LUIS BRAVO CANO","11DPT0005M",null,null,null,null,null,null,null,"X",null,null,null,null,null,null,null,1,null,null,14443.14]
[null,"GUANAJUATO","BAGG740408RC0","BAGG740408MGTZRB07","GABRIELA BAEZA GARCIA","11DPT0005M",null,null,null,null,null,null,null,"X",null,null,null,null,null,null,null,1,null,null,4621.8]
[null,"GUANAJUATO","BAPA800509JH2","BAPA800509HDFRRL06","ALAN BAROJAS PEREZ","11DPT0005M",null,null,null,null,null,null,null,"X",null,null,null,null,null,null,null,1,null,null,18294.649999999998]
[null,"GUANAJUATO","BASM671211R18","BASM671211MGTCNR06","MARTHA PATRICIA BACA SANCHEZ","11DPT0005M",null,null,null,null,null,null,null,"X",null,null,null,null,null,null,null,1,null,null,11554.52]
[null,"GUANAJUATO","CACR540413CR4","CACR540413HBCSSL00","RAUL CASTAﾑEDA CASTRO","11DPT0005M",null,null,null,null,null,null,null,"X",null,null,null,null,null,null,null,1,null,null,11554.5]
[null,"GUANAJUATO","CUGV730427G51","CUGV730427HGTLMC00","VICTOR MANUEL CUELLAR GOMEZ","11DPT0005M",null,null,null,null,null,null,null,"X",null,null,null,null,null,null,null,1,null,null,16176.300000000001]
[null,"GUANAJUATO","DABG810704HX9","DABG810704HGTMRR08","GERSON FALCAO DAMIAN BRAVO","11DPT0005M",null,null,null,null,null,null,null,"X",null,null,null,null,null,null,null,1,null,null,10399.049999999999]
[null,"GUANAJUATO","EIDR500307HY1","EIDR500307HGTNLN02","JOSE RENE ENRIQUEZ DELGADO","11DPT0005M",null,null,null,null,null,null,null,"X",null,null,null,null,null,null,null,1,null,null,10399.049999999999]
[null,"GUANAJUATO","GABM720316FV9","GABM720316MGTLRR09","MARTHA PATRICIA GARCIA BELTRAN","11DPT0005M",null,null,null,null,null,null,null,"X",null,null,null,null,null,null,null,1,null,null,9628.76]
[null,"GUANAJUATO","GASR730617EQ9","GASR730619MGTRLS03","ROSA MARIA GARCIA  SILVA","11DPT0005M",null,null,null,null,null,null,null,"X",null,null,null,null,null,null,null,1,null,null,4621.8]
[null,"GUANAJUATO","LEGR710831DD0","LEGR710831HGTSNL02","RAUL LESSO GONZALEZ ","11DPT0005M",null,null,null,null,null,null,null,"X",null,null,null,null,null,null,null,1,null,null,2259.75]
[null,"GUANAJUATO","MABG7804019Z5","MABG780401MGTCRL00","GLORIA ELENA MACIEL  BARAJAS","11DPT0005M",null,null,null,null,null,null,null,"X",null,null,null,null,null,null,null,1,null,null,17331.780000000002]
[null,"GUANAJUATO","MAGD5812285Y1","MAGD581228MGTRRL00","MARIA DOLORES MARTINEZ  GARCIA","11DPT0005M",null,null,null,null,null,null,null,"X",null,null,null,null,null,null,null,1,null,null,4248.6399999999994]
[null,"GUANAJUATO","MARJ690613N97","MARJ690613HGTGYN00","JUAN MIGUEL MAGAﾑA  RAYA","11DPT0005M",null,null,null,null,null,null,null,"X",null,null,null,null,null,null,null,1,null,null,15421.5]
[null,"GUANAJUATO","PAAM820226JB0","PAAM820226HGTRGR02","MARTIN PRADO AGUILAR","11DPT0005M",null,null,null,null,null,null,null,"X",null,null,null,null,null,null,null,1,null,null,15421.5]
[null,"GUANAJUATO","ROLM821117536","ROLM821117HGTDPN05","MANUEL CHRISTIAN JARED RODRIGUEZ  LOPEZ","11DPT0005M",null,null,null,null,null,null,null,"X",null,null,null,null,null,null,null,1,null,null,6932.7]
[null,"GUANAJUATO","RURL700528JKA","RURL700528MGTZDZ03","LUZ MARIA RUIZ RODRIGUEZ","11DPT0005M",null,null,null,null,null,null,null,"X",null,null,null,null,null,null,null,1,null,null,20220.400000000001]
[null,"GUANAJUATO","SAMR641029MF0","SAMR641029HGTMNB09","ROBERTO SANTOYO MENDOZA","11DPT0005M",null,null,null,null,null,null,null,"X",null,null,null,null,null,null,null,1,null,null,3427]
[null,"GUANAJUATO","TOVJ770823IY6","TOVJ770823HGTRRM05","JUAN MANUEL TORRES  VERA","11DPT0005M",null,null,null,null,null,null,null,"X",null,null,null,null,null,null,null,1,null,null,15421.5]
[null,"GUANAJUATO","VAFI6312015P7","VAFI631201MGTRLR02","IRMA VARGAS  FLORES","11DPT0005M",null,null,null,null,null,null,null,"X",null,null,null,null,null,null,null,1,null,null,10002.39]
[null,"GUANAJUATO","VITF791111L77","VITF791111HGTLVR01","FRANCISCO VILLAFAﾑA  TAVERA","11DPT0005M",null,null,null,null,null,null,null,"X",null,null,null,null,null,null,null,1,null,null,8858.4599999999991]
[null,"GUANAJUATO","BEGR700112IU3","BEGR700112MGTRRB08","MA REBECA BERNAL GORDILLO","11DPT0006L",null,null,null,null,null,null,null,"X",null,null,null,null,null,null,null,1,null,null,6168.6]
[null,"GUANAJUATO","CAGG841115NK6","CAGG841115MGTLNL08","GIULIANA CALDERON GONZALEZ","11DPT0006L",null,null,null,null,null,null,null,"X",null,null,null,null,null,null,null,1,null,null,9368.08]
[null,"GUANAJUATO","COPG691022N6A","COPG691022MGTNRD16","MA GUADALUPE CONTRERAS PEREZ","11DPT0006L",null,null,null,null,null,null,null,"X",null,null,null,null,null,null,null,1,null,null,10669.2]
[null,"GUANAJUATO","EILO590921526","EILO590921MGTSNF06","OFELIA ESPINOSA LUNA","11DPT0006L",null,null,null,null,null,null,null,"X",null,null,null,null,null,null,null,1,null,null,8446.4599999999991]
[null,"GUANAJUATO","EIME671030L39","EIME671030HGTSRD00","EDUARDO ESPINO MIRANDA","11DPT0006L",null,null,null,null,null,null,null,"X",null,null,null,null,null,null,null,1,null,null,10669.2]
[null,"GUANAJUATO","GASM760821854","GASS760821MGTRTC10","MA. DEL SOCORRO GARCIA SOTELO","11DPT0006L",null,null,null,null,null,null,null,"X",null,null,null,null,null,null,null,1,null,null,5777.26]
[null,"GUANAJUATO","GUSG880306VD5","GUSG880306HGTLNR09","GERARDO GUILLEN SANCHEZ","11DPT0006L",null,null,null,null,null,null,null,"X",null,null,null,null,null,null,null,1,null,null,6982.8900000000012]
[null,"GUANAJUATO","LUWR540208FX7","LUWR540208MDFNRB04","REBECA LUNA WIARCO","11DPT0006L",null,null,null,null,null,null,null,"X",null,null,null,null,null,null,null,1,null,null,8473.2999999999993]
[null,"GUANAJUATO","MAGM780331EF7","MAGM780331MGTRZR08","MARIANA MARIN GUZMAN","11DPT0006L",null,null,null,null,null,null,null,"X",null,null,null,null,null,null,null,1,null,null,31528.399999999998]
[null,"GUANAJUATO","MAJT7906215T2","MAJT790621MGTNRR01","TERESA MANDUJANO JURADO","11DPT0006L",null,null,null,null,null,null,null,"X",null,null,null,null,null,null,null,1,null,null,11713.81]
[null,"GUANAJUATO","MAMA660610965","MAMA660610HGTRLR00","ARMANDO MARTINEZ MALDONADO","11DPT0006L",null,null,null,null,null,null,null,"X",null,null,null,null,null,null,null,1,null,null,16003.8]
[null,"GUANAJUATO","OISA541015SQ0","OISA541015HGTRLL00","ALEJANDRO ORTIZ SILVA","11DPT0006L",null,null,null,null,null,null,null,"X",null,null,null,null,null,null,null,1,null,null,21338.400000000001]
[null,"GUANAJUATO","SAMC7308072M6","SAMC730807MGTNRR25","MA. DEL CARMEN SANCHEZ MORENO","11DPT0006L",null,null,null,null,null,null,null,"X",null,null,null,null,null,null,null,1,null,null,9243.6]
[null,"GUANAJUATO","SOAE851129KH7","SOAE851129MGTTCS09","ESPERANZA SOTO ACEVEDO","11DPT0006L",null,null,null,null,null,null,null,"X",null,null,null,null,null,null,null,1,null,null,15406]
[null,"GUANAJUATO","VAAJ751004U60","VAAJ751004MGTLRN04","JUANA YANET VALDEZ ARGUELLO","11DPT0006L",null,null,null,null,null,null,null,"X",null,null,null,null,null,null,null,1,null,null,5007.88]
[null,"GUANAJUATO","VAMM770825UBA","VAMM770825HGTLLG05","JOSE MIGUEL VALDEZ MALDONADO","11DPT0006L",null,null,null,null,null,null,null,"X",null,null,null,null,null,null,null,1,null,null,27416]
[null,"GUANAJUATO","ZASJ710817C96","ZASJ710817MGTVLL06","JULIA XIOMARA ZAVALA SALAS","11DPT0006L",null,null,null,null,null,null,null,"X",null,null,null,null,null,null,null,1,null,null,32007.599999999995]
[null,"GUANAJUATO","COBT640419U79","COBT640419HGTRZD01"," TEODORO CORTES BUZO","11DPT0007K",null,null,null,null,null,null,null,"X",null,null,null,null,null,null,null,1,null,null,5112.33]
[null,"GUANAJUATO","EOTJ551129MU2","EOTS551129HGTSPT10"," J. SATURNINO ESCOTO TAPIA","11DPT0007K",null,null,null,null,null,null,null,"X",null,null,null,null,null,null,null,1,null,null,2667.3]
[null,"GUANAJUATO","GACM6402137QA","GACM640213MGTRNR05","MARICELA GARCIA CHAVEZ","11DPT0007K",null,null,null,null,null,null,null,"X",null,null,null,null,null,null,null,1,null,null,4890.05]
[null,"GUANAJUATO","GAGA6703123EA","GAGA670312HGTSNL02","JOSE ALFREDO GASCA GONZALEZ","11DPT0007K",null,null,null,null,null,null,null,"X",null,null,null,null,null,null,null,1,null,null,26673]
[null,"GUANAJUATO","GARG881113FV7","GARG881113HGTRDL05","GUILLERMO GARCIA RODRIGUEZ","11DPT0007K",null,null,null,null,null,null,null,"X",null,null,null,null,null,null,null,1,null,null,10909.56]
[null,"GUANAJUATO","GOOC7007237B8","GOOC700123MGTMRR07","MA. DEL CARMEN GOMEZ OROPEZA","11DPT0007K",null,null,null,null,null,null,null,"X",null,null,null,null,null,null,null,1,null,null,4667.78]
[null,"GUANAJUATO","GUHG690324J87","GUHG690324HGTTRB00","GABRIEL GUTIERREZ HERNANDEZ","11DPT0007K",null,null,null,null,null,null,null,"X",null,null,null,null,null,null,null,1,null,null,3334.13]
[null,"GUANAJUATO","GUHR661007QW0","GUHR661007MGTTRC18","ROCIO DEL ROSARIO GUTIERREZ HERNANDEZ","11DPT0007K",null,null,null,null,null,null,null,"X",null,null,null,null,null,null,null,1,null,null,41343.18]
[null,"GUANAJUATO","GULM751128QC4","GULM751128HGTRNR07","MARIO DE JESUS GUERRERO LUNA","11DPT0007K",null,null,null,null,null,null,null,"X",null,null,null,null,null,null,null,1,null,null,10224.66]
[null,"GUANAJUATO","GUMR8110123U3","GUMR811012HCHZNM08","RAMIRO GUZMAN MONTES","11DPT0007K",null,null,null,null,null,null,null,"X",null,null,null,null,null,null,null,1,null,null,12041.4]
[null,"GUANAJUATO","HEAM5406144E9","HEAM540614MDFRRR09","MARISELA HERRERA ARVIZU","11DPT0007K",null,null,null,null,null,null,null,"X",null,null,null,null,null,null,null,1,null,null,10669.2]
[null,"GUANAJUATO","LAMV790816C4A","LAMV790816MGTRNN04","VANESSA GEOVANNA LARIOS MINJARES","11DPT0007K",null,null,null,null,null,null,null,"X",null,null,null,null,null,null,null,1,null,null,7078.48]
[null,"GUANAJUATO","LELJ740926PK3","LELJ740926HJCNPN01","JUAN ANTONIO LEON LOPEZ","11DPT0007K",null,null,null,null,null,null,null,"X",null,null,null,null,null,null,null,1,null,null,6668.26]
[null,"GUANAJUATO","LORF540804250","LORF540804HJCPLR09","FRANCISCO JAVIER LOPEZ RUELAS","11DPT0007K",null,null,null,null,null,null,null,"X",null,null,null,null,null,null,null,1,null,null,5334.6]
[null,"GUANAJUATO","MAMD780104125","MAMD780104MGTTRL05","MARIA DOLORES MATA MARTINEZ","11DPT0007K",null,null,null,null,null,null,null,"X",null,null,null,null,null,null,null,1,null,null,5112.33]
[null,"GUANAJUATO","MESM670501FH5","MESM670501HDFNGR03","MARCO ALFREDO MENDOZA SEGURA","11DPT0007K",null,null,null,null,null,null,null,"X",null,null,null,null,null,null,null,1,null,null,15764.2]
[null,"GUANAJUATO","MORB790906FV5","MORB790906MGTNSR05","BERTHA ALICIA MONJARAZ RIOS","11DPT0007K",null,null,null,null,null,null,null,"X",null,null,null,null,null,null,null,1,null,null,10669.2]
[null,"GUANAJUATO","MOVM841118881","MOVM841118MGTNRR09","MARIELA MONTIEL  VERA","11DPT0007K",null,null,null,null,null,null,null,"X",null,null,null,null,null,null,null,1,null,null,17782]
[null,"GUANAJUATO","NAGM7308014C0","NAGM730801MGTJZR05"," MARCELA NAJERA GUZMAN ","11DPT0007K",null,null,null,null,null,null,null,"X",null,null,null,null,null,null,null,1,null,null,17331.780000000002]
[null,"GUANAJUATO","OEGR7911068I7","OEGR791106MGTRMS01"," ROSA MARIA ORNELAS  GOMEZ","11DPT0007K",null,null,null,null,null,null,null,"X",null,null,null,null,null,null,null,1,null,null,8001.9000000000005]
[null,"GUANAJUATO","OIAE780131HL9","OIAE780131HGTNLD06","EDGAR JIONEL ONTIVEROS ALCALA","11DPT0007K",null,null,null,null,null,null,null,"X",null,null,null,null,null,null,null,1,null,null,20004.780000000002]
[null,"GUANAJUATO","OIMD8504181Z5","OIMD850418MGTLRN00","DIANA OLIVA MORENO","11DPT0007K",null,null,null,null,null,null,null,"X",null,null,null,null,null,null,null,1,null,null,6932.7]
[null,"GUANAJUATO","RICE740107C14","RICE740107MGTVSR06","  ERIKA ADRIANA RIVERA CISNEROS   ","11DPT0007K",null,null,null,null,null,null,null,"X",null,null,null,null,null,null,null,1,null,null,9243.6]
[null,"GUANAJUATO","ROHO780227K98","ROXH780227MGTCXN02","HONORINA PAOLA * ROCHA","11DPT0007K",null,null,null,null,null,null,null,"X",null,null,null,null,null,null,null,1,null,null,10669.2]
[null,"GUANAJUATO","RORL860709G29","RORL860709MGTDML06","LILIA BERENICE RODRIGUEZ RAMIREZ","11DPT0007K",null,null,null,null,null,null,null,"X",null,null,null,null,null,null,null,1,null,null,3255.65]
[null,"GUANAJUATO","ROZA8409121VA","ROZA840912MGTDXL02","ALMA ROSARIO RODRIGUEZ ZUﾑIGA","11DPT0007K",null,null,null,null,null,null,null,"X",null,null,null,null,null,null,null,1,null,null,8668.74]
[null,"GUANAJUATO","RUBS800124TR0","RUBS800124HGTZRL06","SAUL RUIZ BERBENA","11DPT0007K",null,null,null,null,null,null,null,"X",null,null,null,null,null,null,null,1,null,null,22227.5]
[null,"GUANAJUATO","SOMJ5508087H2","SOMJ550808MGTTRN02","JUANA SOTO MORAN","11DPT0007K",null,null,null,null,null,null,null,"X",null,null,null,null,null,null,null,1,null,null,12132.24]
[null,"GUANAJUATO","TAGL820524R17","TAGL820524MGTPMZ06"," MARIA DE LA LUZ TAPIA GOMEZ     ","11DPT0007K",null,null,null,null,null,null,null,"X",null,null,null,null,null,null,null,1,null,null,12303.46]
[null,"GUANAJUATO","TIEA7005021TA","TIEA700502MDFHSN02"," ANGELICA THIRION ESCUDER  ","11DPT0007K",null,null,null,null,null,null,null,"X",null,null,null,null,null,null,null,1,null,null,18004.29]
[null,"GUANAJUATO","UIRA650703JZ5","UIRA650703MDFRML07"," MARIA ALEJANDRA URIBE RAMIREZ  ","11DPT0007K",null,null,null,null,null,null,null,"X",null,null,null,null,null,null,null,1,null,null,22227.5]
[null,"GUANAJUATO","VIBM7702283A2","VIBM770228HDFLRR01","MAURICIO VILCHIS BARCENAS ","11DPT0007K",null,null,null,null,null,null,null,"X",null,null,null,null,null,null,null,1,null,null,20004.780000000002]
[null,"GUANAJUATO","EIEA830501N66","EIEA830501MGTSSN05","ANDREA ESPITIA ESPITIA","11DPT0008J",null,null,null,null,null,null,null,"X",null,null,null,null,null,null,null,1,null,null,10633.02]
[null,"GUANAJUATO","EIGG680608R24","EIGG680608HGTSNR01","GERARDO ESPITIA GONZALEZ","11DPT0008J",null,null,null,null,null,null,null,"X",null,null,null,null,null,null,null,1,null,null,20027.8]
[null,"GUANAJUATO","GACP660324G26","GACP660324HGTLPD03","PEDRO GALVEZ CAPORAL","11DPT0008J",null,null,null,null,null,null,null,"X",null,null,null,null,null,null,null,1,null,null,9183.0800000000017]
[null,"GUANAJUATO","GOGF7511182R7","GOGF751118HGTNSR05","FRANCISCO JAVIER GONZALEZ GASCA","11DPT0008J",null,null,null,null,null,null,null,"X",null,null,null,null,null,null,null,1,null,null,4621.8]
[null,"GUANAJUATO","GOHM731017127","GOHM731017HGTMRG05","MIGUEL ANGEL GOMEZ HERNANDEZ","11DPT0008J",null,null,null,null,null,null,null,"X",null,null,null,null,null,null,null,1,null,null,10045.34]
[null,"GUANAJUATO","GOPA710319IB0","GOPA710319HGTNRD02","ADAN ALEJANDRO GONZALEZ PRESA","11DPT0008J",null,null,null,null,null,null,null,"X",null,null,null,null,null,null,null,1,null,null,16670.650000000001]
[null,"GUANAJUATO","GOPR781214HT1","GOPR781214HGTNRD05","RODOLFO GONZALEZ PRESA","11DPT0008J",null,null,null,null,null,null,null,"X",null,null,null,null,null,null,null,1,null,null,3521.24]
[null,"GUANAJUATO","GOVA7403201E8","GOVA740320HGTMLR06","JOSE ARMANDO GOMEZ VALENCIA","11DPT0008J",null,null,null,null,null,null,null,"X",null,null,null,null,null,null,null,1,null,null,10156.18]
[null,"GUANAJUATO","HEEF6801012R8","HEEF680101HHGRSL09","FELIPE HERNANDEZ ESTRADA","11DPT0008J",null,null,null,null,null,null,null,"X",null,null,null,null,null,null,null,1,null,null,11558.3]
[null,"GUANAJUATO","HEFJ700120711","HEFG700120HGTRSD12","J. GUADALUPE HERNANDEZ FISCAL","11DPT0008J",null,null,null,null,null,null,null,"X",null,null,null,null,null,null,null,1,null,null,17782]
[null,"GUANAJUATO","HEMB820716LV7","HEMB820716MGTRDR06","BRENDA HERNANDEZ MEDINA","11DPT0008J",null,null,null,null,null,null,null,"X",null,null,null,null,null,null,null,1,null,null,8224.7999999999993]
[null,"GUANAJUATO","JULA7109296W5","JULA710929HGTRNL01","ALEJANDRO JUAREZ LEON","11DPT0008J",null,null,null,null,null,null,null,"X",null,null,null,null,null,null,null,1,null,null,23646.3]
[null,"GUANAJUATO","LACD700106TJ4","LACD700106HMCGRV02","DAVID LAGUNA CARRANCO","11DPT0008J",null,null,null,null,null,null,null,"X",null,null,null,null,null,null,null,1,null,null,20004.780000000002]
[null,"GUANAJUATO","LOGS791206JH1","LOGS791206HGTPPR07","SERGIO LOPEZ GUAPO","11DPT0008J",null,null,null,null,null,null,null,"X",null,null,null,null,null,null,null,1,null,null,11309.099999999999]
[null,"GUANAJUATO","LOVV821208K16","LOVV821208HGTPZC03","VICTOR HUGO LOPEZ VAZQUEZ","11DPT0008J",null,null,null,null,null,null,null,"X",null,null,null,null,null,null,null,1,null,null,11309.099999999999]
[null,"GUANAJUATO","MAMG691216UYA","MAMG691216HGTRRD04","JOSE GUADALUPE RAUL MARTINEZ MORENO","11DPT0008J",null,null,null,null,null,null,null,"X",null,null,null,null,null,null,null,1,null,null,3427]
[null,"GUANAJUATO","QUMN8108073JA","QUMN810807MGTNRR05","NEIRA JENNIFER QUINTERO MORENO","11DPT0008J",null,null,null,null,null,null,null,"X",null,null,null,null,null,null,null,1,null,null,15598.59]
[null,"GUANAJUATO","RONE740321QJ6","RONE740321MGTJTS01","MARIA ESTHER ROJAS NIETO","11DPT0008J",null,null,null,null,null,null,null,"X",null,null,null,null,null,null,null,1,null,null,26673]
[null,"GUANAJUATO","ROQJ571205C63","ROQJ571205HGTBNV03","JAVIER ROBLES QUINTANILLA","11DPT0008J",null,null,null,null,null,null,null,"X",null,null,null,null,null,null,null,1,null,null,15117]
[null,"GUANAJUATO","VALS820325LX7","VALS820325MGTLNL09","SILVIA NANCY VALADEZ LEON","11DPT0008J",null,null,null,null,null,null,null,"X",null,null,null,null,null,null,null,1,null,null,18004.29]
[null,"GUANAJUATO","AACN800319VC6","AACN800319MGTYRY15","NAYELI DE JESUS AYALA CARRERA","11DPT0009I",null,null,null,null,null,null,null,"X",null,null,null,null,null,null,null,1,null,null,4814.38]
[null,"GUANAJUATO","AAGG8604281N4","AAGG860428MGTLRD04","MARIA GUADALUPE ALAMILLA GARCIA","11DPT0009I",null,null,null,null,null,null,null,"X",null,null,null,null,null,null,null,1,null,null,3427]
[null,"GUANAJUATO","AOZL870509M00","AOZL870509MGTLRC04","LUCIA ALONSO ZARAGOZA","11DPT0009I",null,null,null,null,null,null,null,"X",null,null,null,null,null,null,null,1,null,null,3500.26]
[null,"GUANAJUATO","CASM6003305D3","CASM600330HGTMTL02","MELCHOR CAMPOS SOTO","11DPT0009I",null,null,null,null,null,null,null,"X",null,null,null,null,null,null,null,1,null,null,19255.25]
[null,"GUANAJUATO","COGB581101LL6","COGB581101HGTRMN07","BENJAMIN CORONA GOMEZ","11DPT0009I",null,null,null,null,null,null,null,"X",null,null,null,null,null,null,null,1,null,null,5920.05]
[null,"GUANAJUATO","FEPD780323M00","FEPD780323MGTLRL01","DELIA FELIPE  PEREZ ","11DPT0009I",null,null,null,null,null,null,null,"X",null,null,null,null,null,null,null,1,null,null,7095]
[null,"GUANAJUATO","GOMO860112AC6","GOMO860112HDFNRM01","OMAR FRANCISCO GONZALEZ MARTINEZ","11DPT0009I",null,null,null,null,null,null,null,"X",null,null,null,null,null,null,null,1,null,null,6162.4]
[null,"GUANAJUATO","IACC631023AI2","IACC631023HGTBNH06","CUAUHTEMOC IBARRA CANO","11DPT0009I",null,null,null,null,null,null,null,"X",null,null,null,null,null,null,null,1,null,null,10399.06]
[null,"GUANAJUATO","MALS720215M37","MALS720215MGTRPR06","SARA MARTINEZ LOPEZ","11DPT0009I",null,null,null,null,null,null,null,"X",null,null,null,null,null,null,null,1,null,null,10399.049999999999]
[null,"GUANAJUATO","MATG681016SW7","MATG681016HGTGFR08","GERARDO MAGAﾑA TAFOYA","11DPT0009I",null,null,null,null,null,null,null,"X",null,null,null,null,null,null,null,1,null,null,15421.5]
[null,"GUANAJUATO","MEGM731204L93","MEGM731204MGTNZR02","MARISA MENDEZ GUZMAN","11DPT0009I",null,null,null,null,null,null,null,"X",null,null,null,null,null,null,null,1,null,null,9243.5999999999985]
[null,"GUANAJUATO","MOCM7012151Q9","MOCM701215MGTRNN01","MANUELA MORALES CENDEJAS","11DPT0009I",null,null,null,null,null,null,null,"X",null,null,null,null,null,null,null,1,null,null,2296.81]
[null,"GUANAJUATO","PEFD7301136V8","PEFD730113HGTRLV06","DAVID PEREZ FELIPE","11DPT0009I",null,null,null,null,null,null,null,"X",null,null,null,null,null,null,null,1,null,null,15117]
[null,"GUANAJUATO","PESA790927U25","PESA790927MGTRTN06","ANDREA MAGDALENA PEREZ SOTO","11DPT0009I",null,null,null,null,null,null,null,"X",null,null,null,null,null,null,null,1,null,null,10013.9]
[null,"GUANAJUATO","RARM770914S13","RARM770914HGTNYR07","MAURICIO RANGEL REYES","11DPT0009I",null,null,null,null,null,null,null,"X",null,null,null,null,null,null,null,1,null,null,13022.6]
[null,"GUANAJUATO","RIRG760502K16","RIRG760502MGTVDW04","GWENDOLYNE ERENDIRA RIVAS RODRIGUEZ","11DPT0009I",null,null,null,null,null,null,null,"X",null,null,null,null,null,null,null,1,null,null,2605.5100000000002]
[null,"GUANAJUATO","ROVA6201238U9","ROVA620123HGTDGL01","ALFONSO RODRIGUEZ VEGA","11DPT0009I",null,null,null,null,null,null,null,"X",null,null,null,null,null,null,null,1,null,null,21418.75]
[null,"GUANAJUATO","SAPR691204HS9","SAPR691204MGTNRS09","ROSA ELIA SANDOVAL PRADO","11DPT0009I",null,null,null,null,null,null,null,"X",null,null,null,null,null,null,null,1,null,null,15020.849999999999]
[null,"GUANAJUATO","SATJ701026RC3","SATJ701026HGTNFS09","JOSE SANCHEZ TAFOYA","11DPT0009I",null,null,null,null,null,null,null,"X",null,null,null,null,null,null,null,1,null,null,13336.52]
[null,"GUANAJUATO","SOSP630208MC6","SOSP630208HGTTCD07","PEDRO SOTO SAUCEDO","11DPT0009I",null,null,null,null,null,null,null,"X",null,null,null,null,null,null,null,1,null,null,7301.8399999999992]
[null,"GUANAJUATO","TEAR801024C6A","TEAR801024MGTJDS18","ROSA BEATRIZ TEJEDA ADAME","11DPT0009I",null,null,null,null,null,null,null,"X",null,null,null,null,null,null,null,1,null,null,2888.63]
[null,"GUANAJUATO","AAFO86011729A","AAFO860117MGTRRL08","OLGA ELIZABETH ARAUJO FERNANDEZ","11DPT0010Y",null,null,null,null,null,null,null,"X",null,null,null,null,null,null,null,1,null,null,4112.3999999999996]
[null,"GUANAJUATO","AALJ72112271A","AALJ721122MGTLZN08","JUANA CECILIA ALVAREZ LOZANO","11DPT0010Y",null,null,null,null,null,null,null,"X",null,null,null,null,null,null,null,1,null,null,4270.3499999999995]
[null,"GUANAJUATO","AUCR760401U5A","AUCR760401HGTGRC06","RICARDO AGUILAR CORONA","11DPT0010Y",null,null,null,null,null,null,null,"X",null,null,null,null,null,null,null,1,null,null,1632.08]
[null,"GUANAJUATO","BAVB810501LRA","BAVB810501MGTRLL01","BLANCA ELIZABETH BARAJAS VALLEJO","11DPT0010Y",null,null,null,null,null,null,null,"X",null,null,null,null,null,null,null,1,null,null,3255.65]
[null,"GUANAJUATO","CARL761027511","CARL761027MGTDZD04","LIDIA KAREM  CAUDILLO RIZO","11DPT0010Y",null,null,null,null,null,null,null,"X",null,null,null,null,null,null,null,1,null,null,8665.89]
[null,"GUANAJUATO","DIRS7905261S6","DIRS790526MJCZVR00","SAIRA  ESTHER DIAZ RIVERA","11DPT0010Y",null,null,null,null,null,null,null,"X",null,null,null,null,null,null,null,1,null,null,10281]
[null,"GUANAJUATO","HERE800329V17","HERE800329HGTRDD03","EDGAR IVﾁN HERNﾁNDEZ RODRﾍGUEZ","11DPT0010Y",null,null,null,null,null,null,null,"X",null,null,null,null,null,null,null,1,null,null,11169.36]
[null,"GUANAJUATO","LOVJ660127MI1","LOVJ660127HGTPLN03","JUAN LﾓPEZ VALENCIA","11DPT0010Y",null,null,null,null,null,null,null,"X",null,null,null,null,null,null,null,1,null,null,5777.25]
[null,"GUANAJUATO","MAVR720809AXA","MAVR720809MGTNZS05","ROSA BEATRIZ MANJARREZ VAZQUEZ","11DPT0010Y",null,null,null,null,null,null,null,"X",null,null,null,null,null,null,null,1,null,null,4389.83]
[null,"GUANAJUATO","MEMV791203112","MEVM791203HGTDZR15","MARIO MEDINA VﾁZQUEZ","11DPT0010Y",null,null,null,null,null,null,null,"X",null,null,null,null,null,null,null,1,null,null,8665.89]
[null,"GUANAJUATO","PEGO840715TW6","PEGO840715MGTRRL04","OLGA CRISTINA  PEREZ GUERRERO","11DPT0010Y",null,null,null,null,null,null,null,"X",null,null,null,null,null,null,null,1,null,null,2345.73]
[null,"GUANAJUATO","QUOG780110GB9","QUOG780110HGTNRN00","GONZALO  QUINTANA  ORTEGA ","11DPT0010Y",null,null,null,null,null,null,null,"X",null,null,null,null,null,null,null,1,null,null,4626.45]
[null,"GUANAJUATO","RAPB721103D6A","RAPB721103MMNMZT09","BEATRIZ EUGENIA RAMOS PAZ","11DPT0010Y",null,null,null,null,null,null,null,"X",null,null,null,null,null,null,null,1,null,null,9995.64]
[null,"GUANAJUATO","RARM6206207M6","RARM620620HGTMDN03","MANUEL RAMﾍREZ RODRﾍGUEZ","11DPT0010Y",null,null,null,null,null,null,null,"X",null,null,null,null,null,null,null,1,null,null,4248.6399999999994]
[null,"GUANAJUATO","RICA770621C14","RICA770621HDFCRL02","ALEJANDRO RICO CARMONA","11DPT0010Y",null,null,null,null,null,null,null,"X",null,null,null,null,null,null,null,1,null,null,6663.76]
[null,"GUANAJUATO","AALJ750316LPA","AALJ750316HGTYLS05","JOSE  AYALA  LULE ","11DPT0011X",null,null,null,null,null,null,null,"X",null,null,null,null,null,null,null,1,null,null,9298.3300000000017]
[null,"GUANAJUATO","BAEJ7111265C6","BAEJ711126HGTTSS04","JESUS MARIO  BAUTISTA  ESCAMILLA ","11DPT0011X",null,null,null,null,null,null,null,"X",null,null,null,null,null,null,null,1,null,null,6668.26]
[null,"GUANAJUATO","CARH670101MS3","CARH670101HGTRZC08","HECTOR  CARDENAS  RUIZ ","11DPT0011X",null,null,null,null,null,null,null,"X",null,null,null,null,null,null,null,1,null,null,11554.52]
[null,"GUANAJUATO","DICJ590119T4A","DICJ590119HGTZCS01","JOSE  DIAZ  COCILION ","11DPT0011X",null,null,null,null,null,null,null,"X",null,null,null,null,null,null,null,1,null,null,6668.84]
[null,"GUANAJUATO","EAMA860511UL8","EAMA860511MMNSRN08","ANA LUCIA ESCALANTE MARIN","11DPT0011X",null,null,null,null,null,null,null,"X",null,null,null,null,null,null,null,1,null,null,14443.150000000001]
[null,"GUANAJUATO","GAMA5108287F5","GAMA510828HGTRR609","AGUSTIN  GARDIAZABAL  MORALES ","11DPT0011X",null,null,null,null,null,null,null,"X",null,null,null,null,null,null,null,1,null,null,16003.8]
[null,"GUANAJUATO","GUCT560830E19","GUCT560830MGTRSR17","MA TERESA GUERRERO CASTRO","11DPT0011X",null,null,null,null,null,null,null,"X",null,null,null,null,null,null,null,1,null,null,22227.5]
[null,"GUANAJUATO","HECM670422CC4","HECM670422MDFRBR02","MARIA MARCELA  HERRERA  CEBALLOS ","11DPT0011X",null,null,null,null,null,null,null,"X",null,null,null,null,null,null,null,1,null,null,22227.5]
[null,"GUANAJUATO","HEMY820605MZ2","HEMY820605MGTRNL07","YOLANDA  HERNANDEZ  MONTOYA ","11DPT0011X",null,null,null,null,null,null,null,"X",null,null,null,null,null,null,null,1,null,null,4455.1000000000004]
[null,"GUANAJUATO","LUCF7002115Q9","LUCF700211HGTLND05","FIDEL  LULE  CONTRERAS ","11DPT0011X",null,null,null,null,null,null,null,"X",null,null,null,null,null,null,null,1,null,null,10669.2]
[null,"GUANAJUATO","MAHA821225TQ5","MAHA821225MGTRRL02","ALEJANDRA  MARTINEZ  HERNANDEZ ","11DPT0011X",null,null,null,null,null,null,null,"X",null,null,null,null,null,null,null,1,null,null,9385.98]
[null,"GUANAJUATO","MOSA681126R27","MOSA681126MGTNRN06","MA ANGELES  MONTERO  SIERRA ","11DPT0011X",null,null,null,null,null,null,null,"X",null,null,null,null,null,null,null,1,null,null,17782]
[null,"GUANAJUATO","NAFE720728918","NAFE720728MDFVRV08","EVANGELINA NAVARRETE FARFAN","11DPT0011X",null,null,null,null,null,null,null,"X",null,null,null,null,null,null,null,1,null,null,10909.56]
[null,"GUANAJUATO","PATF850801UJA","PATF850801HGTLPR02","FRANCISCO EVERARDO  PLAZA  TAPIA ","11DPT0011X",null,null,null,null,null,null,null,"X",null,null,null,null,null,null,null,1,null,null,12337.199999999999]
[null,"GUANAJUATO","RAGE851021JI8","RAGE851021MGTYML08","ELVIA SUSANA RAYA GOMEZ","11DPT0011X",null,null,null,null,null,null,null,"X",null,null,null,null,null,null,null,1,null,null,12851.25]
[null,"GUANAJUATO","RISA740722842","RISA740722MGTCNL08","ALEJANDRA  RICALDE  SANCHEZ ","11DPT0011X",null,null,null,null,null,null,null,"X",null,null,null,null,null,null,null,1,null,null,5518.92]
[null,"GUANAJUATO","SACF740918BK7","SACF740918HJCNML11","FELIX SANCHEZ CAMPOS","11DPT0011X",null,null,null,null,null,null,null,"X",null,null,null,null,null,null,null,1,null,null,2306.5300000000002]
[null,"GUANAJUATO","SACM860807000","SACM860807HGTMMN00","JOSE MANUEL SAMANO CAMARGO","11DPT0011X",null,null,null,null,null,null,null,"X",null,null,null,null,null,null,null,1,null,null,20027.8]
[null,"GUANAJUATO","SIPH640527P81","SIPH640527HGTRRG09","HUGO EVERARDO  SIERRA  PARADA ","11DPT0011X",null,null,null,null,null,null,null,"X",null,null,null,null,null,null,null,1,null,null,13336.5]
[null,"GUANAJUATO","ZAMJ740416EMO","ZAMJ740416HDFMXR00","JORGE ZAMORA MUﾑIZ","11DPT0011X",null,null,null,null,null,null,null,"X",null,null,null,null,null,null,null,1,null,null,6162.4]
[null,"GUANAJUATO","AEDI770518OLA","AEDI770518HGTRRS01","ISRAEL ARMANDO ARREDONDO  DORANTES","11DPT0012W",null,null,null,null,null,null,null,"X",null,null,null,null,null,null,null,1,null,null,4839.22]
[null,"GUANAJUATO","AUMJ800706AM9","AUMJ800706HMCGRL14","JOEL AGUILLON MORALES","11DPT0012W",null,null,null,null,null,null,null,"X",null,null,null,null,null,null,null,1,null,null,4814.38]
[null,"GUANAJUATO","BAMV8801104X4","BAMV880110MGTRNR09","VERONICA GUADALUPE BRAVO MONTES","11DPT0012W",null,null,null,null,null,null,null,"X",null,null,null,null,null,null,null,1,null,null,10909.56]
[null,"GUANAJUATO","BASC910503127","BASC910503MGTZNR03","MARIA CRUZ BAEZA SANCHEZ","11DPT0012W",null,null,null,null,null,null,null,"X",null,null,null,null,null,null,null,1,null,null,5582.68]
[null,"GUANAJUATO","CACV851205PW0","CACV851205MQTRRR00","VERA CABELLO  CORONA","11DPT0012W",null,null,null,null,null,null,null,"X",null,null,null,null,null,null,null,1,null,null,4705.74]
[null,"GUANAJUATO","COVI910507TA9","COVI910507MQTNRT08","ITZMALSI GUADALUPE CONTRERAS VARGAS","11DPT0012W",null,null,null,null,null,null,null,"X",null,null,null,null,null,null,null,1,null,null,6854]
[null,"GUANAJUATO","EIHA7010296Z8","EIHA701029HGTSRL01","ALEJANDRO ESPINOSA HERNANDEZ","11DPT0012W",null,null,null,null,null,null,null,"X",null,null,null,null,null,null,null,1,null,null,4938.8100000000004]
[null,"GUANAJUATO","GARB840625CP8","GARB840625MQTLDR08","BRENDA LIDIA GALLEGOS RODRIGUEZ","11DPT0012W",null,null,null,null,null,null,null,"X",null,null,null,null,null,null,null,1,null,null,12337.199999999999]
[null,"GUANAJUATO","GOHS8907177Z1","GOHS890717MQTMRN05","SANDRA IRAIS GOMEZ HERNANDEZ","11DPT0012W",null,null,null,null,null,null,null,"X",null,null,null,null,null,null,null,1,null,null,6413.6500000000005]
[null,"GUANAJUATO","GOZV911104PZ4","GOZV911104HGTNMC06","VICTOR HUGO GONZALEZ ZAMUDIO","11DPT0012W",null,null,null,null,null,null,null,"X",null,null,null,null,null,null,null,1,null,null,2800.75]
[null,"GUANAJUATO","HELM570929SP5","HELM570929HQTRRG04","MIGUEL HERNANDEZ LIRA","11DPT0012W",null,null,null,null,null,null,null,"X",null,null,null,null,null,null,null,1,null,null,1850.49]
[null,"GUANAJUATO","JAAM590516MH6","JAAM590516HGTMRN03","MANUEL JAIME ARELLANO","11DPT0012W",null,null,null,null,null,null,null,"X",null,null,null,null,null,null,null,1,null,null,12337.199999999999]
[null,"GUANAJUATO","LOZE710604574","LOZE710604MGTZRG00","MA. EUGENIA LOZADA ZARAZUA ","11DPT0012W",null,null,null,null,null,null,null,"X",null,null,null,null,null,null,null,1,null,null,7040.25]
[null,"GUANAJUATO","MASA840303K12","MASA840303MDFRNN08","MARIA DE LOS ANGELES MARTINEZ SANCHEZ","11DPT0012W",null,null,null,null,null,null,null,"X",null,null,null,null,null,null,null,1,null,null,8507.7999999999993]
[null,"GUANAJUATO","MEGR720113GQ8","MEGR720113HMNRNM02","RAMIRO MERCADO  GONZALEZ","11DPT0012W",null,null,null,null,null,null,null,"X",null,null,null,null,null,null,null,1,null,null,34663.560000000005]
[null,"GUANAJUATO","MESL721106M79","MESL721106HMCNNC01","LUCIANO MENDOZA SANCHEZ","11DPT0012W",null,null,null,null,null,null,null,"X",null,null,null,null,null,null,null,1,null,null,17135]
[null,"GUANAJUATO","MOHS911002127","MOHS911002HMCNRR00","SERGIO MONTES DE OCA HURTADO","11DPT0012W",null,null,null,null,null,null,null,"X",null,null,null,null,null,null,null,1,null,null,6979.1500000000005]
[null,"GUANAJUATO","NOIG870606719","NOIG870606HMCGNS09","GUSTAVO NOGUEZ INIESTA","11DPT0012W",null,null,null,null,null,null,null,"X",null,null,null,null,null,null,null,1,null,null,4253.8899999999994]
[null,"GUANAJUATO","OIMG610814NA3","OIMG610814MGTRLD00","MA. GUADALUPE ORTIZ MELENDEZ","11DPT0012W",null,null,null,null,null,null,null,"X",null,null,null,null,null,null,null,1,null,null,17782]
[null,"GUANAJUATO","PABJ671110D69","PABJ671110HJCLRS08","JOSE DE JESUS PLASCENCIA BARAJAS","11DPT0012W",null,null,null,null,null,null,null,"X",null,null,null,null,null,null,null,1,null,null,5112.33]
[null,"GUANAJUATO","PARB8612287J6","PARB861228MGTCDR09","BARBARA PALOMA PACHECO  RODRIGUEZ","11DPT0012W",null,null,null,null,null,null,null,"X",null,null,null,null,null,null,null,1,null,null,8891]
[null,"GUANAJUATO","PEBG910930PM0","PEBG910930MQTRCD18","MARIA GUADALUPE PEREZ BECERRA","11DPT0012W",null,null,null,null,null,null,null,"X",null,null,null,null,null,null,null,1,null,null,6971.0800000000008]
[null,"GUANAJUATO","PEGR750725A34","PEGR750725HDFRTC00","RICARDO PEREZ GUTIERREZ","11DPT0012W",null,null,null,null,null,null,null,"X",null,null,null,null,null,null,null,1,null,null,3084.3]
[null,"GUANAJUATO","RERE660715NDA","RERE660715HGTYMN06","ENRIQUE REYES ROMERO","11DPT0012W",null,null,null,null,null,null,null,"X",null,null,null,null,null,null,null,1,null,null,8891]
[null,"GUANAJUATO","RORE431022TB0","RORE431022HGTDMD08","EDILBERTO RODRIGUEZ ROMERO","11DPT0012W",null,null,null,null,null,null,null,"X",null,null,null,null,null,null,null,1,null,null,22227.5]
[null,"GUANAJUATO","SOMJ860107SDA","SOMJ860107MTSSNS08","JESSICA SOSA MENA","11DPT0012W",null,null,null,null,null,null,null,"X",null,null,null,null,null,null,null,1,null,null,5112.33]
[null,"GUANAJUATO","VAMG850109N64","VAMG850109MBSZNB01","GABRIELA VAZQUEZ MONJARAZ","11DPT0012W",null,null,null,null,null,null,null,"X",null,null,null,null,null,null,null,1,null,null,20798.12]
[null,"GUANAJUATO","ZABA871015J40","ZABA871015HGTRCM04","AMANDO ZARAZUA BECERRA","11DPT0012W",null,null,null,null,null,null,null,"X",null,null,null,null,null,null,null,1,null,null,3969.8900000000003]
[null,"GUANAJUATO","ZARI821025R29","ZARI821025MGTRBG09","MARIA IGNACIA ZARAZUA  RUBIO ","11DPT0012W",null,null,null,null,null,null,null,"X",null,null,null,null,null,null,null,1,null,null,17331.78]
[null,"GUANAJUATO","AEAJ830601BM3","AEAJ830601HGTRRN02","JUAN RAMON ARELLANO  ARIAS","11DPT0014U",null,null,null,null,null,null,null,"X",null,null,null,null,null,null,null,1,null,null,13287.689999999999]
[null,"GUANAJUATO","CAPD830504746","CAPD830504HGTRTG05","DIEGO FELIPE CARDENAS PATIﾑO","11DPT0014U",null,null,null,null,null,null,null,"X",null,null,null,null,null,null,null,1,null,null,17331.75]
[null,"GUANAJUATO","RIMF850611721","RIMF850611MGTNJB09","FABIOLA RINCON  MOJICA","11DPT0014U",null,null,null,null,null,null,null,"X",null,null,null,null,null,null,null,1,null,null,13287.689999999999]
[null,"GUANAJUATO","SACG751101985","SACG751101HDFNRR03","GERARDO JAVIER SANCHEZ CARRANZA","11DPT0014U",null,null,null,null,null,null,null,"X",null,null,null,null,null,null,null,1,null,null,22675.5]
[null,"GUANAJUATO","SAMJ8108157T3","SAMJ810815HGTNTR06","JORGE ADRIAN SANCHEZ MATEHUALA","11DPT0014U",null,null,null,null,null,null,null,"X",null,null,null,null,null,null,null,1,null,null,12041.4]
[null,"GUANAJUATO","SAPG841029F61","SAPG841029HGTNRD01","JOSE GUADALUPE SANDOVAL PEREZ","11DPT0014U",null,null,null,null,null,null,null,"X",null,null,null,null,null,null,null,1,null,null,15117]
[null,"GUANAJUATO","VEFF790430A24","VEFF790430MGTNLT05","FATIMA NOHEMI VENEGAS FLORES","11DPT0014U",null,null,null,null,null,null,null,"X",null,null,null,null,null,null,null,1,null,null,8473.2999999999993]
[null,"Total Personas : ",795,null,null,null,null,null,null,null,null,null,null,null,null,null,null,null,null,null,null,"Total Recursos Ejercidos:",null,null,{"$f":"SUBTOTAL(109,Tabla11[Total de recursos presupuestales ejercidos en servicios personales en el periodo\n(2)])","v":28583643.840000004}]
[]
[null,"Fuente : Información proporcionada por las Entidades Federativas."]

{"sheet":"II D) 2","index":5,"n_rows":25,"n_cols":19,"rows_kept":25,"cut":false,"hidden":false,"merged":[[11,16,12,16],[11,15,12,15],[11,17,12,17],[11,18,12,18],[11,6,11,12],[11,13,12,13],[11,14,12,14],[8,1,8,9],[11,0,12,0],[11,1,12,1],[11,5,12,5],[11,2,12,2],[11,3,12,3],[11,4,12,4]]}
[]
[]
[]
[]
[]
[]
[]
[null,"Formato: Movimientos de Plazas"]
[null,{"$f":"IF('Caratula Resumen'!D22=\"Elige el Periodo…\",\"\",'Caratula Resumen'!D22)","v":"Fondo de Aportaciones para la Educación Tecnológica y de Adultos/Colegio Nacional de Educación Profesional Técnica (FAETA/CONALEP)"},null,null,null,null,null,null,null,null,null,null,null,null,null,null,null,{"$f":"IF('Caratula Resumen'!D23=\"Elige el Periodo…\",\"\",'Caratula Resumen'!D23)","v":"2do. Trimestre"}]
[]
[]
[null,"Entidad Federativa","RFC","CURP","Nombre","Origen Presupuestal\n de la plazas","Clave Presupuestal",null,null,null,null,null,null,"Clave de nivel de puesto","Clave de nivel de sueldo","Zona Económica","Tipo de movimiento","Quincena Inicial","Quincena Final"]
[null,null,null,null,null,null,"Partida Presupuestal","Código de Pago","Clave de Unidad","Clave de Sub Unidad","Clave de Categoría","Horas Semana Mes ","Número de Plaza"]
[]
[null,"Entidad Federativa","RFC","CURP","Nombbre","Origen Presupuestal\n de la plazas","Partida Presupuestal","Código de Pago","Clave de Unidad","Clave de Sub Unidad","Clave de Categoría","Horas semana mes","Número de plaza","Clave de nivel de puesto","Clave de nivel de sueldo","Zona Económica","Tipo de movimiento","Quincena Inicial","Quincena Final"]
[]
[]
[]
[]
[]
[null,"Total Personas : ",null,null,null,null,null,null,null,null,"Total Plazas : "]
[]
[]
[]
[null,"Fuente : Información proporcionada por las Entidades Federativas"]

{"sheet":"II C y 1_","index":6,"n_rows":816,"n_cols":22,"rows_kept":816,"cut":false,"hidden":false,"merged":[[11,21,12,21],[11,8,12,8],[11,9,11,15],[11,16,12,16],[11,17,12,17],[8,1,8,8],[11,1,12,1],[11,2,12,2],[11,5,12,5],[11,20,12,20],[810,18,810,19],[11,6,12,6],[11,7,12,7],[11,18,11,19],[11,3,12,3],[11,4,12,4]]}
[]
[]
[]
[]
[]
[]
[]
[null,"Formato: Personal Federalizado por Registro Federal de Contribuyentes"]
[null,{"$f":"IF('Caratula Resumen'!D22=\"Elige el Periodo…\",\"\",'Caratula Resumen'!D22)","v":"Fondo de Aportaciones para la Educación Tecnológica y de Adultos/Colegio Nacional de Educación Profesional Técnica (FAETA/CONALEP)"},null,null,null,null,null,null,null,null,null,null,null,null,null,null,null,null,null,null,"2do. Trimestre de 2016"]
[]
[]
[null,"Entidad Federativa","Clave CT","Turno","RFC","CURP","Nombre","Funcion Real","Horas que labora en el Centro de Trabajo","Clave Presupuestal",null,null,null,null,null,null,"Tipo de Categoría","Identificador de Contrato de Honorarios","Periodo de efecto de pago en el trimestre",null,"Percepciones pagadas en el Periodo de Comisión con Presupuesto Federal*","Percepciones pagadas en el Periodo de Comisión con Presupuesto de otra fuente*"]
[null,null,null,null,null,null,null,null,null,"Partida Presupuestal","Código de Pago","Clave de Unidad","Clave de Sub Unidad","Clave de Categoría","Horas Semana Mes ","Número de Plaza",null,null,"Inicial","Termino"]
[]
[null,"Entidad Federativa","Clave CT","Turno","RFC","CURP","Nombre","Funcion Real","Horas que labora en el Centro de Trabajo","Partida Presupuestal","Código de Pago","Clave de Unidad","Clave de Sub Unidad","Clave de Categoría","Horas semana mes","Número de plaza","Tipo de Categoría","Identificador de Contrato de Honorarios","Periodo de efecto de pago en el trimestre\nInicial","Periodo de efecto de pago en el trimestre\nTermino","Percepciones pagadas en el Periodo de Comisión con Presupuesto Federal*","Percepciones pagadas en el Periodo de Comisión con Presupuesto de otra fuente*"]
[null,"GUANAJUATO","11APT0001T",100,"AAMD810413AX8","AAMD810413MGTNRN03  ","DIANA LORENA ANAYA MARTINEZ             ",2,0,1130,1003,5,13,"CF04201",0,11092,2,null,20160401,20160630,36652.770000000004,0]
[null,"GUANAJUATO","11APT0001T",100,"AECL710621SE4","AECL710621HGTRRS02  ","JOSE LUIS ARELLANO CRUZ                 ",2,0,1130,1003,5,13,"A03202",0,10301,2,null,20160401,20160630,32217.96,0]
[null,"GUANAJUATO","11APT0001T",100,"AIMK880805R10","AIMK880805MGTRXR05  ","KARLA GABRIELA ARIAS MUÐOZ              ",2,0,1130,1003,5,13,"CF02100",0,12460,2,null,20160401,20160630,72797.86,0]
[null,"GUANAJUATO","11APT0001T",100,"AOGI790809G38","AOGI790809MGTLRM04  ","IMELDA SUSANA ALONSO GARCIA             ",2,0,1130,1003,5,13,"CF33206",0,14142,2,null,20160401,20160630,67935.180000000008,0]
[null,"GUANAJUATO","11APT0001T",100,"CAJU780116N75","CAXJ780116HGTMXN05  ","JUAN JOSE CAMACHO                       ",2,0,1130,1003,5,13,"CF33204",0,4416,2,null,20160401,20160630,77505.25,0]
[null,"GUANAJUATO","11APT0001T",100,"CALA7006204L0","CALA700620MGTMPL09  ","ALEJANDRA CAMACHO LOPEZ                 ",2,0,1130,1003,5,13,"CF02100",0,12459,2,null,20160401,20160630,61654.400000000001,0]
[null,"GUANAJUATO","11APT0001T",100,"CESA870418K76","CESA870418MGTRMN08  ","ANA GABRIELA CERVERA SAMANO             ",2,0,1130,1003,5,13,"CF33206",0,14140,2,null,20160401,20160630,33834.199999999997,0]
[null,"GUANAJUATO","11APT0001T",100,"CUMG550523TM9"," ","GLORIA ARACELI CRUZ MARTIN DEL CAMPO    ",2,0,1130,1003,5,13,"CF33204",0,11710,5,null,20160401,20160630,113531.28000000001,0]
[null,"GUANAJUATO","11APT0001T",100,"DIXA510311"," ","ALBERTO DE LA LU DIOSDADO               ",2,0,1130,1003,5,13,"CF34201",0,8065,5,null,20160401,20160630,241023.6,0]
[null,"GUANAJUATO","11APT0001T",100,"EAVG760111SA9","EAVG760111MGTSLD04  ","MA.GUADALUPE ESPARZA VALENCIA           ",2,0,1130,1003,5,13,"CF02100",0,12459,2,null,20160401,20160630,60253.600000000006,0]
[null,"GUANAJUATO","11APT0001T",100,"EIPA861113S53","EIPA861113HGTSRB08  ","JOSE ABRAHAM ESPINOZA PORRAS            ",2,0,1130,1003,5,13,"CF11100",0,10304,2,null,20160401,20160630,31105.759999999998,0]
[null,"GUANAJUATO","11APT0001T",100,"GAGV930611G79"," ","VICTOR HUGO GARCIA GOMEZ                ",2,0,1130,1003,5,13,"CF02105",0,14598,5,null,20160401,20160630,21389.579999999998,0]
[null,"GUANAJUATO","11APT0001T",100,"GAPS690711"," ","SARA GISELA GARCIA PEREZ                ",2,0,1130,1003,5,13,"CF33204",0,2605,5,null,20160401,20160630,78517.2,0]
[null,"GUANAJUATO","11APT0001T",100,"GOAV860422EK6","GOAV860422HGTNLC02  ","VICTOR ISRAEL GONZALEZ ALCANTAR         ",2,0,1130,1003,5,13,"CF34202",0,5581,2,null,20160401,20160630,55568.87000000001,0]
[null,"GUANAJUATO","11APT0001T",100,"GOLA7812182KA","GOLA781218MQTMPN05  ","ANA GLORIA GOMEZ LOPEZ                  ",2,0,1130,1003,5,13,"CF02105",0,14599,2,null,20160401,20160630,64814.98000000001,0]
[null,"GUANAJUATO","11APT0001T",100,"GONM790924B46","GONM790924HGTNVG00  ","MIGUEL ANGEL GONZALEZ NAVARRO           ",2,0,1130,1003,5,13,"S01201",0,2502,2,null,20160401,20160630,62937.880000000012,0]
[null,"GUANAJUATO","11APT0001T",100,"GUJE870107661","GUJE870107MGTTRL01  ","ELIZABETH VERONI GUTIERREZ JUAREZ       ",2,0,1130,1003,5,13,"CF02105",0,14599,2,null,20160401,20160630,57109.500000000007,0]
[null,"GUANAJUATO","11APT0001T",100,"HEOS630818TG4","HEOS630818MDFRRN00  ","SONIA GUADALUPE HERNANDEZ OROZCO        ",2,0,1130,1003,5,13,"CF33204",0,11094,2,null,20160401,20160630,99146.54,0]
[null,"GUANAJUATO","11APT0001T",100,"HEPL670716M36","HEPL670716HGTRRS02  ","JOSE LUIS HERNANDEZ PEREZ               ",2,0,1130,1003,5,13,"CF33204",0,2578,5,null,20160401,20160630,90553.079999999987,0]
[null,"GUANAJUATO","11APT0001T",100,"LERD770827UM0","LERD770827HGTNDM00  ","JOSE DOMINGO DE LEON RODRIGUEZ          ",2,0,1130,1003,5,13,"CF33204",0,2546,5,null,20160401,20160630,90553.079999999987,0]
[null,"GUANAJUATO","11APT0001T",100,"LUCH751109"," ","HUGO ENRIQUE LUEVANO CONTRERAS          ",2,0,1130,1003,5,13,"CF33206",0,13318,5,null,20160401,20160630,78517.2,0]
[null,"GUANAJUATO","11APT0001T",100,"MABM8602122N2","MABM860212MGTRRL21  ","MELISSA MARISELA MARTINEZ BARRIOS       ",2,0,1130,1003,5,13,"CF01601",0,18847,2,null,20160401,20160630,28025.7,0]
[null,"GUANAJUATO","11APT0001T",100,"MANR8209073S1","MANR820907HGTCGT04  ","RITO MACIAS NEGRETE                     ",2,0,1130,1003,5,13,"CF02105",0,14596,5,null,20160401,20160630,90553.079999999987,0]
[null,"GUANAJUATO","11APT0001T",100,"MAOJ7405168FA","MAOJ740516MGTRCN05  ","JUANA MARTINEZ OCHOA                    ",2,0,1130,1003,5,13,"CF01601",0,11084,2,null,20160401,20160630,90159.86,0]
[null,"GUANAJUATO","11APT0001T",100,"MESL860213877"," ","LOURDES PAULINA MENDOZA SANCHEZ         ",2,0,1130,1003,5,13,"CF02105",0,14596,2,null,20160401,20160630,42462.280000000006,0]
[null,"GUANAJUATO","11APT0001T",100,"MOGM581228P96","MOGM581228MGTRNR09  ","MARTHA DEL CARME MORENO GONZALEZ        ",2,0,1130,1003,5,13,"S01201",0,2647,2,null,20160401,20160630,42886.439999999995,0]
[null,"GUANAJUATO","11APT0001T",100,"OERL7305255H3"," ","LUIS ALBERTO OJEDA RODRIGUEZ            ",2,0,1130,1003,5,13,"CF01601",0,11035,2,null,20160401,20160630,114455.7,0]
[null,"GUANAJUATO","11APT0001T",100,"OING5906128T6","OING590612HGTRCS02  ","GUSTAVO ORTIZ NICASIO                   ",2,0,1130,1003,5,13,"CF33206",0,14141,2,null,20160401,20160630,43270.240000000005,0]
[null,"GUANAJUATO","11APT0001T",100,"OISI790511DD8"," ","ISMAEL OLIVO SANCHEZ                    ",2,0,1130,1003,5,13,"CF11102",0,14556,2,null,20160401,20160630,21389.579999999998,0]
[null,"GUANAJUATO","11APT0001T",100,"PEGL590326TB4","PEGL590326MGTRMZ05  ","LUZ ELENA PERALES GOMEZ                 ",2,0,1130,1003,5,13,"S01201",0,4414,2,null,20160401,20160630,37881.22,0]
[null,"GUANAJUATO","11APT0001T",100,"PELI680925LM6","PELI680925MGTDPV03  ","IVONNE YOLANDA PEDROZA LOPEZ            ",2,0,1130,1003,5,13,"A01801",0,18843,2,null,20160401,20160630,107156.42000000001,0]
[null,"GUANAJUATO","11APT0001T",100,"PESE6410262W2","PESE641026HTSRNR02  ","ERNESTO PEREZ SANCHEZ                   ",2,0,1130,1003,5,13,"CF11102",0,14556,5,null,20160401,20160630,90553.079999999987,0]
[null,"GUANAJUATO","11APT0001T",100,"PUAJ821120LU8","PUAJ821120MJCGLN05  ","JUANA PUGA ALDANA                       ",2,0,1130,1003,5,13,"CF18203",0,7719,2,null,20160401,20160630,31132.800000000003,0]
[null,"GUANAJUATO","11APT0001T",100,"QUZJ6303282J5","QUZJ630328HSRLNN05  ","JUAN QUILES ZUNO                        ",2,0,1130,1003,5,13,"S01201",0,2653,2,null,20160401,20160630,38982.93,0]
[null,"GUANAJUATO","11APT0001T",100,"RAEL8409015U2","RAEL840901MGTMSR07  ","LAURA PATRICIA RAMOS ESTRADA            ",2,0,1130,1003,5,13,"CF33203",0,2575,2,null,20160401,20160630,87062.60000000002,0]
[null,"GUANAJUATO","11APT0001T",100,"RALU580110A37","RAXL580110HGTMXS01  ","LUIS FERNANDO RAMOS                     ",2,0,1130,1003,5,13,"CF33206",0,10303,5,null,20160401,20160630,78517.2,0]
[null,"GUANAJUATO","11APT0001T",100,"RAMA640606AQ0","RAMA640606HGTNXL06  ","ALBERTO RANGEL MUÐOZ                    ",2,0,1130,1003,5,13,"CF01601",0,11098,2,null,20160401,20160630,37672.159999999996,0]
[null,"GUANAJUATO","11APT0001T",100,"RAMD6103291R4","RAMD610329HGTMNV10  ","DAVID RAMIREZ MONJARAZ                  ",2,0,1130,1003,5,13,"S01202",0,2636,2,null,20160401,20160630,45534.239999999998,0]
[null,"GUANAJUATO","11APT0001T",100,"RESA730203"," ","ANA CELIA REYNOSO SANCHEZ               ",2,0,1130,1003,5,13,"A01801",0,18844,5,null,20160401,20160630,113531.28000000001,0]
[null,"GUANAJUATO","11APT0001T",100,"SAAK880407FL7","SAAK880407MJCNNR03  ","KARLA ANGELINA SANDOVAL DE ANDA         ",2,0,1130,1003,5,13,"CF33206",0,10307,2,null,20160401,20160630,78517.2,0]
[null,"GUANAJUATO","11APT0001T",100,"SAHE741012DCA","SAHE741012MGTNRS04  ","MA. ESTHER SANCHEZ HERNANDEZ            ",2,0,1130,1003,5,13,"CF02105",0,14601,5,null,20160401,20160630,90553.079999999987,0]
[null,"GUANAJUATO","11APT0001T",100,"SAML830406CC2","SAML830406HDFNNS01  ","LUIS ENRIQUE SANCHEZ MENDOZA            ",2,0,1130,1003,5,13,"ED01201",0,2619,2,null,20160401,20160630,49948.340000000004,0]
[null,"GUANAJUATO","11APT0001T",100,"SAMN650727TS7","SAMN650727MGTNJT03  ","MA. NATALIA SANCHEZ MOJICA              ",2,0,1130,1003,5,13,"CF21202",0,1687,2,null,20160401,20160630,31208.799999999996,0]
[null,"GUANAJUATO","11APT0001T",100,"VACR780505180"," ","MARIA DEL ROSARI VARGAS CHAVEZ          ",2,0,1130,1003,5,13,"CF02100",0,12458,5,null,20160401,20160630,90553.079999999987,0]
[null,"GUANAJUATO","11APT0001T",100,"VAGS770812TH3"," ","SAMUEL VALLEJO GUERRERO                 ",2,0,1130,1003,5,13,"CF02105",0,12830,2,null,20160401,20160630,49407.98,0]
[null,"GUANAJUATO","11APT0001T",100,"VARG660927MXA","VARG660927MDFLSL01  ","GLORIA GUADALUPE VALENZUELA RIOS        ",2,0,1130,1003,5,13,"CF01601",0,11097,5,null,20160401,20160630,90553.079999999987,0]
[null,"GUANAJUATO","11APT0001T",100,"ZAAF7902055E9","ZAAF790205HGTMLR09  ","FERNANDO ZAMARRIPA ALDAPE               ",2,0,1130,1003,5,13,"CF33204",0,3181,2,null,20160401,20160630,85702.650000000009,0]
[null,"GUANAJUATO","11APT0001T",100,"ZAHE711130S69","ZAHE711130MDFMRR03  ","ERIKA DE LOS ANGE ZAMORA HERNANDEZ      ",2,0,1130,1003,5,13,"S01201",0,9230,2,null,20160401,20160630,101514.38,0]
[null,"GUANAJUATO","11APT0001T",100,"ZALE620903MK9","ZALE620903HGTVND01  ","EDUARDO ZAVALA LEON                     ",2,0,1130,1003,5,13,"CF33204",0,2660,2,null,20160401,20160630,62937.880000000012,0]
[null,"GUANAJUATO","11APT0001T",100,"ZERY820116NN8","ZERY820116MGTNCD08  ","YADIRA BERENICE ZENDEJAS ROCHA          ",2,0,1130,1003,5,13,"CF01601",0,11095,2,null,20160401,20160630,47955.519999999997,0]
[null,"GUANAJUATO","11DPT0001Q",120,"AATE760606N24","AATE760606MGTLNV03  ","EVA ALMANZA TINOCO                      ",2,0,1130,1003,5,13,"CF33204",0,4390,2,null,20160401,20160630,38033.599999999999,0]
[null,"GUANAJUATO","11DPT0001Q",120,"AUDM660425P52","AUDM660425MGTGRR18  ","MIRIAM AGUILAR DURON                    ",2,0,1130,1003,5,13,"CF01601",0,11090,2,null,20160401,20160630,109562.27,0]
[null,"GUANAJUATO","11DPT0001Q",120,"BACM8402274W0","BACM840227HGTRNG03  ","MIGUEL ANGEL BARRON CONEJO              ",2,0,1130,1003,5,13,"CF33206",0,13250,2,null,20160401,20160630,76325.25,0]
[null,"GUANAJUATO","11DPT0001Q",120,"BAUR7105213K8","BAUR710521MDFRRT02  ","RITA BARCENAS URBINA                    ",2,0,1130,1003,5,13,"CF33206",0,13498,2,null,20160401,20160630,38756.47,0]
[null,"GUANAJUATO","11DPT0001Q",120,"BEEJ790327230","BEEJ790327HGTLSN06  ","JUAN GUSTAVO BELMAN ESPINOSA            ",2,0,1130,1003,5,13,"CF33204",0,11089,2,null,20160401,20160630,30750.579999999994,0]
[null,"GUANAJUATO","11DPT0001Q",120,"CAGT7903078F3","CAGT790307HGTMRM01  ","TOMAS ESTEBAN CAMACHO GARCIA            ",2,0,1130,1003,5,13,"A01801",0,18846,2,null,20160401,20160630,27357.35,0]
[null,"GUANAJUATO","11DPT0001Q",120,"CARM520206UK0","CARM520206HGTBCR09  ","MARIO CABRERA RICO                      ",2,0,1130,1003,5,13,"S01201",0,2653,5,null,20160401,20160630,92369.4,0]
[null,"GUANAJUATO","11DPT0001Q",120,"CEFS680324L40","CEFS680324HJCRLL06  ","SAUL CERPA FLORES                       ",2,0,1130,1003,1,63,"CF33204",0,7715,2,null,20160401,20160630,32381.52,0]
[null,"GUANAJUATO","11DPT0001Q",120,"EICA780130NQ1","EICA780130MGTSRN03  ","ANA MARIA ESPINOZA CERVANTES            ",2,0,1130,1003,1,63,"CF04201",0,7691,2,null,20160401,20160630,39428.06,0]
[null,"GUANAJUATO","11DPT0001Q",120,"FABC530210FR5","FABC530210MDFRRR00  ","MARIA DEL CARMEN FRANCO BOURET          ",2,0,1130,1003,1,63,"S01202",0,7707,2,null,20160401,20160630,40795.97,0]
[null,"GUANAJUATO","11DPT0001Q",120,"GAAR6310249B2","GAAR631024HGTLRF01  ","RAFAEL GALLEGOS ARELLANO                ",2,0,1130,1003,1,63,"CF33206",0,13988,2,null,20160401,20160630,39619.319999999992,0]
[null,"GUANAJUATO","11DPT0001Q",120,"GALE770303QD2","GALE770303HGTRSD04  ","EDUARDO GARCIA LESSO                    ",2,0,1130,1003,1,63,"CF33206",0,13987,2,null,20160401,20160630,52294.720000000008,0]
[null,"GUANAJUATO","11DPT0001Q",120,"GAMM680220L32","GAMM680220MGTLRR01  ","MARTHA NORMA GALLEGOS MARISCAL          ",2,0,1130,1003,1,63,"S01201",0,7709,2,null,20160401,20160630,47668.97,0]
[null,"GUANAJUATO","11DPT0001Q",120,"GAOH8102061G0","GAOH810206HDFLLM04  ","HUMBERTO ISRAEL GALVAN OLVERA           ",2,0,1130,1003,1,63,"CF18201",0,7699,2,null,20160401,20160630,29026.739999999998,0]
[null,"GUANAJUATO","11DPT0001Q",120,"GIAJ670517N7A","GIAJ670517HGTRLN07  ","JUAN MANUEL GRIMALDO ALFARO             ",2,0,1130,1003,1,63,"S01201",0,7716,2,null,20160401,20160630,42454.55,0]
[null,"GUANAJUATO","11DPT0001Q",120,"GOGK890902JT3","GOGK890902MGTNLR04  ","KARLA RAFAELA GONZALEZ GALLARDO         ",2,0,1130,1003,1,63,"CF18201",0,7705,2,null,20160401,20160630,53470.25,0]
[null,"GUANAJUATO","11DPT0001Q",120,"GOMG8812289D6","GOMG881228HQTMLB01  ","GABRIEL GOMEZ MOLINERO                  ",2,0,1130,1003,1,63,"CF02103",0,12618,2,null,20160401,20160630,52177.400000000009,0]
[null,"GUANAJUATO","11DPT0001Q",120,"HEMM6706104M9","HEMM670610MGTRNR09  ","MA. MERCEDES HERRERA MANCERA            ",2,0,1130,1003,1,63,"CF18203",0,7703,2,null,20160401,20160630,110151.98000000001,0]
[null,"GUANAJUATO","11DPT0001Q",120,"JAMJ591122Q73","JAMJ591122HGTRNV07  ","JAVIER JARALEÐO MANCERA                 ",2,0,1130,1003,1,63,"A03202",0,7687,2,null,20160401,20160630,38608.6,0]
[null,"GUANAJUATO","11DPT0001Q",120,"JOOM700802BM5","JOOM700802HGTYRG06  ","MIGUEL ANGEL JOYA ORTIZ                 ",2,0,1130,1003,1,63,"ED01201",0,18886,2,null,20160401,20160630,102015.48,0]
[null,"GUANAJUATO","11DPT0001Q",120,"LIRA890608KM8","LIRA890608MGTZZL06  ","ALMA ROSARIO LIZARRAGA RUIZ             ",2,0,1130,1003,1,63,"CF33204",0,7693,2,null,20160401,20160630,30090.089999999997,0]
[null,"GUANAJUATO","11DPT0001Q",120,"LOLA870110SJ9","LOLA870110MGTPPL02  ","ALMA ALEJANDRA LOPEZ LOPEZ              ",2,0,1130,1003,1,63,"A03202",0,7688,5,null,20160401,20160630,56271.850000000006,0]
[null,"GUANAJUATO","11DPT0001Q",120,"MAGB8208194P2","MAGB820819MGTLRL08  ","BLANCA ELIA MALDONADO GARCIA            ",2,0,1130,1003,1,63,"CF18203",0,7713,2,null,20160401,20160630,56095.839999999989,0]
[null,"GUANAJUATO","11DPT0001Q",120,"MAGC661126AJ5","MAGC661126MGTLNR18  ","MA.CARMEN MALDONADO GONZALEZ            ",2,0,1130,1003,1,63,"CF33204",0,7704,2,null,20160401,20160630,100228.25,0]
[null,"GUANAJUATO","11DPT0001Q",120,"MELN680719F21","MELN680719MGTLDR00  ","NORMA LETICIA MELGOZA LEDESMA           ",2,0,1130,1003,1,63,"CF33206",0,13986,2,null,20160401,20160630,39918.409999999996,0]
[null,"GUANAJUATO","11DPT0001Q",120,"MEMM740704297","MEMM740704MDFDRR03  ","MIRNA MEDINA MARIN                      ",2,0,1130,1003,1,63,"CF21202",0,7721,2,null,20160401,20160630,36752.17,0]
[null,"GUANAJUATO","11DPT0001Q",120,"MIAO8312189C2","MIAO831218HDFLPM04  ","OMAR MILLAN APUD                        ",2,0,1130,1003,1,63,"CF34201",0,7700,5,null,20160401,20160630,52177.4,0]
[null,"GUANAJUATO","11DPT0001Q",120,"MOHA6909151AA","MOHA690915MGTRRN03  ","ANDREA MORALES HERNANDEZ                ",2,0,1130,1003,1,63,"CF33204",0,7708,2,null,20160401,20160630,38287.01,0]
[null,"GUANAJUATO","11DPT0001Q",120,"MUSF920131CIA","MUSF920131MGTXCR06  ","MARIA FERNANDA MUÐOZ SAUCILLO           ",2,0,1130,1003,1,63,"CF33203",0,7702,2,null,20160401,20160630,28539.21,0]
[null,"GUANAJUATO","11DPT0001Q",120,"NIHE721201VC3","NIHE721201HGTTRS04  ","EUSEBIO MIGUEL A NIETO HERNANDEZ        ",2,0,1130,1003,1,63,"S01201",0,7712,2,null,20160401,20160630,29928.010000000002,0]
[null,"GUANAJUATO","11DPT0001Q",120,"NUBS660923RQA","NUBS660923MGTXRL07  ","MA.SILVIA NUÐEZ BARRERA                 ",2,0,1130,1003,5,13,"CF33206",0,14322,2,null,20160401,20160630,46864.15,0]
[null,"GUANAJUATO","11DPT0001Q",120,"OAMC600520F43","OAMC600520HSLLLR01  ","CARLOS JAVIER OLAVEZ MELESIO            ",2,0,1130,1003,1,74,"S01201",0,8081,2,null,20160401,20160630,42341.27,0]
[null,"GUANAJUATO","11DPT0001Q",120,"PACS8101228Y0","PACS810122MGTLRR02  ","SARA PALOMINO CARREÐO                   ",2,0,1130,1003,1,74,"S01201",0,8089,2,null,20160401,20160630,27716.760000000002,0]
[null,"GUANAJUATO","11DPT0001Q",120,"PIOP550618BT2","PIOP550618HGTCLB08  ","PABLO PICHARDO OLVERA                   ",2,0,1130,1003,1,74,"CF33206",0,13501,2,null,20160401,20160630,41999.92,0]
[null,"GUANAJUATO","11DPT0001Q",120,"QUGE620101NK4","QUGE620101HGTNRF01  ","EFRAIN QUINTANA GARCIA                  ",2,0,1130,1003,1,74,"CF21202",0,8100,2,null,20160401,20160630,32690.800000000003,0]
[null,"GUANAJUATO","11DPT0001Q",120,"RAAG5908278S6","RAAG590827HMNNBL08  ","GUILLERMO RANGEL ABURTO                 ",2,0,1130,1003,1,74,"CF33206",0,14311,2,null,20160401,20160630,47079.22,0]
[null,"GUANAJUATO","11DPT0001Q",120,"RERE8505068T2","RERE850506HMNYMD04  ","EDUARDO REYES RAMIREZ                   ",2,0,1130,1003,1,74,"CF33204",0,2591,2,null,20160401,20160630,27653.269999999997,0]
[null,"GUANAJUATO","11DPT0001Q",120,"RIAA790529868","RIAA790529MMNSGN11  ","ANA KATHERINE RIOS AGUILAR              ",2,0,1130,1003,1,74,"S01201",0,8099,5,null,20160401,20160630,78517.2,0]
[null,"GUANAJUATO","11DPT0001Q",120,"ROBY7612249Q3","ROBY761224MMCDCN00  ","YUNUEN RODRIGUEZ BECERRA                ",2,0,1130,1003,1,74,"S01202",0,8082,2,null,20160401,20160630,35651.449999999997,0]
[null,"GUANAJUATO","11DPT0001Q",120,"ROEJ700824751","ROEJ700824HVZMSL05  ","JULIO CESAR ROMERO ESCOBAR              ",2,0,1130,1003,1,74,"CF04201",0,8079,2,null,20160401,20160630,27196.499999999996,0]
[null,"GUANAJUATO","11DPT0001Q",120,"ROHR681221N53","ROHR681221MGTJRB00  ","RUBISELA ROJAS HUARACHA                 ",2,0,1130,1003,1,74,"CF33202",0,8087,2,null,20160401,20160630,73470.5,0]
[null,"GUANAJUATO","11DPT0001Q",120,"ROMR681004UF2","ROMR681004HGTDRM02  ","RAMIRO RODRIGUEZ MARTINEZ               ",2,0,1130,1003,1,74,"CF33206",0,13500,2,null,20160401,20160630,44366.13,0]
[null,"GUANAJUATO","11DPT0001Q",120,"ROPR4911033YA","ROPR491103HGTDTF04  ","RAFAEL RODRIGUEZ PATINO                 ",2,0,1130,1003,1,74,"CF33206",0,14310,2,null,20160401,20160630,33293.78,0]
[null,"GUANAJUATO","11DPT0001Q",120,"RURO710818A13","RURO710818MGTZFL04  ","OLGA AMALIA RUIZ RUFINO                 ",2,0,1130,1003,1,74,"CF19201",0,8090,2,null,20160401,20160630,50228.950000000004,0]
[null,"GUANAJUATO","11DPT0001Q",120,"SAGM730131V93","SAGM730131MDFNRR07  ","MARCELA SANCHEZ GARCIA                  ",2,0,1130,1003,1,74,"CF33203",0,8091,2,null,20160401,20160630,84989.97,0]
[null,"GUANAJUATO","11DPT0001Q",120,"SARR700714SU4","SARR700714MGTCMS06  ","MARIA DEL ROSARI SAUCILLO RAMIREZ       ",2,0,1130,1003,1,74,"A03202",0,8076,2,null,20160401,20160630,59258.76,0]
[null,"GUANAJUATO","11DPT0001Q",120,"TEHM7408294G1","TEHM740829HGTLRR02  ","MARCO ANTONIO TELLEZ HERRERA            ",2,0,1130,1003,2,74,"CF18201",0,8093,2,null,20160401,20160630,28325.27,0]
[null,"GUANAJUATO","11DPT0001Q",120,"TIRA931025MA1"," ","ANA CECILIA TIERRABLANCA ROMERO         ",2,0,1130,1003,1,74,"S01201",0,8085,2,null,20160401,20160630,14058.7,0]
[null,"GUANAJUATO","11DPT0001Q",120,"TOCF910415931","TOCF910415MGTRRT00  ","FATIMA DEL ROSAR TORRES CERVANTES       ",2,0,1130,1003,1,74,"A03202",0,8078,5,null,20160401,20160630,33656.21,0]
[null,"GUANAJUATO","11DPT0001Q",120,"TOSS530312KL6","TOSS530312HDFRMM05  ","SAMUEL TORRES SUMOZA                    ",2,0,1130,1003,1,74,"CF18203",0,8094,2,null,20160401,20160630,30423.060000000005,0]
[null,"GUANAJUATO","11DPT0001Q",120,"VAAM631105TU4","VAAM631105HGTLYR06  ","MARTIN VALENTE AYALA                    ",2,0,1130,1003,1,74,"A03202",0,8080,2,null,20160401,20160630,42328.04,0]
[null,"GUANAJUATO","11DPT0001Q",120,"VEGR631014AK5","VEGR631014HGTLRB01  ","RUBEN VELAZQUEZ GARCIA                  ",2,0,1130,1003,1,74,"CF33206",0,13499,2,null,20160401,20160630,36715.600000000006,0]
[null,"GUANAJUATO","11DPT0001Q",120,"VEMM86100222D","VEMM861022MGTRNR00  ","MIRIAM SOLEDAD VERA MENDIETA            ",2,0,1130,1003,1,74,"CF18201",0,8098,2,null,20160401,20160630,31212.82,0]
[null,"GUANAJUATO","11DPT0001Q",120,"ZALC5604237Q2","ZALC560423HGTVPR01  ","CARLOS ZAVALA LOPEZ                     ",2,0,1130,1003,1,74,"S01202",0,8097,2,null,20160401,20160630,38123.799999999996,0]
[null,"GUANAJUATO","11DPT0002P",120,"AARM7802157H4","AARM780215MGTLDY03  ","MYRIAM DEL ROSAR ALVARADO RODRIGUEZ     ",2,0,1130,1003,1,74,"S01202",0,8092,2,null,20160401,20160630,26944.15,0]
[null,"GUANAJUATO","11DPT0002P",120,"BERC880813NK7","BERC880813MGTLMN05  ","CINDIA ELIZABETH BELTRAN RAMOS          ",2,0,1130,1003,1,74,"CF02103",0,12663,2,null,20160401,20160630,43482.87,0]
[null,"GUANAJUATO","11DPT0002P",120,"CAGX680903LH5","CXGA680903HGTHNL08  ","ALBERTO CHAO GONZALEZ                   ",2,0,1130,1003,2,49,"S01202",0,7692,5,null,20160401,20160630,92369.4,0]
[null,"GUANAJUATO","11DPT0002P",120,"CAPR810416EKA","CAPR810416HGTLRB07  ","ROBERTO CALDERON PEREZ                  ",2,0,1130,1003,2,49,"CF19201",0,10606,2,null,20160401,20160630,60316.759999999995,0]
[null,"GUANAJUATO","11DPT0002P",120,"CASI750121969","CASI750121HGTSNS13  ","ISAAC CASTRO SANTILLANES                ",2,0,1130,1003,2,49,"S01201",0,10613,2,null,20160401,20160630,40063.53,0]
[null,"GUANAJUATO","11DPT0002P",120,"CAVT730609CSA","CAVT730609MGTRRR12  ","MA. TERESA CARPIO VARGAS                ",2,0,1130,1003,2,49,"S01201",0,10594,2,null,20160401,20160630,35519.099999999991,0]
[null,"GUANAJUATO","11DPT0002P",120,"CIEE710907TK8","CIEE710907HDFSSD04  ","EDUARDO ALEJANDR CISNEROS ESPINOSA      ",2,0,1130,1003,2,49,"CF33206",0,14056,2,null,20160401,20160630,27322.15,0]
[null,"GUANAJUATO","11DPT0002P",120,"COCA760915JU4","COCA760915HGTRLL02  ","ALEJANDRO CORIA CALDERON                ",2,0,1130,1003,2,49,"CF33206",0,14057,2,null,20160401,20160630,30801.060000000005,0]
[null,"GUANAJUATO","11DPT0002P",120,"CUHC5501119F9","CUHC550111HGTLNS08  ","CESAR CUELLAR HINOJOSA                  ",2,0,1130,1003,2,49,"CF18201",0,10593,2,null,20160401,20160630,41360.6,0]
[null,"GUANAJUATO","11DPT0002P",120,"CUVY830805JA3","CUVY830805MGTSRH00  ","YAHAIRA ALICIA E CUESTAS VARGAS         ",2,0,1130,1003,2,49,"S01202",0,10616,2,null,20160401,20160630,26342.190000000002,0]
[null,"GUANAJUATO","11DPT0002P",120,"DEHM860518J96","DEHM860518HMCLRG02  ","MIGUEL ANGEL DELGADO HERNANDEZ          ",2,0,1130,1003,2,49,"CF04201",0,10296,2,null,20160401,20160630,32094.760000000002,0]
[null,"GUANAJUATO","11DPT0002P",120,"DEJA790116B16","DEJA790116HMCLMN00  ","JOSE ANTONIO DELGADO JIMENEZ            ",2,0,1130,1003,2,49,"CF18201",0,6504,2,null,20160401,20160630,94855.8,0]
[null,"GUANAJUATO","11DPT0002P",120,"DONA780620F80","DONA780620HGTMTL04  ","ALEJANDRO DOMINGUEZ NIETO               ",2,0,1130,1003,2,49,"CF19201",0,10602,2,null,20160401,20160630,28313.15,0]
[null,"GUANAJUATO","11DPT0002P",120,"EIPM591011QG5","EIPM591011MGTSRR09  ","MARTHA ALICIA ESPINOSA PEREZ            ",2,0,1130,1003,2,49,"S01202",0,10294,2,null,20160401,20160630,96500.180000000008,0]
[null,"GUANAJUATO","11DPT0002P",120,"GAHJ561230M55","GAHJ561230HGTRRN04  ","JUAN GRANADOS HERNANDEZ                 ",2,0,1130,1003,2,49,"CF02103",0,12685,2,null,20160401,20160630,93907.950000000012,0]
[null,"GUANAJUATO","11DPT0002P",120,"GATG451128UX1","GATG451128HDFYRS05  ","GUSTAVO GAYTAN TORRES                   ",2,0,1130,1003,2,49,"S01201",0,2557,2,null,20160401,20160630,76325.25,0]
[null,"GUANAJUATO","11DPT0002P",120,"GOGF910421775","GOGF910421MGTNLR03  ","MARIA FERNANDA GONZALEZ GALLARDO        ",2,0,1130,1003,2,49,"CF33206",0,13689,2,null,20160401,20160630,22939.58,0]
[null,"GUANAJUATO","11DPT0002P",120,"GUAA600320L51","GUAA600320MGTTLL03  ","ALEJANDRA GUTIERREZ ALVAREZ             ",2,0,1130,1003,2,49,"CF33206",0,14319,2,null,20160401,20160630,39749.199999999997,0]
[null,"GUANAJUATO","11DPT0002P",120,"GULM790929U80","GULM790929HGTRGG04  ","MIGUEL ANGEL GUERRERO LAGUNA            ",2,0,1130,1003,2,49,"S01201",0,10610,2,null,20160401,20160630,34692.06,0]
[null,"GUANAJUATO","11DPT0002P",120,"HEGC870427C96","HEGC870427HCSRNR00  ","CRISTOBAL DE JES HERNANDEZ GONZALEZ     ",2,0,1130,1003,2,49,"CF34201",0,10609,5,null,20160401,20160630,21888.65,0]
[null,"GUANAJUATO","11DPT0002P",120,"JUHF791105831","JUHF791105HDFRLR06  ","FERNANDO JUAREZ HELGUERA                ",2,0,1130,1003,2,49,"CF18201",0,6515,2,null,20160401,20160630,29682.15,0]
[null,"GUANAJUATO","11DPT0002P",120,"LAMA800707D83","LAMA800707HGTRRL05  ","JOSE ALEJANDRO LARA MERCADO             ",2,0,1130,1003,2,49,"CF18201",0,6515,5,null,20160401,20160630,31384.800000000003,0]
[null,"GUANAJUATO","11DPT0002P",120,"LOBM750809KY1","LOBM750809HGTPRG01  ","MIGUEL LOPEZ BARRAGAN                   ",2,0,1130,1003,2,49,"S01201",0,10614,2,null,20160401,20160630,30777.959999999995,0]
[null,"GUANAJUATO","11DPT0002P",120,"MABH800524BY7","MABH800524HMNRRG02  ","HUGO MARTINEZ BARRERA                   ",2,0,1130,1003,2,49,"A03202",0,10292,2,null,20160401,20160630,76325.25,0]
[null,"GUANAJUATO","11DPT0002P",120,"MACP790228577","MACP790228MGTRSL06  ","MARIA DEL PILAR MARTINEZ CASTRO         ",2,0,1130,1003,2,49,"S01202",0,10597,2,null,20160401,20160630,28593.98,0]
[null,"GUANAJUATO","11DPT0002P",120,"MADJ760413GFA","MADJ760413HGTTZQ01  ","JOAQUIN MATA DIAZ                       ",2,0,1130,1003,2,49,"CF33206",0,14318,2,null,20160401,20160630,38615.449999999997,0]
[null,"GUANAJUATO","11DPT0002P",120,"MADM900319GN9","MADM900319HGTTZN05  ","JOSE MANUEL MATA DIAZ                   ",2,0,1130,1003,2,49,"CF33206",0,12915,2,null,20160401,20160630,27322.15,0]
[null,"GUANAJUATO","11DPT0002P",120,"MEAE910606I30","MEAE910606HGTJGD01  ","EDGAR EMMANUEL MEJIA AGUILA             ",2,0,1130,1003,2,49,"S01201",0,10589,5,null,20160401,20160630,27322.15,0]
[null,"GUANAJUATO","11DPT0002P",120,"MEVJ760816A58","MEVJ760816HGTJLL19  ","JULIO ENRIQUE MEJIA VILLANUEVA          ",2,0,1130,1003,2,49,"CF33203",0,10611,2,null,20160401,20160630,101266.58999999998,0]
[null,"GUANAJUATO","11DPT0002P",120,"MOFD741006FM4","MOFD741006HGTSLV05  ","DAVID MOSQUEDA FLORES                   ",2,0,1130,1003,3,3,"A01801",0,18884,2,null,20160401,20160630,35601.930000000008,0]
[null,"GUANAJUATO","11DPT0002P",120,"MOFY680125UV7","MOFY680125MGTSLL00  ","YOLANDA MOSQUEDA FLORES                 ",2,0,1130,1003,3,3,"A01801",0,18872,2,null,20160401,20160630,43386.13,0]
[null,"GUANAJUATO","11DPT0002P",120,"PALM711130LV9","PALM711130HGTRGG02  ","MIGUEL ANGEL PARAMO LAGUNA              ",2,0,1130,1003,3,3,"CF02104",0,18883,2,null,20160401,20160630,36525.32,0]
[null,"GUANAJUATO","11DPT0002P",120,"RAHL900721A16","RAHL900721MGTNRL09  ","LILIANA BERENICE RANGEL HERNANDEZ       ",2,0,1130,1003,3,3,"CF33206",0,18864,2,null,20160401,20160630,21389.579999999998,0]
[null,"GUANAJUATO","11DPT0002P",120,"ROBA710226BG0","RXBA710226MGTBRL07  ","ALMA ROBLES BRAVO                       ",2,0,1130,1003,3,3,"S01201",0,18885,2,null,20160401,20160630,37342.089999999997,0]
[null,"GUANAJUATO","11DPT0002P",120,"ROBB6412029G0","ROBB641202MGTBRL04  ","BLANCA ESTELA ROBLES BRAVO              ",2,0,1130,1003,3,3,"A01801",0,18870,2,null,20160401,20160630,45330.03,0]
[null,"GUANAJUATO","11DPT0002P",120,"RODY660703MQ8","RODY660703MGTXLL07  ","YOLANDA ROA DELGADO                     ",2,0,1130,1003,3,3,"CF18203",0,18873,2,null,20160401,20160630,74115.98,0]
[null,"GUANAJUATO","11DPT0002P",120,"ROSA621019UW4","ROSA621019HGTDNG01  ","AGAPITO RODRIGUEZ SANCHEZ               ",2,0,1130,1003,3,3,"CF18203",0,18871,2,null,20160401,20160630,40163.31,0]
[null,"GUANAJUATO","11DPT0002P",120,"SACM851223UV7","SACM851223MDFNSN01  ","MONSERRAT SANCHEZ CISNEROS              ",2,0,1130,1003,3,3,"A03202",0,18868,2,null,20160401,20160630,29672.190000000002,0]
[null,"GUANAJUATO","11DPT0002P",120,"SAGS78112652A","SAGS781126HGTLTS16  ","SASHA EMMANUEL SALINAS GUTIERREZ        ",2,0,1130,1003,3,3,"CF33206",0,18863,2,null,20160401,20160630,28451.89,0]
[null,"GUANAJUATO","11DPT0002P",120,"SAHI670121KQ3","SAHI670121MGTNRN07  ","MA. INES SANDOVAL HERNANDEZ             ",2,0,1130,1003,3,3,"CF21202",0,18874,2,null,20160401,20160630,40515.49,0]
[null,"GUANAJUATO","11DPT0002P",120,"SAHL6309234X5","SAHL630923HGTNRS00  ","LUIS MIGUEL SANCHEZ HERNANDEZ           ",2,0,1130,1003,3,3,"CF33204",0,18865,2,null,20160401,20160630,78376.800000000003,0]
[null,"GUANAJUATO","11DPT0002P",120,"SALM811102IP0","SALG811102MGTNGD00  ","MA. GUADALUPE SANCHEZ LAGUNA            ",2,0,1130,1003,3,3,"CF33203",0,18876,2,null,20160401,20160630,52294.720000000008,0]
[null,"GUANAJUATO","11DPT0002P",120,"SARA881017KA5","SARA881017HGTNXL07  ","ALBERTO ALEXANDR SANTILLAN REA          ",2,0,1130,1003,3,3,"CF18203",0,18873,2,null,20160401,20160630,28451.89,0]
[null,"GUANAJUATO","11DPT0002P",120,"SASJ650121CF2","SAST650121HGTNMR00  ","J. TRINIDAD SANCHEZ SAMANO              ",2,0,1130,1003,3,3,"CF33204",0,18867,2,null,20160401,20160630,64331.63,0]
[null,"GUANAJUATO","11DPT0002P",120,"SAVJ890118LK2","SAVJ890118HGTNZS05  ","JOSE DE JESUS SANCHEZ VAZQUEZ           ",2,0,1130,1003,3,3,"CF33206",0,"     ",2,null,20160401,20160630,31384.800000000003,0]
[null,"GUANAJUATO","11DPT0002P",120,"VAEA7904041V2","VAEA790404HGTLLL05  ","ALEJANDRO VALADEZ ELIAS                 ",2,0,1130,1003,3,3,"CF33204",0,18866,2,null,20160401,20160630,28648.739999999998,0]
[null,"GUANAJUATO","11DPT0002P",120,"VEGJ461124SB6","VEGJ461124HGTLLD01  ","J. GUADALUPE VELAZQUEZ GALLARDO         ",2,0,1130,1003,3,3,"CF33206",0,18861,2,null,20160401,20160630,42353.57,0]
[null,"GUANAJUATO","11DPT0003O",120,"AEGJ5311191A4","AEGJ531119HGTSRR09  ","JORGE ASCENCIO GARCIA                   ",2,0,1130,1003,3,3,"A03202",0,18869,2,null,20160401,20160630,37484.400000000001,0]
[null,"GUANAJUATO","11DPT0003O",120,"AETA880105TQ0","AETA880105HGTCNN01  ","ANTONIO ACEVEDO TINAJERO                ",2,0,1130,1003,0,28,"S01202",0,9252,2,null,20160401,20160630,78964.41,0]
[null,"GUANAJUATO","11DPT0003O",120,"AOVP751006KA9","AOVP751006MGTLLL04  ","MA. DEL PILAR ALMONACI VALADEZ          ",2,0,1130,1003,0,28,"CF33206",0,12913,5,null,20160401,20160630,74379.100000000006,0]
[null,"GUANAJUATO","11DPT0003O",120,"BUSG720302VE9","BUSG720302MGTLND02  ","MA. GUADALUPE BULLONS SANTIAGO          ",2,0,1130,1003,0,28,"CF33206",0,12911,2,null,20160401,20160630,35421.040000000001,0]
[null,"GUANAJUATO","11DPT0003O",120,"CACF600221UD2","CACF600221HSPMSR07  ","FORTUNATO CAMACHO CASTILLO              ",2,0,1130,1003,0,28,"A03202",0,2495,2,null,20160401,20160630,29375.510000000002,0]
[null,"GUANAJUATO","11DPT0003O",120,"CAGM670126RV9","CAGM670126MGTHNR09  ","MARTHA DELIA CHAVEZ GONZALEZ            ",2,0,1130,1003,0,28,"S01202",0,2512,2,null,20160401,20160630,96802.22,0]
[null,"GUANAJUATO","11DPT0003O",120,"CALA611023U79","CALA611023MZSRZD15  ","ADRIANA CARDENAS LOZA                   ",2,0,1130,1003,0,28,"S01201",0,2533,5,null,20160401,20160630,93907.950000000012,0]
[null,"GUANAJUATO","11DPT0003O",120,"DAFT8701278E1","DAFT870127MZSVLN04  ","TANIA LIZETH DAVILA FLORES              ",2,0,1130,1003,0,28,"CF02103",0,12566,2,null,20160401,20160630,30334.95,0]
[null,"GUANAJUATO","11DPT0003O",120,"FAAF540219KI2","FAAF540219MGTRGX06  ","MARIA FE FRAUSTO AGUILAR                ",2,0,1130,1003,0,28,"S01202",0,2544,2,null,20160401,20160630,43924.689999999995,0]
[null,"GUANAJUATO","11DPT0003O",120,"FOSA610902SG9","FOSA610902MGTLNL09  ","ALEJANDRA PATRICI FLORES SANDOVAL       ",2,0,1130,1003,0,28,"A03202",0,2492,2,null,20160401,20160630,70671.5,0]
[null,"GUANAJUATO","11DPT0003O",120,"GALJ930324KX8","GALJ930324HGTRPN06  ","JUAN CARLOS GARCIA LOPEZ                ",2,0,1130,1003,0,28,"CF33202",0,2551,2,null,20160401,20160630,28648.739999999998,0]
[null,"GUANAJUATO","11DPT0003O",120,"GARJ690126G3A","GARJ690126HQTRVN01  ","JOSE JUAN GARCIA RIVERA                 ",2,0,1130,1003,0,28,"ED01201",0,2511,2,null,20160401,20160630,28041.96,0]
[null,"GUANAJUATO","11DPT0003O",120,"GOML690426EW2","GOML690426MGTNDZ08  ","LUZ ESTELA GONZALEZ MEDINA              ",2,0,1130,1003,0,28,"CF33204",0,2545,2,null,20160401,20160630,71319.100000000006,0]
[null,"GUANAJUATO","11DPT0003O",120,"GOPP5010306G6"," ","PEDRO GONZALEZ PORTILLO                 ",2,0,1130,1003,0,28,"ED01201",0,2509,2,null,20160401,20160630,33486.03,0]
[null,"GUANAJUATO","11DPT0003O",120,"GOPR8103287J3"," ","RUBEN GOMEZ PORTILLA                    ",2,0,1130,1003,0,28,"S01202",0,2520,5,null,20160401,20160630,92369.4,0]
[null,"GUANAJUATO","11DPT0003O",120,"GUFV820306TSA","GUFV820306HGRZLC04  ","VICTOR MANUEL GUZMAN FLORES             ",2,0,1130,1003,0,28,"CF34201",0,10177,2,null,20160401,20160630,83358.330000000016,0]
[null,"GUANAJUATO","11DPT0003O",120,"HECH720907NC1","HECH720907MDFRNL01  ","HILDA HERNANDEZ CANCHOLA                ",2,0,1130,1003,0,28,"CF33204",0,2526,2,null,20160401,20160630,29854.909999999996,0]
[null,"GUANAJUATO","11DPT0003O",120,"HECL6401228X2","HECL640122MDFRLT03  ","LETICIA HERNANDEZ CALVILLO              ",2,0,1130,1003,0,28,"CF33204",0,2530,2,null,20160401,20160630,45966.61,0]
[null,"GUANAJUATO","11DPT0003O",120,"HEFM781229PE6","HEFM781229MGTRRL06  ","MARIA MILAGROS HERNANDEZ FRAUSTO        ",2,0,1130,1003,0,28,"CF33206",0,12912,2,null,20160401,20160630,28648.739999999998,0]
[null,"GUANAJUATO","11DPT0003O",120,"HEHA900701UB1","HEHA900701MGTRRN03  ","ANA LETICIA HERNANDEZ HERRERA           ",2,0,1130,1003,0,28,"A03202",0,9832,2,null,20160401,20160630,29828.739999999998,0]
[null,"GUANAJUATO","11DPT0003O",120,"JIOL8008248F7","JIOL800824MGTMRZ11  ","LIZETH ARIADNA JIMENEZ ORTEGA           ",2,0,1130,1003,0,28,"CF33206",0,12916,2,null,20160401,20160630,66335.44,0]
[null,"GUANAJUATO","11DPT0003O",120,"LOCR480518KR8","LOCR480518HDFPRG01  ","ROGELIO LOPEZ CERVANTES                 ",2,0,1130,1003,0,28,"S01201",0,2556,2,null,20160401,20160630,46563.149999999994,0]
[null,"GUANAJUATO","11DPT0003O",120,"MALR690904B5A","MALR690904MGTRPS03  ","ROSA EUGENIA MARTINEZ LOPEZ             ",2,0,1130,1003,0,28,"CF33204",0,2553,2,null,20160401,20160630,40027.999999999993,0]
[null,"GUANAJUATO","11DPT0003O",120,"MAMJ620217DW9","MAMJ620217HGTRNN03  ","JUAN ANTONIO MARTINEZ MONCIBAIS         ",2,0,1130,1003,0,28,"CF33204",0,2524,2,null,20160401,20160630,77213.200000000012,0]
[null,"GUANAJUATO","11DPT0003O",120,"NAME6411037H1","NAME641103MDFVDV03  ","EVA NAVARRO MADRIGAL                    ",2,0,1130,1003,0,28,"CF33206",0,12910,2,null,20160401,20160630,33385.33,0]
[null,"GUANAJUATO","11DPT0003O",120,"NIRA700123GK9","NIRA700123MGTTVN01  ","ANA LAURA NIETO RIVERA                  ",2,0,1130,1003,0,28,"CF34201",0,2504,2,null,20160401,20160630,105658.64000000001,0]
[null,"GUANAJUATO","11DPT0003O",120,"OIOM621117BE8","OIOM621117HGTLLN02  ","MANUEL MARTIN OLIVA OLIVA               ",2,0,1130,1003,0,28,"S01202",0,2542,2,null,20160401,20160630,49301.149999999994,0]
[null,"GUANAJUATO","11DPT0003O",120,"PAPA810618AR6","PAPA810618HGTLLB03  ","ABRAHAM PALACIOS PALACIOS               ",2,0,1130,1003,0,28,"CF33204",0,2519,2,null,20160401,20160630,32188.739999999998,0]
[null,"GUANAJUATO","11DPT0003O",120,"RARE590716V64","RARE590716MJCMMV05  ","EVELIA DEL CARMEN RAMIREZ RAMIREZ       ",2,0,1130,1003,0,28,"S01202",0,2548,2,null,20160401,20160630,48173.749999999993,0]
[null,"GUANAJUATO","11DPT0003O",120,"RARR701207IA9","RARR701207MDFMMT08  ","RITA RAMIREZ RAMIREZ                    ",2,0,1130,1003,0,28,"S01202",0,2534,2,null,20160401,20160630,38904.089999999997,0]
[null,"GUANAJUATO","11DPT0003O",120,"ROFL910916ES9"," ","LORENA ROBLEDO FONSECA                  ",2,0,1130,1003,0,28,"S01202",0,2541,2,null,20160401,20160630,17422.62,0]
[null,"GUANAJUATO","11DPT0003O",120,"ROGJ631018GD6","ROGJ631018HGTMRN04  ","JUAN JOSE ROMERO GARCIA                 ",2,0,1130,1003,0,28,"CF21202",0,2547,2,null,20160401,20160630,41010.499999999993,0]
[null,"GUANAJUATO","11DPT0003O",120,"RORJ800328CB1","RORJ800328HGTDMN01  ","JUAN PABLO RODRIGUEZ RAMIREZ            ",2,0,1130,1003,0,28,"CF19201",0,2543,2,null,20160401,20160630,31725.159999999996,0]
[null,"GUANAJUATO","11DPT0003O",120,"ROVS5612313Z0","ROVS561231HGTBNL05  ","J. SILVESTRE ROBLEDO VENEGAS            ",2,0,1130,1003,0,28,"S01202",0,2525,2,null,20160401,20160630,42862.22,0]
[null,"GUANAJUATO","11DPT0003O",120,"SAAL680317PF6","SAAL680317MGTLRR00  ","LAURA PATRICIA SALDAÐA ARELLANO         ",2,0,1130,1003,0,28,"A03202",0,2494,2,null,20160401,20160630,42684.92,0]
[null,"GUANAJUATO","11DPT0003O",120,"TAPM7310026U1","TAPM731002HDFRSG06  ","MIGUEL ANGEL TAURINO PASTEN             ",2,0,1130,1003,0,28,"S01202",0,2552,2,null,20160401,20160630,33254.639999999992,0]
[null,"GUANAJUATO","11DPT0004N",120,"AACG691218L13","AACG691218MMNLSR08  ","GRACIELA ALVAREZ CASTRO                 ",2,0,1130,1003,0,28,"CF18203",0,4397,2,null,20160401,20160630,41117.770000000004,0]
[null,"GUANAJUATO","11DPT0004N",120,"AUPM640422KR2","AUPM640422HGTGLR03  ","MARTIN AGUIRRE PALMERIN                 ",2,0,1130,1003,0,28,"S01202",0,2508,2,null,20160401,20160630,36747.729999999996,0]
[null,"GUANAJUATO","11DPT0004N",120,"DIJL7203079A3","DIJL720307MGTGCR01  ","MA. DE LOURDES DIEGO JACOBO             ",2,0,1130,1003,0,28,"CF02105",0,14595,2,null,20160401,20160630,40711.459999999992,0]
[null,"GUANAJUATO","11DPT0004N",120,"DUAJ8704098Q4","DUAJ870409HGTRGR00  ","JORGE LUIS DURAN AGUILERA               ",2,0,1130,1003,0,28,"CF34202",0,2537,2,null,20160401,20160630,27322.15,0]
[null,"GUANAJUATO","11DPT0004N",120,"GACR6704153I2","GACR670415MGTRRT06  ","MARIA RITA GARCIA CERRATO               ",2,0,1130,1003,0,28,"S01201",0,2506,2,null,20160401,20160630,41930.079999999994,0]
[null,"GUANAJUATO","11DPT0004N",120,"GARS670416A54","GARS670416MGTRYL05  ","SILVIA GARCIA REYES                     ",2,0,1130,1003,0,28,"CF33204",0,10599,2,null,20160401,20160630,79507.5,0]
[null,"GUANAJUATO","11DPT0004N",120,"GAZE690718GX3","GAZE690718MGTRVL07  ","ELIZABETH GARCIA ZAVALA                 ",2,0,1130,1003,0,28,"CF18203",0,2507,2,null,20160401,20160630,42012.24,0]
[null,"GUANAJUATO","11DPT0004N",120,"GOGE730923ME8","GOGE730923MMNNNL00  ","ELIZABETH GONZALEZ GONZALEZ             ",2,0,1130,1003,0,28,"S01202",0,2539,2,null,20160401,20160630,38727.949999999997,0]
[null,"GUANAJUATO","11DPT0004N",120,"LOGM731124S65","LOGM731124MMNPZN04  ","MONICA IVETT LOPEZ GUZMAN               ",2,0,1130,1003,0,28,"CF33202",0,2517,2,null,20160401,20160630,87424.760000000024,0]
[null,"GUANAJUATO","11DPT0004N",120,"LOGY890331RG1","LOGY890331MGTPZN04  ","YANNET LOPEZ GUZMAN                     ",2,0,1130,1003,0,28,"CF33206",0,12914,2,null,20160401,20160630,31376.049999999996,0]
[null,"GUANAJUATO","11DPT0004N",120,"LURR5303156L3","LURR530315HGTNMY04  ","RAYMUNDO LUNA RAMIREZ                   ",2,0,1130,1003,0,28,"CF33204",0,2540,5,null,20160401,20160630,97424.43,0]
[null,"GUANAJUATO","11DPT0004N",120,"MEGR631011V43","MEGR631011MGTNRS04  ","ROSA MENDEZ GARCIA                      ",2,0,1130,1003,0,28,"S01201",0,2501,2,null,20160401,20160630,37075.71,0]
[null,"GUANAJUATO","11DPT0004N",120,"MORM731010QZ9","MORM731010MVZLZR03  ","MIRSA MARICELA MOLGORA RAZO             ",2,0,1130,1003,0,28,"S01201",0,2558,2,null,20160401,20160630,90482.46,0]
[null,"GUANAJUATO","11DPT0004N",120,"OEVL650213T59","OEVL650213MGTRLR01  ","LAURA INES ORTEGA VALADEZ               ",2,0,1130,1003,0,28,"S01202",0,2555,5,null,20160401,20160630,116830.55,0]
[null,"GUANAJUATO","11DPT0004N",120,"PAGR7307144R1","PAGR730714MGTNMF00  ","MARIA DEL REFUGIO PANTOJA GOMEZ         ",2,0,1130,1003,0,28,"CF19201",0,2496,2,null,20160401,20160630,41757.03,0]
[null,"GUANAJUATO","11DPT0004N",120,"SAGN550328R1A","SAGN550328HGTNMC00  ","NICOLAS SANTOYO GOMEZ                   ",2,0,1130,1003,0,28,"S01202",0,2527,2,null,20160401,20160630,40280.46,0]
[null,"GUANAJUATO","11DPT0004N",120,"SAHO620602LB0","SAHO620602HSRLRS06  ","OSMAN SALAZAR HERNANDEZ                 ",2,0,1130,1003,0,28,"CF18201",0,2515,2,null,20160401,20160630,27322.15,0]
[null,"GUANAJUATO","11DPT0004N",120,"SOPA800206QN0","SOPA800206HMCRRB02  ","ABNER ISAI SORIA PEREZ                  ",2,0,1130,1003,0,28,"A03202",0,2497,2,null,20160401,20160630,56856.100000000006,0]
[null,"GUANAJUATO","11DPT0004N",120,"TAAS6205308FA","TAAS620530MJCPLR01  ","SARA TAPIA ALCANTARA                    ",2,0,1130,1003,0,29,"S01201",0,2567,2,null,20160401,20160630,39899.840000000004,0]
[null,"GUANAJUATO","11DPT0004N",120,"VASO730804UX2","VASO730804HGTRTC00  ","OCTAVIO VARGAS SOTO                     ",2,0,1130,1003,0,29,"S01201",0,11909,2,null,20160401,20160630,92735.73,0]
[null,"GUANAJUATO","11DPT0005M",120,"BAQL620315PN5","BAQL620315HGTRRS00  ","LUIS MANUEL BRAVO QUIROZ                ",2,0,1130,1003,0,29,"CF33202",0,2592,2,null,20160401,20160630,104131.90999999999,0]
[null,"GUANAJUATO","11DPT0005M",120,"BASS600608U7A","BASS600608MGTRRL08  ","MARIA SOLEDAD ROS BRAVO SERRANO         ",2,0,1130,1003,0,29,"CF02103",0,12628,2,null,20160401,20160630,42450.97,0]
[null,"GUANAJUATO","11DPT0005M",120,"CAGR660928KD7","CAGR660928MGTSNB07  ","RUBICELIA CASTRO GONZALEZ               ",2,0,1130,1003,0,29,"CF33204",0,2560,2,null,20160401,20160630,79090.3,0]
[null,"GUANAJUATO","11DPT0005M",120,"CAML640420FH8","CAML640420HDFSRS06  ","JOSE LUIS CASILLAS MIRANDA              ",2,0,1130,1003,0,29,"CF18203",0,2576,2,null,20160401,20160630,39045.56,0]
[null,"GUANAJUATO","11DPT0005M",120,"CANS730714K3A","CANS730714MGTSTR04  ","SARA CASTILLO NIETO                     ",2,0,1130,1003,0,29,"ED01201",0,2571,2,null,20160401,20160630,40415.629999999997,0]
[null,"GUANAJUATO","11DPT0005M",120,"CARR771026IP3"," ","ROSANA CARRILLO RAMIREZ                 ",2,0,1130,1003,0,29,"S01201",0,2607,2,null,20160401,20160630,39258.600000000006,0]
[null,"GUANAJUATO","11DPT0005M",120,"COAD7908184B7","COAD790818MGTVRN00  ","DENY COVARRUBIAS ARREGUIN               ",2,0,1130,1003,0,29,"S01202",0,2593,2,null,20160401,20160630,28126.21,0]
[null,"GUANAJUATO","11DPT0005M",120,"FIGP640907QP7","FIGP640907HGTGRD01  ","PEDRO FIGUEROA GARCIA                   ",2,0,1130,1003,0,29,"A03202",0,2565,2,null,20160401,20160630,41108.6,0]
[null,"GUANAJUATO","11DPT0005M",120,"FIRG871015PB5","FIRG871015MGTGMB07  ","GABRIELA FIGUEROA RAMIREZ               ",2,0,1130,1003,0,29,"S01201",0,2595,2,null,20160401,20160630,28936.21,0]
[null,"GUANAJUATO","11DPT0005M",120,"GOAA770911HT1","GOAA770911MGTMLN09  ","ANA ROSA GOMEZ ALBA                     ",2,0,1130,1003,0,29,"CF34202",0,305,2,null,20160401,20160630,54171.820000000007,0]
[null,"GUANAJUATO","11DPT0005M",120,"GOLR590503HDA","GOLR590503HGTNDB04  ","ROBERTO GONZALEZ LEDESMA                ",2,0,1130,1003,0,29,"CF33206",0,13544,2,null,20160401,20160630,13086.2,0]
[null,"GUANAJUATO","11DPT0005M",120,"GULH680121BP6","GULH680121HDFTPR01  ","HORACIO GUTIERREZ LOPEZ                 ",2,0,1130,1003,0,29,"S01201",0,2635,2,null,20160401,20160630,29252.1,0]
[null,"GUANAJUATO","11DPT0005M",120,"HECS621213HZ5","HECS621213HGTRLR02  ","SERGIO HERNANDEZ CALDERON               ",2,0,1130,1003,0,29,"CF33206",0,13246,2,null,20160401,20160630,48923.149999999994,0]
[null,"GUANAJUATO","11DPT0005M",120,"JUMH681213NW0","JUMH681213HGTRGL00  ","JOSE HILARIO JUAREZ MAGAÐA              ",2,0,1130,1003,0,29,"CF33206",0,13249,2,null,20160401,20160630,103451.76000000001,0]
[null,"GUANAJUATO","11DPT0005M",120,"LELE610112FLA","LELE610112MGTMRL09  ","ELSA GUADALUPE LEMUS LIRA               ",2,0,1130,1003,0,29,"CF33206",0,13248,2,null,20160401,20160630,92373.95,0]
[null,"GUANAJUATO","11DPT0005M",120,"MEGG6410124T0","MEGG641012MGTDRL06  ","GLORIA MEDINA GARCIA                    ",2,0,1130,1003,0,29,"S01201",0,2585,2,null,20160401,20160630,37737.269999999997,0]
[null,"GUANAJUATO","11DPT0005M",120,"MEMM670521N64","MEMM670521MDFDJR03  ","MARTHA PATRICIA MEDEL MEJIA             ",2,0,1130,1003,0,29,"ED01201",0,2602,2,null,20160401,20160630,47624.509999999995,0]
[null,"GUANAJUATO","11DPT0005M",120,"MORM6501066X7","MORM650106HGTRSL00  ","MELCHOR BENITO MORENO ROSALES           ",2,0,1130,1003,0,29,"CF34202",0,2600,2,null,20160401,20160630,102764.37000000001,0]
[null,"GUANAJUATO","11DPT0005M",120,"MORM8011214B7","MORM801121HDFRMN03  ","MANUEL EFRAIN MORENO ROMERO             ",2,0,1130,1003,0,29,"S01201",0,2579,2,null,20160401,20160630,27322.15,0]
[null,"GUANAJUATO","11DPT0005M",120,"NIMA711025LJ1","NIMA711025MGTTRL07  ","ALICIA NIETO MARTINEZ                   ",2,0,1130,1003,0,29,"S01202",0,2570,2,null,20160401,20160630,39094.21,0]
[null,"GUANAJUATO","11DPT0005M",120,"NIMT691014GT1","NIMT691014MGTTRR05  ","TERESITA NIETO MARTINEZ                 ",2,0,1130,1003,0,29,"S01202",0,2597,2,null,20160401,20160630,28126.21,0]
[null,"GUANAJUATO","11DPT0005M",120,"OUGM7012272G3","OUGM701227MGTRRN03  ","MONICA ORDUNA GARCIA                    ",2,0,1130,1003,0,29,"CF33206",0,13247,2,null,20160401,20160630,29524.95,0]
[null,"GUANAJUATO","11DPT0005M",120,"PACM840215MT1","PACM840215MGTLRR00  ","MAURA ANGELICA PALOMINO CARREÐO         ",2,0,1130,1003,0,29,"S01202",0,2604,2,null,20160401,20160630,26227.599999999999,0]
[null,"GUANAJUATO","11DPT0005M",120,"PAGM5802105H5","PAGM580210HNTLRT06  ","MATIAS PALOMARES GARCIA                 ",2,0,1130,1003,0,29,"A03202",0,2563,2,null,20160401,20160630,30177.720000000005,0]
[null,"GUANAJUATO","11DPT0005M",120,"PIAR680730PSA","PIAR680730MGTRGG01  ","MARIA REGINA PRIETO AGUILAR             ",2,0,1130,1003,0,29,"S01201",0,2594,2,null,20160401,20160630,77421.8,0]
[null,"GUANAJUATO","11DPT0005M",120,"RAFA620326696","RAFA620326HGTMNN00  ","JOSE ANTONIO RAMIREZ FUENTES            ",2,0,1130,1003,0,29,"S01201",0,2574,2,null,20160401,20160630,110003.63999999998,0]
[null,"GUANAJUATO","11DPT0005M",120,"RORF650224FV1","RORF650224HDFDDR03  ","FERNANDO RODRIGUEZ RODRIGUEZ            ",2,0,1130,1003,0,29,"CF33206",0,13252,2,null,20160401,20160630,30777.959999999995,0]
[null,"GUANAJUATO","11DPT0005M",120,"SABM631225F45","SABM631225HGTVRR06  ","MARTIN SALVADOR SAAVEDRA BRAVO          ",2,0,1130,1003,0,29,"CF18203",0,11914,2,null,20160401,20160630,28900.739999999998,0]
[null,"GUANAJUATO","11DPT0005M",120,"SATR640529JN3","SATR640529HGTLRB08  ","RUBEN SALAZAR TORRES                    ",2,0,1130,1003,0,29,"T08201",0,690,2,null,20160401,20160630,47883.7,0]
[null,"GUANAJUATO","11DPT0005M",120,"SIFB790507EM8","SIFB790507HGTRRR00  ","BRAULIO ISAAC SIERRA FERREYRA           ",2,0,1130,1003,0,29,"CF34201",0,2596,2,null,20160401,20160630,76325.25,0]
[null,"GUANAJUATO","11DPT0005M",120,"TOCB650526UK9","TOCB650526MGTRBR04  ","BERTHA TORRES COVARRUBIAS               ",2,0,1130,1003,0,29,"CF18201",0,2573,5,null,20160401,20160630,92369.4,0]
[null,"GUANAJUATO","11DPT0005M",120,"VACY6607278R7","VACY660727MGTRSL08  ","YOLANDA VARGAS CASTILLO                 ",2,0,1130,1003,0,29,"CF34201",0,2587,2,null,20160401,20160630,79090.3,0]
[null,"GUANAJUATO","11DPT0005M",120,"VAGC6606185V3","VAGC660618MGTRRN09  ","CANDELARIA VARGAS GARCIA                ",2,0,1130,1003,0,29,"CF21202",0,2588,2,null,20160401,20160630,28126.21,0]
[null,"GUANAJUATO","11DPT0005M",120,"VALN7508285U9","VALN750828MGTZMR00  ","NORMA ADRIANA VAZQUEZ LOMELI            ",2,0,1130,1003,0,29,"CF33204",0,2598,2,null,20160401,20160630,41174.81,0]
[null,"GUANAJUATO","11DPT0006L",120,"AALS670904235","AALS670904MGTNPL09  ","SILVIA ANAYA LOPEZ                      ",2,0,1130,1003,0,29,"CF19201",0,2583,2,null,20160401,20160630,70347.7,0]
[null,"GUANAJUATO","11DPT0006L",120,"AARL760126331","AARL760126HGTLMN14  ","LEONARDO ISRAEL ALVAREZ ROMO            ",2,0,1130,1003,0,29,"S01201",0,2601,2,null,20160401,20160630,35244.82,0]
[null,"GUANAJUATO","11DPT0006L",120,"AERG571209NWA","AERG571209HGTRML09  ","GILBERTO ARREOLA ROMERO                 ",2,0,1130,1003,0,29,"S01201",0,11702,2,null,20160401,20160630,33616.86,0]
[null,"GUANAJUATO","11DPT0006L",120,"CIGP680809983","CIGP680809HGTDRB07  ","PABLO MARTIN CID GARCIA                 ",2,0,1130,1003,0,29,"CF04201",0,2561,2,null,20160401,20160630,97424.43,0]
[null,"GUANAJUATO","11DPT0006L",120,"COMP630327QN2","COMP630327HGTNRB00  ","PABLO GERARDO CONTRERAS MARTINEZ        ",2,0,1130,1003,0,29,"CF33204",0,2603,2,null,20160401,20160630,110253.26999999997,0]
[null,"GUANAJUATO","11DPT0006L",120,"EAMG8704104G8","EAMG870410MGTSRR00  ","GRECIA ROXANNA ESPARZA MARES            ",2,0,1130,1003,0,29,"CF33204",0,2599,2,null,20160401,20160630,29836.75,0]
[null,"GUANAJUATO","11DPT0006L",120,"EIMJ880812BK0","EIMJ880812MGTLRH07  ","JHOANA IVON ELIZALDE MARTINEZ           ",2,0,1130,1003,0,29,"S01201",0,2590,5,null,20160401,20160630,27528,0]
[null,"GUANAJUATO","11DPT0006L",120,"GUFO930509HR3","GUFO930509MGTVRL06  ","OLIVIA GUEVARA FARFAN                   ",2,0,1130,1003,0,29,"CF33204",0,9176,2,null,20160401,20160630,27322.15,0]
[null,"GUANAJUATO","11DPT0006L",120,"HEGN8708165Y4","HEGN870816MGTRRY05  ","NAYELI HERREJON GUERRERO                ",2,0,1130,1003,0,29,"S01202",0,2568,5,null,20160401,20160630,28005.4,0]
[null,"GUANAJUATO","11DPT0006L",120,"JALS470121DUA","JALS470121HMNMPR04  ","SERGIO JAIMES LOPEZ                     ",2,0,1130,1003,0,29,"S01202",0,2582,2,null,20160401,20160630,92369.4,0]
[null,"GUANAJUATO","11DPT0006L",120,"JUPA730712HA3","JUPA730712MGTRRN04  ","ANA LAURA JUAREZ PEREZ                  ",2,0,1130,1003,0,29,"A03202",0,2564,2,null,20160401,20160630,42511.380000000005,0]
[null,"GUANAJUATO","11DPT0006L",120,"LOAP6711257L7","LOAP671125HGTPGB09  ","JOSE PABLO LOPEZ AGUIRRE                ",2,0,1130,1003,0,30,"S01202",0,2650,2,null,20160401,20160630,33203.500000000007,0]
[null,"GUANAJUATO","11DPT0006L",120,"MAFJ5906036T8","MAFJ590603HGTRRN00  ","JUAN MANUEL MARTINEZ FRIAS              ",2,0,1130,1003,0,30,"CF33206",0,13322,2,null,20160401,20160630,40897.279999999999,0]
[null,"GUANAJUATO","11DPT0006L",120,"MAZR720405LB8","MAZR720405HMNRTC01  ","RICARDO MARTINEZ ZETINA                 ",2,0,1130,1003,0,30,"CF33204",0,2518,2,null,20160401,20160630,54654.720000000008,0]
[null,"GUANAJUATO","11DPT0006L",120,"MOSJ790615LD6","MOSJ790615HGTLNN00  ","JUAN MOLINA SANCHEZ                     ",2,0,1130,1003,0,30,"A03202",0,9164,2,null,20160401,20160630,31601.239999999998,0]
[null,"GUANAJUATO","11DPT0006L",120,"MOSP780508DF7","MOSP780508HGTLND02  ","PEDRO MOLINA SANCHEZ                    ",2,0,1130,1003,0,30,"S01201",0,2618,2,null,20160401,20160630,37420.839999999997,0]
[null,"GUANAJUATO","11DPT0006L",120,"NAVS621206356","NAVS621206MGTVLN00  ","SANDRA JUANA NAVA VELAZQUEZ             ",2,0,1130,1003,0,30,"CF33206",0,13682,2,null,20160401,20160630,72290.5,0]
[null,"GUANAJUATO","11DPT0006L",120,"PAHM630123LJ6","PAHM630123HGTNRN05  ","MANUEL PANTOJA HERRERA                  ",2,0,1130,1003,0,30,"CF33206",0,14317,2,null,20160401,20160630,110253.26999999997,0]
[null,"GUANAJUATO","11DPT0006L",120,"QUDW870430HH4","QUDW870430MGTNMN07  ","WENDY YAZMIN QUINTANA DOMINGUEZ         ",2,0,1130,1003,0,30,"S01202",0,2623,2,null,20160401,20160630,37052.25,0]
[null,"GUANAJUATO","11DPT0006L",120,"SAMG651113CLA","SAMG651113MGTVDD08  ","MARIA GUADALUPE SAAVEDRA MEDRANO        ",2,0,1130,1003,0,30,"CF34201",0,2622,2,null,20160401,20160630,39135.730000000003,0]
[null,"GUANAJUATO","11DPT0006L",120,"SIRO600318LE2","SIRO600318HGTRDC04  ","JOSE OCTAVIO SIERRA RODRIGUEZ           ",2,0,1130,1003,0,30,"CF33204",0,2611,2,null,20160401,20160630,69442,0]
[null,"GUANAJUATO","11DPT0006L",120,"TOMP701231IUA","TOMP701231MGTRJT08  ","PATRICIA TORRES MEJIA                   ",2,0,1130,1003,0,30,"S01202",0,9200,2,null,20160401,20160630,39900.450000000004,0]
[null,"GUANAJUATO","11DPT0006L",120,"YEGL891123ML2","YEGL891123MGTPRR08  ","LAURA VERONICA YEPEZ GARCIA             ",2,0,1130,1003,0,30,"S01202",0,2633,2,null,20160401,20160630,27916.92,0]
[null,"GUANAJUATO","11DPT0007K",120,"AOLJ820429DY4","AOLJ820429HGTCPL06  ","JOEL ADOLFO ACOSTA LOPEZ                ",2,0,1130,1003,0,30,"CF33204",0,2666,2,null,20160401,20160630,26944.15,0]
[null,"GUANAJUATO","11DPT0007K",120,"BAPA711019KLA","BAPA711019MGTRRN03  ","ANA LOURDES BARAJAS PEREZ               ",2,0,1130,1003,0,30,"CF02103",0,12664,2,null,20160401,20160630,70709.040000000008,0]
[null,"GUANAJUATO","11DPT0007K",120,"CACL650308V86","CACL650308MGTMLZ03  ","MA. DE LA LUZ CAMARILLO COLLAZO         ",2,0,1130,1003,0,30,"CF33206",0,13684,2,null,20160401,20160630,111649.76000000001,0]
[null,"GUANAJUATO","11DPT0007K",120,"CADG5812029W6","CADG581202MGTHLR09  ","GRACIELA CHAVEZ DELGADO                 ",2,0,1130,1003,0,30,"S01201",0,2500,2,null,20160401,20160630,44989.75,0]
[null,"GUANAJUATO","11DPT0007K",120,"CAPE530526869","CAPE530526MGTRRL07  "," M.ELENA CARDIEL PEREZ                  ",2,0,1130,1003,0,30,"CF21202",0,2663,2,null,20160401,20160630,74299,0]
[null,"GUANAJUATO","11DPT0007K",120,"CAUF560705QGA","CAUF560705HGTHRL05  ","FILOMENO CHAGOYA URRUTIA                ",2,0,1130,1003,0,30,"S01202",0,2659,2,null,20160401,20160630,36331.629999999997,0]
[null,"GUANAJUATO","11DPT0007K",120,"CEVB731120C46","CEVB731120HGTDRR00  ","BERNARDO CEDILLO VERA                   ",2,0,1130,1003,0,30,"S01202",0,2630,2,null,20160401,20160630,18662.28,0]
[null,"GUANAJUATO","11DPT0007K",120,"GARJ840526678","GARJ840526HGTRMV04  ","JAVIER ARTURO GARCIA ROMERO             ",2,0,1130,1003,0,30,"CF33204",0,2510,2,null,20160401,20160630,32989.420000000006,0]
[null,"GUANAJUATO","11DPT0007K",120,"GARL720427FX0","GARL720427MGTRMZ12  ","LUZ MA GARCIA ROMERO                    ",2,0,1130,1003,0,30,"CF18203",0,9186,2,null,20160401,20160630,40443.299999999996,0]
[null,"GUANAJUATO","11DPT0007K",120,"GOGL6009014D1","GOGL600901MGTNLN08  ","LINA ENGRACIA GONZALEZ GALLARDO         ",2,0,1130,1003,0,30,"CF34201",0,2649,2,null,20160401,20160630,45293.37,0]
[null,"GUANAJUATO","11DPT0007K",120,"GUGE730901EC4","GUGE730901MGTTNS07  ","ESPERANZA GUTIERREZ GONZALEZ            ",2,0,1130,1003,0,30,"CF33204",0,2638,2,null,20160401,20160630,41991.28,0]
[null,"GUANAJUATO","11DPT0007K",120,"GUGM650603GP3","GUGM650603MJCTZR08  ","MA. MARTINA GUTIERREZ GUZMAN            ",2,0,1130,1003,0,30,"A03202",0,9169,2,null,20160401,20160630,114746.67000000001,0]
[null,"GUANAJUATO","11DPT0007K",120,"HEBL680226MH6","HEBL680226HDFRNS05  ","LUIS FELIPE HERRERA BUENDIA             ",2,0,1130,1003,0,30,"CF02103",0,12664,2,null,20160401,20160630,35427.14,0]
[null,"GUANAJUATO","11DPT0007K",120,"HELU501011H62","HEXL501011HGTRXZ04  ","DE LA LUZ HERNANDEZ JOSE                ",2,0,1130,1003,0,30,"CF33206",0,14316,2,null,20160401,20160630,34393.82,0]
[null,"GUANAJUATO","11DPT0007K",120,"IAVC761114FE1","IAVC761114MNTBLL00  ","CLAUDIA ELIZABET IBARRA VILLANUEVA      ",2,0,1130,1003,0,30,"CF18203",0,2648,2,null,20160401,20160630,95630,0]
[null,"GUANAJUATO","11DPT0007K",120,"JAMC821119QK9","JAMC821119MGTMSL07  ","CLAUDIA MARCELA JAIME MOSQUEDA          ",2,0,1130,1003,0,30,"S01202",0,2637,2,null,20160401,20160630,31129.500000000007,0]
[null,"GUANAJUATO","11DPT0007K",120,"LOMA701120ND4","LOXM701120HGTPXR04  ","MARTIN EDUARDO LOPEZ                    ",2,0,1130,1003,0,30,"CF33203",0,9197,2,null,20160401,20160630,95470.83,0]
[null,"GUANAJUATO","11DPT0007K",120,"MAGF780719PC1","MAGF780719MGTRNT03  ","FATIMA MARTINEZ GONZALEZ                ",2,0,1130,1003,0,30,"CF04201",0,9170,2,null,20160401,20160630,27748.21,0]
[null,"GUANAJUATO","11DPT0007K",120,"MORA580316U78","MORA580316HGTJML06  ","ALEJANDRO MOJICA RAMIREZ                ",2,0,1130,1003,0,30,"CF19201",0,2620,2,null,20160401,20160630,43267.590000000004,0]
[null,"GUANAJUATO","11DPT0007K",120,"MUPT600105IQ9","MUPT600105MGTRRR07  ","MA TRINIDAD MURILLO PEREZ               ",2,0,1130,1003,0,30,"A03202",0,2613,2,null,20160401,20160630,35698.239999999991,0]
[null,"GUANAJUATO","11DPT0007K",120,"NIRG591215T84","NIRG591215MGTTVR06  ","GEORGINA DE LOURD NIETO RIVERA          ",2,0,1130,1003,0,30,"ED01201",0,2656,2,null,20160401,20160630,92369.4,0]
[null,"GUANAJUATO","11DPT0007K",120,"OILH810313JS5"," ","HECTOR GERARDO OVIEDO LUGO              ",2,0,1130,1003,0,30,"CF33206",0,13685,2,null,20160401,20160630,17422.62,0]
[null,"GUANAJUATO","11DPT0007K",120,"OILP6802156K9","OILP680215MDFVGL09  ","MARIA DEL PILAR OVIEDO LUGO             ",2,0,1130,1003,0,30,"A03202",0,2614,2,null,20160401,20160630,37762.899999999994,0]
[null,"GUANAJUATO","11DPT0007K",120,"PAZR620620HP0","PAZR620620MGTCPQ07  ","RAQUEL PACHECO ZAPIEN                   ",2,0,1130,1003,1,28,"A03202",0,6496,2,null,20160401,20160630,78034.430000000008,0]
[null,"GUANAJUATO","11DPT0007K",120,"POMR6708302N1","POMR670830MGTRNS05  ","ROSA MARIA PORRAS MANRIQUE              ",2,0,1130,1003,1,28,"S01201",0,6502,2,null,20160401,20160630,74233.3,0]
[null,"GUANAJUATO","11DPT0007K",120,"RAAE850827HM7","RAAE850827MGTMNL05  ","ELVIA RAMIREZ ANDRADE                   ",2,0,1130,1003,1,28,"CF19201",0,6523,2,null,20160401,20160630,9980.43,0]
[null,"GUANAJUATO","11DPT0007K",120,"RAHJ6410105C3","RAHJ641010MGTMRS04  ","MA. DE JESUS RAMIREZ HORTA              ",2,0,1130,1003,1,28,"S01201",0,6520,2,null,20160401,20160630,108654.19999999998,0]
[null,"GUANAJUATO","11DPT0007K",120,"RARP630605NP2","RARP630605HJCMMD06  ","PEDRO RAMIREZ RAMIREZ                   ",2,0,1130,1003,1,28,"CF19201",0,6506,2,null,20160401,20160630,36577.5,0]
[null,"GUANAJUATO","11DPT0007K",120,"RIOS5803272M4","RIOS580327MZSVLC03  ","MA. DEL SOCORRO RIVERA OLVERA           ",2,0,1130,1003,1,28,"CF33204",0,10604,2,null,20160401,20160630,71260.44,0]
[null,"GUANAJUATO","11DPT0007K",120,"ROGF800428M80"," ","FIDEL RODRIGUEZ GUZMAN                  ",2,0,1130,1003,1,28,"CF04201",0,6498,2,null,20160401,20160630,37005.600000000006,0]
[null,"GUANAJUATO","11DPT0007K",120,"ROGJ720412CD2","ROGJ720412HGTCNL01  ","JULIO BERNARDO ROCHA GONZALEZ           ",2,0,1130,1003,1,28,"A03202",0,6497,2,null,20160401,20160630,41586.699999999997,0]
[null,"GUANAJUATO","11DPT0007K",120,"ROGL591003DS4","ROGL591003MGTMNN05  ","MA.LINA TERESA ROMERO GONZALEZ          ",2,0,1130,1003,1,28,"CF33206",0,13686,2,null,20160401,20160630,35051.440000000002,0]
[null,"GUANAJUATO","11DPT0007K",120,"ROMI501119KW9","ROMI501119HGTCZS14  ","J. ISABEL ROCHA MEZA                    ",2,0,1130,1003,1,28,"S01201",0,6511,2,null,20160401,20160630,34985.83,0]
[null,"GUANAJUATO","11DPT0007K",120,"SACA791207U75","SACA791207MGTLSL02  ","MARIA ALEJANDRA SALAZAR CASTANEDA       ",2,0,1130,1003,1,28,"CF33206",0,14055,5,null,20160401,20160630,78517.2,0]
[null,"GUANAJUATO","11DPT0007K",120,"SAGG7304218VA","SAGG730421MGTNLL02  ","GLORIA SANCHEZ GALVAN                   ",2,0,1130,1003,1,28,"S01202",0,6514,2,null,20160401,20160630,39159.43,0]
[null,"GUANAJUATO","11DPT0007K",120,"SETV690706LG3","SETV690706MDFRRR05  ","VERONICA SERRANO TORRES                 ",2,0,1130,1003,1,28,"CF02104",0,12767,2,null,20160401,20160630,68419.199999999997,0]
[null,"GUANAJUATO","11DPT0008J",120,"AALR590709UH6","AALR590709MGTNPC06  ","MARIA ROCIO ANAYA LOPEZ                 ",2,0,1130,1003,1,28,"CF33206",0,14314,2,null,20160401,20160630,40419.589999999997,0]
[null,"GUANAJUATO","11DPT0008J",120,"AEAC630530Q21","AEAC630530MGTLLN08  ","MA. CONCEPCION ALEJOS ALONSO            ",2,0,1130,1003,1,28,"CF21202",0,6518,2,null,20160401,20160630,73261.900000000009,0]
[null,"GUANAJUATO","11DPT0008J",120,"BAJR800429CA7","BAJR800429MGTLRC00  ","ROCIO BALDERAS JUAREZ                   ",2,0,1130,1003,1,28,"S01202",0,6509,2,null,20160401,20160630,45465.75,0]
[null,"GUANAJUATO","11DPT0008J",120,"BARJ8305267S1","BARJ830526HGTRYN02  ","JUAN ANGEL BRAVO REYES                  ",2,0,1130,1003,1,28,"S01201",0,6507,2,null,20160401,20160630,76144.36,0]
[null,"GUANAJUATO","11DPT0008J",120,"CAAO740517PC6","CAAO740517HGTMRC05  ","OCTAVIANO CAMPOS ARRIAGA                ",2,0,1130,1003,1,28,"CF33204",0,10615,2,null,20160401,20160630,72092.55,0]
[null,"GUANAJUATO","11DPT0008J",120,"COVA700831PW6","COVA700831MGRNRM03  ","AMADA CONDE VERA                        ",2,0,1130,1003,1,28,"CF34201",0,6522,2,null,20160401,20160630,42539.14,0]
[null,"GUANAJUATO","11DPT0008J",120,"COVF720114623","COVF720114HGTNRR02  ","FRANCISCO JAVIER CONDE VERA             ",2,0,1130,1003,1,28,"CF33206",0,13688,2,null,20160401,20160630,27322.15,0]
[null,"GUANAJUATO","11DPT0008J",120,"EICT8203073V8","EICT820307HGTSRM05  ","TOMAS ROGELIO ESPINOZA CERVANTES        ",2,0,1130,1003,2,3,"S01201",0,9192,2,null,20160401,20160630,32231.1,0]
[null,"GUANAJUATO","11DPT0008J",120,"FOJU6701074Z1","FOXJ670107HGTLXN09  ","JUAN ANTONIO FLORES                     ",2,0,1130,1003,2,3,"CF33204",0,3880,2,null,20160401,20160630,67499.259999999995,0]
[null,"GUANAJUATO","11DPT0008J",120,"GAFV6609298F9","GAFV660929MGTRRR06  ","VERONICA ROCIO GRANADOS FRIAS           ",2,0,1130,1003,2,3,"CF33206",0,10298,2,null,20160401,20160630,41440.28,0]
[null,"GUANAJUATO","11DPT0008J",120,"GOCH8410237R3","GOCH841023HGTNBC04  ","HECTOR HUGO GONZALEZ CABRERA            ",2,0,1130,1003,2,3,"CF21202",0,9211,2,null,20160401,20160630,26944.15,0]
[null,"GUANAJUATO","11DPT0008J",120,"GUTR690427DSA","GUTR690427MDFPRC02  ","ROCIO GUAPO TORRECILLAS                 ",2,0,1130,1003,2,3,"CF33204",0,9174,2,null,20160401,20160630,41443.969999999994,0]
[null,"GUANAJUATO","11DPT0008J",120,"JACF700609GI1","JACF700609HGTRML07  ","FELIPE JARAMILLO CAMPOS                 ",2,0,1130,1003,2,3,"S01201",0,9177,2,null,20160401,20160630,29930.190000000006,0]
[null,"GUANAJUATO","11DPT0008J",120,"LAVA8108019Q9","LAVA810801MGTGRN09  ","MARIA DE LOS ANG LAGUNA VARGAS          ",2,0,1130,1003,2,3,"CF02105",0,12840,2,null,20160401,20160630,98784.37999999999,0]
[null,"GUANAJUATO","11DPT0008J",120,"LAVD841123J58","LAVD841123HGTGRN02  ","DANIEL LAGUNA VARGAS                    ",2,0,1130,1003,2,3,"S01202",0,9193,2,null,20160401,20160630,27322.15,0]
[null,"GUANAJUATO","11DPT0008J",120,"MELJ7904219Z8","MELJ790421HGTLDN03  ","JUAN MAURICIO MELGOZA LEDESMA           ",2,0,1130,1003,2,3,"ED01201",0,9180,2,null,20160401,20160630,32705.74,0]
[null,"GUANAJUATO","11DPT0008J",120,"MOFD480314HT2","MOFD480314HGTRLL00  ","JOSE DOLORES MORALES FLORES             ",2,0,1130,1003,2,3,"CF18203",0,9181,2,null,20160401,20160630,38106.51,0]
[null,"GUANAJUATO","11DPT0008J",120,"NUCS580811UI9","NUCS580811MGTXRS04  ","SUSANA NUÐEZ CERRITOS                   ",2,0,1130,1003,2,3,"CF04201",0,2612,2,null,20160401,20160630,41102.22,0]
[null,"GUANAJUATO","11DPT0008J",120,"OETL661122IZ6","OETL661122MGTRRZ06  ","LUZ CECILIA ORTEGA TORRES               ",2,0,1130,1003,2,3,"CF33206",0,13321,2,null,20160401,20160630,40085.670000000006,0]
[null,"GUANAJUATO","11DPT0008J",120,"PACM941015U40","PACM941015MGTLRR06  ","MARIANA PALOMINO CARRE±O                ",2,0,1130,1003,2,3,"S01202",0,9206,2,null,20160401,20160630,27378.32,0]
[null,"GUANAJUATO","11DPT0008J",120,"PAJJ830708SK1","PAJJ830708HQTTMR06  ","JORGE ADALBERTO PATINO JIMENEZ          ",2,0,1130,1003,2,3,"S01201",0,9184,2,null,20160401,20160630,32578.379999999997,0]
[null,"GUANAJUATO","11DPT0008J",120,"RABF730512PD1","RABF730512HGTMLD04  ","JOSE FIDEL RAMIREZ BELMAN               ",2,0,1130,1003,2,3,"CF33206",0,13320,5,null,20160401,20160630,26172.400000000001,0]
[null,"GUANAJUATO","11DPT0008J",120,"RACA8011159T0","RACA801115MGTMRD05  ","ADELA RAMIREZ CERRITOS                  ",2,0,1130,1003,2,3,"S01201",0,9173,2,null,20160401,20160630,32741.91,0]
[null,"GUANAJUATO","11DPT0008J",120,"RAFG691106392","RAFG691106HGTMRR04  ","GERARDO RAMIREZ FERNANDEZ               ",2,0,1130,1003,2,3,"CF33206",0,13319,5,null,20160401,20160630,90482.46,0]
[null,"GUANAJUATO","11DPT0008J",120,"RASE540830U28","RASE540830HGTYLL02  ","ELEAZAR RAYAS SILVA                     ",2,0,1130,1003,2,3,"S01201",0,9171,2,null,20160401,20160630,44643.39,0]
[null,"GUANAJUATO","11DPT0008J",120,"RASJ781020U88"," ","JOSEFINA RAZO SOSA                      ",2,0,1130,1003,2,3,"CF18203",0,2641,2,null,20160401,20160630,34209.600000000006,0]
[null,"GUANAJUATO","11DPT0008J",120,"ROCS8704055G4","ROCS870405MMCDSL06  ","MARIA DEL SOL RODRIGUEZ CASTRO          ",2,0,1130,1003,2,3,"CF34201",0,9205,2,null,20160401,20160630,54981.820000000007,0]
[null,"GUANAJUATO","11DPT0008J",120,"ROGJ7905253Y5","ROGJ790525HPLJDN05  ","JOSE JUAN ROJAS GODOY                   ",2,0,1130,1003,2,3,"CF02103",0,12576,2,null,20160401,20160630,95080.11,0]
[null,"GUANAJUATO","11DPT0008J",120,"ROHH851230UU9","ROHH851230HGTJRR04  ","HERNAN ROJAS HERNANDEZ                  ",2,0,1130,1003,2,3,"A03202",0,2609,2,null,20160401,20160630,27097.010000000002,0]
[null,"GUANAJUATO","11DPT0008J",120,"ROVA500401GUA","ROVA500401HGTJLR05  ","ARTURO ROJAS VALENCIA                   ",2,0,1130,1003,2,3,"A03202",0,9168,5,null,20160401,20160630,37106.400000000001,0]
[null,"GUANAJUATO","11DPT0008J",120,"ROZA560516SE3","ROZA560516HGTJPB08  ","ABEL ROJAS ZAPATERO                     ",2,0,1130,1003,2,3,"CF33204",0,9194,2,null,20160401,20160630,46563.149999999994,0]
[null,"GUANAJUATO","11DPT0008J",120,"SABA620417HF9","SABA620417HVZNTN05  ","ANICETO SANTIAGO BAUTISTA               ",2,0,1130,1003,2,3,"CF33204",0,2642,2,null,20160401,20160630,110253.26999999997,0]
[null,"GUANAJUATO","11DPT0008J",120,"SALS651213I40","SALS651213MGTNNN03  ","SANJUANA SANCHEZ LUNA                   ",2,0,1130,1003,2,3,"S01201",0,9183,2,null,20160401,20160630,44819.61,0]
[null,"GUANAJUATO","11DPT0008J",120,"VIVM841025NR4","VIVM841025MGTLRL07  ","MELINA VILLARREAL VARGAS                ",2,0,1130,1003,2,3,"CF33206",0,13317,2,null,20160401,20160630,75873.01999999999,0]
[null,"GUANAJUATO","11DPT0009I",120,"AABC720527RL6","AABC720527HGTLRR03  ","CARLOS ALVARADO BARRIOS                 ",2,0,1130,1003,2,3,"S01202",0,2621,2,null,20160401,20160630,34671.240000000005,0]
[null,"GUANAJUATO","11DPT0009I",120,"CELM960313G89","CELM960313MGTRPY09  ","MAYRA FRANCISCA CERVANTES LOPEZ         ",2,0,1130,1003,2,3,"CF33204",0,9199,2,null,20160401,20160630,28333.07,0]
[null,"GUANAJUATO","11DPT0009I",120,"COCM710215JF9","COCM710215HMNBMR04  ","MARIO COBIAN CAMACHO                    ",2,0,1130,1003,2,3,"CF33202",0,2652,2,null,20160401,20160630,98604.43,0]
[null,"GUANAJUATO","11DPT0009I",120,"EICA641219IS3","EICA641219MGTLRL01  ","ALTAGRACIA ELIZARRARAS CERVANTES        ",2,0,1130,1003,2,3,"CF34202",0,4402,2,null,20160401,20160630,45330.03,0]
[null,"GUANAJUATO","11DPT0009I",120,"EIMJ620524ID9","EIMJ620524HGTLRS02  ","JOSE ELIAS MORENO                       ",2,0,1130,1003,2,3,"CF33204",0,9201,2,null,20160401,20160630,113997.75000000001,0]
[null,"GUANAJUATO","11DPT0009I",120,"EITG6112096F3","EITG611209MDFSBD05  ","MARIA GUADALUPE ESPINOSA TABLEROS       ",2,0,1130,1003,2,3,"S01201",0,9202,2,null,20160401,20160630,71319.100000000006,0]
[null,"GUANAJUATO","11DPT0009I",120,"EIVC851005GF2","EIVC851005HGTLRR07  ","CARLOS ELIZARRARAS VARGAS               ",2,0,1130,1003,2,3,"S01201",0,9203,2,null,20160401,20160630,26944.15,0]
[null,"GUANAJUATO","11DPT0009I",120,"GARG5704245R5","GARG570424HGTRZB08  ","GABRIEL GARCIA RAZO                     ",2,0,1130,1003,2,3,"CF02105",0,12840,2,null,20160401,20160630,40205.040000000001,0]
[null,"GUANAJUATO","11DPT0009I",120,"GUZA720514FG4","GUZA720514MDFTVL06  ","ALEJANDRA GUTIERREZ ZAVALA              ",2,0,1130,1003,2,3,"CF19201",0,9188,2,null,20160401,20160630,41791.54,0]
[null,"GUANAJUATO","11DPT0009I",120,"LILB720207HV3","LILB720207MGTNML02  ","BLANCA ESTELA LINARES LOMELI            ",2,0,1130,1003,2,3,"CF33206",0,13316,5,null,20160401,20160630,44366.13,0]
[null,"GUANAJUATO","11DPT0009I",120,"LOLA590613UN8","LOLA590613HGTPPN00  ","ANTONIO LOPEZ LOPEZ                     ",2,0,1130,1003,2,33,"CF33206",0,14312,2,null,20160401,20160630,113248.83000000002,0]
[null,"GUANAJUATO","11DPT0009I",120,"MARM6405079G7","MARM640507HGTGVR02  ","MARTIN MAGAÐA RIVERA                    ",2,0,1130,1003,2,33,"CF33204",0,10196,2,null,20160401,20160630,96252.27,0]
[null,"GUANAJUATO","11DPT0009I",120,"MATF6010095M3","MATF601009HGTGFR00  ","FRANCISCO MAGAÐA TAFOYA                 ",2,0,1130,1003,2,33,"T08201",0,770,2,null,20160401,20160630,42975.439999999995,0]
[null,"GUANAJUATO","11DPT0009I",120,"MATM660127FH7","MATM660127MGTGFN01  ","MONICA MAGAÐA TAFOYA                    ",2,0,1130,1003,2,33,"CF33206",0,13503,2,null,20160401,20160630,22276.560000000005,0]
[null,"GUANAJUATO","11DPT0009I",120,"MAZC650708TU1","MAZC650708MGTQRR01  ","MARIA CARMEN MAQUEDA ZARATE             ",2,0,1130,1003,2,33,"CF33204",0,2522,2,null,20160401,20160630,37765.19,0]
[null,"GUANAJUATO","11DPT0009I",120,"MAZC781203DS0","MAZC781203HGTQRR06  ","CARLOS MAQUEDA ZARATE                   ",2,0,1130,1003,2,33,"T08201",0,760,2,null,20160401,20160630,26719.010000000002,0]
[null,"GUANAJUATO","11DPT0009I",120,"MEGM680209QU7","MEGM680209MGTDZR08  ","MARTHA SUSANA MEDEL GUZMAN              ",2,0,1130,1003,2,33,"S01201",0,10181,2,null,20160401,20160630,27523.07,0]
[null,"GUANAJUATO","11DPT0009I",120,"MERA680725T53","MERA680725MGTJML04  ","ALMA DELIA MEJIA RAMOS                  ",2,0,1130,1003,2,33,"ED01201",0,4430,2,null,20160401,20160630,40645.51,0]
[null,"GUANAJUATO","11DPT0009I",120,"RELR6206286CA","RELR620628HGTYPG09  ","ROGELIO REYES LOPEZ                     ",2,0,1130,1003,2,33,"CF33204",0,10193,2,null,20160401,20160630,47490.39,0]
[null,"GUANAJUATO","11DPT0009I",120,"ROPJ630922717","ROPJ630922MGTDRS08  ","JOSEFINA RODRIGUEZ PEREZ                ",2,0,1130,1003,2,33,"CF21202",0,10176,2,null,20160401,20160630,39488.819999999992,0]
[null,"GUANAJUATO","11DPT0009I",120,"SAAA790117M77","SAAA790117HGTNRL19  ","JOSE ALFREDO SANCHEZ ARREDONDO          ",2,0,1130,1003,2,33,"CF18201",0,10175,2,null,20160401,20160630,84530.49000000002,0]
[null,"GUANAJUATO","11DPT0009I",120,"SARO9410041H4","SARO941004HGNXL07   ","OLDAIR FERNANDO SANTILLAN REA           ",2,0,1130,1003,2,33,"T08201",0,514,2,null,20160401,20160630,26944.15,0]
[null,"GUANAJUATO","11DPT0009I",120,"SOMJ580901N40","SOMJ580901HMNLRS02  ","JESUS SOLIS MARIN                       ",2,0,1130,1003,2,33,"S01202",0,10195,2,null,20160401,20160630,40205.040000000001,0]
[null,"GUANAJUATO","11DPT0009I",120,"VACM560124H46","VACM560124HGTZRR03  ","MAURILIO VAZQUEZ CERVANTES              ",2,0,1130,1003,2,33,"CF33206",0,14313,2,null,20160401,20160630,40053.75,0]
[null,"GUANAJUATO","11DPT0009I",120,"ZUGJ521022BB6","ZUGJ521022HGTXRV02  ","JAVIER ZUÐIGA GARCIA                    ",2,0,1130,1003,2,33,"S01201",0,10179,5,null,20160401,20160630,92369.4,0]
[null,"GUANAJUATO","11DPT0010Y",120,"BAUM780104T8A","BAUM780104MGTRRC01  ","MICAELA BARCENAS URBINA                 ",2,0,1130,1003,2,33,"CF19201",0,10190,2,null,20160401,20160630,29218.53,0]
[null,"GUANAJUATO","11DPT0010Y",120,"CORJ890525619","CORJ890525HGTRMR07  ","JORGE ARMANDO CORONA RAMIREZ            ",2,0,1130,1003,2,33,"S01202",0,10194,2,null,20160401,20160630,30453.09,0]
[null,"GUANAJUATO","11DPT0010Y",120,"CUTR610723JC8","CUTR610723MGTLTS06  ","ROSA MARIA CUELLAR TETUAN               ",2,0,1130,1003,2,33,"A03202",0,5548,5,null,20160401,20160630,93721.500000000015,0]
[null,"GUANAJUATO","11DPT0010Y",120,"CUVL741004T6A","CUVL741004MGTRRR08  ","LAURA CRUZ VARGAS                       ",2,0,1130,1003,2,33,"CF04201",0,2491,2,null,20160401,20160630,93496.660000000018,0]
[null,"GUANAJUATO","11DPT0010Y",120,"DUFC8505038R7","DUFC850503MGTRLR04  ","MARIA CRUZ DURAN FLORES                 ",2,0,1130,1003,2,33,"S01201",0,10189,2,null,20160401,20160630,35977.869999999995,0]
[null,"GUANAJUATO","11DPT0010Y",120,"EISB881118DD0","EISB881118MGTSPT05  ","BETSAIDA MAGDALE ESPINOZA SEPULVEDA     ",2,0,1130,1003,2,33,"CF34202",0,12051,2,null,20160401,20160630,28396.07,0]
[null,"GUANAJUATO","11DPT0010Y",120,"FOCJ7406233X9","FOCJ740623MGTLLS01  ","JOSEFINA FLORES CALVA                   ",2,0,1130,1003,2,33,"CF02105",0,14600,2,null,20160401,20160630,47223.329999999994,0]
[null,"GUANAJUATO","11DPT0010Y",120,"GOGD870617R99","GOGD870617HNLMRN00  ","JOSE DANIEL GOMEZ GARZA                 ",2,0,1130,1003,2,33,"S01202",0,10174,5,null,20160401,20160630,75514.86,0]
[null,"GUANAJUATO","11DPT0010Y",120,"GUMB860612B77","GUMB860612MGTTRL01  ","BLANCA EDITH GUTIERREZ MORENO           ",2,0,1130,1003,2,33,"CF02104",0,12749,2,null,20160401,20160630,54852.979999999996,0]
[null,"GUANAJUATO","11DPT0010Y",120,"GUPD810705I4A","GUPD810705HQTRDM04  ","DOMINGO DANIEL GUERRERO PADILLA         ",2,0,1130,1003,2,33,"CF18203",0,10187,5,null,20160401,20160630,90482.46,0]
[null,"GUANAJUATO","11DPT0010Y",120,"HECL500618L95","HECL500618HGTRRS04  ","JOSE LUIS HERNANDEZ CORTES              ",2,0,1130,1003,2,33,"CF33204",0,10188,2,null,20160401,20160630,38684.630000000005,0]
[null,"GUANAJUATO","11DPT0010Y",120,"HEHA830216PP3","HEHA830216MGTRRL04  ","ALMA DELIA HERNANDEZ HERNANDEZ          ",2,0,1130,1003,2,33,"CF33206",0,13502,2,null,20160401,20160630,27748.21,0]
[null,"GUANAJUATO","11DPT0010Y",120,"HELB7109192T6","HELB710919MGTRNT04  ","BEATRIZ HERNANDEZ LONA                  ",2,0,1130,1003,2,33,"S01201",0,2532,2,null,20160401,20160630,55523.069999999992,0]
[null,"GUANAJUATO","11DPT0010Y",120,"HEVL6006012YA","HEVL600601HGTRLZ00  ","J LUZ HERNANDEZ VELAZQUEZ               ",2,0,1130,1003,2,33,"S01202",0,8084,2,null,20160401,20160630,36061.159999999989,0]
[null,"GUANAJUATO","11DPT0010Y",120,"HIMK800908LB0","HIMK800908HGTNNR04  ","KRISTIAN LUIS HINOJOSA MONROY           ",2,0,1130,1003,2,33,"CF33203",0,10178,2,null,20160401,20160630,31322.289999999997,0]
[null,"GUANAJUATO","11DPT0010Y",120,"IAGY780906K26","IAGY780906MGTBMD00  ","YADIRA ADRIANA IBARRA GOMEZ             ",2,0,1130,1003,2,33,"CF33206",0,13504,2,null,20160401,20160630,15434.25,0]
[null,"GUANAJUATO","11DPT0010Y",120,"LOZE620109TAO","LOZE620109MGTPMV07  ","MA.EVERILDA LOPEZ ZAMORA                ",2,0,1130,1003,2,33,"CF04201",0,10172,2,null,20160401,20160630,37921.490000000005,0]
[null,"GUANAJUATO","11DPT0010Y",120,"MADB860405V48","MADB860405MGTLZL02  ","MARIA BLANCA MALAGON DIAZ               ",2,0,1130,1003,2,33,"CF33206",0,13505,2,null,20160401,20160630,43083.710000000006,0]
[null,"GUANAJUATO","11DPT0010Y",120,"MAVR700118TS6","MAVR700118HGTRRB08  ","RUBEN MARTINEZ VARELA                   ",2,0,1130,1003,2,4,"S01201",0,2514,2,null,20160401,20160630,107257.71,0]
[null,"GUANAJUATO","11DPT0010Y",120,"OAGS860412RP6","OAGS860412MGTRTR05  ","SARA DEL ROSARIO ORRANTI GUTIERREZ      ",2,0,1130,1003,2,4,"S01202",0,9228,2,null,20160401,20160630,29836.749999999996,0]
[null,"GUANAJUATO","11DPT0010Y",120,"PELL790204HW5","PELL790204MNTRRC05  ","LUCIA PEREZ LARA                        ",2,0,1130,1003,2,4,"CF33203",0,9216,2,null,20160401,20160630,30855.499999999993,0]
[null,"GUANAJUATO","11DPT0010Y",120,"RABR820601BH9","RABR820601HGTMND08  ","RODOLFO OSVALDO RAMIREZ BUENO           ",2,0,1130,1003,2,4,"CF33206",0,13545,2,null,20160401,20160630,76325.25,0]
[null,"GUANAJUATO","11DPT0010Y",120,"RAGJ8207054L2","RAGJ820705HGTNMN05  ","JUAN ANTONIO RANGEL GOMEZ               ",2,0,1130,1003,2,4,"CF19201",0,8513,5,null,20160401,20160630,34646.119999999995,0]
[null,"GUANAJUATO","11DPT0010Y",120,"RARR710422AB6","RARR710422HGTMDM09  ","RAMON RAMIREZ RODRIGUEZ                 ",2,0,1130,1003,2,4,"CF18201",0,9223,2,null,20160401,20160630,77920.42,0]
[null,"GUANAJUATO","11DPT0010Y",120,"ROTF640526L74","ROTF640526HGTDVL07  ","FELIPE RODRIGUEZ TOVAR                  ",2,0,1130,1003,2,4,"T08201",0,658,2,null,20160401,20160630,32621.71,0]
[null,"GUANAJUATO","11DPT0010Y",120,"ROVL470314635","ROVL470314HGTXGS09  ","LUIS RUBEN ROA VEGA                     ",2,0,1130,1003,2,4,"CF33206",0,14315,2,null,20160401,20160630,34312.300000000003,0]
[null,"GUANAJUATO","11DPT0010Y",120,"SAOC521104BAA","SAOC521104HGTNLR02  ","CARLOS SANCHEZ OLIVA                    ",2,0,1130,1003,2,4,"CF19201",0,9226,2,null,20160401,20160630,41941.699999999997,0]
[null,"GUANAJUATO","11DPT0010Y",120,"TOOC610522FW3","TOOC610522MGTRRL02  ","CELIA TORRES ORIGEL                     ",2,0,1130,1003,2,4,"CF02104",0,12744,2,null,20160401,20160630,54845.3,0]
[null,"GUANAJUATO","11DPT0010Y",120,"VEMR6104101A1","VEMR610410HGTLRM02  ","JOSE RAMON VELEZ MORENO                 ",2,0,1130,1003,2,4,"CF21202",0,9210,2,null,20160401,20160630,21013.53,0]
[null,"GUANAJUATO","11DPT0011X",120,"AABC680116196","AABC680116MMCBNL09  ","CLAUDIA CECILIA D ABDALA BUENDIA        ",2,0,1130,1003,2,4,"CF18201",0,9229,2,null,20160401,20160630,38718.31,0]
[null,"GUANAJUATO","11DPT0011X",120,"AAMR650620AB4","AAMR650620HGTLGB03  ","ROBERTO ALVARADO MAGAÐA                 ",2,0,1130,1003,2,4,"A03202",0,9213,2,null,20160401,20160630,39045.56,0]
[null,"GUANAJUATO","11DPT0011X",120,"AAMR671130JR0","AAMR671130HGTLGB00  ","RUBEN ALVARADO MAGANA                   ",2,0,1130,1003,2,4,"CF19201",0,9217,2,null,20160401,20160630,30035.85,0]
[null,"GUANAJUATO","11DPT0011X",120,"AECJ7908035L8","AECJ790803HGTLRS03  ","JOSE JESUS ALEJO CARRENO                ",2,0,1130,1003,2,4,"S01202",0,10600,2,null,20160401,20160630,31229.89,0]
[null,"GUANAJUATO","11DPT0011X",120,"AECM720103NB9","AECM720103MGTLRR09  ","MARCELA ALEJO CARREÐO                   ",2,0,1130,1003,2,4,"CF33206",0,13683,2,null,20160401,20160630,108654.19999999998,0]
[null,"GUANAJUATO","11DPT0011X",120,"AOFA670123A81","AOFA670123MGTBLD06  ","ADRIANA DEL CARM ABONCE FLORES          ",2,0,1130,1003,2,4,"CF04201",0,9214,2,null,20160401,20160630,86162.150000000023,0]
[null,"GUANAJUATO","11DPT0011X",120,"BAGJ5004309G9","BAGJ500430HGTRRR03  ","JORGE BARRERA GARCIA                    ",2,0,1130,1003,2,4,"S01202",0,9221,2,null,20160401,20160630,38343.83,0]
[null,"GUANAJUATO","11DPT0011X",120,"BAGS470901EG4","BAGS470901MGTRRL03  ","SILVIA BARRERA GARCIA                   ",2,0,1130,1003,2,4,"CF33206",0,13251,2,null,20160401,20160630,39720.93,0]
[null,"GUANAJUATO","11DPT0011X",120,"CAGN900104IL6"," ","NANCY YARETH CASILLAS GONZALEZ          ",2,0,1130,1003,2,4,"S01201",0,9224,2,null,20160401,20160630,16578.349999999999,0]
[null,"GUANAJUATO","11DPT0011X",120,"CALA880830IGA","CALA880830MGTLPD08  ","ADRIANA CALDERON LOPEZ                  ",2,0,1130,1003,2,4,"S01201",0,2513,2,null,20160401,20160630,35909.350000000006,0]
[null,"GUANAJUATO","11DPT0011X",120,"EAFM570902GM4","EAFM570902HGTSLS06  ","MOISES ESTRADA FLORES                   ",2,0,1130,1003,2,4,"CF33206",0,13543,2,null,20160401,20160630,37927.729999999996,0]
[null,"GUANAJUATO","11DPT0011X",120,"GAJJ660505P94","GAJJ660505HGTRMN06  ","JUAN GARCIA JIMENEZ                     ",2,0,1130,1003,2,4,"CF21202",0,9232,2,null,20160401,20160630,39209.300000000003,0]
[null,"GUANAJUATO","11DPT0011X",120,"GOLR590503HDA","GOLR590503HGTNDB04  ","ROBERTO GONZALEZ LEDESMA                ",2,0,1130,1003,2,4,"CF33204",0,10192,2,null,20160401,20160630,91660.650000000009,0]
[null,"GUANAJUATO","11DPT0011X",120,"GOSA4507257Y0","GOXS450725HGTNXN07  ","SANTIAGO GONZALEZ                       ",2,0,1130,1003,2,4,"CF34202",0,12050,2,null,20160401,20160630,37757.5,0]
[null,"GUANAJUATO","11DPT0011X",120,"JILD710426DB9","JILD710426HGTMPR06  ","DARIO DAMIAN JIMENEZ LOPEZ              ",2,0,1130,1003,2,4,"CF34202",0,2655,5,null,20160401,20160630,92369.4,0]
[null,"GUANAJUATO","11DPT0011X",120,"LOCV8505084R9","LOCV850508MGTPRR07  ","VERONICA LOPEZ CARDOSO                  ",2,0,1130,1003,2,4,"S01202",0,9227,2,null,20160401,20160630,31980.130000000005,0]
[null,"GUANAJUATO","11DPT0011X",120,"MAJG650413GMA","MAJG650413HGTLRS08  ","GUSTAVO MALAGON JUAREZ                  ",2,0,1130,1003,2,4,"CF33206",0,13542,2,null,20160401,20160630,102764.37000000001,0]
[null,"GUANAJUATO","11DPT0011X",120,"MAMM8504029T1","MAMM850402MGTLLS09  ","MASSIEL MALDONADO MALDONADO             ",2,0,1130,1003,4,2,"CF02105",0,12780,2,null,20160401,20160630,34168.81,0]
[null,"GUANAJUATO","11DPT0011X",120,"MOMA590424218","MOMA590424HGTNLN04  ","JOSE ANTONIO MONCADA MALDONADO          ",2,0,1130,1003,4,2,"CF33204",0,1800,2,null,20160401,20160630,39864.259999999995,0]
[null,"GUANAJUATO","11DPT0011X",120,"NAZA870510IS9"," ","JOSE ANTONIO NAVARRETE ZAVALA           ",2,0,1130,1003,4,2,"CF33202",0,3394,5,null,20160401,20160630,21389.579999999998,0]
[null,"GUANAJUATO","11DPT0011X",120,"RACB5510265G3","RACB551026HGTMSN05  ","BENITO RAMIREZ CASTILLO                 ",2,0,1130,1003,4,2,"CF02102",0,12518,2,null,20160401,20160630,41055.460000000006,0]
[null,"GUANAJUATO","11DPT0011X",120,"RIGA780625KX0","RIGA780625HGTVMG07  ","JOSE AUGUSTO RIVERA GOMEZ               ",2,0,1130,1003,4,2,"CF33206",0,14068,2,null,20160401,20160630,34820.020000000004,0]
[null,"GUANAJUATO","11DPT0011X",120,"ROGA640613DQ5","ROGA640613MDFJTN05  ","ANTONIA ESTELA ROJAS GUTIERREZ          ",2,0,1130,1003,4,2,"CF18201",0,9301,2,null,20160401,20160630,96802.22,0]
[null,"GUANAJUATO","11DPT0011X",120,"ROPR8607125H9","ROPR860712MGTDNS08  ","ROSA AIDE RODRIGUEZ PANIAGUA            ",2,0,1130,1003,4,2,"ED01201",0,11525,2,null,20160401,20160630,79865.25,0]
[null,"GUANAJUATO","11DPT0011X",120,"SARF810815QJ5","SARF810815MDFNCB12  ","MARIA FABIOLA SANCHEZ RICO              ",2,0,1130,1003,4,2,"S01201",0,2516,2,null,20160401,20160630,30890.049999999996,0]
[null,"GUANAJUATO","11DPT0011X",120,"SEES881205VA7","SEES881205MGTRSR08  ","SARA SERRANO ESTRADA                    ",2,0,1130,1003,4,2,"CF18203",0,11932,2,null,20160401,20160630,36461.61,0]
[null,"GUANAJUATO","11DPT0012W",120,"BAHC790225T34","BAHC790225HGTSRS06  ","CESAR ISRRAEL BASALDUA HERNANDEZ        ",2,0,1130,1003,4,2,"A03202",0,10293,2,null,20160401,20160630,17422.62,0]
[null,"GUANAJUATO","11DPT0012W",120,"COMI671203D76","COMI671203MGTNLR18  ","MA. IRAIS CONTRERAS MALDONADO           ",2,0,1130,1003,4,2,"CF33206",0,14253,2,null,20160401,20160630,78517.2,0]
[null,"GUANAJUATO","11DPT0012W",120,"EUVA760924363","EUVA760924HGTSLN02  ","ANTONIO ESQUEDA VILLALON                ",2,0,1130,1003,4,2,"CF04201",0,1440,2,null,20160401,20160630,64458.34,0]
[null,"GUANAJUATO","11DPT0012W",120,"FOGH740517223","FOGH740517HGTLTC07  ","HECTOR FLORES GUTIERREZ                 ",2,0,1130,1003,4,2,"A01801",0,18845,2,null,20160401,20160630,40258.65,0]
[null,"GUANAJUATO","11DPT0012W",120,"GAGY700725MG2","GAGY700725MGTRNS04  ","YESENIA GRANADOS GONZALEZ               ",2,0,1130,1003,4,2,"S01201",0,2662,2,null,20160401,20160630,92519.75999999998,0]
[null,"GUANAJUATO","11DPT0012W",120,"GOGI750427GM1","GOGI750427HMCMYS02  ","ISRAEL GOMEZ GAYTAN                     ",2,0,1130,1003,4,2,"S01201",0,11167,2,null,20160401,20160630,99792.26999999999,0]
[null,"GUANAJUATO","11DPT0012W",120,"HEGC870427C96","HEGC870427HCSRNR00  ","CRISTOBAL DE JES HERNANDEZ GONZALEZ     ",2,0,1130,1003,4,2,"CF33204",0,363,2,null,20160401,20160630,5244.5,0]
[null,"GUANAJUATO","11DPT0012W",120,"LOSG55020446A","LOSG550204HGTPTL09  ","GUILLERMO LOPEZ SOTO                    ",2,0,1130,1003,4,2,"CF33204",0,10959,2,null,20160401,20160630,38554.339999999997,0]
[null,"GUANAJUATO","11DPT0012W",120,"MUHA861028V94","MUHA861028HGTXRD02  ","JOSE ADAN MUÐOZ HERNANDEZ               ",2,0,1130,1003,4,2,"CF33206",0,13687,2,null,20160401,20160630,26944.15,0]
[null,"GUANAJUATO","11DPT0012W",120,"OELW670610C88","OELW670610HGTLDN06  ","WENCESLAO OLVERA LEDESMA                ",2,0,1130,1003,4,2,"CF33206",0,14067,2,null,20160401,20160630,39470.61,0]
[null,"GUANAJUATO","11DPT0012W",120,"OERM770419UD7","OERM770419HGTLSG03  ","MIGUEL ANGEL OLVERA RESENDIZ            ",2,0,1130,1003,4,2,"CF33206",0,14252,2,null,20160401,20160630,34312.300000000003,0]
[null,"GUANAJUATO","11DPT0012W",120,"PECE671111QE4","PECE671111HDFRSL09  ","ELOY MARTIN PEREZ CASTILLO              ",2,0,1130,1003,4,2,"CF33204",0,2531,2,null,20160401,20160630,99768.810000000012,0]
[null,"GUANAJUATO","11DPT0012W",120,"POGA790726B24","POGA790726MGTNZL05  ","ALMA DELIA PONCE GUZMAN                 ",2,0,1130,1003,4,2,"CF04201",0,11168,2,null,20160401,20160630,40782.03,0]
[null,"GUANAJUATO","11DPT0012W",120,"RAGT730306AI0","RAGT730306HGTNRR07  ","JOSE TRINIDAD RANGEL GUERRERO           ",2,0,1130,1003,3,2,"CF33206",0,18850,2,null,20160401,20160630,42209.31,0]
[null,"GUANAJUATO","11DPT0012W",120,"ROVR751027UW3","ROVR751027MGTBRS09  ","MARIA DEL ROSARI ROBLES VARGAS          ",2,0,1130,1003,3,2,"CF33204",0,18853,2,null,20160401,20160630,30407.629999999997,0]
[null,"GUANAJUATO","11DPT0012W",120,"SAHA7408317B1","SAHA740831MDFNRR01  ","AURELIA SANDOVAL HERNANDEZ              ",2,0,1130,1003,3,2,"S01201",0,18882,2,null,20160401,20160630,30512.049999999996,0]
[null,"GUANAJUATO","11DPT0012W",120,"SOPL831024T56","SOPL831024MGTTRR09  ","LAURA ANGELICA SOTO PEREZ               ",2,0,1130,1003,3,2,"CF33204",0,18854,2,null,20160401,20160630,69088.73000000001,0]
[null,"GUANAJUATO","11DPT0012W",120,"SUFR660516C81","SUFR660516MDFRLQ08  ","RAQUEL SUAREZ FALCON                    ",2,0,1130,1003,3,2,"CF21202",0,18881,2,null,20160401,20160630,63775.510000000009,0]
[null,"GUANAJUATO","11DPT0012W",120,"VAMF590309CY5","VAMF590309HGTLNR07  ","FERNANDO VALDES MONTES                  ",2,0,1130,1003,3,2,"A03202",0,18859,2,null,20160401,20160630,92735.73,0]
[null,"GUANAJUATO","11DPT0012W",120,"VASS860602N16"," ","SANDRA YANET VALTIERRA SANCHEZ          ",2,0,1130,1003,3,2,"CF18203",0,18857,2,null,20160401,20160630,76325.25,0]
[null,"GUANAJUATO","11DPT0012W",120,"VIRS630902SUA","VIRS630902HMNLYL09  ","SALVADOR VILLANUEVA REYNOSO             ",2,0,1130,1003,3,2,"CF33203",0,18858,2,null,20160401,20160630,89389.23,0]
[null,"GUANAJUATO","11DPT0012W",120,"ZABS740117LZ8","ZABS740117MGRMLS00  ","SUSY ROCIO ZAMUDIO BALVUENA             ",2,0,1130,1003,3,2,"CF33206",0,18852,2,null,20160401,20160630,68850.77,0]
[null,"GUANAJUATO","11DPT0012W",120,"ZABS850402N68","ZABS850402HGTMLR06  ","SERGIO LUIS ZAMUDIO BELTRAN             ",2,0,1130,1003,3,2,"S01201",0,18860,2,null,20160401,20160630,34845.339999999997,0]
[null,"GUANAJUATO","11DPT0013V",120,"BAMJ651013MA3","BAMJ651013HGTRRN08  ","JUAN PEDRO BARBOSA MORALES              ",2,0,1130,1003,3,2,"CF33204",0,18855,2,null,20160401,20160630,76325.25,0]
[null,"GUANAJUATO","11DPT0013V",120,"CAML820820U36","CAML820820HGTNNS09  ","LUIS MIGUEL CANO MENDOZA                ",2,0,1130,1003,3,2,"CF33206",0,18851,2,null,20160401,20160630,62988.679999999993,0]
[null,"GUANAJUATO","11DPT0013V",120,"EACA751029DJ3","EACA751029MGTSRN06  ","MA DE LOS ANGELE ESPARZA CORONA         ",2,0,1130,1003,3,2,"A01801",0,18877,2,null,20160401,20160630,28126.21,0]
[null,"GUANAJUATO","11DPT0013V",120,"GASM690929112","GASM690929HDFRLR02  ","MARIO MIGUEL GARCIA SALINAS             ",2,0,1130,1003,3,2,"CF33206",0,18849,2,null,20160401,20160630,61576.099999999991,0]
[null,"GUANAJUATO","11DPT0013V",120,"GOML710913T66"," ","LUCIA GONZALEZ MUÑOZ                    ",2,0,1130,1003,3,2,"CF02104",0,18848,2,null,20160401,20160630,44889.229999999996,0]
[null,"GUANAJUATO","11DPT0013V",120,"GUGA7312084M6","GUGA731208HGTTZL01  ","ALFREDO GUTIERREZ GUZMAN                ",2,0,1130,1003,3,2,"CF18203",0,18879,2,null,20160401,20160630,33646.959999999992,0]
[null,"GUANAJUATO","11DPT0013V",120,"GURG711212BH3","GURG711212MGTRXD01  ","MA GUADALUPE GUARDADO REA               ",2,0,1130,1003,3,2,"A03202",0,18880,2,null,20160401,20160630,32637.729999999996,0]
[null,"GUANAJUATO","11DPT0013V",120,"HELJ790519GT9","HELJ790519HGTRPN03  ","JUAN MANUEL HERNANDEZ LOPEZ             ",2,0,1130,1003,3,2,"A01801",0,18856,2,null,20160401,20160630,39900.450000000004,0]
[null,"GUANAJUATO","11DPT0013V",120,"HEMG620422565","HEMG620422MGTRRR08  ","GRACIELA HERNANDEZ MARTINEZ             ",2,0,1130,1003,3,2,"A01801",0,18878,5,null,20160401,20160630,40203.290000000008,0]
[null,"GUANAJUATO","11DPT0013V",120,"MAHM7308144V2","MAHM730814MGTRRR07  ","MARCELA DEL PILA MARTINEZ HERNANDEZ     ",2,0,1130,1003,0,72,"CF33206",0,13773,2,null,20160401,20160630,79219.51999999999,0]
[null,"GUANAJUATO","11DPT0013V",120,"MEES880125B67","MEES880125MGTZSN02  ","SANDRA MARGARITA MEZA ESTRADA           ",2,0,1130,1003,0,72,"CF19201",0,4426,2,null,20160401,20160630,29275.989999999998,0]
[null,"GUANAJUATO","11DPT0013V",120,"MOLJ6908066K2","MOLJ690806HGTNRN01  ","JUAN ANTONIO MONTALVO LIRA              ",2,0,1130,1003,0,72,"CF33204",0,7424,2,null,20160401,20160630,56856.100000000006,0]
[null,"GUANAJUATO","11DPT0013V",120,"PAGA670111I35","PAGA670111HNTLRR03  ","ARMANDO PALOMARES GARCIA                ",2,0,1130,1003,0,72,"CF34201",0,4394,2,null,20160401,20160630,33140.5,0]
[null,"GUANAJUATO","11DPT0013V",120,"RELS650704P63","RELS650704MGTXZL00  ","MA. SOLEDAD REA LOZANO                  ",2,0,1130,1003,0,72,"CF04201",0,4386,2,null,20160401,20160630,49715.96,0]
[null,"GUANAJUATO","11DPT0013V",120,"ROMR861218274","ROMR861218HGTDGC00  ","RICARDO RODRIGUEZ MAGDALENO             ",2,0,1130,1003,0,72,"S01201",0,4398,2,null,20160401,20160630,76325.25,0]
[null,"GUANAJUATO","11DPT0013V",120,"RORA760321A25","RORA760321HGTDDL07  ","ALEXANDER DANIEL RODRIGUEZ RODRIGUEZ    ",2,0,1130,1003,0,72,"A03202",0,4388,2,null,20160401,20160630,90482.46,0]
[null,"GUANAJUATO","11DPT0013V",120,"RORC850223K78","RORC850223HGTDMR02  ","CARLOS ALBERTO RODRIGUEZ RAMIREZ        ",2,0,1130,1003,0,72,"S01201",0,4419,2,null,20160401,20160630,36553.050000000003,0]
[null,"GUANAJUATO","11DPT0013V",120,"ROSJ840320PL5","ROSJ840320MMCMGL06  ","JULIA OYUKI ROMERO SEGURA               ",2,0,1130,1003,0,72,"CF33204",0,4409,2,null,20160401,20160630,40588.769999999997,0]
[null,"GUANAJUATO","11DPT0013V",120,"RUER840817TJ2","RUER840817HGTZSN07  ","RENE RUIZ ESPINOZA                      ",2,0,1130,1003,0,72,"CF02105",0,14597,2,null,20160401,20160630,38780.169999999991,0]
[null,"GUANAJUATO","11DPT0013V",120,"ZERV770303SS4","ZERV770303MGTNCN07  ","MARIA  VANESSA ZENDEJAS ROCHA           ",2,0,1130,1003,0,72,"CF34202",0,9195,2,null,20160401,20160630,43696.439999999995,0]
[null,"GUANAJUATO","11DPT0014U",120,"AALA880119VB9","AALA880119MGTLPL06  ","ALESSA ALVARADO LOPEZ                   ",2,0,1130,1003,0,72,"CF18203",0,4411,2,null,20160401,20160630,37600.169999999991,0]
[null,"GUANAJUATO","11DPT0014U",120,"CEVB731120C46","CEVB731120HGTDRR00  ","BERNARDO CEDILLO VERA                   ",2,0,1130,1003,0,72,"CF33206",0,13770,2,null,20160401,20160630,13386.929999999998,0]
[null,"GUANAJUATO","11DPT0014U",120,"GAAE770204JK3","GAAE770204MDFYLL06  ","ELIA GAYTAN ALCARAZ                     ",2,0,1130,1003,0,72,"CF21202",0,4412,2,null,20160401,20160630,90482.46,0]
[null,"GUANAJUATO","11DPT0014U",120,"GABI850102NDA","GABI850102MGTRRS03  ","MARIA ISABEL GARCIA BARRIENTOS          ",2,0,1130,1003,0,72,"CF33206",0,14321,2,null,20160401,20160630,79939.069999999992,0]
[null,"GUANAJUATO","11DPT0014U",120,"HEPU760412GG8","HEPU760412HPLRRZ03  ","UZIEL HERNANDEZ PEREZ                   ",2,0,1130,1003,0,72,"S01202",0,4415,2,null,20160401,20160630,30704.489999999998,0]
[null,"GUANAJUATO","11DPT0014U",120,"JUSD780922L87","JUSD780922MQTRRL03  ","DULCE MARIA JUAREZ SORIA                ",2,0,1130,1003,0,72,"CF33202",0,4420,2,null,20160401,20160630,41140.169999999991,0]
[null,"GUANAJUATO","11DPT0014U",120,"MEME901101QT3","MEME901101MGTNRL08  ","MARIA ELENA MENDOZA MARTINEZ            ",2,0,1130,1003,0,72,"CF33206",0,14320,2,null,20160401,20160630,34885.899999999994,0]
[null,"GUANAJUATO","11DPT0014U",120,"MERG840929RZ5"," ","GABRIELA MENDEZ RODRIGUEZ               ",2,0,1130,1003,1,72,"S01201",0,4389,2,null,20160401,20160630,17422.62,0]
[null,"GUANAJUATO","11DPT0014U",120,"MIHG8606185P2","MIHG860618MDFRRB06  ","GABRIELA MIRAMONTES HERNANDEZ           ",2,0,1130,1003,0,72,"A03202",0,4384,2,null,20160401,20160630,28994.300000000003,0]
[null,"GUANAJUATO","11DPT0014U",120,"MOJC851117J2A","MOJC851117MGTRST08  ","CITLALLI TONANCI MORA JASSO             ",2,0,1130,1003,0,72,"S01202",0,4418,2,null,20160401,20160630,86161.760000000009,0]
[null,"GUANAJUATO","11DPT0014U",120,"NAQI780206S92","NAQI780206HDFVXV07  ","IVAN AGUSTIN NAVARRETE QUIÐONES         ",2,0,1130,1003,0,72,"S01201",0,4417,2,null,20160401,20160630,32997.24,0]
[null,"GUANAJUATO","11DPT0014U",120,"OOCM7903122F9","OOCM790312MGTRRR03  ","MARCELA OROZCO CORNEJO                  ",2,0,1130,1003,0,72,"S01202",0,4408,2,null,20160401,20160630,64864.780000000013,0]
[null,"GUANAJUATO","11DPT0014U",120,"RAAE850827HM7","RAAE850827MGTMNL05  ","ELVIA RAMIREZ ANDRADE                   ",2,0,1130,1003,0,72,"CF33204",0,2202,2,null,20160401,20160630,18955.78,0]
[null,"GUANAJUATO","11DPT0014U",120,"RAAI811229BW5","RAAI811229MMCMNS05  ","MARIA ISABEL RAMIREZ ANDRADE            ",2,0,1130,1003,0,72,"CF33206",0,13772,2,null,20160401,20160630,36663.290000000008,0]
[null,"GUANAJUATO","11DPT0014U",120,"RESO730809AI4","RESO730809MGTYNF03  ","OFELIA REYES SANDOVAL                   ",2,0,1130,1003,0,72,"S01202",0,4395,2,null,20160401,20160630,37546.110000000008,0]
[null,"GUANAJUATO","11DPT0014U",120,"RIHR880331D30","RIHR880331HGTSRC09  ","RICARDO RIOS HERNANDEZ                  ",2,0,1130,1003,0,72,"S01202",0,4404,2,null,20160401,20160630,52928.240000000005,0]
[null,"GUANAJUATO","11DPT0014U",120,"SECG740707K72"," ","GUILLERMINA SEGURA CAMPOS               ",2,0,1130,1003,0,72,"CF21202",0,4412,2,null,20160401,20160630,68419.199999999997,0]
[null,"GUANAJUATO","11DPT0014U",120,"SIRI830722KG2","SIRI830722HGTXCG04  ","IGNACIO MANUEL SIXTOS RICO              ",2,0,1130,1003,0,72,"CF33206",0,13771,5,null,20160401,20160630,56271.850000000013,0]
[null,"GUANAJUATO","11DPT0014U",120,"SOMC8307243E3","SOMC830724HGTTNH06  ","CHRISTIAN SOTO MENDOZA                  ",2,19,1130,3102,0,72,"CF02103",19,12617,3,null,20160401,20160630,77468.500000000015,0]
[null,"GUANAJUATO","11DPT0014U",120,"TORM8008155Q9","TORM800815HGTRVR02  ","MARIO TORRES RIVERA                     ",2,20,1130,3102,0,72,"CF33204",20,4428,3,null,20160401,20160630,30892.44,0]
[null,"GUANAJUATO","11DPT0001Q",120,"AAVB660401UL2","AAVB660401MDFLVL01","BLANCA IVETTE ALVAREZ DEL CASTILLO VENTRE",3,20,1130,3102,0,28,"PC",20,280002,3,null,20160401,20150630,8891,0]
[null,"GUANAJUATO","11DPT0001Q",120,"AOOC650822A32","AOOC650822MGTRJR02","MA CRISTINA ARROYO OJEDA",3,19,1130,3102,1,28,"PB",19,280005,3,null,20160401,20150630,10976.789999999999,0]
[null,"GUANAJUATO","11DPT0001Q",120,"AOOS720925113","AOOS720925MGTBRN08","SANDRA ABOYTES OROZCO",3,28,1130,3102,0,28,"PB",28,28001,3,null,20160401,20150630,16176.300000000001,0]
[null,"GUANAJUATO","11DPT0001Q",120,"BESJ810412R10","BESJ810412HGTLNS06","JESUS EDUARDO BELMAN SANTILLAN",3,24,1130,3102,0,28,"PB",24,280007,3,null,20160401,20150630,13865.400000000001,0]
[null,"GUANAJUATO","11DPT0001Q",120,"BOSC820326R12","BOSC820326HGTLRR09","CARLOS MARTIN BOLAﾑOS SERVIN",3,19,1130,3102,0,28,"PB",19,280008,3,null,20160401,20150630,14635.72,0]
[null,"GUANAJUATO","11DPT0001Q",120,"CAAL690628AM6","CAAL690628MGTRLT08","MARIA LETICIA CARDENAS ALMANZA",3,18,1130,3102,0,28,"PB",18,280009,3,null,20160401,20150630,6932.7,0]
[null,"GUANAJUATO","11DPT0001Q",120,"CAPJ680119DJ7","CAPJ680119HGTZTN01","J. ANDRES CAZARES PATIﾑO",3,15,1130,3102,0,28,"PB",15,280011,3,null,20160401,20150630,5777.26,0]
[null,"GUANAJUATO","11DPT0001Q",120,"CARL560630141","CARL560630HGTSVS09","JOSE LUIS CASTRO RIVAS",3,21,1130,3102,0,28,"PB",21,280010,3,null,20160401,20150630,16176.32,0]
[null,"GUANAJUATO","11DPT0001Q",120,"CAVA820322S74","CAVA820322HDFHRB06","ABRAHAM CHAVEZ VARELA",3,19,1130,3102,0,28,"PB",19,280013,3,null,20160401,20150630,3658.93,0]
[null,"GUANAJUATO","11DPT0001Q",120,"CEGE7106304G8","CEGE710630MGTBML09","MA ELIZABETH CEBALLOS GOMEZ",3,20,1130,3102,0,28,"PB",20,280012,3,null,20160401,20150630,12132.24,0]
[null,"GUANAJUATO","11DPT0001Q",120,"CIGM510313HX4","CIGM510313HVZSRG08","MIGUEL ANGEL CISNEROS GARCIA",3,30,1130,3102,0,28,"PB",30,280014,3,null,20160401,20150630,11554.5,0]
[null,"GUANAJUATO","11DPT0001Q",120,"COMM610831NKA","COMM610831HDFRRG06","MIGUEL CORTES MORALES",3,18,1130,3102,0,28,"PB",18,280014,3,null,20160401,20150630,10399.049999999999,0]
[null,"GUANAJUATO","11DPT0001Q",120,"COVE740314GR2","COVE740314HGTRZN07","ENRIQUE CORTEZ VAZQUEZ",3,16,1130,3102,0,28,"TA",16,280132,3,null,20160401,20150630,9403.880000000001,0]
[null,"GUANAJUATO","11DPT0001Q",120,"DEPT800907TBA","DEPT800907MGTRDR04","MARIA TERESA DERRAMADERO PADILLA",3,12,1130,3102,0,28,"PB",12,280017,3,null,20160401,20150630,14074.38,0]
[null,"GUANAJUATO","11DPT0001Q",120,"EASG800616J20","EASG800616HGTSSR09","GERARDO ESTRADA SESENTO",3,20,1130,3102,0,28,"PC",20,280021,3,null,20160401,20150630,22227.5,0]
[null,"GUANAJUATO","11DPT0001Q",120,"EICS7010205K2","EICS701020MMNNRR06","SERAFINA ENRIQUEZ CORDOVA",3,20,1130,3102,0,28,"PC",20,280019,3,null,20160401,20150630,22227.5,0]
[null,"GUANAJUATO","11DPT0001Q",120,"FEHE800724TQ5","FEHE800724HGTRRD06","EDUARDO FERNANDEZ HERNANDEZ",3,12,1130,3102,0,28,"PB",12,280180,3,null,20160401,20150630,3636.52,0]
[null,"GUANAJUATO","11DPT0001Q",120,"GAFF820410AV4","GAFF820410HGTRRR01","FERNANDO GARCIA FRIAS",3,24,1130,3102,0,28,"PA",24,280024,3,null,20160401,20150630,4112.3999999999996,0]
[null,"GUANAJUATO","11DPT0001Q",120,"GAMC720506I97","GAMC720506MGTRRN08","CONSTANZA GARCIA  MARTINEZ",3,20,1130,3102,0,28,"PC",20,280025,3,null,20160401,20150630,8446.4599999999991,0]
[null,"GUANAJUATO","11DPT0001Q",120,"GODA691116ALA","GODA691116HDFMZL07","ALEJANDRO GOMEZ DIAZ",3,30,1130,3102,0,28,"PA",30,280029,3,null,20160401,20150630,25702.5,0]
[null,"GUANAJUATO","11DPT0001Q",120,"GOPE721215MA1","GOPE721215HGTNSD00","EDISON OSWALDO GONZALEZ PESCADOR",3,20,1130,3102,0,28,"PB",20,280032,3,null,20160401,20150630,2888.63,0]
[null,"GUANAJUATO","11DPT0001Q",120,"GUCA621009A88","GUCA621009MGTTHR00","ARACELI GUTIERREZ CHACON",3,15,1130,3102,0,28,"PB",15,280037,3,null,20160401,20150630,5777.26,0]
[null,"GUANAJUATO","11DPT0001Q",120,"GUCM630109EJ1","GUCM630109MGTTSR00","MARIA MARTINA MARGARITA GUTIERREZ CASTRO",3,21,1130,3102,0,28,"PC",21,280036,3,null,20160401,20150630,14003.34,0]
[null,"GUANAJUATO","11DPT0001Q",120,"GULA760327G74","GULA760327MCSLPN05","ANA CELIA GUILLEN LOPEZ",3,21,1130,3102,0,28,"PB",21,280035,3,null,20160401,20150630,13865.400000000001,0]
[null,"GUANAJUATO","11DPT0001Q",120,"HEPM8111294E4","HEPM811129HGTRRG03","MIGUEL ANGEL HERNANDEZ PEREZ",3,18,1130,3102,0,28,"PB",18,280040,3,null,20160401,20150630,10399.049999999999,0]
[null,"GUANAJUATO","11DPT0001Q",120,"JIEC831030A73","JIEC831030MGTMSR07","MARIA CRISTHIAN JIMENEZ ESQUEDA",3,30,1130,3102,0,28,"PA",30,280156,3,null,20160401,20150630,20562,0]
[null,"GUANAJUATO","11DPT0001Q",120,"JISS660630UT8","JISS660630HGTMNR01","SERGIO JIMENEZ SANCHEZ",3,27,1130,3102,0,28,"PA",27,280042,3,null,20160401,20150630,9252.9,0]
[null,"GUANAJUATO","11DPT0001Q",120,"LAML7310086Z6","LAML731008MGTRNR00","LAURA LARA MANCERA",3,20,1130,3102,0,28,"PC",20,280044,3,null,20160401,20150630,35564,0]
[null,"GUANAJUATO","11DPT0001Q",120,"LOBA7910123P2","LOBA791012HJCPRL00","ALEJANDRO LOPEZ BRIONES",3,15,1130,3102,0,28,"PB",15,280045,3,null,20160401,20150630,11554.52,0]
[null,"GUANAJUATO","11DPT0001Q",120,"LOGJ711211E25","LOGJ711211HGTMVN07","JUAN LOMAS GUEVARA",3,22,1130,3102,0,28,"PB",22,280098,3,null,20160401,20150630,8473.2999999999993,0]
[null,"GUANAJUATO","11DPT0001Q",120,"MACM811125AAA","MACM811125MGTSRR00","MARLENE SELENE MASCOTTE CRUZ",3,19,1130,3102,0,28,"PB",19,280115,3,null,20160401,20150630,10976.789999999999,0]
[null,"GUANAJUATO","11DPT0001Q",120,"MAMA711017CPA","MAMA711017HGTRNR02","ARTURO MARTINEZ MONCADA",3,17,1130,3102,0,28,"PB",17,280051,3,null,20160401,20150630,39285.359999999993,0]
[null,"GUANAJUATO","11DPT0001Q",120,"MAMA770820UT0","MAMA770820MGTRRN06","ANA LILIA MARTINEZ MARTINEZ",3,20,1130,3102,0,28,"PC",20,280050,3,null,20160401,20150630,17782,0]
[null,"GUANAJUATO","11DPT0001Q",120,"MARR660925MG9","MARR660925MGTRDC04","ROCIO MARTINEZ RODRIGUEZ",3,17,1130,3102,0,28,"PB",17,280052,3,null,20160401,20150630,9821.34,0]
[null,"GUANAJUATO","11DPT0001Q",120,"MASJ651012DZ4","MASJ651012HVZRNN09","JUAN CARLOS MARTINEZ SANTOS",3,23,1130,3102,0,28,"PB",23,280053,3,null,20160401,20150630,26575.379999999997,0]
[null,"GUANAJUATO","11DPT0001Q",120,"MOHD5903208E0","MOHD590320HMCCRL05","JOSE DOLORES GUADALUPE MOCTEZUMA HERNANDEZ",3,25,1130,3102,0,28,"PB",25,280054,3,null,20160401,20150630,7703,0]
[null,"GUANAJUATO","11DPT0001Q",120,"MOPL8106219G5","MOPL810621MGTRLD07","LIDIA MORENO PALOALTO",3,24,1130,3102,0,28,"PB",24,280055,3,null,20160401,20150630,11554.52,0]
[null,"GUANAJUATO","11DPT0001Q",120,"RAGL820420UF7","RAGL820420MGTMMR03","LOURDES MIRELLA RAMOS GOMEZ",3,23,1130,3102,0,28,"PB",23,280067,3,null,20160401,20150630,26575.379999999997,0]
[null,"GUANAJUATO","11DPT0001Q",120,"RAGM860115N6A","RAGM860115HGTMRR00","MAURO RAMIREZ GARCIA",3,26,1130,3102,0,28,"PA",26,280063,3,null,20160401,20150630,26730.6,0]
[null,"GUANAJUATO","11DPT0001Q",120,"RALG600418P69","RALG600418MGTMPD09","MARIA GUADALUPE RAMOS LOPEZ",3,20,1130,3102,0,28,"PC",20,280068,3,null,20160401,20150630,53346,0]
[null,"GUANAJUATO","11DPT0002P",120,"AAGC731126M29","AAGC731126HDFLNN07","CONRRADO ARTURO ALVAREZ GONZALEZ",3,10,1130,3102,0,29,"PB",10,290005,3,null,20160401,20150630,8104.7,0]
[null,"GUANAJUATO","11DPT0002P",120,"AUCL821209DC6","AUCL821209MVZRRT05","LETICIA CAROLINA ARGUELLES CRUZ",3,10,1130,3102,0,29,"PA",10,290094,3,null,20160401,20150630,5554.2,0]
[null,"GUANAJUATO","11DPT0002P",120,"AUGJ550312251","AUJG550312HGTGTR07","JORGE AGUILERA GUTIERREZ",3,19,1130,3102,0,29,"PB",19,290002,3,null,20160401,20150630,14635.72,0]
[null,"GUANAJUATO","11DPT0002P",120,"CAEL721019IZ9","CAEL721019MGTSLL08","LILIA ISELA CASTILLO ELIZARRARAZ",3,21,1130,3102,0,29,"PB",21,290009,3,null,20160401,20150630,8088.16,0]
[null,"GUANAJUATO","11DPT0002P",120,"CAHJ750812FB7","CAHJ750812HGTHRR09","JORGE ALEJANDRO CHAGOYA HERNANDEZ",3,10,1130,3102,0,29,"PC",10,290012,3,null,20160401,20150630,4572.7700000000004,0]
[null,"GUANAJUATO","11DPT0002P",120,"CAMH790325MK6","CAMH790325HGTSSC09","HECTOR CASTRO MOSQUEDA",3,21,1130,3102,0,29,"PB",21,290010,3,null,20160401,20150630,8088.16,0]
[null,"GUANAJUATO","11DPT0002P",120,"CECE690308KZ9","CECE690308HGTRRL05","ELIAS CERVANTES CRUZ",3,18,1130,3102,0,29,"TA",18,290011,3,null,20160401,20150630,4606.7700000000004,0]
[null,"GUANAJUATO","11DPT0002P",120,"CILG730402N95","CILG730402MGTSPL08","BLANCA ESTELA GUILLERMINA CISNEROS LOPEZ",3,21,1130,3102,0,29,"PB",21,290014,3,null,20160401,20150630,24264.480000000003,0]
[null,"GUANAJUATO","11DPT0002P",120,"COAA820127CJ8","COAA820127MGTRYN00","ANA ERICKA CORRALES AYALA",3,12,1130,3102,0,29,"PB",12,290016,3,null,20160401,20150630,7002.3600000000006,0]
[null,"GUANAJUATO","11DPT0002P",120,"COCF790524RG5","COCJ790524HGTNRR07","FRANCISCO JAVIER CONTRERAS CERVANTES",3,15,1130,3102,0,29,"PC",15,290073,3,null,20160401,20150630,16670.650000000001,0]
[null,"GUANAJUATO","11DPT0002P",120,"COCJ790301RG5","COCJ790301HGTRRN06","JOSE JUAN CORRALES CORONA",3,16,1130,3102,0,29,"PB",16,290017,3,null,20160401,20150630,3081.2,0]
[null,"GUANAJUATO","11DPT0002P",120,"COMJ7702043T7","COMJ770204HGTRRL02","JOEL DE JESUS CORONA MORENO",3,24,1130,3102,0,29,"PA",24,290159,3,null,20160401,20150630,4112.3999999999996,0]
[null,"GUANAJUATO","11DPT0002P",120,"COMS721010P5A","COMS721010MGTRSL09","SILVIA CORDOBA  MOSQUEDA",3,9,1130,3102,0,29,"PC",9,290074,3,null,20160401,20150630,20004.8,0]
[null,"GUANAJUATO","11DPT0002P",120,"DARE870421E95","DARE870421MGTMDD0","EDUARDINA ESAIG DAMIAN  RODRIGUEZ",3,24,11163,3102,0,29,"PB",24,290119,3,null,20160401,20150630,4621.8,0]
[null,"GUANAJUATO","11DPT0002P",120,"DEBY851217D4A","DEBJ851217MGTLLS09","JUSELY GUADALUPE DELGADO BELTRAN",3,26,1130,3102,0,29,"PB",26,290139,3,null,20160401,20150630,20027.8,0]
[null,"GUANAJUATO","11DPT0002P",120,"DICI670401TA1","DICI670401MGTZMR00","IRENE DIAZ CAMPOS",3,20,1130,3102,0,29,"PC",20,290021,3,null,20160401,20150630,13336.5,0]
[null,"GUANAJUATO","11DPT0002P",120,"DIJT521003PE9","DIJT521003MVZZCR03","MARIA TERESITA DIAZ JACOME",3,20,1130,3102,0,29,"PC",20,290023,3,null,20160401,20150630,22227.5,0]
[null,"GUANAJUATO","11DPT0002P",120,"EIVG610404DLA","EIVG610404HDFLLR08","JORGE ALBERTO ELIZARRARAS VILLALPANDO",3,20,1130,3102,0,29,"PC",20,290025,3,null,20160401,20150630,52546,0]
[null,"GUANAJUATO","11DPT0002P",120,"EIVJ6412112B7","EIVJ641211HGTLLN00","JUAN CARLOS ELIZARRARAZ VILLALPANDO",3,17,1130,3102,0,29,"PC",17,290026,3,null,20160401,20150630,3778.68,0]
[null,"GUANAJUATO","11DPT0002P",120,"EUGC810902JNA","EUGC810902HGTSZS09","CESAR JAVIER ESQUIVEL GUZMAN",3,15,1130,3102,0,29,"PB",15,290027,3,null,20160401,20150630,5777.26,0]
[null,"GUANAJUATO","11DPT0002P",120,"EUQJ600614JNA","EUQJ600614HDFSRN05","JUAN MIGUEL ESQUIVEL QUIROZ",3,16,1130,3102,0,29,"PB",16,290028,3,null,20160401,20150630,3081.2,0]
[null,"GUANAJUATO","11DPT0002P",120,"GAEA800524AAA","GAEA800524HGTRLL00","J. ALFREDO GRANADOS ELIZARRARAS",3,6,1130,3102,0,29,"PC",6,290177,3,null,20160401,20150630,4000.9500000000003,0]
[null,"GUANAJUATO","11DPT0002P",120,"GAMM750120RB8","GANN750120MGTRSR08","MARTHA ELBA GARCIA MOSQUEDA",3,30,1130,3102,0,29,"PB",30,290032,3,null,20160401,20150630,11554.5,0]
[null,"GUANAJUATO","11DPT0002P",120,"GAVJ660521UR1","GAVJ660521HGTRGN08","JUAN CARLOS GARCIA VEGA",3,19,1130,3102,0,29,"TA",19,290158,3,null,20160401,20150630,2476.44,0]
[null,"GUANAJUATO","11DPT0002P",120,"GORC820608RCA","GORC820608MGTLRT07","MA CONCEPCION GONZALEZ RAMIREZ",3,12,1130,3102,0,29,"PC",12,290097,3,null,20160401,20150630,2667.3,0]
[null,"GUANAJUATO","11DPT0002P",120,"GUVG640807PZ4","GUVG640807MDFZRB04","GABRIELA GUIZAR VARGAS",3,9,1130,3102,0,29,"PC",9,290036,3,null,20160401,20150630,8299.18,0]
[null,"GUANAJUATO","11DPT0002P",120,"HERA4412086H0","HERA441208HGTRSL07","ALFREDO HERRERA ROSALES",3,9,1130,3102,0,29,"PA",9,290042,3,null,20160401,20150630,3348.5800000000004,0]
[null,"GUANAJUATO","11DPT0002P",120,"HERA5904202S0","HERA590420HGTRSN04","JOSE ANTONIO HERRERA  ROSALES",3,10,1130,3102,0,29,"PB",10,290076,3,null,20160401,20150630,4024.92,0]
[null,"GUANAJUATO","11DPT0002P",120,"HERD520203ADO","HERD520203MSLRSB04","DEBORA HERN RUSSEL",3,30,1130,3102,0,29,"PA",30,1130,3,null,20160401,20150630,10241,0]
[null,"GUANAJUATO","11DPT0002P",120,"HERR700403DUO","HERR700403HGTRMC07","RICARDO MARTIN HERNANDEZ RAMIREZ",3,10,1130,3102,0,29,"PB",10,290040,3,null,20160401,20150630,8024.5300000000007,0]
[null,"GUANAJUATO","11DPT0002P",120,"JOSJ820529NC7","JOSJ820529HNTYNN07","JONATHAN JOYA DE LA SANCHA",3,25,1130,3102,0,29,"PC",25,290140,3,null,20160401,20150630,11113.76,0]
[null,"GUANAJUATO","11DPT0002P",120,"LOCJ790515Q78","LOCJ790515HGTPHN00","JUAN ANDRES LOPEZ CHAVEZ ",3,26,1130,3102,0,29,"PA",26,290127,3,null,20160401,20150630,66826.499999999985,0]
[null,"GUANAJUATO","11DPT0002P",120,"LURA851031520","LURA851031HGTNML05","JOSE ALFONSO LUNA RAMIREZ",3,15,1130,3102,0,29,"TA",15,290174,3,null,20160401,20150630,3997,0]
[null,"GUANAJUATO","11DPT0002P",120,"MASS590809U18","MASS590809HGTRTL08","SALVADOR MARTINEZ SOTO",3,35,1130,3102,0,29,"TA",35,290052,3,null,20160401,20150630,4409.13,0]
[null,"GUANAJUATO","11DPT0002P",120,"MATM690314EG4","MATM690314MGTRRT12","MATILDE MARTINEZ TORRES",3,19,1130,3102,0,29,"PC",19,290053,3,null,20160401,20150630,12669.689999999999,0]
[null,"GUANAJUATO","11DPT0002P",120,"MOHT651003EA6","MOHT651003MGTRRR13","MA TERESA MORENO HERNANDEZ",3,18,1130,3102,0,29,"TA",18,290055,3,null,20160401,20150630,2299.67,0]
[null,"GUANAJUATO","11DPT0002P",120,"OASF640805DW4","OASF640805HGTCTR00","FRANCISCO JAVIER OCAMPO SOTO",3,10,1130,3102,0,29,"PC",10,290057,3,null,20160401,20150630,4601.24,0]
[null,"GUANAJUATO","11DPT0002P",120,"OIZG5306099RR","OIZG530609HGTRFL01","GUILLERMO ORTIZ ZAFRA",3,29,1130,3102,0,29,"PC",29,290093,3,null,20160401,20150630,90238.399999999994,0]
[null,"GUANAJUATO","11DPT0002P",120,"RISM640319LE9","RISM640319HGTCRR02","JOSE MARTIN RICO SERRITEﾑO",3,10,1130,3102,0,29,"PA",10,290061,3,null,20160401,20150630,5452.07,0]
[null,"GUANAJUATO","11DPT0002P",120,"SAGM820626E90","SAGR820626MGTNNS28","MA DEL ROSARIO SANCHEZ GONZALEZ",3,19,1130,3102,0,29,"PB",19,290125,3,null,20160401,20150630,10976.789999999999,0]
[null,"GUANAJUATO","11DPT0002P",120,"SOAO850607U46","SOAO850607HGGTGM04","OMAR DAVID SOTO AGUIRRE",3,15,1130,3102,0,29,"TA",15,290067,3,null,20160401,20150630,7999.4800000000005,0]
[null,"GUANAJUATO","11DPT0002P",120,"VAGN761014IF8","VAGN761014MGTLVD09","NADIA VALLEJO GUEVARA",3,19,1130,3102,0,29,"PA",19,290069,3,null,20160401,20150630,6511.3,0]
[null,"GUANAJUATO","11DPT0003O",120,"AABR750608IB4","AABR750608MGTYRS01","ROSA MARGARITA AYALA BARRERA",3,15,1130,3102,0,30,"PC",15,28,3,null,20160401,20150630,16670.650000000001,0]
[null,"GUANAJUATO","11DPT0003O",120,"AEGD640414KLA","AAPJ880904HGTRTN01","JUAN MIGUEL ARANDA PATLAN",3,25,1130,3102,0,30,"PA",25,28,3,null,20160401,20150630,17135,0]
[null,"GUANAJUATO","11DPT0003O",120,"AORS650107KK2","AORS650107MGTRML00","MA SOLEDAD ARROYO RAMIREZ",3,18,1130,3102,0,30,"PB",18,28,3,null,20160401,20150630,6932.7,0]
[null,"GUANAJUATO","11DPT0003O",120,"CAVM6302079D4","CAVM630207MDFLLR04","MARIANA FEDERICA CALDERON VILLALOBOS",3,21,1130,3102,0,30,"PC",21,28,3,null,20160401,20150630,13336.52,0]
[null,"GUANAJUATO","11DPT0003O",120,"CURP6903018I5","CURP690301MGTRYT08","PATRICIA DE LA CRUZ REYES",3,12,1130,3102,0,30,"PC",12,28,3,null,20160401,20150630,8005.6,0]
[null,"GUANAJUATO","11DPT0003O",120,"EURA860418KB7","EURA860418HGTSDL09","ALBERTO ESQUIVEL RODRIGUEZ",3,20,1130,3102,0,30,"PB",20,28,3,null,20160401,20150630,2888.63,0]
[null,"GUANAJUATO","11DPT0003O",120,"FABV830514ES9","FABV830514HGTRLC04","VICTOR ESTEBAN FRAUSTO BOLIO",3,18,1130,3102,0,30,"PB",18,28,3,null,20160401,20150630,6932.7,0]
[null,"GUANAJUATO","11DPT0003O",120,"GAGE660725EF1","GAGE660725MGTYNG09","MA. EUGENIA GAYTAN GONZALEZ",3,15,1130,3102,0,30,"PC",15,28,3,null,20160401,20150630,20004.780000000002,0]
[null,"GUANAJUATO","11DPT0003O",120,"GALR880422QE7","GALR880422HGTRPG08","ROGELIO GARCIA LOPEZ",3,15,1130,3102,0,30,"TA",15,28,3,null,20160401,20150630,3866.1000000000004,0]
[null,"GUANAJUATO","11DPT0003O",120,"GIPE8705187T7","GIPE870718MGTRDR06","ERIKA ELIZABETH GRIMALDO PADILLA",3,20,1130,3102,0,30,"PA",20,28,3,null,20160401,20150630,12851.25,0]
[null,"GUANAJUATO","11DPT0003O",120,"GONS740424640","GONS740424MGTNXS08","SUSANA MAGNOLIA GONZALEZ NU?Z",3,26,1130,3102,0,30,"PB",26,28,3,null,20160401,20150630,20027.8,0]
[null,"GUANAJUATO","11DPT0003O",120,"IUMM800617VC2","IUMM800617MGTSRY06","MYRNA DENISSE ISUSQUIZA MARTﾍNEZ",3,12,1130,3102,0,30,"PB",12,28,3,null,20160401,20150630,7050.1100000000006,0]
[null,"GUANAJUATO","11DPT0003O",120,"LAGG811206L76","LAGG811206MGTRND04","MARIA GUADALUPE LARA GONZALEZ",3,25,1130,3102,0,30,"PB",25,28,3,null,20160401,20150630,10399.049999999999,0]
[null,"GUANAJUATO","11DPT0003O",120,"LOGG700109MF1","LOGG700109MGTPRD02","MA. GUADALUPE LOPEZ GARCIA",3,18,1130,3102,0,30,"PB",18,28,3,null,20160401,20150630,17331.75,0]
[null,"GUANAJUATO","11DPT0003O",120,"LOSM721211630","LOSM721211MGTPRR02","MARCELA LOPEZ SORIA",3,18,1130,3102,0,30,"TA",18,28,3,null,20160401,20150630,2334.1800000000003,0]
[null,"GUANAJUATO","11DPT0003O",120,"MESF820630A32","MESF820630HGTNLR02","FRANCISCO JAVIER MENDOZA SOLORZANO",3,26,1130,3102,0,30,"TA",26,28,3,null,20160401,20150630,13101.4,0]
[null,"GUANAJUATO","11DPT0003O",120,"MUCE6604088C8","MUCE660408HGTXRL04","ELIAS MUﾑOZ CORTES",3,12,1130,3102,0,30,"PB",12,28,3,null,20160401,20150630,7065.67,0]
[null,"GUANAJUATO","11DPT0003O",120,"MUCM5811195T2","MUCM580119HGTXMR09","JOSE MARIO MUﾑOZ CAMPUSANO",3,12,1130,3102,0,30,"PB",12,28,3,null,20160401,20150630,4818.55,0]
[null,"GUANAJUATO","11DPT0003O",120,"MUMJ581102LE9","MUMJ581102HGTXRM09","JAIME MUﾑOZ MARTINEZ",3,22,1130,3102,0,30,"PC",22,28,3,null,20160401,20150630,22227.5,0]
[null,"GUANAJUATO","11DPT0003O",120,"NAJE70071623A","NAJE700716HGTVMN08","ENRIQUE NAVARRETE JIMENEZ",3,23,1130,3102,0,30,"PA",23,28,3,null,20160401,20150630,19705.25,0]
[null,"GUANAJUATO","11DPT0003O",120,"PAHF740428HK9","PAHF740428HGTDRR00","FRANCISCO JAVIER PADILLA HERNﾁNDEZ",3,18,1130,3102,0,30,"PB",18,28,3,null,20160401,20150630,10399.049999999999,0]
[null,"GUANAJUATO","11DPT0003O",120,"PARH580204E82","PARH580204HDFDYC09","HECTOR PADILLA REYES",3,10,1130,3102,0,30,"PB",10,28,3,null,20160401,20150630,10026.85,0]
[null,"GUANAJUATO","11DPT0003O",120,"PEJE510902DF6","PEJE510902HOCRRS08","ESTEBAN PEREZ JUAREZ",3,20,1130,3102,0,30,"PC",20,28,3,null,20160401,20150630,22227.5,0]
[null,"GUANAJUATO","11DPT0003O",120,"RAGB840311M36","RAGB840311MGTMTR07","MARIA BERENICE RAMIREZ GUTIERRES",3,26,1130,3102,0,30,"PA",26,28,3,null,20160401,20150630,17820.400000000001,0]
[null,"GUANAJUATO","11DPT0003O",120,"ROCU811126UY1","ROCU811126HGTMNR08","URIEL ROMO CONTRERAS",3,26,1130,3102,0,30,"PC",26,28,3,null,20160401,20150630,4667.78,0]
[null,"GUANAJUATO","11DPT0003O",120,"RORM440730KM9","RORM440730HGTDYR01","MARGARITO RODRIGUEZ REYES",3,20,1130,3102,0,30,"PB",20,28,3,null,20160401,20150630,12132.24,0]
[null,"GUANAJUATO","11DPT0003O",120,"SAGJ781103MJ3","SAGJ781103HGTLRR06","JORGE ARMANDO SALAS GUARDADO",3,20,1210,3102,0,30,"PB",20,28,3,null,20160401,20150630,10399.049999999999,0]
[null,"GUANAJUATO","11DPT0003O",120,"SAHL880928KE7","SAHL880928HGTNRS02","LUIS DAVID SANCHEZ HERNANDEZ",3,20,1130,3102,0,30,"PA",20,28,3,null,20160401,20150630,3427,0]
[null,"GUANAJUATO","11DPT0003O",120,"VAPL6101037B8","VAPL610103HGTZRL05","SALVADOR EUGENIO VAZQUEZ PRECIADO",3,15,1130,3102,0,30,"PA",15,28,3,null,20160401,20150630,10911.67,0]
[null,"GUANAJUATO","11DPT0003O",120,"VASR930322QX5","VASR930322HGTLGL04","RAUL VALDIVIA SEGOVIANO",3,16,1130,3102,0,30,"TA",16,28,3,null,20160401,20150630,6999.79,0]
[null,"GUANAJUATO","11DPT0003O",120,"VAWS480907T05","VAWS480907MDFRSY01","SILVIA VARGAS WASHINGTON",3,18,1130,3102,0,30,"TA",18,28,3,null,20160401,20150630,4669.2700000000004,0]
[null,"GUANAJUATO","11DPT0003O",120,"VEMJ891002000","VEMJ891002HGTLﾑN02","JUAN MANUEL VELAZQUEZ MUﾑOZ",3,20,1130,3102,0,30,"TA",20,28,3,null,20160401,20150630,2645.48,0]
[null,"GUANAJUATO","11DPT0003O",120,"VESE620331G87","VESE620331HGTRLF03","EFREN VERA SALGADO",3,13,1130,3102,0,30,"PB",13,28,3,null,20160401,20150630,7510.4400000000005,0]
[null,"GUANAJUATO","11DPT0004N",120,"FOBD780903IT3","FOBD780903HGTNDV05","DAVID FONSECA BEDOLLA",3,15,1130,3102,1,28,"PA",15,128014,3,null,20160401,20150630,10909.56,0]
[null,"GUANAJUATO","11DPT0004N",120,"GAVJ851126FM4","GAVJ851126HGTRYV07","JAVIER GARCIA VIEYRA",3,16,1130,3102,1,28,"PB",16,128015,3,null,20160401,20150630,9243.5999999999985,0]
[null,"GUANAJUATO","11DPT0004N",120,"HEDA800812DP2","HEDA800812HGTTZD09","ADRIAN HERNANDEZ DIAZ",3,19,1130,3102,1,28,"PB",19,128017,3,null,20160401,20150630,10976.789999999999,0]
[null,"GUANAJUATO","11DPT0004N",120,"LOBL610801UA2","LOBL610801HGTPDS05","LUIS LOPEZ BEDOLLA",3,12,1130,3102,1,28,"PB",12,128019,3,null,20160401,20150630,12029.07,0]
[null,"GUANAJUATO","11DPT0004N",120,"LOLB790114RE0","HERN811104MMNRJB02","NUBIA VANNESA HERNANDEZ ROJAS",3,25,1130,3102,1,28,"PB",25,128042,3,null,20160401,20150630,5481.2100000000009,0]
[null,"GUANAJUATO","11DPT0004N",120,null,"LOLB790114MGTPPR08","BERENICE LOPEZ LOPEZ",3,13,1130,3102,1,28,"PA",13,128020,3,null,20160401,20150630,2271.4500000000003,0]
[null,"GUANAJUATO","11DPT0004N",120,"LOOE660716UY7","LOOE660716HGTPJD01","EDUARDO LOPEZ OJEDA",3,9,1130,3102,1,28,"PB",9,128021,3,null,20160401,20150630,1659.8799999999999,0]
[null,"GUANAJUATO","11DPT0004N",120,"MAHS851214LA6","MAHS851214MGTRRN01","SANDRA MARTINEZ HERNANDEZ",3,20,1130,3102,1,28,"PB",20,128050,3,null,20160401,20150630,5481.2100000000009,0]
[null,"GUANAJUATO","11DPT0004N",120,"PEAA590708RJ5","PEAA590708HDFRLD08","JOSE ADRIAN ARTURO PEREZ ALVAREZ",3,16,1130,3102,1,28,"PB",16,128026,3,null,20160401,20150630,9243.5999999999985,0]
[null,"GUANAJUATO","11DPT0004N",120,"PEEJ780324IC1","PEEJ780324HMNRSN01","JUAN FERNANDO PEREZ ESPINO",3,19,1130,3102,1,28,"PC",19,128027,3,null,20160401,20150630,8446.4599999999991,0]
[null,"GUANAJUATO","11DPT0004N",120,"RUDJ780213NV6","RUDJ780213HGTZZN04","JUAN CARLOS RUIZ DIAZ",3,17,1130,3102,1,28,"PB",17,128029,3,null,20160401,20150630,13095.12,0]
[null,"GUANAJUATO","11DPT0004N",120,"SADF620323P95","SADF620323HDGNVD00","FIDEL SANCHEZ DAVILA",3,12,1130,3102,1,28,"PB",12,128031,3,null,20160401,20150630,9417.26,0]
[null,"GUANAJUATO","11DPT0004N",120,"SAVE451129SN8","SAVE451129HGTLRL03","ELIGIO SALGADO VARGAS",3,12,1130,3102,1,28,"PB",12,128030,3,null,20160401,20150630,9375.5,0]
[null,"GUANAJUATO","11DPT0004N",120,"SOGE770916E73","SOGE770916MDFLNL08","MARIA ELENA SOLIS GONZALEZ",3,16,1130,3102,1,28,"PC",16,128054,3,null,20160401,20150630,20004.780000000002,0]
[null,"GUANAJUATO","11DPT0004N",120,"TITC671201BBA","TITC671201HMNNNR07","CRESCENCIANO TINOCO TINOCO",3,17,1130,3102,1,28,"PC",17,128058,3,null,20160401,20150630,17782,0]
[null,"GUANAJUATO","11DPT0004N",120,"VIRD850905EA2","VIRD850905MGTLDY04","DEYSI VILLANUEVA RODRIGUEZ",3,15,1130,3102,1,28,"PB",15,128035,3,null,20160401,20150630,17331.780000000002,0]
[null,"GUANAJUATO","11DPT0004N",120,"ZAHR840210PN9","ZAHR840210HGTVRD05","RODOLFO ANTONIO ZAVALA HERNANDEZ",3,12,1130,3102,1,28,"PB",12,128039,3,null,20160401,20150630,7037.1900000000005,0]
[null,"GUANAJUATO","11DPT0004N",120,"ZAPJ830703848","ZAPJ830703HGTMRN07","JUAN MARCIAL ZAMUDIO PEREZ",3,10,1130,3102,1,28,"PB",10,128037,3,null,20160401,20150630,12029.07,0]
[null,"GUANAJUATO","11DPT0005M",123,"AICF790308Q83","AICF790308HGTMLR01","FERNANDO AMBRIZ COLIN",3,15,1130,3102,0,72,"PC",15,1130,3,null,20160401,20150630,13336.52,0]
[null,"GUANAJUATO","11DPT0005M",123,"AOMR770309JR5","AOMR770309MGTCRS03","ROSAURA ACOSTA MORENO",3,15,1130,3102,0,72,"PB",15,1130,3,null,20160401,20150630,8665.89,0]
[null,"GUANAJUATO","11DPT0005M",123,"AULG650807MX2","AULG650807MCLGPD08","MARIA GUADALUPE AGUILAR LOPEZ",3,24,1130,3102,0,72,"PB",24,1130,3,null,20160401,20150630,4621.8,0]
[null,"GUANAJUATO","11DPT0005M",123,"BACL660127PY3","BACL660127HGTRNS02","JOSE LUIS BRAVO CANO",3,25,1130,3102,0,72,"PB",25,1130,3,null,20160401,20150630,14443.14,0]
[null,"GUANAJUATO","11DPT0005M",123,"BAGG740408RC0","BAGG740408MGTZRB07","GABRIELA BAEZA GARCIA",3,24,1130,3102,0,72,"PB",24,1130,3,null,20160401,20150630,4621.8,0]
[null,"GUANAJUATO","11DPT0005M",123,"BAPA800509JH2","BAPA800509HDFRRL06","ALAN BAROJAS PEREZ",3,19,1130,3102,0,72,"PB",19,1130,3,null,20160401,20150630,18294.649999999998,0]
[null,"GUANAJUATO","11DPT0005M",123,"BASM671211R18","BASM671211MGTCNR06","MARTHA PATRICIA BACA SANCHEZ",3,15,1130,3102,0,72,"PB",15,1130,3,null,20160401,20150630,11554.52,0]
[null,"GUANAJUATO","11DPT0005M",123,"CACR540413CR4","CACR540413HBCSSL00","RAUL CASTAﾑEDA CASTRO",3,30,1130,3102,0,72,"PB",30,1130,3,null,20160401,20150630,11554.5,0]
[null,"GUANAJUATO","11DPT0005M",123,"CUGV730427G51","CUGV730427HGTLMC00","VICTOR MANUEL CUELLAR GOMEZ",3,28,1130,3102,0,72,"PB",28,1130,3,null,20160401,20150630,16176.300000000001,0]
[null,"GUANAJUATO","11DPT0005M",123,"DABG810704HX9","DABG810704HGTMRR08","GERSON FALCAO DAMIAN BRAVO",3,18,1130,3102,0,72,"PB",18,1130,3,null,20160401,20150630,10399.049999999999,0]
[null,"GUANAJUATO","11DPT0005M",123,"EIDR500307HY1","EIDR500307HGTNLN02","JOSE RENE ENRIQUEZ DELGADO",3,18,1130,3102,0,72,"PB",18,1130,3,null,20160401,20150630,10399.049999999999,0]
[null,"GUANAJUATO","11DPT0005M",123,"GABM720316FV9","GABM720316MGTLRR09","MARTHA PATRICIA GARCIA BELTRAN",3,25,1130,3102,0,72,"PB",25,1130,3,null,20160401,20150630,9628.76,0]
[null,"GUANAJUATO","11DPT0005M",123,"GASR730617EQ9","GASR730619MGTRLS03","ROSA MARIA GARCIA  SILVA",3,24,1130,3102,0,72,"PB",24,1130,3,null,20160401,20150630,4621.8,0]
[null,"GUANAJUATO","11DPT0005M",123,"LEGR710831DD0","LEGR710831HGTSNL02","RAUL LESSO GONZALEZ ",3,10,1130,3102,0,72,"PC",10,1130,3,null,20160401,20150630,2259.75,0]
[null,"GUANAJUATO","11DPT0005M",123,"MABG7804019Z5","MABG780401MGTCRL00","GLORIA ELENA MACIEL  BARAJAS",3,15,1130,3102,0,72,"PB",15,1130,3,null,20160401,20150630,17331.780000000002,0]
[null,"GUANAJUATO","11DPT0005M",123,"MAGD5812285Y1","MAGD581228MGTRRL00","MARIA DOLORES MARTINEZ  GARCIA",3,12,1130,3102,0,72,"PA",12,1130,3,null,20160401,20150630,4248.6399999999994,0]
[null,"GUANAJUATO","11DPT0005M",123,"MARJ690613N97","MARJ690613HGTGYN00","JUAN MIGUEL MAGAﾑA  RAYA",3,30,1130,3102,0,72,"PA",30,1130,3,null,20160401,20150630,15421.5,0]
[null,"GUANAJUATO","11DPT0005M",123,"PAAM820226JB0","PAAM820226HGTRGR02","MARTIN PRADO AGUILAR",3,30,1130,3102,0,72,"PA",30,1130,3,null,20160401,20150630,15421.5,0]
[null,"GUANAJUATO","11DPT0005M",123,"ROLM821117536","ROLM821117HGTDPN05","MANUEL CHRISTIAN JARED RODRIGUEZ  LOPEZ",3,18,1130,3102,0,72,"PB",18,1130,3,null,20160401,20150630,6932.7,0]
[null,"GUANAJUATO","11DPT0005M",123,"RURL700528JKA","RURL700528MGTZDZ03","LUZ MARIA RUIZ RODRIGUEZ",3,21,1130,3102,0,72,"PB",21,1130,3,null,20160401,20150630,20220.400000000001,0]
[null,"GUANAJUATO","11DPT0005M",123,"SAMR641029MF0","SAMR641029HGTMNB09","ROBERTO SANTOYO MENDOZA",3,20,1130,3102,0,72,"PA",20,1130,3,null,20160401,20150630,3427,0]
[null,"GUANAJUATO","11DPT0005M",123,"TOVJ770823IY6","TOVJ770823HGTRRM05","JUAN MANUEL TORRES  VERA",3,30,1130,3102,0,72,"PA",30,1130,3,null,20160401,20150630,15421.5,0]
[null,"GUANAJUATO","11DPT0005M",123,"VAFI6312015P7","VAFI631201MGTRLR02","IRMA VARGAS  FLORES",3,15,1130,3102,0,72,"PC",15,1130,3,null,20160401,20150630,10002.39,0]
[null,"GUANAJUATO","11DPT0005M",123,"VITF791111L77","VITF791111HGTLVR01","FRANCISCO VILLAFAﾑA  TAVERA",3,23,1130,3102,0,72,"PB",23,1130,3,null,20160401,20150630,8858.4599999999991,0]
[null,"GUANAJUATO","11DPT0016S",100,"BEGR700112IU3","BEGR700112MGTRRB08","MA REBECA BERNAL GORDILLO",3,18,1130,3102,10,63,"PA",18,163006,3,null,20160401,20150630,6168.6,0]
[null,"GUANAJUATO","11DPT0016S",100,"CAGG841115NK6","CAGG841115MGTLNL08","GIULIANA CALDERON GONZALEZ",3,12,1130,3102,10,63,"PB",12,163009,3,null,20160401,20150630,9368.08,0]
[null,"GUANAJUATO","11DPT0016S",100,"COPG691022N6A","COPG691022MGTNRD16","MA GUADALUPE CONTRERAS PEREZ",3,16,1130,3102,10,63,"PC",16,163011,3,null,20160401,20150630,10669.2,0]
[null,"GUANAJUATO","11DPT0016S",100,"EILO590921526","EILO590921MGTSNF06","OFELIA ESPINOSA LUNA",3,19,1130,3102,10,63,"PC",19,163015,3,null,20160401,20150630,8446.4599999999991,0]
[null,"GUANAJUATO","11DPT0016S",100,"EIME671030L39","EIME671030HGTSRD00","EDUARDO ESPINO MIRANDA",3,16,1130,3102,10,63,"PC",16,163014,3,null,20160401,20150630,10669.2,0]
[null,"GUANAJUATO","11DPT0016S",100,"GASM760821854","GASS760821MGTRTC10","MA. DEL SOCORRO GARCIA SOTELO",3,15,1130,3102,10,63,"PB",15,163017,3,null,20160401,20150630,5777.26,0]
[null,"GUANAJUATO","11DPT0016S",100,"GUSG880306VD5","GUSG880306HGTLNR09","GERARDO GUILLEN SANCHEZ",3,18,1130,3102,10,63,"TA",18,163093,3,null,20160401,20150630,6982.8900000000012,0]
[null,"GUANAJUATO","11DPT0016S",100,"LUWR540208FX7","LUWR540208MDFNRB04","REBECA LUNA WIARCO",3,22,1130,3102,10,63,"PB",22,163024,3,null,20160401,20150630,8473.2999999999993,0]
[null,"GUANAJUATO","11DPT0016S",100,"MAGM780331EF7","MAGM780331MGTRZR08","MARIANA MARIN GUZMAN",3,23,1130,3102,10,63,"PA",23,163027,3,null,20160401,20150630,31528.399999999998,0]
[null,"GUANAJUATO","11DPT0016S",100,"MAJT7906215T2","MAJT790621MGTNRR01","TERESA MANDUJANO JURADO",3,12,1130,3102,10,63,"PB",12,163026,3,null,20160401,20150630,11713.81,0]
[null,"GUANAJUATO","11DPT0016S",100,"MAMA660610965","MAMA660610HGTRLR00","ARMANDO MARTINEZ MALDONADO",3,12,1130,3102,10,63,"PC",12,163028,3,null,20160401,20150630,16003.8,0]
[null,"GUANAJUATO","11DPT0016S",100,"OISA541015SQ0","OISA541015HGTRLL00","ALEJANDRO ORTIZ SILVA",3,16,11029,3102,10,63,"PC",16,163031,3,null,20160401,20150630,21338.400000000001,0]
[null,"GUANAJUATO","11DPT0016S",100,"SAMC7308072M6","SAMC730807MGTNRR25","MA. DEL CARMEN SANCHEZ MORENO",3,24,1130,3102,10,63,"PB",24,163045,3,null,20160401,20150630,9243.6,0]
[null,"GUANAJUATO","11DPT0016S",100,"SOAE851129KH7","SOAE851129MGTTCS09","ESPERANZA SOTO ACEVEDO",3,10,1130,3102,10,63,"PB",10,163047,3,null,20160401,20150630,15406,0]
[null,"GUANAJUATO","11DPT0016S",100,"VAAJ751004U60","VAAJ751004MGTLRN04","JUANA YANET VALDEZ ARGUELLO",3,5,1130,3102,10,63,"PC",5,163048,3,null,20160401,20150630,5007.88,0]
[null,"GUANAJUATO","11DPT0016S",100,"VAMM770825UBA","VAMM770825HGTLLG05","JOSE MIGUEL VALDEZ MALDONADO",3,20,1130,3102,10,63,"PA",20,163050,3,null,20160401,20150630,27416,0]
[null,"GUANAJUATO","11DPT0016S",100,"ZASJ710817C96","ZASJ710817MGTVLL06","JULIA XIOMARA ZAVALA SALAS",3,12,1130,3102,10,63,"PC",12,163058,3,null,20160401,20150630,32007.599999999995,0]
[null,"GUANAJUATO","11DPT0007K",120,"COBT640419U79","COBT640419HGTRZD01"," TEODORO CORTES BUZO",3,23,1130,3102,2,3,"PC",23,203022,3,null,20160401,20150630,5112.33,0]
[null,"GUANAJUATO","11DPT0007K",120,"EOTJ551129MU2","EOTS551129HGTSPT10"," J. SATURNINO ESCOTO TAPIA",3,12,1130,3102,2,3,"PC",12,203026,3,null,20160401,20150630,2667.3,0]
[null,"GUANAJUATO","11DPT0007K",120,"GACM6402137QA","GACM640213MGTRNR05","MARICELA GARCIA CHAVEZ",3,22,1130,3102,2,3,"PC",22,203031,3,null,20160401,20150630,4890.05,0]
[null,"GUANAJUATO","11DPT0007K",120,"GAGA6703123EA","GAGA670312HGTSNL02","JOSE ALFREDO GASCA GONZALEZ",3,20,1130,3102,2,3,"PC",20,203032,3,null,20160401,20150630,26673,0]
[null,"GUANAJUATO","11DPT0007K",120,"GARG881113FV7","GARG881113HGTRDL05","GUILLERMO GARCIA RODRIGUEZ",3,10,1130,3102,2,3,"PA",10,203227,3,null,20160401,20150630,10909.56,0]
[null,"GUANAJUATO","11DPT0007K",120,"GOOC7007237B8","GOOC700123MGTMRR07","MA. DEL CARMEN GOMEZ OROPEZA",3,21,1130,3102,2,3,"PC",21,203040,3,null,20160401,20150630,4667.78,0]
[null,"GUANAJUATO","11DPT0007K",120,"GUHG690324J87","GUHG690324HGTTRB00","GABRIEL GUTIERREZ HERNANDEZ",3,15,1130,3102,2,3,"PC",15,203036,3,null,20160401,20150630,3334.13,0]
[null,"GUANAJUATO","11DPT0007K",120,"GUHR661007QW0","GUHR661007MGTTRC18","ROCIO DEL ROSARIO GUTIERREZ HERNANDEZ",3,31,1130,3102,2,3,"PC",31,203038,3,null,20160401,20150630,41343.18,0]
[null,"GUANAJUATO","11DPT0007K",120,"GULM751128QC4","GULM751128HGTRNR07","MARIO DE JESUS GUERRERO LUNA",3,23,1130,3102,2,3,"PC",23,203035,3,null,20160401,20150630,10224.66,0]
[null,"GUANAJUATO","11DPT0007K",120,"GUMR8110123U3","GUMR811012HCHZNM08","RAMIRO GUZMAN MONTES",3,10,1130,3102,2,3,"PB",10,203153,3,null,20160401,20150630,12041.4,0]
[null,"GUANAJUATO","11DPT0007K",120,"HEAM5406144E9","HEAM540614MDFRRR09","MARISELA HERRERA ARVIZU",3,12,1130,3102,2,3,"PC",12,203172,3,null,20160401,20150630,10669.2,0]
[null,"GUANAJUATO","11DPT0007K",120,"LAMV790816C4A","LAMV790816MGTRNN04","VANESSA GEOVANNA LARIOS MINJARES",3,12,1130,3102,2,3,"PB",12,203137,3,null,20160401,20150630,7078.48,0]
[null,"GUANAJUATO","11DPT0007K",120,"LELJ740926PK3","LELJ740926HJCNPN01","JUAN ANTONIO LEON LOPEZ",3,15,1130,3102,2,3,"PC",15,203046,3,null,20160401,20150630,6668.26,0]
[null,"GUANAJUATO","11DPT0007K",120,"LORF540804250","LORF540804HJCPLR09","FRANCISCO JAVIER LOPEZ RUELAS",3,24,1130,3102,2,3,"PC",24,203047,3,null,20160401,20150630,5334.6,0]
[null,"GUANAJUATO","11DPT0007K",120,"MAMD780104125","MAMD780104MGTTRL05","MARIA DOLORES MATA MARTINEZ",3,23,1130,3102,2,3,"PC",23,203054,3,null,20160401,20150630,5112.33,0]
[null,"GUANAJUATO","11DPT0007K",120,"MESM670501FH5","MESM670501HDFNGR03","MARCO ALFREDO MENDOZA SEGURA",3,23,1130,3102,2,3,"PA",23,203057,3,null,20160401,20150630,15764.2,0]
[null,"GUANAJUATO","11DPT0007K",120,"MORB790906FV5","MORB790906MGTNSR05","BERTHA ALICIA MONJARAZ RIOS",3,16,1130,3102,2,3,"PC",16,203182,3,null,20160401,20150630,10669.2,0]
[null,"GUANAJUATO","11DPT0007K",120,"MOVM841118881","MOVM841118MGTNRR09","MARIELA MONTIEL  VERA",3,20,1130,3102,2,3,"PC",20,203143,3,null,20160401,20150630,17782,0]
[null,"GUANAJUATO","11DPT0007K",120,"NAGM7308014C0","NAGM730801MGTJZR05"," MARCELA NAJERA GUZMAN ",3,15,1130,3102,2,3,"PB",15,203064,3,null,20160401,20150630,17331.780000000002,0]
[null,"GUANAJUATO","11DPT0007K",120,"OEGR7911068I7","OEGR791106MGTRMS01"," ROSA MARIA ORNELAS  GOMEZ",3,12,1130,3102,2,3,"PC",12,203157,3,null,20160401,20150630,8001.9000000000005,0]
[null,"GUANAJUATO","11DPT0007K",120,"OIAE780131HL9","OIAE780131HGTNLD06","EDGAR JIONEL ONTIVEROS ALCALA",3,15,1130,3102,2,3,"PC",15,203156,3,null,20160401,20150630,20004.780000000002,0]
[null,"GUANAJUATO","11DPT0007K",120,"OIMD8504181Z5","OIMD850418MGTLRN00","DIANA OLIVA MORENO",3,18,1130,3102,2,3,"PB",18,203065,3,null,20160401,20150630,6932.7,0]
[null,"GUANAJUATO","11DPT0007K",120,"RICE740107C14","RICE740107MGTVSR06","  ERIKA ADRIANA RIVERA CISNEROS   ",3,24,1130,3102,2,3,"PB",24,203072,3,null,20160401,20150630,9243.6,0]
[null,"GUANAJUATO","11DPT0007K",120,"ROHO780227K98","ROXH780227MGTCXN02","HONORINA PAOLA * ROCHA",3,16,1130,3102,2,3,"PC",16,203126,3,null,20160401,20150630,10669.2,0]
[null,"GUANAJUATO","11DPT0007K",120,"RORL860709G29","RORL860709MGTDML06","LILIA BERENICE RODRIGUEZ RAMIREZ",3,19,1130,3102,2,3,"PA",19,203191,3,null,20160401,20150630,3255.65,0]
[null,"GUANAJUATO","11DPT0007K",120,"ROZA8409121VA","ROZA840912MGTDXL02","ALMA ROSARIO RODRIGUEZ ZUﾑIGA",3,13,1130,3102,2,3,"PC",13,203202,3,null,20160401,20150630,8668.74,0]
[null,"GUANAJUATO","11DPT0007K",120,"RUBS800124TR0","RUBS800124HGTZRL06","SAUL RUIZ BERBENA",3,20,1130,3102,2,3,"PC",20,203189,3,null,20160401,20150630,22227.5,0]
[null,"GUANAJUATO","11DPT0007K",120,"SOMJ5508087H2","SOMJ550808MGTTRN02","JUANA SOTO MORAN",3,21,1130,3102,2,3,"PB",21,203081,3,null,20160401,20150630,12132.24,0]
[null,"GUANAJUATO","11DPT0007K",120,"TAGL820524R17","TAGL820524MGTPMZ06"," MARIA DE LA LUZ TAPIA GOMEZ     ",3,11,1130,3102,2,3,"PC",11,203084,3,null,20160401,20150630,12303.46,0]
[null,"GUANAJUATO","11DPT0007K",120,"TIEA7005021TA","TIEA700502MDFHSN02"," ANGELICA THIRION ESCUDER  ",3,27,1130,3102,2,3,"PC",27,203085,3,null,20160401,20150630,18004.29,0]
[null,"GUANAJUATO","11DPT0007K",120,"UIRA650703JZ5","UIRA650703MDFRML07"," MARIA ALEJANDRA URIBE RAMIREZ  ",3,20,1130,3102,2,3,"PC",20,203086,3,null,20160401,20150630,22227.5,0]
[null,"GUANAJUATO","11DPT0007K",120,"VIBM7702283A2","VIBM770228HDFLRR01","MAURICIO VILCHIS BARCENAS ",3,15,1130,3102,2,3,"PC",15,203093,3,null,20160401,20150630,20004.780000000002,0]
[null,"GUANAJUATO","11DPT0008J",120,"EIEA830501N66","EIEA830501MGTSSN05","ANDREA ESPITIA ESPITIA",3,18,1130,3102,2,33,"PB",18,523312,3,null,20160401,20150630,10633.02,0]
[null,"GUANAJUATO","11DPT0008J",120,"EIGG680608R24","EIGG680608HGTSNR01","GERARDO ESPITIA GONZALEZ",3,26,1130,3102,2,33,"PB",26,523313,3,null,20160401,20150630,20027.8,0]
[null,"GUANAJUATO","11DPT0008J",120,"GACP660324G26","GACP660324HGTLPD03","PEDRO GALVEZ CAPORAL",3,26,1130,3102,2,33,"PA",26,523316,3,null,20160401,20150630,9183.0800000000017,0]
[null,"GUANAJUATO","11DPT0008J",120,"GOGF7511182R7","GOGF751118HGTNSR05","FRANCISCO JAVIER GONZALEZ GASCA",3,24,1130,3102,2,33,"PB",24,523319,3,null,20160401,20150630,4621.8,0]
[null,"GUANAJUATO","11DPT0008J",120,"GOHM731017127","GOHM731017HGTMRG05","MIGUEL ANGEL GOMEZ HERNANDEZ",3,27,1130,3102,2,33,"PB",27,523318,3,null,20160401,20150630,10045.34,0]
[null,"GUANAJUATO","11DPT0008J",120,"GOPA710319IB0","GOPA710319HGTNRD02","ADAN ALEJANDRO GONZALEZ PRESA",3,15,1130,3102,2,33,"PC",15,523320,3,null,20160401,20150630,16670.650000000001,0]
[null,"GUANAJUATO","11DPT0008J",120,"GOPR781214HT1","GOPR781214HGTNRD05","RODOLFO GONZALEZ PRESA",3,20,1130,3102,2,33,"PA",20,523321,3,null,20160401,20150630,3521.24,0]
[null,"GUANAJUATO","11DPT0008J",120,"GOVA7403201E8","GOVA740320HGTMLR06","JOSE ARMANDO GOMEZ VALENCIA",3,10,1130,3102,2,33,"PA",10,523300,3,null,20160401,20150630,10156.18,0]
[null,"GUANAJUATO","11DPT0008J",120,"HEEF6801012R8","HEEF680101HHGRSL09","FELIPE HERNANDEZ ESTRADA",3,26,1130,3102,2,33,"PC",26,523323,3,null,20160401,20150630,11558.3,0]
[null,"GUANAJUATO","11DPT0008J",120,"HEFJ700120711","HEFG700120HGTRSD12","J. GUADALUPE HERNANDEZ FISCAL",3,24,1130,3102,2,33,"PC",24,523324,3,null,20160401,20150630,17782,0]
[null,"GUANAJUATO","11DPT0008J",120,"HEMB820716LV7","HEMB820716MGTRDR06","BRENDA HERNANDEZ MEDINA",3,24,1130,3102,2,33,"PA",24,523365,3,null,20160401,20150630,8224.7999999999993,0]
[null,"GUANAJUATO","11DPT0008J",120,"JULA7109296W5","JULA710929HGTRNL01","ALEJANDRO JUAREZ LEON",3,23,1130,3102,2,33,"PA",23,523326,3,null,20160401,20150630,23646.3,0]
[null,"GUANAJUATO","11DPT0008J",120,"LACD700106TJ4","LACD700106HMCGRV02","DAVID LAGUNA CARRANCO",3,15,1130,3102,2,33,"PC",15,523328,3,null,20160401,20150630,20004.780000000002,0]
[null,"GUANAJUATO","11DPT0008J",120,"LOGS791206JH1","LOGS791206HGTPPR07","SERGIO LOPEZ GUAPO",3,22,1130,3102,2,33,"PA",22,523331,3,null,20160401,20150630,11309.099999999999,0]
[null,"GUANAJUATO","11DPT0008J",120,"LOVV821208K16","LOVV821208HGTPZC03","VICTOR HUGO LOPEZ VAZQUEZ",3,22,1130,3102,2,33,"PA",22,523332,3,null,20160401,20150630,11309.099999999999,0]
[null,"GUANAJUATO","11DPT0008J",120,"MAMG691216UYA","MAMG691216HGTRRD04","JOSE GUADALUPE RAUL MARTINEZ MORENO",3,20,1130,3102,2,33,"PA",20,523335,3,null,20160401,20150630,3427,0]
[null,"GUANAJUATO","11DPT0008J",120,"QUMN8108073JA","QUMN810807MGTNRR05","NEIRA JENNIFER QUINTERO MORENO",3,27,1130,3102,2,33,"PB",27,523341,3,null,20160401,20150630,15598.59,0]
[null,"GUANAJUATO","11DPT0008J",120,"RONE740321QJ6","RONE740321MGTJTS01","MARIA ESTHER ROJAS NIETO",3,20,1130,3102,2,33,"PC",20,523348,3,null,20160401,20150630,26673,0]
[null,"GUANAJUATO","11DPT0008J",120,"ROQJ571205C63","ROQJ571205HGTBNV03","JAVIER ROBLES QUINTANILLA",3,20,1130,3102,2,33,"TA",20,523344,3,null,20160401,20150630,15117,0]
[null,"GUANAJUATO","11DPT0008J",120,"VALS820325LX7","VALS820325MGTLNL09","SILVIA NANCY VALADEZ LEON",3,27,1130,3102,2,33,"PC",27,523355,3,null,20160401,20150630,18004.29,0]
[null,"GUANAJUATO","11DPT0009I",100,"AACN800319VC6","AACN800319MGTYRY15","NAYELI DE JESUS AYALA CARRERA",3,25,1130,3102,1,74,"PB",25,740004,3,null,20160401,20150630,4814.38,0]
[null,"GUANAJUATO","11DPT0009I",100,"AAGG8604281N4","AAGG860428MGTLRD04","MARIA GUADALUPE ALAMILLA GARCIA",3,20,1130,3102,1,74,"PA",20,740002,3,null,20160401,20150630,3427,0]
[null,"GUANAJUATO","11DPT0009I",100,"AOZL870509M00","AOZL870509MGTLRC04","LUCIA ALONSO ZARAGOZA",3,13,1130,3102,1,74,"TA",13,740047,3,null,20160401,20150630,3500.26,0]
[null,"GUANAJUATO","11DPT0009I",100,"CASM6003305D3","CASM600330HGTMTL02","MELCHOR CAMPOS SOTO",3,23,1130,3102,1,74,"PA",23,740007,3,null,20160401,20150630,19255.25,0]
[null,"GUANAJUATO","11DPT0009I",100,"COGB581101LL6","COGB581101HGTRMN07","BENJAMIN CORONA GOMEZ",3,15,1130,3102,1,74,"TA",15,740009,3,null,20160401,20150630,5920.05,0]
[null,"GUANAJUATO","11DPT0009I",100,"FEPD780323M00","FEPD780323MGTLRL01","DELIA FELIPE  PEREZ ",3,12,1130,3102,1,74,"PB",12,740011,3,null,20160401,20150630,7095,0]
[null,"GUANAJUATO","11DPT0009I",100,"GOMO860112AC6","GOMO860112HDFNRM01","OMAR FRANCISCO GONZALEZ MARTINEZ",3,16,1130,3102,1,74,"PB",16,740015,3,null,20160401,20150630,6162.4,0]
[null,"GUANAJUATO","11DPT0009I",100,"IACC631023AI2","IACC631023HGTBNH06","CUAUHTEMOC IBARRA CANO",3,27,1130,3102,1,74,"PB",27,740016,3,null,20160401,20150630,10399.06,0]
[null,"GUANAJUATO","11DPT0009I",100,"MALS720215M37","MALS720215MGTRPR06","SARA MARTINEZ LOPEZ",3,18,1130,3102,1,74,"PB",18,740020,3,null,20160401,20150630,10399.049999999999,0]
[null,"GUANAJUATO","11DPT0009I",100,"MATG681016SW7","MATG681016HGTGFR08","GERARDO MAGAﾑA TAFOYA",3,30,1130,3102,1,74,"PA",30,740019,3,null,20160401,20150630,15421.5,0]
[null,"GUANAJUATO","11DPT0009I",100,"MEGM731204L93","MEGM731204MGTNZR02","MARISA MENDEZ GUZMAN",3,16,1130,3102,1,74,"PB",16,740022,3,null,20160401,20150630,9243.5999999999985,0]
[null,"GUANAJUATO","11DPT0009I",100,"MOCM7012151Q9","MOCM701215MGTRNN01","MANUELA MORALES CENDEJAS",3,10,1130,3102,1,74,"PC",10,740025,3,null,20160401,20150630,2296.81,0]
[null,"GUANAJUATO","11DPT0009I",100,"PEFD7301136V8","PEFD730113HGTRLV06","DAVID PEREZ FELIPE",3,30,1130,3102,1,74,"TA",30,740027,3,null,20160401,20150630,15117,0]
[null,"GUANAJUATO","11DPT0009I",100,"PESA790927U25","PESA790927MGTRTN06","ANDREA MAGDALENA PEREZ SOTO",3,26,1130,3102,1,74,"PB",26,740028,3,null,20160401,20150630,10013.9,0]
[null,"GUANAJUATO","11DPT0009I",100,"RARM770914S13","RARM770914HGTNYR07","MAURICIO RANGEL REYES",3,19,1130,3102,1,74,"PA",19,740029,3,null,20160401,20150630,13022.6,0]
[null,"GUANAJUATO","11DPT0009I",100,"RIRG760502K16","RIRG760502MGTVDW04","GWENDOLYNE ERENDIRA RIVAS RODRIGUEZ",3,6,1130,3102,1,74,"PB",6,740030,3,null,20160401,20150630,2605.5100000000002,0]
[null,"GUANAJUATO","11DPT0009I",100,"ROVA6201238U9","ROVA620123HGTDGL01","ALFONSO RODRIGUEZ VEGA",3,25,1130,3102,1,74,"PA",25,740033,3,null,20160401,20150630,21418.75,0]
[null,"GUANAJUATO","11DPT0009I",100,"SAPR691204HS9","SAPR691204MGTNRS09","ROSA ELIA SANDOVAL PRADO",3,26,1130,3102,1,74,"PB",26,740035,3,null,20160401,20150630,15020.849999999999,0]
[null,"GUANAJUATO","11DPT0009I",100,"SATJ701026RC3","SATJ701026HGTNFS09","JOSE SANCHEZ TAFOYA",3,15,1130,3102,1,74,"PC",15,740034,3,null,20160401,20150630,13336.52,0]
[null,"GUANAJUATO","11DPT0009I",100,"SOSP630208MC6","SOSP630208HGTTCD07","PEDRO SOTO SAUCEDO",3,10,1130,3102,1,74,"PA",10,740036,3,null,20160401,20150630,7301.8399999999992,0]
[null,"GUANAJUATO","11DPT0009I",100,"TEAR801024C6A","TEAR801024MGTJDS18","ROSA BEATRIZ TEJEDA ADAME",3,15,1130,3102,1,74,"PB",15,740038,3,null,20160401,20150630,2888.63,0]
[null,"GUANAJUATO","11DPT0010Y",120,"AAFO86011729A","AAFO860117MGTRRL08","OLGA ELIZABETH ARAUJO FERNANDEZ",3,24,1130,3102,2,4,"PA",24,204092,3,null,20160401,20150630,4112.3999999999996,0]
[null,"GUANAJUATO","11DPT0010Y",120,"AALJ72112271A","AALJ721122MGTLZN08","JUANA CECILIA ALVAREZ LOZANO",3,12,1130,3102,2,4,"PA",12,204004,3,null,20160401,20150630,4270.3499999999995,0]
[null,"GUANAJUATO","11DPT0010Y",120,"AUCR760401U5A","AUCR760401HGTGRC06","RICARDO AGUILAR CORONA",3,12,1130,3102,2,4,"TA",12,204001,3,null,20160401,20150630,1632.08,0]
[null,"GUANAJUATO","11DPT0010Y",120,"BAVB810501LRA","BAVB810501MGTRLL01","BLANCA ELIZABETH BARAJAS VALLEJO",3,19,1710,3102,2,4,"PA",19,204009,3,null,20160401,20150630,3255.65,0]
[null,"GUANAJUATO","11DPT0010Y",120,"CARL761027511","CARL761027MGTDZD04","LIDIA KAREM  CAUDILLO RIZO",3,15,1130,3102,2,4,"PB",15,204015,3,null,20160401,20150630,8665.89,0]
[null,"GUANAJUATO","11DPT0010Y",120,"DIRS7905261S6","DIRS790526MJCZVR00","SAIRA  ESTHER DIAZ RIVERA",3,30,1130,3102,2,4,"PA",30,204009,3,null,20160401,20150630,10281,0]
[null,"GUANAJUATO","11DPT0010Y",120,"HERE800329V17","HERE800329HGTRDD03","EDGAR IVﾁN HERNﾁNDEZ RODRﾍGUEZ",3,29,1130,3102,2,4,"PB",29,204025,3,null,20160401,20150630,11169.36,0]
[null,"GUANAJUATO","11DPT0010Y",120,"LOVJ660127MI1","LOVJ660127HGTPLN03","JUAN LﾓPEZ VALENCIA",3,30,1130,3102,2,4,"PB",30,204032,3,null,20160401,20150630,5777.25,0]
[null,"GUANAJUATO","11DPT0010Y",120,"MAVR720809AXA","MAVR720809MGTNZS05","ROSA BEATRIZ MANJARREZ VAZQUEZ",3,6,1130,3102,2,4,"PC",6,204033,3,null,20160401,20150630,4389.83,0]
[null,"GUANAJUATO","11DPT0010Y",120,"MEMV791203112","MEVM791203HGTDZR15","MARIO MEDINA VﾁZQUEZ",3,15,1130,3102,2,4,"PB",15,204038,3,null,20160401,20150630,8665.89,0]
[null,"GUANAJUATO","11DPT0010Y",120,"PEGO840715TW6","PEGO840715MGTRRL04","OLGA CRISTINA  PEREZ GUERRERO",3,12,1130,3102,2,4,"PB",12,204049,3,null,20160401,20150630,2345.73,0]
[null,"GUANAJUATO","11DPT0010Y",120,"QUOG780110GB9","QUOG780110HGTNRN00","GONZALO  QUINTANA  ORTEGA ",3,27,1130,3102,2,4,"PA",27,204005,3,null,20160401,20150630,4626.45,0]
[null,"GUANAJUATO","11DPT0010Y",120,"RAPB721103D6A","RAPB721103MMNMZT09","BEATRIZ EUGENIA RAMOS PAZ",3,15,1130,3102,2,4,"PC",15,204059,3,null,20160401,20150630,9995.64,0]
[null,"GUANAJUATO","11DPT0010Y",120,"RARM6206207M6","RARM620620HGTMDN03","MANUEL RAMﾍREZ RODRﾍGUEZ",3,12,1130,3102,2,4,"PA",12,204057,3,null,20160401,20150630,4248.6399999999994,0]
[null,"GUANAJUATO","11DPT0010Y",120,"RICA770621C14","RICA770621HDFCRL02","ALEJANDRO RICO CARMONA",3,15,1130,3102,2,4,"PC",15,204060,3,null,20160401,20150630,6663.76,0]
[null,"GUANAJUATO","11DPT0011X",100,"AALJ750316LPA","AALJ750316HGTYLS05","JOSE  AYALA  LULE ",3,18,1130,3102,2,49,"TA",18,249007,3,null,20160401,20150630,9298.3300000000017,0]
[null,"GUANAJUATO","11DPT0011X",100,"BAEJ7111265C6","BAEJ711126HGTTSS04","JESUS MARIO  BAUTISTA  ESCAMILLA ",3,15,1130,3102,2,49,"PC",15,249008,3,null,20160401,20150630,6668.26,0]
[null,"GUANAJUATO","11DPT0011X",100,"CARH670101MS3","CARH670101HGTRZC08","HECTOR  CARDENAS  RUIZ ",3,15,1130,3102,2,49,"PB",15,249010,3,null,20160401,20150630,11554.52,0]
[null,"GUANAJUATO","11DPT0011X",100,"DICJ590119T4A","DICJ590119HGTZCS01","JOSE  DIAZ  COCILION ",3,8,1130,3102,2,49,"PB",8,249016,3,null,20160401,20150630,6668.84,0]
[null,"GUANAJUATO","11DPT0011X",100,"EAMA860511UL8","EAMA860511MMNSRN08","ANA LUCIA ESCALANTE MARIN",3,15,1130,3102,2,49,"PB",15,249017,3,null,20160401,20150630,14443.150000000001,0]
[null,"GUANAJUATO","11DPT0011X",100,"GAMA5108287F5","GAMA510828HGTRR609","AGUSTIN  GARDIAZABAL  MORALES ",3,12,1130,3102,2,49,"PC",12,249024,3,null,20160401,20150630,16003.8,0]
[null,"GUANAJUATO","11DPT0011X",100,"GUCT560830E19","GUCT560830MGTRSR17","MA TERESA GUERRERO CASTRO",3,20,1130,3102,2,49,"PC",20,249025,3,null,20160401,20150630,22227.5,0]
[null,"GUANAJUATO","11DPT0011X",100,"HECM670422CC4","HECM670422MDFRBR02","MARIA MARCELA  HERRERA  CEBALLOS ",3,20,1130,3102,2,49,"PC",20,249026,3,null,20160401,20150630,22227.5,0]
[null,"GUANAJUATO","11DPT0011X",100,"HEMY820605MZ2","HEMY820605MGTRNL07","YOLANDA  HERNANDEZ  MONTOYA ",3,26,1130,3102,2,49,"PA",26,249067,3,null,20160401,20150630,4455.1000000000004,0]
[null,"GUANAJUATO","11DPT0011X",100,"LUCF7002115Q9","LUCF700211HGTLND05","FIDEL  LULE  CONTRERAS ",3,12,1130,3102,2,49,"PC",12,249028,3,null,20160401,20150630,10669.2,0]
[null,"GUANAJUATO","11DPT0011X",100,"MAHA821225TQ5","MAHA821225MGTRRL02","ALEJANDRA  MARTINEZ  HERNANDEZ ",3,12,1130,3102,2,49,"PB",12,249030,3,null,20160401,20150630,9385.98,0]
[null,"GUANAJUATO","11DPT0011X",100,"MOSA681126R27","MOSA681126MGTNRN06","MA ANGELES  MONTERO  SIERRA ",3,20,1130,3102,2,49,"PC",20,249023,3,null,20160401,20150630,17782,0]
[null,"GUANAJUATO","11DPT0011X",100,"NAFE720728918","NAFE720728MDFVRV08","EVANGELINA NAVARRETE FARFAN",3,10,1130,3102,2,49,"PA",10,249037,3,null,20160401,20150630,10909.56,0]
[null,"GUANAJUATO","11DPT0011X",100,"PATF850801UJA","PATF850801HGTLPR02","FRANCISCO EVERARDO  PLAZA  TAPIA ",3,24,1130,3102,2,49,"PA",24,249043,3,null,20160401,20150630,12337.199999999999,0]
[null,"GUANAJUATO","11DPT0011X",100,"RAGE851021JI8","RAGE851021MGTYML08","ELVIA SUSANA RAYA GOMEZ",3,25,1130,3102,2,49,"PA",25,249101,3,null,20160401,20150630,12851.25,0]
[null,"GUANAJUATO","11DPT0011X",100,"RISA740722842","RISA740722MGTCNL08","ALEJANDRA  RICALDE  SANCHEZ ",3,9,1130,3102,2,49,"PB",9,249045,3,null,20160401,20150630,5518.92,0]
[null,"GUANAJUATO","11DPT0011X",100,"SACF740918BK7","SACF740918HJCNML11","FELIX SANCHEZ CAMPOS",3,18,1130,3102,2,49,"TA",18,249049,3,null,20160401,20150630,2306.5300000000002,0]
[null,"GUANAJUATO","11DPT0011X",100,"SACM860807000","SACM860807HGTMMN00","JOSE MANUEL SAMANO CAMARGO",3,26,1130,3102,2,49,"PB",26,249085,3,null,20160401,20150630,20027.8,0]
[null,"GUANAJUATO","11DPT0011X",100,"SIPH640527P81","SIPH640527HGTRRG09","HUGO EVERARDO  SIERRA  PARADA ",3,20,1130,3102,2,49,"PC",20,249052,3,null,20160401,20150630,13336.5,0]
[null,"GUANAJUATO","11DPT0011X",100,"ZAMJ740416EMO","ZAMJ740416HDFMXR00","JORGE ZAMORA MUﾑIZ",3,16,1130,3102,2,49,"PB",16,249056,3,null,20160401,20150630,6162.4,0]
[null,"GUANAJUATO","11DPT0012W",120,"AEDI770518OLA","AEDI770518HGTRRS01","ISRAEL ARMANDO ARREDONDO  DORANTES",3,20,1130,3102,4,2,"TA",20,27002,3,null,20160401,20150630,4839.22,0]
[null,"GUANAJUATO","11DPT0012W",120,"AUMJ800706AM9","AUMJ800706HMCGRL14","JOEL AGUILLON MORALES",3,25,1130,3102,4,2,"PB",25,270001,3,null,20160401,20150630,4814.38,0]
[null,"GUANAJUATO","11DPT0012W",120,"BAMV8801104X4","BAMV880110MGTRNR09","VERONICA GUADALUPE BRAVO MONTES",3,10,1130,3102,4,2,"PA",10,270161,3,null,20160401,20150630,10909.56,0]
[null,"GUANAJUATO","11DPT0012W",120,"BASC910503127","BASC910503MGTZNR03","MARIA CRUZ BAEZA SANCHEZ",3,10,1130,3102,4,2,"TA",10,270009,3,null,20160401,20150630,5582.68,0]
[null,"GUANAJUATO","11DPT0012W",120,"CACV851205PW0","CACV851205MQTRRR00","VERA CABELLO  CORONA",3,12,1130,3102,4,2,"PB",12,27005,3,null,20160401,20150630,4705.74,0]
[null,"GUANAJUATO","11DPT0012W",120,"COVI910507TA9","COVI910507MQTNRT08","ITZMALSI GUADALUPE CONTRERAS VARGAS",3,20,1130,3102,4,2,"PA",20,270115,3,null,20160401,20150630,6854,0]
[null,"GUANAJUATO","11DPT0012W",120,"EIHA7010296Z8","EIHA701029HGTSRL01","ALEJANDRO ESPINOSA HERNANDEZ",3,12,1130,3102,4,2,"PB",12,27007,3,null,20160401,20150630,4938.8100000000004,0]
[null,"GUANAJUATO","11DPT0012W",120,"GARB840625CP8","GARB840625MQTLDR08","BRENDA LIDIA GALLEGOS RODRIGUEZ",3,24,1130,3102,4,2,"PA",24,270008,3,null,20160401,20150630,12337.199999999999,0]
[null,"GUANAJUATO","11DPT0012W",120,"GOHS8907177Z1","GOHS890717MQTMRN05","SANDRA IRAIS GOMEZ HERNANDEZ",3,12,1320,3102,4,2,"TA",12,270008,3,null,20160401,20150630,6413.6500000000005,0]
[null,"GUANAJUATO","11DPT0012W",120,"GOZV911104PZ4","GOZV911104HGTNMC06","VICTOR HUGO GONZALEZ ZAMUDIO",3,10,1130,3102,4,2,"TA",10,270011,3,null,20160401,20150630,2800.75,0]
[null,"GUANAJUATO","11DPT0012W",120,"HELM570929SP5","HELM570929HQTRRG04","MIGUEL HERNANDEZ LIRA",3,15,1130,3102,4,2,"TA",15,27001,3,null,20160401,20150630,1850.49,0]
[null,"GUANAJUATO","11DPT0012W",120,"JAAM590516MH6","JAAM590516HGTMRN03","MANUEL JAIME ARELLANO",3,24,1130,3102,4,2,"PA",24,270001,3,null,20160401,20150630,12337.199999999999,0]
[null,"GUANAJUATO","11DPT0012W",120,"LOZE710604574","LOZE710604MGTZRG00","MA. EUGENIA LOZADA ZARAZUA ",3,12,1130,3102,4,2,"PB",12,27016,3,null,20160401,20150630,7040.25,0]
[null,"GUANAJUATO","11DPT0012W",120,"MASA840303K12","MASA840303MDFRNN08","MARIA DE LOS ANGELES MARTINEZ SANCHEZ",3,12,1130,3102,4,2,"PA",12,270007,3,null,20160401,20150630,8507.7999999999993,0]
[null,"GUANAJUATO","11DPT0012W",120,"MEGR720113GQ8","MEGR720113HMNRNM02","RAMIRO MERCADO  GONZALEZ",3,15,1130,3102,4,2,"PB",15,270018,3,null,20160401,20150630,34663.560000000005,0]
[null,"GUANAJUATO","11DPT0012W",120,"MESL721106M79","MESL721106HMCNNC01","LUCIANO MENDOZA SANCHEZ",3,25,1130,3102,4,2,"PA",25,270163,3,null,20160401,20150630,17135,0]
[null,"GUANAJUATO","11DPT0012W",120,"MOHS911002127","MOHS911002HMCNRR00","SERGIO MONTES DE OCA HURTADO",3,10,1130,3102,4,2,"TA",10,270015,3,null,20160401,20150630,6979.1500000000005,0]
[null,"GUANAJUATO","11DPT0012W",120,"NOIG870606719","NOIG870606HMCGNS09","GUSTAVO NOGUEZ INIESTA",3,12,1130,3102,4,2,"PA",12,270165,3,null,20160401,20150630,4253.8899999999994,0]
[null,"GUANAJUATO","11DPT0012W",120,"OIMG610814NA3","OIMG610814MGTRLD00","MA. GUADALUPE ORTIZ MELENDEZ",3,20,1130,3102,4,2,"PC",20,27026,3,null,20160401,20150630,17782,0]
[null,"GUANAJUATO","11DPT0012W",120,"PABJ671110D69","PABJ671110HJCLRS08","JOSE DE JESUS PLASCENCIA BARAJAS",3,23,1130,3102,4,2,"PC",23,27031,3,null,20160401,20150630,5112.33,0]
[null,"GUANAJUATO","11DPT0012W",120,"PARB8612287J6","PARB861228MGTCDR09","BARBARA PALOMA PACHECO  RODRIGUEZ",3,28,1130,3102,4,2,"PB",28,27027,3,null,20160401,20150630,8891,0]
[null,"GUANAJUATO","11DPT0012W",120,"PEBG910930PM0","PEBG910930MQTRCD18","MARIA GUADALUPE PEREZ BECERRA",3,10,1130,3102,4,2,"TA",10,270013,3,null,20160401,20150630,6971.0800000000008,0]
[null,"GUANAJUATO","11DPT0012W",120,"PEGR750725A34","PEGR750725HDFRTC00","RICARDO PEREZ GUTIERREZ",3,18,1130,3102,4,2,"PA",18,270011,3,null,20160401,20150630,3084.3,0]
[null,"GUANAJUATO","11DPT0012W",120,"RERE660715NDA","RERE660715HGTYMN06","ENRIQUE REYES ROMERO",3,20,1130,3102,4,2,"PC",20,270036,3,null,20160401,20150630,8891,0]
[null,"GUANAJUATO","11DPT0012W",120,"RORE431022TB0","RORE431022HGTDMD08","EDILBERTO RODRIGUEZ ROMERO",3,20,1130,3102,4,2,"PC",20,270130,3,null,20160401,20150630,22227.5,0]
[null,"GUANAJUATO","11DPT0012W",120,"SOMJ860107SDA","SOMJ860107MTSSNS08","JESSICA SOSA MENA",3,23,1130,3102,4,2,"PC",23,270158,3,null,20160401,20150630,5112.33,0]
[null,"GUANAJUATO","11DPT0012W",120,"VAMG850109N64","VAMG850109MBSZNB01","GABRIELA VAZQUEZ MONJARAZ",3,27,1130,3102,4,2,"PB",27,270052,3,null,20160401,20150630,20798.12,0]
[null,"GUANAJUATO","11DPT0012W",120,"ZABA871015J40","ZABA871015HGTRCM04","AMANDO ZARAZUA BECERRA",3,15,1130,3102,4,2,"TA",15,270015,3,null,20160401,20150630,3969.8900000000003,0]
[null,"GUANAJUATO","11DPT0012W",120,"ZARI821025R29","ZARI821025MGTRBG09","MARIA IGNACIA ZARAZUA  RUBIO ",3,15,1130,3102,4,2,"PB",15,27054,3,null,20160401,20150630,17331.78,0]
[null,"GUANAJUATO","11DPT0014U",100,"AEAJ830601BM3","AEAJ830601HGTRRN02","JUAN RAMON ARELLANO  ARIAS",3,23,1130,3102,3,3,"PB",23,303029,3,null,20160401,20150630,13287.689999999999,0]
[null,"GUANAJUATO","11DPT0014U",120,"CAPD830504746","CAPD830504HGTRTG05","DIEGO FELIPE CARDENAS PATIﾑO",3,30,1130,3102,3,3,"PB",30,303001,3,null,20160401,20150630,17331.75,0]
[null,"GUANAJUATO","11DPT0014U",100,"RIMF850611721","RIMF850611MGTNJB09","FABIOLA RINCON  MOJICA",3,23,1130,3102,3,3,"PB",23,303013,3,null,20160401,20150630,13287.689999999999,0]
[null,"GUANAJUATO","11DPT0014U",120,"SACG751101985","SACG751101HDFNRR03","GERARDO JAVIER SANCHEZ CARRANZA",3,30,1130,3102,3,3,"TA",30,303016,3,null,20160401,20150630,22675.5,0]
[null,"GUANAJUATO","11DPT0014U",120,"SAMJ8108157T3","SAMJ810815HGTNTR06","JORGE ADRIAN SANCHEZ MATEHUALA",3,10,1130,3102,3,3,"PB",10,303031,3,null,20160401,20150630,12041.4,0]
[null,"GUANAJUATO","11DPT0014U",100,"SAPG841029F61","SAPG841029HGTNRD01","JOSE GUADALUPE SANDOVAL PEREZ",3,30,1130,3102,3,3,"TA",30,303027,3,null,20160401,20150630,15117,0]
[null,"GUANAJUATO","11DPT0014U",100,"VEFF790430A24","VEFF790430MGTNLT05","FATIMA NOHEMI VENEGAS FLORES",3,22,1130,3102,3,3,"PB",22,30339,3,null,20160401,20150630,8473.2999999999993,0]
[null,"Total Personas : ",null,795,null,null,null,null,null,null,null,null,null,"Total Plazas : ",null,795,null,null,"Total Pto. Federal",null,{"$f":"SUBTOTAL(109,Tabla12[Percepciones pagadas en el Periodo de Comisión con Presupuesto Federal*])","v":28583643.840000004}]
[]
[null,null,null,null,null,null,null,null,null,null,null,null,null,null,null,null,null,null,"Total Ppto. Otras Fuentes:",null,null,{"$f":"SUM(V16:V812)","v":0}]
[]
[null,"*Total de Percepciones reportadas por la Entidad Federativa como pagadas al trabajador durante la comisión."]
[null,"Fuente : Información proporcionada por las Entidades Federativas"]

{"sheet":"II D) 4","index":7,"n_rows":23,"n_cols":17,"rows_kept":23,"cut":false,"hidden":false,"merged":[[12,16,13,16],[12,5,13,5],[12,4,13,4],[12,3,13,3],[9,1,9,9],[19,13,19,14],[12,0,13,0],[12,6,13,6],[12,7,12,13],[12,14,12,15],[12,2,13,2],[12,1,13,1]]}
[]
[]
[]
[]
[]
[]
[]
[]
[null,"Formato: Trabajadores Jubilados en el Periodo"]
[null,{"$f":"IF('Caratula Resumen'!D22=\"Elige el Periodo…\",\"\",'Caratula Resumen'!D22)","v":"Fondo de Aportaciones para la Educación Tecnológica y de Adultos/Colegio Nacional de Educación Profesional Técnica (FAETA/CONALEP)"},null,null,null,null,null,null,null,null,null,null,null,null,null,"2do. Trimestre de 2016"]
[]
[]
[null,"Entidad Federativa","R.F.C.","CURP","NOMBRE","Clave CT","Última(s) ó Penultima(s) Plaza(s) Ocupada(s)\n(*)","Clave Presupuestal de la Jubilación",null,null,null,null,null,null,"Periodo ocupado",null,"Quincena de inicio de jubilación"]
[null,null,null,null,null,null,null,"Partida Presupuestal","Código de Pago","Clave de Unidad","Clave de Sub Unidad","Clave de Categoría","Horas Semana Mes ","Número de Plaza","Inicio","Conclusión"]
[]
[null,"Entidad Federativa","R.F.C.","CURP","NOMBRE","Clave Centro de Trabajo","Última(s) ó Penultima(s) Plaza(s) Ocupada(s)\n(*)","Partida Presupuestal","Código de Pago","Clave de Unidad","Clave de Sub Unidad","Clave de Categoría","Horas Semana Mes ","Número de Plaza","Periodo ocupado\nInicio","Periodo ocupado\nConclusión","Quincena de inicio de jubilación"]
[null,"GUANAJUATO","AALR590709UH6","AALR590709MGTNPC06","MARIA ROCIO ANAYA LÓPEZ","11DPT0008J",1,1130,1003,"02","33","CF33206",0,14312,198402,201603,201603]
[null,"Total Personas : ",1,null,null,null,null,null,null,null,null,"Total Plazas : ",null,1]
[]
[]
[]
[null,"Fuente : Información proporcionada por las Entidades Federativas"]
[null,"(*) Si  el trabajador se jubila con más de una clave presupuestal, por cada plaza se debe llenar un registro hasta que se haya informado acerca de todas las plazas del trabajador."]

{"sheet":"II D) 4 A","index":8,"n_rows":26,"n_cols":18,"rows_kept":26,"cut":false,"hidden":false,"merged":[[20,13,20,14],[9,1,9,7],[22,13,22,14],[12,17,13,17],[12,1,13,1],[12,2,13,2],[12,3,13,3],[12,4,13,4],[12,5,13,5],[12,6,12,12],[12,13,12,14],[12,15,13,15],[12,16,13,16]]}
[]
[]
[]
[]
[]
[]
[]
[]
[null,"Formato: Trabajadores que Tramitaron Licencia Prejubilatoria en el Periodo"]
[null,{"$f":"IF('Caratula Resumen'!D22=\"Elige el Periodo…\",\"\",'Caratula Resumen'!D22)","v":"Fondo de Aportaciones para la Educación Tecnológica y de Adultos/Colegio Nacional de Educación Profesional Técnica (FAETA/CONALEP)"},null,null,null,null,null,null,null,null,null,null,null,null,null,null,"2do. Trimestre de 2016"]
[]
[]
[null,"Entidad Federativa","R.F.C.","CURP","NOMBRE","Clave integrada","Clave Presupuestal",null,null,null,null,null,null,"Periodo Licencia",null,"Percepciones pagadas con Presupuesto Federal en el  Periodo reportado*","Percepciones pagadas con Presupuesto de otra Fuente en el  Periodo reportado*","Clave CT Origen"]
[null,null,null,null,null,null,"Partida Presupuestal","Código de Pago","Clave de Unidad","Clave de Sub Unidad","Clave de Categoría","Horas Semana Mes ","Número de Plaza","Inicio","Conclusión"]
[]
[null,"Entidad Federativa","R.F.C.","CURP","NOMBRE","Clave integrada","Partida Presupuestal","Código de Pago","Clave de Unidad","Clave de Sub Unidad","Clave de Categoría","Horas Semana Mes ","Número de Plaza","Periodo Licencia\nInicio","Periodo Licencia\nConclusión","Percepciones pagadas con Presupuesto Federal en el  Periodo reportado*","Percepciones pagadas con Presupuesto de otra Fuente en el  Periodo reportado*","Clave CT Origen"]
[null,"GUANAJUATO","EIMJ620524ID9","EIMJ620524HGTLRS02  ","JOSE ELIAS MORENO","11301003174CF3320600.014311             ",1130,1003,1,74,"CF33206",0,14311,20160601,20160415,113997.75,0,"11DPT0009I"]
[null,"GUANAJUATO","SAGN550328R1A","SAGN550328HGTNMC00  ","NICOLAS SANTOYO GOMEZ","11301003128S0120200.06509               ",1130,1003,1,28,"S01202",0,6509,20160416,20160715,40280.46,0,"11DPT0004N"]
[null,"GUANAJUATO","AALR590709UH6","AALR590709MGTNPC06  ","MARIA ROCIO ANAYA LOPEZ","11301003233CF3320600.014312             ",1130,1003,2,33,"CF33206",0,14312,20160201,20160430,40419.589999999997,0,"11DPT0008J"]
[null,"GUANAJUATO","HECL500618L95","HECL500618HGTRRS04  ","JOSE LUIS HERNANDEZ CORTES","1130100324CF2120200.09210           ",1130,1003,2,4,"CF21202",0,9210,20160415,20160715,38684.630000000005,0,"11DPT0010Y"]
[null,"Total Personas : ",4,null,null,null,null,null,null,null,"Total Plazas : ",null,4,"Total Pto. Federal",null,{"$f":"SUBTOTAL(109,Tabla5[Percepciones pagadas con Presupuesto Federal en el  Periodo reportado*])","v":233382.43}]
[]
[null,null,null,null,null,null,null,null,null,null,null,null,null,"Total Ppto. Otras Fuentes",null,null,{"$f":"SUM(Q17:Q22)","v":0}]
[]
[null,"*Total de Percepciones reportadas por la Entidad Federativa como pagadas en el periodo "]
[null,"Fuente : Información proporcionada por las Entidades Federativas"]

{"sheet":"II D) 6","index":9,"n_rows":28,"n_cols":13,"rows_kept":28,"cut":false,"hidden":false,"merged":[[10,1,10,6],[13,12,14,12],[13,9,13,10],[13,11,14,11],[13,1,14,1],[13,2,14,2],[13,3,14,3],[13,4,14,4],[13,5,14,5],[13,6,14,6],[13,7,13,8]]}
[]
[]
[]
[]
[]
[]
[]
[]
[]
[null,"Formato: Trabajadores Contratados por Honorarios en el Periodo"]
[null,{"$f":"IF('Caratula Resumen'!D22=\"Elige el Periodo…\",\"\",'Caratula Resumen'!D22)","v":"Fondo de Aportaciones para la Educación Tecnológica y de Adultos/Colegio Nacional de Educación Profesional Técnica (FAETA/CONALEP)"},null,null,null,null,null,null,null,null,null,null,{"$f":"IF('Caratula Resumen'!D23=\"Elige el Periodo…\",\"\",'Caratula Resumen'!D23)","v":"2do. Trimestre"}]
[]
[]
[null,"Entidad Federativa","Clave Centro de Trabajo","R.F.C.","CURP","Nombre","Identificador del Contrato","Equivalencia",null,"Periodo de Contratación",null,"Función","Percepciones pagadas dentro del periodo reportado"]
[null,null,null,null,null,null,null,"Clave de Categoría","Horas Semana Mes ","Inicio","Conclusión"]
[]
[null,"Entidad Federativa","Clave Centro de Trabajo","R.F.C.","CURP","Nombre","Identificador del Contrato","Clave de Categoría","Horas Semana Mes ","Periodo de Contratación\nInicio","Periodo de Contratación\nConclusión","Función","Percepciones pagadas dentro del periodo reportado"]
[]
[]
[]
[]
[]
[null,"Total Entidad Federativa Personas : ",null,null,null,null,null,null,null,null,null,"Subtotal Monto Pagado en el Periodo:"]
[]
[]
[null,null,null,null,null,null,null,null,null,"Total   Percepciones :"]
[]
[null,"Fuente : Información proporcionada por las Entidades Federativas"]

{"sheet":"II D) 7 1","index":10,"n_rows":50,"n_cols":19,"rows_kept":50,"cut":false,"hidden":false,"merged":[[8,17,8,18],[9,1,9,9],[12,6,13,6],[12,7,12,9],[12,10,13,10],[12,11,13,11],[12,12,13,12],[12,1,13,1],[12,2,13,2],[12,3,13,3],[12,4,13,4],[12,5,13,5],[12,17,13,17],[46,16,46,17],[12,18,13,18],[12,13,13,13],[12,14,13,14],[12,15,13,15],[12,16,13,16]]}
[]
[]
[]
[]
[]
[]
[]
[]
[null,"Formato: Analítico de Categorías / Plazas Autorizadas con su Tabulador",null,null,null,null,null,null,null,null,null,null,null,null,null,null,"Entidad Federativa:",{"$f":"IF('Caratula Resumen'!D21=\"Elige el Periodo…\",\"\",'Caratula Resumen'!D21)","v":" GUANAJUATO "}]
[null,{"$f":"IF('Caratula Resumen'!D22=\"Elige el Periodo…\",\"\",'Caratula Resumen'!D22)","v":"Fondo de Aportaciones para la Educación Tecnológica y de Adultos/Colegio Nacional de Educación Profesional Técnica (FAETA/CONALEP)"},null,null,null,null,null,null,null,null,null,null,null,null,null,null,null,"2do. Trimestre de 2016"]
[]
[]
[null,"Clave Tipo educativo","Clave Nivel educativo","Clave Subnivel educativo","Descripción Nivel / Subnivel","Tipo Financiamiento","Partida Presupuestal","CATEGORIA",null,null,"Zona Económica","Nivel Puesto","Nivel Sueldo","Tipo Contratación","Monto mensual\npor plaza jornada","Monto mensual\nPor Plaza HSM","Número de Plazas Jornada","Número de Plazas HSM","Monto total autorizado"]
[null,null,null,null,null,null,null,"Tipo de Categoría"," Categoría","Descripción"]
[]
[null,"Clave Tipo educativo","Clave Nivel educativo","Clave Subnivel educativo","Descripción Nivel / Subnivel","Tipo Financiamiento","Partida Presupestal","Tipo de Categoría"," Categoría","Descripción","Zona Económica","Nivel Puesto","Nivel Sueldo","Tipo Contratación","Monto mensual\npor plaza jornada","Monto mensual\nPor Plaza HSM","Número de Plazas Jornada","Número de Plazas HSM","Monto total autorizado"]
[null,3,32,31,"LICENCIATURA UNIVERSITARIA",1,1130,3,"000000PC","PROFESIONISTA INSTRUCTOR TIPO \"C\"","C","000000D1",1,"H",0,444.52,0,2027,901042.03999999992]
[null,3,32,31,"LICENCIATURA UNIVERSITARIA",1,1130,3,"000000PB","PROFESIONISTA INSTRUCTOR TIPO \"B\"","C","000000D2",2,"H",0,385.12,0,2793,1075640.1599999999]
[null,3,32,31,"LICENCIATURA UNIVERSITARIA",1,1130,3,"000000PA","PROFESIONISTA INSTRUCTOR TIPO \"A\"","C","000000D3",3,"H",0,342.68,0,1923,658973.64]
[null,2,21,20,"PROFESIONAL TÉCNICO",1,1130,3,"000000TA","TÉCNICO INSTRUCTOR \"A\"","C","000000D4",4,"H",0,251.92,0,679.9,171280.408]
[null,1,12,4,"PRIMARIA GENERAL",1,1540,2,"00S01201","ASISTENTE DE SERV. BASICOS","C",2,2,"P",6030.45,0,68,0,410070.6]
[null,1,12,4,"PRIMARIA GENERAL",1,1540,2,"0CF18201","AUXILIAR DE SEGURIDAD","C",2,2,"P",6030.45,0,15,0,90456.75]
[null,1,12,4,"PRIMARIA GENERAL",1,1540,2,"0CF18202","OPERADOR DE SERVICIOS BÁSICOS","C",2,2,"P",6030.45,0,1,0,6030.45]
[null,1,13,7,"SECUNDARIA GENERAL",1,1540,2,"00S01202","AUXILIAR DE SERV. GENERALES","C",4,4,"P",6571.6,0,54,0,354866.4]
[null,1,13,7,"SECUNDARIA GENERAL",1,1540,2,"0CF34202","PROMOTOR CULTURAL Y DEP.","C",5,5,"P",6844.25,0,9,0,61598.25]
[null,1,13,7,"SECUNDARIA GENERAL",1,1540,2,"00A03202","SECRETARIA \"C\"","C",5,5,"P",6844.25,0,32,0,219016]
[null,2,22,22,"BACHILLERATO GENERAL",1,1540,2,"0CF34201","TECNICO BIBLIOTECARIO","C",6,6,"P",6844.25,0,12,0,82131]
[null,2,22,22,"BACHILLERATO GENERAL",1,1540,2,"0ED01201","TECNICO EN MAT. DIDÁCTICOS","C",6,6,"P",7119.35,0,11,0,78312.850000000006]
[null,2,22,22,"BACHILLERATO GENERAL",1,1540,2,"0CF19201","TUTOR ESCOLAR","C",6,6,"P",7119.35,0,15,0,106790.25]
[null,2,22,22,"BACHILLERATO GENERAL",1,1540,2,"0CF21202","ASISTENTE ESCOLAR Y S.","C",7,7,"P",7397.45,0,14,0,103564.3]
[null,2,22,22,"BACHILLERATO GENERAL",1,1540,2,"0CF04201","SECRETARIA \"B\"","C",7,7,"P",7397.45,0,14,0,103564.3]
[null,2,22,22,"BACHILLERATO GENERAL",1,1540,2,"00T08201","TECNICO EN GRAFICACIÓN","C",8,8,"P",7676.65,0,5,0,38383.25]
[null,2,22,22,"BACHILLERATO GENERAL",1,1540,2,"0CF33202","TECNICO EN CONTABILIDAD","C",9,9,"P",7960.2,0,7,0,55721.4]
[null,2,22,22,"BACHILLERATO GENERAL",1,1540,2,"0CF33203","TECNICO FINANCIERO","C",9,9,"P",7960.2,0,9,0,71641.8]
[null,2,22,22,"BACHILLERATO GENERAL",1,1540,2,"0CF18203","SUPERVISOR DE MTTO","C",9,9,"P",7960.2,0,19,0,151243.79999999999]
[null,2,22,22,"BACHILLERATO GENERAL",1,1540,2,"00A01801","ADMINISTRATIVO TEC. ESP.","C",11,11,"P",8535.4,0,10,0,85354]
[null,2,22,22,"BACHILLERATO GENERAL",1,1540,2,"0CF33204","SUBJEFE TECNICO ESP.","C",13,13,"P",14078.25,0,60,0,844695]
[null,3,32,31,"LICENCIATURA UNIVERSITARIA",1,1540,2,"0CF33206","JEFE DE PROYECTO","C",15,15,"P",21707,0,80,0,1736560]
[null,3,32,31,"LICENCIATURA UNIVERSITARIA",1,1540,5,"0CF02105","COORDINADOR EJECUTIVO","C",21,21,"P",25707.39,0,10,0,257073.9]
[null,3,32,31,"LICENCIATURA UNIVERSITARIA",1,1540,5,"0CF01601","JEFE DE UNIDAD","C",22,22,"P",29719.360000000001,0,7,0,208035.52000000002]
[null,3,32,31,"LICENCIATURA UNIVERSITARIA",1,1540,5,"0CF11102","DIRECTOR DE CENTRO","C",24,24,"P",37686.910000000003,0,3,0,113060.73000000001]
[null,3,32,31,"LICENCIATURA UNIVERSITARIA",1,1540,5,"0CF02100","SUBCOORDINADOR","C",25,25,"P",37378.76,0,1,0,37378.76]
[null,3,32,31,"LICENCIATURA UNIVERSITARIA",1,1540,5,"0CF02104","DIRECTOR DE PLANTEL \"D\" Y \"E\"","C",26,26,"P",29695.83,0,5,0,148479.15000000002]
[null,3,32,31,"LICENCIATURA UNIVERSITARIA",1,1540,5,"0CF02103","DIRECTOR DE PLANTEL \"B\" Y \"C\"","C",27,27,"P",30324.799999999999,0,8,0,242598.39999999999]
[null,3,32,31,"LICENCIATURA UNIVERSITARIA",1,1540,5,"0CF02102","DIRECTOR DE PLANTEL \"A\"","C",28,28,"P",30374.94,0,1,0,30374.94]
[null,3,32,31,"LICENCIATURA UNIVERSITARIA",1,1540,5,"0CF11100","REPRESENTANTE","C",30,30,"P",79876.210000000006,0,1,0,79876.210000000006]
[null,null,null,null,null,null,null,null,null,null,null,null,null,"Total Jornada:",{"$f":"SUBTOTAL(109,Tabla15[Monto mensual\npor plaza jornada])","v":450871.39999999997},null,"Total Autorizado:",null,{"$f":"SUBTOTAL(109,Tabla15[Monto total autorizado])","v":8523814.2580000013}]
[null,null,null,null,null,null,null,null,null,null,null,null,null,"Total HSM",{"$f":"SUM(Tabla15[Monto mensual\nPor Plaza HSM])","v":1424.24}]
[]
[null,"Fuente : Información proporcionada por las Entidades Federativas"]

{"sheet":"II D) 7 2 ","index":11,"n_rows":53,"n_cols":18,"rows_kept":53,"cut":false,"hidden":false,"merged":[[14,8,15,8],[14,9,14,13],[14,14,14,16],[10,16,10,17],[11,1,11,9],[14,1,15,1],[14,2,15,2],[14,3,15,3],[14,17,15,17],[14,6,15,6],[14,7,15,7],[14,4,15,4],[14,5,15,5]]}
[]
[]
[]
[]
[]
[]
[]
[]
[]
[]
[null,"Formato: Catálogo de Categorías y Tabuladores",null,null,null,null,null,null,null,null,null,null,null,null,null,"Entidad Federativa:",{"$f":"IF('Caratula Resumen'!D21=\"Elige el Periodo…\",\"\",'Caratula Resumen'!D21)","v":" GUANAJUATO "}]
[null,{"$f":"IF('Caratula Resumen'!D22=\"Elige el Periodo…\",\"\",'Caratula Resumen'!D22)","v":"Fondo de Aportaciones para la Educación Tecnológica y de Adultos/Colegio Nacional de Educación Profesional Técnica (FAETA/CONALEP)"},null,null,null,null,null,null,null,null,null,null,null,null,null,null,"2do. Trimestre de 2016"]
[]
[]
[null,"Identificador origen presupuestal de la plaza","Clave de categoría","Descripción de la categoría","Tipo de contratación","Tipo de categoría","Clave de concepto de pago","Clave de nivel de puesto","Clave de nivel de sueldo","Sueldo asignado por zona económica",null,null,null,null,"Datos adicionales de horas",null,null,"Fecha de actualización"]
[null,null,null,null,null,null,null,null,null,"Inicio de vigencia del sueldo","Fin de vigencia del sueldo","Monto Mensual Jornada ó de HSM\nZona A","Monto Mensual Jornada ó de HSM\nZona B","Monto Mensual Jornada ó de HSM\nZona C","Horas \nde compatibilidad","Horas de servicio (HSM)","Horas de docencia"]
[]
[null,"Identificador origen presupuestal de la plaza","Clave de categoría","Descripción de la categoría","Tipo de contratación","Tipo de categoría","Clave de concepto de pago","Clave de nivel de puesto","Clave de nivel de sueldo","Inicio de vigencia del sueldo","Fin de vigencia del sueldo","Monto Mensual Jornada ó de HSM\nZona A","Monto Mensual Jornada ó de HSM\nZona B","Monto Mensual Jornada ó de HSM\nZona C","Horas \nde compatibilidad","Horas de servicio (HSM)","Horas de docencia","Fecha de actualización"]
[null,1,"0CF02105","COORDINADOR EJECUTIVO II","P",5,1003,21,21,"201601",999999,0,0,25707.39,8,0,"00.0","20160101"]
[null,1,"0CF01601","JEFE DE UNIDAD","P",5,1003,22,22,"201601",999999,0,0,29719.360000000001,8,0,"00.0","20160101"]
[null,1,"0CF11102","DIRECTOR DE CENTRO","P",5,1003,24,24,"201601",999999,0,0,37686.910000000003,8,0,"00.0","20160101"]
[null,1,"0CF02100","SUBCOORDINADOR","P",5,1003,25,25,"201601",999999,0,0,37378.76,8,0,"00.0","20160101"]
[null,1,"0CF02104","DIRECTOR DE PLANTEL \"D\" Y \"E\" II","P",5,1003,26,26,"201601",999999,0,0,29695.83,8,0,"00.0","20160101"]
[null,1,"0CF02103","DIRECTOR DE PLANTEL \"B\" Y \"C\" II","P",5,1003,27,27,"201601",999999,0,0,30324.799999999999,8,0,"00.0","20160101"]
[null,1,"0CF02102","DIRECTOR DE PLANTEL \"A\" II","P",5,1003,28,28,"201601",999999,0,0,30374.94,8,0,"00.0","20160101"]
[null,1,"0CF11100","REPRESENTANTE","P",5,1003,30,30,"201601",999999,0,0,79876.210000000006,8,0,"00.0","20160101"]
[null,1,"000000TA","DOCENTE TIPO 'TA'","H",1,1001,"000000D4",4,"201601",999999,0,0,251.92,0,0,20,"20160101"]
[null,1,"000000PA","DOCENTE TIPO 'PA'","H",1,1001,"000000D3",3,"201601",999999,0,0,342.68,0,0,20,"20160101"]
[null,1,"000000PB","DOCENTE TIPO 'PB'","H",1,1001,"000000D2",2,"201601",999999,0,0,385.12,0,0,20,"20160101"]
[null,1,"000000PC","DOCENTE TIPO 'PC'","H",1,1001,"000000D1",1,"201601",999999,0,0,444.52,0,0,20,"20160101"]
[null,1,"00S01201","ASISTENTE DE SERVICIOS BASICOS","P",2,1003,2,2,"201601",999999,0,0,6030.45,8,0,"00.0","20160101"]
[null,1,"0CF18201","AUXILIAR DE SEGURIDAD","P",2,1003,2,2,"201601",999999,0,0,6030.45,8,0,"00.0","20160101"]
[null,1,"0CF18202","OPERADOR DE SERVICIOS BASICOS","P",2,1003,2,2,"201601",999999,0,0,6030.45,8,0,"00.0","20160101"]
[null,1,"00S01202","AUXILIAR DE SERVICIOS GENERALES","P",2,1003,4,4,"201601",999999,0,0,6571.6,8,0,"00.0","20160101"]
[null,1,"0CF34202","PROMOTOR CULTURAL Y DEP","P",2,1003,5,5,"201601",999999,0,0,6844.25,8,0,"00.0","20160101"]
[null,1,"00A03202","SECRETARIA 'C'","P",2,1003,5,5,"201601",999999,0,0,6844.25,8,0,"00.0","20160101"]
[null,1,"0CF34201","TECNICO BIBILIOTECARIO","P",2,1003,6,6,"201601",999999,0,0,6844.25,8,0,"00.0","20160101"]
[null,1,"0ED01201","TECNICO DE MATS DIDACTICOS","P",2,1003,6,6,"201601",999999,0,0,7119.35,8,0,"00.0","20160101"]
[null,1,"0CF19201","TUTOR ESCOLAR","P",2,1003,6,6,"201601",999999,0,0,7119.35,8,0,"00.0","20160101"]
[null,1,"0CF21202","ASISTENTE ESCOLAR Y SOCIAL","P",2,1003,7,7,"201601",999999,0,0,7397.45,8,0,"00.0","20160101"]
[null,1,"0CF04201","SECRETARIA   B","P",2,1003,7,7,"201601",999999,0,0,7397.45,8,0,"00.0","20160101"]
[null,1,"00T08201","TECNICO EN GRAFICACION","P",2,1003,8,8,"201601",999999,0,0,7676.65,8,0,"00.0","20160101"]
[null,1,"0CF33202","TECNICO EN CONTABILIDAD","P",2,1003,9,9,"201601",999999,0,0,7960.2,8,0,"00.0","20160101"]
[null,1,"0CF33203","TECNICO FINANCIERO","P",2,1003,9,9,"201601",999999,0,0,7960.2,8,0,"00.0","20160101"]
[null,1,"0CF18203","SUPERVISOR DE MANTENIMIENTO","P",2,1003,9,9,"201601",999999,0,0,7960.2,8,0,"00.0","20160101"]
[null,1,"00A01801","ADMINISTRATIVO TECNICO ESPECIALISTA","P",2,1003,11,11,"201601",999999,0,0,8535.4,8,0,"00.0","20160101"]
[null,1,"0CF33204","SUBJEFE TECNICO ESPECIALISTA","P",2,1003,13,13,"201601",999999,0,0,14078.25,8,0,"00.0","20160101"]
[null,1,"0CF33206","JEFE DE PROYECTO","P",2,1003,15,15,"201601",999999,0,0,21707,8,0,"00.0","20160101"]
[null,null,null,null,null,null,null,null,null,null,"Total Zona A:",{"$f":"SUBTOTAL(109,Tabla16[Monto Mensual Jornada ó de HSM\nZona A])","v":0}]
[null,null,null,null,null,null,null,null,null,null,null,"Total Zona B:",{"$f":"SUM(M19:M49)","v":0}]
[null,null,null,null,null,null,null,null,null,null,null,null,"Total Zona C:",{"$f":"SUM(N19:N50)","v":452295.64000000007}]
[]
[null,"Fuente : Información proporcionada por las Entidades Federativas"]

{"sheet":"II D) 7 3","index":12,"n_rows":84,"n_cols":11,"rows_kept":84,"cut":false,"hidden":false,"merged":[[9,1,9,7],[8,9,8,10]]}
[]
[]
[]
[]
[]
[]
[]
[]
[null,"Formato: Catálogo de Percepciones y Deducciones",null,null,null,null,null,null,"Entidad Federativa:",{"$f":"IF('Caratula Resumen'!D21=\"Elige el Periodo…\",\"\",'Caratula Resumen'!D21)","v":" GUANAJUATO "}]
[null,{"$f":"IF('Caratula Resumen'!D22=\"Elige el Periodo…\",\"\",'Caratula Resumen'!D22)","v":"Fondo de Aportaciones para la Educación Tecnológica y de Adultos/Colegio Nacional de Educación Profesional Técnica (FAETA/CONALEP)"},null,null,null,null,null,null,null,"2do. Trimestre de 2016"]
[]
[]
[null,"Identificador origen presupuestal de la plaza","Tipo de concepto de pago ","Origen de financiamiento del concepto de percepciones.","Porcentaje de participación federal por fuente de recursos","Grupo al que pertenece concepto de pago (Percepción y/o Deducción)","Clave de concepto de pago","Descripción del concepto de pago ","Partida presupuestal","Fecha del","Fecha  al"]
[]
[null,"Identificador origen presupuestal de la plaza","Tipo de concepto de pago ","Origen de financiamiento del concepto de percepciones.","Porcentaje de participación federal por fuente de recursos","Grupo al que pertenece concepto de pago (Percepción y/o Deducción)","Clave de concepto de pago","Descripción del concepto de pago ","Partida presupuestal","Fecha del","Fecha  al"]
[null,1,"P","F",100,"P0",1003,"Salario Base",1130,20160101,20161231]
[null,1,"P","F",100,"P1",2517,"Estímulo de Productividad",1540,20160101,20161231]
[null,1,"P","F",100,"P1",2800,"Despensa",1540,20160101,20161231]
[null,1,"P","F",100,"P1",1602,"Desarrollo y Capacitación",1540,20160101,20161231]
[null,1,"P","F",100,"P1",2766,"Prima de Antigüedad",1540,20160101,20161231]
[null,1,"P","F",100,"P1",2754,"Ayuda de Guardería",1540,20160101,20161231]
[null,1,"P","F",100,"P1",2615,"Canastilla Materna",1540,20160101,20161231]
[null,1,"P","F",100,"P1",2600,"Estímulo por Puntualidad y Asistencia",1540,20160101,20161231]
[null,1,"P","F",100,"P1",2680,"Anteojos  y/o Lentes de contacto",1540,20160101,20161231]
[null,1,"P","F",100,"P1",3503,"Pago por Defunción",1540,20160101,20161231]
[null,1,"P","F",100,"P1",1624,"Prima Dominical",1320,20160101,20161231]
[null,1,"P","F",100,"P1",3623,"Prima Vacacional",1320,20160101,20161231]
[null,1,"P","F",100,"P1",2850,"Labores en Condiciones Insalubres",1540,20160101,20161231]
[null,1,"P","F",100,"P1",2655,"Aparatos Ortopédicos",1540,20160101,20161231]
[null,1,"P","F",100,"P1",2627,"Estímulo por día de la Madres",1540,20160101,20161231]
[null,1,"P","F",100,"P1",2810,"Ayuda para Titulación",1540,20160101,20161231]
[null,1,"P","F",100,"P1",2625,"Ayuda para Utiles Escolares",1540,20160101,20161231]
[null,1,"P","F",100,"P1",1601,"Apoyo por contraer Nupcias",1540,20160101,20161231]
[null,1,"P","F",100,"P1",1603,"Compensación",1340,20160101,20161231]
[null,1,"P","F",100,"P1",5050,"Exceso del credito al salario",1130,20160101,20161231]
[null,1,"P","F",100,"P1",2553,"Días económicos",1540,20160101,20161231]
[null,1,"P","F",100,"P1",2565,"Ajuste salarial",1540,20160101,20161231]
[null,1,"P","F",100,"P1",2573,"Días de descanso obligatorio",1540,20160101,20161231]
[null,1,"P","F",100,"P1",1002,"subsidio al empleo",1130,20160101,20161231]
[null,1,"D",null,0,"D1",5045,"I.S.P.T. a Retener",0,20160101,20161231]
[null,1,"D",null,0,"D1",2920,"Seguro de Retiro",0,20160101,20161231]
[null,1,"D",null,0,"D1",2735,"Seg.Vida METLIFE de MEXICO",0,20160101,20161231]
[null,1,"D",null,0,"D2",8135,"Prestamo Issste",0,20160101,20161231]
[null,1,"D",null,0,"D1",8523,"Cuota Sindical Local",0,20160101,20161231]
[null,1,"D",null,0,"D1",6250,"Seg.Salud T.Activo",0,20160101,20161231]
[null,1,"D",null,0,"D1",6251,"Seg.Salud T.Pensionado",0,20160101,20161231]
[null,1,"D",null,0,"D1",6252,"Seg.Invalidez y Vida",0,20160101,20161231]
[null,1,"D",null,0,"D1",6253,"S.Sociales y Cult.",0,20160101,20161231]
[null,1,"D",null,0,"D1",6254,"S.Ret.Cesantia Avzda",0,20160101,20161231]
[null,1,"D",null,0,"D2",8095,"Cred. Hip. Creciente",0,20160101,20161231]
[null,1,"D",null,0,"D2",1927,"Seg. da%os Fovissste",0,20160101,20161231]
[null,1,"D",null,0,"D2",8580,"Pension Alimenticia",0,20160101,20161231]
[null,1,"D",null,0,"D3",2950,"Otras deducciones",0,20160101,20161231]
[null,1,"P","F",100,"P0",1001,"Salario Base del personal docente",1130,20160101,20161231]
[null,1,"P","F",100,"P1",1002,"subsidio al empleo del personal docente",3301,20160101,20161231]
[null,1,"P","F",100,"P1",1019,"Bonificación (graba para ISPT) del personal docente",1590,20160101,20161231]
[null,1,"P","F",100,"P1",1020,"Bonificación (no graba para ISPT) del personal docente",1590,20160101,20161231]
[null,1,"P","F",100,"P1",1021,"Prima Vacacional",1320,20160101,20161231]
[null,1,"P","F",100,"P1",1005,"Estimulo al desempeño docente",1710,20160101,20161231]
[null,1,"P","F",100,"P1",1006,"Horas recuperadas",1540,20160101,20161231]
[null,1,"D",null,0,"D1",2001,"I.S.P.T. a Retener del personal docente",0,20160101,20161231]
[null,1,"D",null,0,"D2",2002,"Cuota Sindical Local del personal docente",0,20160101,20161231]
[null,1,"D",null,0,"D2",2003,"Seg. de salud activo para el personal docente",0,20160101,20161231]
[null,1,"D",null,0,"D2",2004,"Seg. de salud t. pensionado del personal docente",0,20160101,20161231]
[null,1,"D",null,0,"D2",2005,"Seg. invalidez y vida del personal docente",0,20160101,20161231]
[null,1,"D",null,0,"D2",2006,"S. social y cultural del personal docente",0,20160101,20161231]
[null,1,"D",null,0,"D2",2007,"S.Ret.Cesantia Avzda del personal docente",0,20160101,20161231]
[null,1,"D",null,0,"D2",2008,"Horas no impartidas del personal docente",0,20160101,20161231]
[null,1,"D",null,0,"D2",2009,"Pensión alimenticia del personal docente",0,20160101,20161231]
[null,1,"D",null,0,"D3",2010,"Otros descuentos del personal docente",0,20160101,20161231]
[null,1,"D",null,0,"D2",2011,"Descuento por retardos del personal docente",0,20160101,20161231]
[null,1,"D",null,0,"D2",2015,"Crédito hipotecario del personal docente",0,20160101,20161231]
[null,1,"D",null,0,"D2",2014,"Préstamo personal del personal docente",0,20160101,20161231]
[null,1,"D",null,0,"D2",2021,"Ahorro solidario del personal docente",0,20160101,20161231]
[null,1,"P","F",100,"P1",2805,"Previsión Múltiple",1540,20160101,20161231]
[null,1,"P","F",100,"P1",1022,"Asesorías Complementarias",1130,20160101,20161231]
[null,1,"P","F",100,"P1",1023,"Interinatos",1130,20160101,20161231]
[null,1,"D",null,100,"D2",2010,"Ajuste por pago indebido",0,20160101,20161231]
[null,1,"D",null,100,"D2",2016,"Seguro de Daños de Fovissste",0,20160101,20161231]
[null,1,"D",null,100,"D2",2017,"Cuota Sindical para Docentes TD",0,20160101,20161231]
[null,1,"D",null,100,"D2",2022,"Seguro de Vida",0,20160101,20161231]
[null,1,"P","F",100,"P1",1004,"Aguinaldo Personal Docente",1320,20160101,20161231]
[null,1,"P","F",100,"P1",3613,"Aguinaldo",1320,20160101,20161231]
[null,"Fuente : Información proporcionada por las Entidades Federativas"]

{"sheet":"E)","index":13,"n_rows":26,"n_cols":8,"rows_kept":26,"cut":false,"hidden":false,"merged":[[9,1,9,5],[12,1,14,1],[12,2,14,2],[13,7,14,7],[12,3,14,3],[12,4,14,4],[12,5,12,7],[13,5,14,5],[13,6,14,6]]}
[]
[]
[]
[]
[]
[]
[]
[]
[null,"Formato: Trabajadores que Cobran con RFC / CURP con Formato Incorrecto"]
[null,{"$f":"IF('Caratula Resumen'!D22=\"Elige el Periodo…\",\"\",'Caratula Resumen'!D22)","v":"Fondo de Aportaciones para la Educación Tecnológica y de Adultos/Colegio Nacional de Educación Profesional Técnica (FAETA/CONALEP)"},null,null,null,null,null,{"$f":"IF('Caratula Resumen'!D23=\"Elige el Periodo…\",\"\",'Caratula Resumen'!D23)","v":"2do. Trimestre"}]
[]
[]
[null,"Entidad Federativa","RFC","CURP","NOMBRE TRABAJADOR","Motivo"]
[null,null,null,null,null,"Sin RFC o erroneo","RFC Sin Homoclave","Sin CURP o Erronea"]
[]
[]
[null,"Entidad Federativa","RFC","CURP","NOMBRE TRABAJADOR","Sin RFC o erroneo","RFC Sin Homoclave","Sin CURP o Erronea"]
[]
[]
[]
[]
[]
[null,"Total Personas : ",null,null,"Total Sin RFC o Erroneo:"]
[null,null,null,null,null,"Total RFC Sin Homoclave:"]
[null,null,null,null,null,null,"Total Sin CURP o Erroneo:"]
[null,"Fuente : Información proporcionada por las Entidades Federativas"]

{"sheet":"G)","index":14,"n_rows":28,"n_cols":20,"rows_kept":28,"cut":false,"hidden":false,"merged":[[10,1,10,8],[12,5,12,11],[13,1,14,1],[13,2,14,2],[13,3,14,3],[13,4,14,4],[13,5,14,5],[13,6,13,12],[13,19,14,19],[13,13,14,13],[13,14,14,14],[13,15,13,16],[13,17,14,17],[13,18,14,18]]}
[]
[]
[]
[]
[]
[]
[]
[]
[]
[null,"Formato: Trabajadores Cuyo Salario Básico Supere los Ingresos Promedio de un Docente en la Categoría más Alta del Tabulador Salarial Correspondiente a Cada Entidad"]
[null,{"$f":"IF('Caratula Resumen'!D22=\"Elige el Periodo…\",\"\",'Caratula Resumen'!D22)","v":"Fondo de Aportaciones para la Educación Tecnológica y de Adultos/Colegio Nacional de Educación Profesional Técnica (FAETA/CONALEP)"},null,null,null,null,null,null,null,null,null,null,null,null,null,null,null,null,null,{"$f":"IF('Caratula Resumen'!D23=\"Elige el Periodo…\",\"\",'Caratula Resumen'!D23)","v":"2do. Trimestre"}]
[]
[]
[null,"Entidad Federativa","R.F.C.","CURP","Nombre","Clave integrada","Clave Presupuestal Integrada y Categoria aparte",null,null,null,null,null,null,"Clave CT Origen","Nombre CT","Periodo",null,"Monto de Remuneraciones Mensuales ","Monto de referencia","Diferencia\n(R-S)"]
[null,null,null,null,null,null,"Partida Presupuestal","Código de Pago","Clave de Unidad","Clave de Sub Unidad","Clave de Categoría","Horas Semana Mes ","Número de Plaza",null,null,"Desde","Hasta"]
[]
[null,"Entidad Federativa","R.F.C.","CURP","Nombre","Clave integrada","Partida Presupuestal","Código de Pago","Clave de Unidad","Clave de Sub Unidad","Clave de Categoría","Horas Semana Mes ","No. de plaza","CT","Nombre CT","Periodo\nDesde","Periodo\nHasta","Monto de Remuneraciones Mensuales ","Monto de referencia","Diferencia\n(R-S)"]
[]
[]
[]
[]
[]
[]
[null,"Total Personas : ",null,null,null,null,null,null,null,null,null,null,null,null,"Total Remuneraciones Mensuales:"]
[]
[null,null,null,null,null,null,null,null,null,null,null,null,null,null,null,null,null,"Total Diferencia:"]
[]
[null,"Fuente : Información proporcionada por las Entidades Federativas"]

{"sheet":"F) 1","index":15,"n_rows":26,"n_cols":19,"rows_kept":26,"cut":false,"hidden":false,"merged":[[9,1,9,6],[12,15,13,15],[12,16,13,16],[12,17,12,18],[12,1,13,1],[12,2,13,2],[12,3,13,3],[12,4,13,4],[12,5,13,5],[12,6,13,6],[12,7,13,7],[12,8,12,14]]}
[]
[]
[]
[]
[]
[]
[]
[]
[null,"Formato: Trabajadores con Doble Asignación Salarial en Municipios no Colindantes Geográficamente"]
[null,{"$f":"IF('Caratula Resumen'!D22=\"Elige el Periodo…\",\"\",'Caratula Resumen'!D22)","v":"Fondo de Aportaciones para la Educación Tecnológica y de Adultos/Colegio Nacional de Educación Profesional Técnica (FAETA/CONALEP)"},null,null,null,null,null,null,null,null,null,null,null,null,null,null,null,null,{"$f":"IF('Caratula Resumen'!D23=\"Elige el Periodo…\",\"\",'Caratula Resumen'!D23)","v":"2do. Trimestre"}]
[]
[]
[null,"Entidad Federativa","Municipio","Localidad","RFC","CURP","Nombre del Trabajador","Clave integrada","Clave Presupuestal",null,null,null,null,null,null,"Clave CT","Nombre CT","Periodo en el CT"]
[null,null,null,null,null,null,null,null,"Partida Presupuestal","Código de Pago","Clave de Unidad","Clave de Sub Unidad","Clave de Categoría","Horas Semana Mes ","Número de Plaza",null,null,"Desde","Hasta"]
[]
[null,"Entidad Federativa","Municipio","Localidad","RFC","CURP","Nombre del Trabajador","Clave integrada","Partida Presupuestal","Código de Pago","Clave de Unidad","Clave de Sub Unidad","Clave de Categoría","Horas semana mes","Número de Plaza","Clave CT","Nombre CT","Periodo en el CT\nDesde","Periodo en el CTH\nasta"]
[]
[]
[]
[]
[]
[null,"Total Personas : ",null,null,null,null,null,null,null,null,null,null,"Total Plazas : "]
[]
[]
[null,"Fuente : Información proporcionada por las Entidades Federativas"]
[null,"Importante: Listar Sólo los Municipios no Colindantes"]

{"sheet":"F) 2","index":16,"n_rows":26,"n_cols":20,"rows_kept":26,"cut":false,"hidden":false,"merged":[[13,3,14,3],[13,4,14,4],[13,5,14,5],[10,1,10,9],[13,19,14,19],[13,18,14,18],[13,6,13,12],[13,13,14,13],[13,14,14,14],[13,15,14,15],[13,16,13,17],[13,1,14,1],[13,2,14,2]]}
[]
[]
[]
[]
[]
[]
[]
[]
[]
[null,"Formato: Trabajadores Ocupando Plazas que Superan el Número de Horas de Compatibilidad Autorizadas"]
[null,{"$f":"IF('Caratula Resumen'!D22=\"Elige el Periodo…\",\"\",'Caratula Resumen'!D22)","v":"Fondo de Aportaciones para la Educación Tecnológica y de Adultos/Colegio Nacional de Educación Profesional Técnica (FAETA/CONALEP)"},null,null,null,null,null,null,null,null,null,null,null,null,null,null,null,null,{"$f":"IF('Caratula Resumen'!D23=\"Elige el Periodo…\",\"\",'Caratula Resumen'!D23)","v":"2do. Trimestre"}]
[]
[]
[null,"Entidad Federativa","RFC","CURP","Nombre","Clave integrada","Clave Presupuestal",null,null,null,null,null,null,"CT","Nombre CT","Turno CT","Periodo",null,"Total de Horas en el CT","Horas de compatibilidad de la categoría"]
[null,null,null,null,null,null,"Partida Presupuestal","Código de Pago","Clave de Unidad","Clave de Sub Unidad","Clave de Categoría","Horas Semana Mes ","Número de Plaza",null,null,null,"Desde","Hasta"]
[]
[null,"Entidad Federativa","RFC","CURP","Nombre","Clave integrada","Partida Presupuestal","Código de Pago","Clave de Unidad","Clave de Sub Unidad","Clave de Categoría","Horas semana mes","Número de plaza","CT","Nombre CT","Turno CT","Periodo\nDesde","Periodo\nHasta","Total de Horas en el CT","Horas de compatibilidad de la categoría"]
[]
[]
[]
[]
[]
[null,"Total Personas : ",null,null,null,null,null,null,null,null,"Total Plazas : "]
[]
[]
[null,"Fuente : Información proporcionada por las Entidades Federativas"]

{"sheet":"Listas","index":17,"n_rows":42,"n_cols":8,"rows_kept":42,"cut":false,"hidden":true,"merged":[]}
[]
[]
[]
[null,"Elige un Fondo…"]
[null,"Fondo de Aportaciones para la Educación Básica y Normal (FAEB)"]
[null,"Fondo de Aportaciones para la Educación Tecnológica y de Adultos/Colegio Nacional de Educación Profesional Técnica (FAETA/CONALEP)"]
[null,"Fondo de Aportaciones para la Educación Tecnológica y de Adultos/Instituto Nacional para la Educación de los Adultos (FAETA/INEA)"]
[]
[]
[null,null,null,null,null,null,null,"Elige la Entidad Federativa…"]
[null,"Elige el Periodo…",null,null,null,null,null,"AGUASCALIENTES"]
[null,"1er. Trimestre",null,null,null,null,null,"BAJA CALIFORNIA"]
[null,"2do. Trimestre",null,null,null,null,null,"BAJA CALIFORNIA SUR"]
[null,"3er. Trimestre",null,null,null,null,null,"CAMPECHE"]
[null,"4to. Trimestre",null,null,null,null,null,"COAHUILA "]
[null,null,null,"Elige el Año…",null,null,null,"COLIMA "]
[null,null,null,2013,null,null,null,"CHIAPAS "]
[null,null,null,2014,null,null,null,"CHIHUAHUA "]
[null,null,null,2015,null,null,null,"DISTRITO FEDERAL"]
[null,null,null,2016,null,null,null," DURANGO "]
[null,null,null,2017,null,null,null," GUANAJUATO "]
[null,null,null,2018,null,null,null," GUERRERO "]
[null,null,null,null,null,null,null," HIDALGO"]
[null,null,null,null,null,null,null," JALISCO "]
[null,null,null,null,null,null,null," MEXICO "]
[null,null,null,null,null,null,null," MICHOACAN "]
[null,null,null,null,null,null,null," MORELOS "]
[null,null,null,null,null,null,null," NAYARIT "]
[null,null,null,null,null,null,null," NUEVO LEON"]
[null,null,null,null,null,null,null," OAXACA "]
[null,null,null,null,null,null,null," PUEBLA "]
[null,null,null,null,null,null,null," QUERETARO "]
[null,null,null,null,null,null,null," QUINTANA ROO"]
[null,null,null,null,null,null,null," SAN LUIS"]
[null,null,null,null,null,null,null," SINALOA "]
[null,null,null,null,null,null,null," SONORA "]
[null,null,null,null,null,null,null," TABASCO "]
[null,null,null,null,null,null,null," TAMAULIPAS "]
[null,null,null,null,null,null,null," TLAXCALA "]
[null,null,null,null,null,null,null," VERACRUZ"]
[null,null,null,null,null,null,null," YUCATÁN "]
[null,null,null,null,null,null,null," ZACATECAS "]